{"text_format":"1","workbook":"xlsx","n_sheets":3,"sheets":["ElencoAllievi","Corsi","FoglioFirme"],"not_rendered":{"charts":0,"images":0,"macros":1,"external_links":0,"defined_names":4,"comments":0,"pivot_tables":0},"unopened":[],"bounds":{"document_bytes":16777216,"sheet_cells":100000,"rows_first":2000,"rows_last":500,"rows_between":2000,"halvings":0,"cell_chars":16384,"cell_head_chars":4096},"cells_cut":0,"cells_raw":0,"read":"whole","date_system":"1900"}

{"sheet":"ElencoAllievi","index":0,"n_rows":126,"n_cols":22,"rows_kept":126,"cut":false,"hidden":false,"merged":[[9,0,10,0],[3,0,4,0],[7,0,8,0],[7,1,8,4],[9,1,10,4],[0,0,1,4],[4,8,5,11],[1,8,2,11],[6,10,6,11],[6,8,6,9],[3,1,4,4],[6,3,6,4],[5,3,5,4],[20,10,23,11],[8,8,10,11],[9,5,9,7],[7,8,7,9],[7,10,7,11]]}
["Corso di aggiornamento professionale per il mantenimento dell'iscrizione nell'Elenco Nazionale dei Tecnici Competenti in Acustica (ENTECA) - D.Lgs. 42/2017",null,null,null,null,null,null,null,"Indirizzo repertorio corsi:",null,null,null,"Ver. 2.2 30/11/2021",null,null,null,17,18,19,20,21,22]
[null,null,null,null,null,null,null,null,"https://agentifisici.isprambiente.it/enteca/corsi_aggiornamentolist.php?export=excel"]
["Cod. Corso",{"$f":"IF(LEN($F$101)=7,MID($F$101,2,6),\"\")","v":""},"Regione/Provincia autonoma","Campania"]
["Titolo:",{"$f":"IF(LEN($F$101)=7,IF(VALUE(MID(VLOOKUP($F$101,Corsi!$A:$T,8,FALSE),2,6))>0,MID(VLOOKUP($F$101,Corsi!$A:$T,8,FALSE),11,255),VLOOKUP($F$101,Corsi!$A:$T,8,FALSE)),\"\")","v":""},null,null,null,null,null,null,"Link alla Cartella dei file da inviare alla Regione/Provincia autonoma competente"]
[null,null,null,null,null,null,null,null,"F:\\_Ufficio\\_Desktop\\agg_Tca\\aggTca_Report"]
["Cod. Ente","Numero ore","Data avvio","Data fine"]
[{"$f":"IF(LEN($F$101)=7,MID(VLOOKUP($F$101,Corsi!$A:$T,4,FALSE),1,4),\"\")","v":""},{"$f":"IF(LEN($F$101)=7,VLOOKUP($F$101,Corsi!$A:$T,9,FALSE),\"\")","v":""},{"$f":"IF(LEN($F$101)=7,VLOOKUP($F$101,Corsi!$A:$T,10,FALSE),\"\")","v":""},{"$f":"IF(LEN($F$101)=7,VLOOKUP($F$101,Corsi!$A:$T,11,FALSE),\"\")","v":""},{"$f":"IF($B$3>\"\",IFERROR(VLOOKUP($F$101,Corsi!$A:$T,10,FALSE),\"\"),\"\")","v":""},null,null,null,"Secondi di attesa per pagine web (0-9)",null,0]
["Soggetto",{"$f":"IF(LEN($F$101)=7,MID(VLOOKUP($F$101,Corsi!$A:$T,4,FALSE),8,255),\"\")","v":""},null,null,null,null,null,null,"Ultimo aggiornamento Repertorio Corsi",null,"2021-11-30T19:53:28",null,null,null,null,null," "]
[]
["Sede Operativa",{"$f":"IF(LEN($F$101)=7,VLOOKUP($F$101,Corsi!$A:$T,16,FALSE) & \" \" & VLOOKUP($F$101,Corsi!$A:$T,15,FALSE) & \" \" & VLOOKUP(F101,Corsi!$A:$T,14,FALSE) & \" - \" & VLOOKUP(F101,Corsi!$A:$T,13,FALSE),\"\")","v":""},null,null,null,"aggTcaFormatInvioDati (version 1.0)"]
[]
["Num.","N. ENTECA","Cognome e Nome","Regione di residenza","A","N. ENTECA Docente","n. ore","tipo","Cognome e Nome Docente","Regione di residenza","Dalle","Alle",null,null,null,null,"Docenti","Ctrl","Allievi",null,"ctrlAllievi","crtlDocenti"]
[1,null,null,null,null,null,null,null,null,null,null,null,null,null,null,null,"Docente 1",null,"Allievo 1",null,"7137ANTONUCCI GIOVANNI","11603CAMBIAGGIO ANTONIO PIETRO"]
[2,null,null,null,null,null,null,null,null,null,null,null,null,null,null,null,"Docente 2",null,"Allievo 2",null,"8802ANTONUCCI GIOVANNI","4706KARROUM MICHEL"]
[3,null,null,null,null,null,null,null,null,null,null,null,null,null,null,null,"Docente 3",null,"Allievo 3",null,"8626AURINO GABRIELE","7535NOTINI CARLO"]
[4,null,null,null,null,null,null,null,null,null,null,null,null,null,null,null,"Docente 4",null,"Allievo 4",null,"1449BARBERINI LUCA","11405BELINGHERI ANDREA"]
[5,null,null,null,null,null,null,null,null,null,null,null,null,null,null,null,"Docente 5",null,"Allievo 5",null,"7151BARBONA SERGIO","4801NATALINI ENRICO"]
[6,null,null,null,null,null,null,null,null,null,null,null,null,null,null,null,"Docente 6",null,"Allievo 6",null,"9379BASILE GIOVANNI"]
[7,null,null,null,null,null,null,null,null,null,null,null,null,null,null,null,"Docente 7",null,"Allievo 7",null,"3BENINI IACOPO"]
[8,null,null,null,null,null,null,null,null,null,null,null,null,null,null,null,"Docente 8",null,"Allievo 8",null,"4408BERTELLINO FRANCO"]
[9,null,null,null,null,null,null,"D","= Docente iscritto in Enteca",null,"Valori NON obbigatori, se presenti saranno trasferiti nel foglio firme.",null,null,null,null,null,"ore Docente",null,"Allievo 9",null,"1489BETTINI VERONICA MARIAGATA"]
[10,null,null,null,null,"A = Assente",null,"P","= Docente/Professionista non iscritto in ENTECA",null,null,null,null,null,null,null,"ore Co-Docente",null,"Allievo 10",null,"594BONIOTTO EMILIANO"]
[11,null,null,null,null,"P = Presente",null,"C","= Co-Docente iscritto in ENTECA",null,null,null,null,null,null,null,null,null,"Allievo 11",null,"9393CACCAVALE GIORGIO"]
[12,null,null,null,null,null,null,"K","= Co-Docente/Professionista non iscritto in ENTECA",null,null,null,null,null,null,null,null,null,"Allievo 12",null,"5055CASADIO MICHELE"]
[13,null,null,null,null,null,null,null,null,null,null,null,null,null,null,null,null,null,"Allievo 13",null,"7248CECCHI STEFANO"]
[14,null,null,null,null,null,null,null,null,null,null,null,null,null,null,null,null,null,"Allievo 14",null,"9472COSTABILE GIUSEPPE"]
[15,null,null,null,null,null,null,null,null,null,null,null,null,null,null,null,null,null,"Allievo 15",null,"8962CUCCURULLO LUCA"]
[16,null,null,null,null,null,"",null,null,null,null,null,null,null,null,null,null,null,"Allievo 16",null,"6445CUCINELLA GAETANO"]
[17,null,null,null,null,null,"",null,null,null,null,null,null,null,null,null,null,null,"Allievo 17",null,"9007D'ORTA FRANCESCO"]
[18,null,null,null,null,null,"",null,null,null,null,null,null,null,null,null,null,null,"Allievo 18",null,"5331DEGLI ANGELI ILARIA"]
[19,null,null,null,null,null,"",null,null,null,null,null,null,null,null,null,null,null,"Allievo 19",null,"8677FUSCO ANTONIETTA"]
[20,null,null,null,null,null,"",null,null,null,null,null,null,null,null,null,null,null,"Allievo 20",null,"9149GUARNACCIA CLAUDIO"]
[21,null,null,null,null,null,"",null,null,null,null,null,null,null,null,null,null,null,"Allievo 21",null,"9597IAROSSI SERGIO"]
[22,null,null,null,null,null,"",null,null,null,null,null,null,null,null,null,null,null,"Allievo 22",null,"11691IAZZETTA ANTONIO"]
[23,null,null,null,null,null,"",null,null,null,null,null,null,null,null,null,null,null,"Allievo 23",null,"9026IMPERATORE GIOVANNI"]
[24,null,null,null,null,null,"",null,null,null,null,null,null,null,null,null,null,null,"Allievo 24",null,"8620IZZO ANTONIETTA"]
[25,null,null,null,null,null,"",null,null,null,null,null,null,null,null,null,null,null,"Allievo 25",null,"8564LICCARDO GIUSEPPE"]
[26,null,null,null,null,null,"",null,null,null,null,null,null,null,null,null,null,null,"Allievo 26",null,"9590LO CASTRO FABIO"]
[27,null,null,null,null,null,"",null,null,null,null,null,null,null,null,null,null,null,"Allievo 27",null,"9986NUNZIATA FERDINANDO"]
[28,null,null,null,null,null,"",null,null,null,null,null,null,null,null,null,null,null,"Allievo 28",null,"9444ORLANDO SEVERINO"]
[29,null,null,null,null,null,"",null,null,null,null,null,null,null,null,null,null,null,"Allievo 29",null,"8593PAPA AUGUSTO"]
[30,null,null,null,null,null,"",null,null,null,null,null,null,null,null,null,null,null,"Allievo 30",null,"8604PAPA GRAZIANO"]
[31,null,null,null,null,null,"",null,null,null,null,null,null,null,null,null,null,null,"Allievo 31",null,"9013PICARIELLO GIUSEPPE"]
[32,null,null,null,null,null,"",null,null,null,null,null,null,null,null,null,null,null,"Allievo 32",null,"9475RUGGIERO ANTONIO"]
[33,null,null,null,null,null,"",null,null,null,null,null,null,null,null,null,null,null,"Allievo 33",null,"6626SCARAFILE MARTINO"]
[34,null,null,null,null,null,"",null,null,null,null,null,null,null,null,null,null,null,"Allievo 34",null,"6790SCARDIA SERGIO"]
[35,null,null,null,null,null,"",null,null,null,null,null,null,null,null,null,null,null,"Allievo 35",null,"9448SIMONELLI GIACOMO"]
[36,null,null,null,null,null,"",null,null,null,null,null,null,null,null,null,null,null,"Allievo 36",null,"8759SOGARO SALVATORE"]
[37,null,null,null,null,null,"",null,null,null,null,null,null,null,null,null,null,null,"Allievo 37"]
[38,null,null,null,null,null,"",null,null,null,null,null,null,null,null,null,null,null,"Allievo 38"]
[39,null,null,null,null,null,"",null,null,null,null,null,null,null,null,null,null,null,"Allievo 39"]
[40,null,null,null,null,null,"",null,null,null,null,null,null,null,null,null,null,null,"Allievo 40"]
[41,null,null,null,null,null,"",null,null,null,null,null,null,null,null,null,null,null,"Allievo 41"]
[42,null,null,null,null,null,"",null,null,null,null,null,null,null,null,null,null,null,"Allievo 42"]
[43,null,null,null,null,null,"",null,null,null,null,null,null,null,null,null,null,null,"Allievo 43"]
[44,null,null,null,null,null,"",null,null,null,null,null,null,null,null,null,null,null,"Allievo 44"]
[45,null,null,null,null,null,"",null,null,null,null,null,null,null,null,null,null,null,"Allievo 45"]
[46,null,null,null,null,null,"",null,null,null,null,null,null,null,null,null,null,null,"Allievo 46"]
[47,null,null,null,null,null,"",null,null,null,null,null,null,null,null,null,null,null,"Allievo 47"]
[48,null,null,null,null,null,"",null,null,null,null,null,null,null,null,null,null,null,"Allievo 48"]
[49,null,null,null,null,null,"",null,null,null,null,null,null,null,null,null,null,null,"Allievo 49"]
[50,null,null,null,null,null,"",null,null,null,null,null,null,null,null,null,null,null,"Allievo 50"]
[null,null,null,null,null,null,""]
[null,null,null,null,null,null,""]
[]
[]
[]
[]
[]
[]
[]
[]
[]
[]
[]
[]
[]
[]
[]
[]
[]
[]
[]
[]
[]
[]
[]
[]
[]
[]
[]
[]
[]
[]
[]
[]
[]
[]
[]
[null,"Regioni","Key","Descrizione","ko!","Key","P/A"]
[null,"Abruzzo","A","Cod. Corso",{"$f":"IF(F101=\"\",\"KO\",\"\")","v":""},"*","A"]
[null,"Basilicata","B","Regione",{"$f":"IF(D3=\"\",\"KO\",\"\")","v":""},{"$f":"VLOOKUP($D$3,$B$101:$C$122,2,FALSE)","v":"D"},"P"]
[null,"Calabria","C","Titolo",{"$f":"IF(B4=\"\",\"KO\",\"\")","v":"KO"}]
[null,"Campania","D","Numero Ore",{"$f":"IF(A7=0,\"KO\",\"\")","v":""}]
[null,"Emilia Romagna","E","Data avvio",{"$f":"IF(C7=\"\",\"KO\",\"\")","v":"KO"}]
[null,"Friuli Venezia Giulia","F","Data fine",{"$f":"IF(D7=\"\",\"KO\",\"\")","v":"KO"}]
[null,"Lazio","G","Soggetto",{"$f":"IF(B8=\"\",\"KO\",\"\")","v":"KO"}]
[null,"Liguria","H","Sede Operativa",{"$f":"IF(B10=\"\",\"KO\",\"\")","v":"KO"}]
[null,"Lombardia","I"]
[null,"Marche","J"]
[null,"Molise","K"]
[null,"Piemonte","L"]
[null,"Provincia Autonoma di Bolzano","M"]
[null,"Provincia Autonoma di Trento","N"]
[null,"Puglia","X"]
[null,"Sardegna","P"]
[null,"Sicilia","Q"]
[null,"Toscana","R"]
[null,"Trentino-Alto Adige","S"]
[null,"Umbria","T"]
[null,"Valle d'Aosta","U"]
[null,"Veneto","V"]
[null,null,"W"]
[null,null,"X"]
[null,null,"Y"]
[null,null,"Z"]

{"sheet":"Corsi","index":1,"n_rows":939,"n_cols":17,"rows_kept":939,"cut":false,"hidden":true,"merged":[]}
["Key","Regione","Soggetto erogatore","Nome soggetto <br>erogatore","Telefono","Email","Dati contatto","Titolo","Ore di aggiornamento","Data avvio","Data fine","Modalità erogazione","Indirizzo","Provincia","Comune","Cap","Atto autorizzazione"]
[null,"Lombardia","Soggetto idoneo alla formazione","SCUOLA EDILE DI BERGAMO","035-297671","info@scuolaedilebg.it",null,"IL RUMORE DA CALPESTIO: PROGETTAZIONE, CONTROLLO E COLLAUDO",6,"12/12/2018","12/12/2018","Lezioni frontali","VIA ANTONIO LOCATELLI, N. 15","BG","Seriate",24068,"riscontro comunicazione AGG1.pdf"]
[null,"Puglia","Soggetto idoneo alla formazione","0001 - SON TRAINING SRLS",null,"sontraining@pec.it","Sede legale in via Tiratore n. 24 - 83042 Atripalda (AV)\nValerio d'Anna\ndanna@sontraining.it","X000001 - La valutazione di Impatto acustico anche alla luce della nuova norma UNI 12354- 4 \u0096 sviluppo di casi pratici",5,"28/01/2019","28/01/2019","Lezioni frontali","Ordine degli ingegneri di Bari - Via Japigia 184 \u0096 BARI","BA","Bari",70126,"DD. n. 201_15.11.2018.pdf"]
[null,"Puglia","Soggetto idoneo alla formazione","0001 - SON TRAINING SRLS",null,"sontraining@pec.it","Sede legale in via Tiratore n. 24 - 83042 Atripalda (AV)\nValerio d'Anna\ndanna@sontraining.it","X000002 - Calcolo dei Requisiti Acustici Passivi ai sensi delle nuove norme UNI sia in fase di  progetto che di collaudo \u0096 sviluppo di casi pratici",10,"11/02/2019","18/02/2019","Lezioni frontali","Ordine degli ingegneri di Bari - Via Japigia 184 \u0096 BARI","BA","Bari",70126,"DD. n. 201_15.11.2018(1).pdf"]
[null,"Puglia","Soggetto idoneo alla formazione","0001 - SON TRAINING SRLS",null,"sontraining@pec.it","Sede legale in VIA TIRATORE 24 \u0096 ATRIPALDA (AV) \nVALERIO D\u0092ANNA\ndanna@sontraining.it","X000003 - Misurazioni di rumore e di vibrazioni nei luoghi di lavoro \u0096 ultimi aggiornamenti  normativi e tecnici",10,"11/03/2019","18/03/2019","Lezioni frontali","Ordine degli ingegneri di Bari - Via Japigia 184 \u0096 BARI","BA","Bari",70126,"DD. n. 201_15.11.2018(2).pdf"]
[null,"Marche","Ordine professionale","Ordine ingegneri Ancona","071 2075392","segreteria@ordineingegneri.ancona.it","Segreteria","La valutazione dei requisiti acustici passivi con le nuove norme UNI EN ISO 12354-2017",10,"20/12/2018","21/12/2018","Lezioni frontali","Piazza del Plebiscito, 2","AN","Ancona",60121,"Dec. 99_2018.pdf"]
[null,"Marche","Ordine professionale","Ordine degli ingegneri della Provincia di Macerata","0733 233111","info@ordineingegnerimacerata.it","Segreteria","Le procedure amministrative in materia di acustica (Mod.1) - Acustica delle strutture leggere (Mod.2)",11,"15/02/2019","22/02/2019","Lezioni frontali","Via Famiglia Palmieri, 26","MC","Macerata",62100,"Decreto_121.2018.pdf"]
[null,"Marche","Soggetto idoneo alla formazione","The Acs Scuola Italiana di Alta Formazione Srl","071 4604348","info@theacs.it",null,"La valutazione dei requisiti acustici passivi con le nuove norme UNI EN ISO 12354-2017",12,"01/02/2019","15/02/2019","Lezioni frontali","Via Valle Piana, 80 - Aula The Acs c/o Centro Agroalimentare Piceno","AP","San Benedetto del Tronto",63074,"DDPF 1578_2018.docx.pdf"]
[null,"Marche","Ordine professionale","Ordine degli Ingegneri della Provincia di Pesaro-Urbino","0721 370079","info@ingegneripesarourbino.it","PEC: ordine.pesaro@ingpec.eu","La valutazione dei requisiti acustici passivi con le nuove norme UNI EN ISO 12354-2017",10,"15/03/2019","22/03/2019","Lezioni frontali","V.le Einaudi, 24 - Fano (PU) c/o Hotel TAG","PU","Fano",61032,"Dec. agg. Ingg. PU.pdf"]
["D000001","Campania","Soggetto idoneo alla formazione","0001 - Son Training S.r.l.s.",null,"formazione@sontraing.it",null,"D000001 - La valutazione di Impatto acustico anche alla luce della nuova norma UNI 12354-4 - sviluppo di casi pratici",5,"24/01/2019","24/01/2019","Lezioni frontali","Via Pontano, 6","NA","Nola",80035,"Atto Decreto GRC n.1  del 23.01.2019.pdf"]
["D000002","Campania","Soggetto idoneo alla formazione","0001 - Son Training S.r.l.s.",null,"formazione@sontraing.it",null,"D000002 - Misurazioni di rumore e di vibrazioni nei luoghi di lavoro - ultimi aggiornamenti normativi e tecnici",10,"05/02/2019","07/02/2019","Lezioni frontali","Via Pontano, 6","NA","Nola",80035,"Atto Decreto GRC n.1  del 23.01.2019(1).pdf"]
["D000003","Campania","Soggetto idoneo alla formazione","0001 - Son Training S.r.l.s.",null,"formazione@sontraing.it",null,"D000003 - Calcolo dei Requisiti Acustici Passivi ai sensi delle nuove norme UNI sia in fase di progetto che di collaudo - sviluppo di casi pratici",10,"05/03/2019","07/03/2019","Lezioni frontali","Via Pontano, 6","NA","Nola",80035,"Atto Decreto GRC n.1  del 23.01.2019(2).pdf"]
["D000004","Campania","Soggetto idoneo alla formazione","0001 - Son Training S.r.l.s.",null,"formazione@sontraing.it",null,"D000004 - Approfondimenti sulle metodologie di valutazione del criterio della normale tollerabilità e accettabilità - acustica forense",5,"31/05/2019","31/05/2019","Lezioni frontali","Via Pontano, 6","NA","Nola",80035,"Atto Decreto GRC n.1  del 23.01.2019(3).pdf"]
["D000005","Campania","Soggetto idoneo alla formazione","0001 - Son Training S.r.l.s.",null,"formazione@sontraing.it",null,"D000005 - Valutazione di impatto acustico di impianti eolici secondo le linee guida Ispra",5,"21/06/2019","21/06/2019","Lezioni frontali","Via Pontano, 6","NA","Nola",80035,"Atto Decreto GRC n.1  del 23.01.2019(4).pdf"]
["D000006","Campania","Soggetto idoneo alla formazione","0001 - Son Training S.r.l.s.",null,"formazione@sontraing.it",null,"D000006 - Autorizzazione in deroga per le attività temporanee - problematiche connesse alla movida - metodologie applicative",5,"21/05/2019","21/05/2019","Lezioni frontali","Via Pontano, 6","NA","Nola",80035,"Atto Decreto GRC n.1  del 23.01.2019(5).pdf"]
["D000007","Campania","Soggetto idoneo alla formazione","0001 - Son Training S.r.l.s.",null,"formazione@sontraing.it",null,"D000007 - Il confort acustico alla luce dei nuovi criteri ambientali minimi per gli edifici pubblici ai sensi del decreto del Ministero dell'Ambiente DECRETO 11 ottobre 2017",5,"12/09/2019","12/09/2019","Lezioni frontali","Via Pontano, 6","NA","Nola",80035,"Atto Decreto GRC n.1  del 23.01.2019(6).pdf"]
[null,"Lombardia","Soggetto idoneo alla formazione","TECO MILANO SRL","0248958304","info@tecomilano.it",null,"CORSO DI AGGIORNAMENTO PER TECNICI COMPETENTI IN ACUSTICA",12,"12/04/2019","13/04/2019","Lezioni frontali","c/o ASSOACUSTICI - CORSO ITALIA, N. 13 - SARONNO (VA)","VA","Saronno",21047,"riscontro comunicazione AGG2.pdf"]
[null,"Lombardia","Ordine professionale","ORDINE DEGLI INGEGNERI DELLA PROVINCIA DI BRESCIA","030-2294711","www.ordineingegneri.bs.it",null,"CORSO DI AGGIORNAMENTO PER TECNICI COMPETENTI IN ACUSTICA",4,"12/04/2019","12/04/2019","Lezioni frontali","Via Cefalonia, n. 70","BS","Brescia",25124,"riscontro comunicazione AGG3.pdf"]
[null,"Lombardia","Soggetto idoneo alla formazione","TECO MILANO SRL","02-48958304","info@tecomilano.it",null,"CORSO DI AGGIORNAMENTO PER TECNICI COMPETENTI IN ACUSTICA",12,"17/05/2019","18/05/2019","Lezioni frontali","c/o ASSOACUSTICI - CORSO ITALIA, N. 13 - SARONNO (VA)","VA","Saronno",21047,"riscontro comunicazione AGG4.pdf"]
[null,"Lombardia","Ordine professionale","ORDINE DEGLI INGEGNERI DELLA PROVINCIA DI COMO","031-269810","formazione@ordingcomo.org",null,"ACUSTICA NEL CICLO DI PROGETTO",8,"05/04/2019","05/04/2019","Lezioni frontali","VIA VOLTA, N. 62 COMO","CO","Como",22100,"DOC100419-10042019103307.pdf"]
[null,"Lombardia","Ordine professionale","ORDINE DEGLI INGEGNERI DELLA PROVINCIA DI COMO","031-269810","formazione@ordingcomo.org",null,"ACUSTICA PER INTERNI - COMFORT E DESIGN",8,"06/06/2019","06/06/2019","Lezioni frontali","VIA VOLTA, N. 62 COMO","CO","Como",22100,"riscontro comunicazione AGG6.pdf"]
[null,"Abruzzo","Soggetto idoneo alla formazione","Fondazione Architetti, Chieti-Pescara","085/693726","fondazione@architettichpe.it","Arch. Barbara Crescia","Tecnico Competente in Acustica Edilizia-Architettonica",8,"10/04/2019","17/04/2019","Lezioni frontali","Piazza Garibaldi, n.42","PE","Pescara",65127,"DPC025-98 del 19.03.2019.pdf"]
[null,"Abruzzo","Soggetto idoneo alla formazione","The ACS, Scuola Italiana Alta Formazione","071/4604348","info@theacs.it",null,"La Valutazione dei requisiti acustici passivi con le nuove norme UNI EN ISO 12354-2017",10,"29/03/2019","24/05/2019","Lezioni frontali","Via Spezioli n. 58","CH","Chieti",66100,"DPC025-99 del 19.03.19.pdf"]
[null,"Lombardia","Ordine professionale","ORDINE DEGLI INGEGNERI DELLA PROVINCIA DI COMO","031-269810","formazione@ordingcomo.org",null,"ACUSTICA EDILIZIA - CORSO AVANZATO",16,"26/09/2019","27/09/2019","Lezioni frontali","VIA VOLTA, N. 62 COMO","CO","Como",22100,"DOC240919-24092019085906.pdf.pdf"]
[null,"Lombardia","Ordine professionale","ORDINE DEGLI INGEGNERI DELLA PROVINCIA DI COMO","031-269810","formazione@ordingcomo.org",null,"ACUSTICA FORENSE",7,"23/05/2019","23/05/2019","Lezioni frontali","VIA VOLTA, N. 62 COMO","CO","Como",22100,"riscontro comunicazione AGG7.pdf"]
[null,"Lombardia","Ordine professionale","ORDINE DEGLI INGEGNERI DELLA PROVINCIA DI COMO","031-269810","formazione@ordingcomo.org",null,"STRUMENTAZIONI E TECNICHE DI MISURA - ESERCITAZIONI PRATICHE SULL'USO DEI FONOMETRI",7,"07/11/2019","07/11/2019","Lezioni frontali","VIA VOLTA, N. 62 COMO","CO","Como",22100,"riscontro comunicazione AGG9.pdf"]
[null,"Lombardia","Soggetto idoneo alla formazione","TECO MILANO SRL","02-48958304","info@tecomilano.it",null,"CORSO DI AGGIORNAMENTO PER TECNICI COMPETENTI IN ACUSTICA",12,"07/06/2019","08/06/2019","Lezioni frontali","c/o ASSOACUSTICI - CORSO ITALIA, N. 13 - SARONNO (VA)","VA","Saronno",21047,"riscontro comunicazione AGG10.pdf"]
[null,"Emilia Romagna","Soggetto idoneo alla formazione","ADDESTRA S.R.L.","0546 624965","lfiorini@addestra.it","Fiorini Loretta","Corsi di aggiornamento dei tecnici competenti in acustica. MISURAZIONI DI RUMORE E VIBRAZIONI NEI LUOGHI DI LAVORO. Rif. P.A. 2012-11008/RER - Edizione 1",5,"16/04/2019","16/04/2019","Lezioni frontali","VIA MENGOLINA 33","RA","Faenza",48018,"DD_3665_19(3).pdf"]
[null,"Emilia Romagna","Soggetto idoneo alla formazione","ISCOM FORMAZIONE PER LE IMPRESE Società Consortile arl","0547 639887","coordinatore1@iscomcesena.it","LOGGIA SERGIO","Percorso di aggiornamento per Tecnici in Acustica Ambientale. Modulo 1. Rif. P.A. 2012-11039/RER/1 - Edizione 1",10,"03/04/2019","17/04/2019","Lezioni frontali","Via G. Bruno, 118","FC","Cesena",47521,"DD_3665_19(4).pdf"]
[null,"Emilia Romagna","Soggetto idoneo alla formazione","Associazione Assform","051 0548820","segreteria@assform.it","Semprini Mario Paolo","Aggiornamento Tecnico Competente in Acustica - La normale tollerabilità alla luce dei nuovi dispositivi di legge. Rif. P.A. 2012-11123/RER/1 - Edizione 2",8,"05/06/2019","05/06/2019","Lezioni frontali","Via Garibaldi, 8 presso Hotel Continental","BO","Zola Predosa",40069,"DD_4996_2019.pdf"]
[null,"Emilia Romagna","Soggetto idoneo alla formazione","Associazione Assform","0541 1796402","segreteria@assform.it","Semprini Mario Paolo","Aggiornamento Tecnico Competente in Acustica - La normale tollerabilità alla luce dei nuovi dispositivi di legge. Rif. P.A. 2012-11123/RER/1 - Edizione 1",8,"04/06/2019","04/06/2019","Lezioni frontali","Corso Giovanni XXIII, 131","RN","Rimini",47921,"DD_4996_2019.pdf"]
[null,"Lombardia","Soggetto idoneo alla formazione","AFOR S.a.s.","02-39430413","info@afor.mi.it",null,"ESPOSIZIONE AL RUMORE E ASPETTI DI SICUREZZA",8,"04/06/2019","04/06/2019","Lezioni frontali","VIA MINTURNO, N. 9","MI","Milano",20128,"riscontro comunicazione AGG11.pdf"]
[null,"Lombardia","Soggetto idoneo alla formazione","SCUOLA EDILE DI BERGAMO","035-297671","info@scuolaedilebg.it",null,"IL COLLAUDO ACUSTICO SECONDO LE NORME UNI EN ISO 16283",4,"12/04/2019","12/04/2019","Lezioni frontali","VIA ANTONIO LOCATELLI, N. 15","BG","Seriate",24068,"riscontro comunicazione AGG12.pdf"]
[null,"Abruzzo","Soggetto idoneo alla formazione","The ACS, Scuola Italiana Alta Formazione",null,null,null,"La Valutazione dei requisiti acustici passivi con le nuove norme UNI EN ISO 12354-2017",12,"06/05/2019","20/05/2019","Lezioni frontali","Via R. Balzarini n. 1","TE","Teramo",64100,"DPC025-123 del 05.04.2019.pdf"]
[null,"Abruzzo","Soggetto idoneo alla formazione","The ACS, Scuola Italiana Alta Formazione",null,null,null,"La Valutazione dei requisiti acustici passivi con le nuove norme UNI EN ISO 12354-2017",12,"06/05/2019","27/05/2019","Lezioni frontali","Via Camponeschi, 19 - Università","AQ","L'Aquila",67100,"DPC025-124 del 05.04.2019.pdf"]
[null,"Lombardia","Soggetto idoneo alla formazione","AFOR S.a.s.","02-39430413","info@afor.mi.it",null,"VALUTAZIONE RISCHIO RUMORE E VIBRAZIONI",16,"06/06/2019","13/06/2019","Lezioni frontali","VIA MINTURNO, N. 9","MI","Milano",20128,"riscontro comunicazione AGG13.pdf"]
[null,"Lazio","Ordine professionale","ORDINE DEGLI INGEGNERI DELLA PROVINCIA DI ROMA","064879311","protocollo@ording.roma.it","https://www.ording.roma.it\n\nDirettore del Corso Ing. Carlo Fascinelli.","Autorizzazione per lo svolgimento del corso di aggiornamento professionale per tecnico competente in acustica, programmato e diretto dall'Ordine degli Ingegneri della Provincia di Roma. Prima Edizione, anno 2019, due sessioni, 10 ore di formazione.",10,"24/05/2019","31/05/2019","Lezioni frontali","PIAZZA DELLA REPUBBLICA 59","RM","Roma","00185","G04672_16_04_2019.pdf"]
[null,"Lazio","Ente di ricerca","INAIL Direzione Centrale Ricerca","06 94181421 (rpv 818421)","p.nataletti@inail.it","Direttore didattico del Corso:\nPietro Nataletti\nVia di Fontana Candida, 1\n00078 Monte Porzio Catone  (RM)","Autorizzazione per lo svolgimento del corso di aggiornamento professionale per tecnico competente in acustica, programmato e diretto dall\u0092INAIL (Direzione Centrale Ricerca) di Roma. Prima Edizione, anno 2019, tre sessioni, 10 ore di formazione.",10,"05/06/2019","07/06/2019","Lezioni frontali","aule didattiche del Centro Ricerche INAIL, sito in Via di Fontana Candida n. 1, 00040 a Monte Porzio Catone (RM).","RM","Monte Porzio Catone","00040","G05125_26_04_2019_Copia-6456_autorizzazione.pdf"]
[null,"Abruzzo","Soggetto idoneo alla formazione","The ACS, Scuola Italiana Alta Formazione",null,null,null,"Il rumore in ambiente di lavoro: valutazione del rischio e piano aziendale di riduzione dell'esposizione al rumore. Il rumore nei cantieri",12,"05/06/2019","19/06/2019","Lezioni frontali","Ordine degli Ingegneri di L'Aquila - Via Giuseppe Saragat n. 32","AQ","L'Aquila",67100,"DPC025-153 del 02.05.2019.pdf"]
[null,"Friuli Venezia Giulia","Soggetto idoneo alla formazione","E-TRAIN S.r.l.","071 4604349","info@theacs.it","071 4604349\ninfo@theacs.it","AGG001. La valutazione dei requisiti acustici passivi con le nuove norme UNI EN ISO 12354:2017",12,"17/05/2019","24/05/2019","Lezioni frontali","via Scamozzi (Auditorium San Marco)","UD","Palmanova",33057,"INACCRS1.PDF"]
[null,"Piemonte","Ordine professionale","Fondazione Ordine Ingegneri della Provincia di Torino","011 533183","segreteria@foit.it",null,"Rumore indotto dagli impianti in strutture edili e verso l\u0092ambiente esterno",4,"28/05/2019","28/05/2019","Lezioni frontali","Via Giovanni Giolitti 1","TO","Torino",10123,"d.d. 125 del 16 aprile 2019.pdf"]
[null,"Piemonte","Ordine professionale","Fondazione Ordine Ingegneri della Provincia di Torino","011 533183","segreteria@foit.it",null,"Acustica degli ambienti confinati - Norma UNI 11532:18",6,"11/05/2019","11/05/2019","Lezioni frontali","Via Giovanni Giolitti 1","TO","Torino",10123,"d.d. 125 del 16 aprile 2019(2).pdf"]
[null,"Lombardia","Soggetto idoneo alla formazione","THE ACS - SCUOLA ITALIANA DI ALTA FORMAZIONE S.R.L.","071-4604348","info@theacs.it",null,"LA VALUTAZIONE DEI REQUISITI ACUSTICI PASSIVI CON LE NUOVE NORME UNI EN ISO 12354-2017",12,"10/06/2019","17/06/2019","Lezioni frontali","c/o GALGANO INFORMATICA - VIA VALSUGANA, N. 15 - MILANO (MI)","MI","Milano",20139,"annullamento corso.pdf"]
[null,"Lombardia","Soggetto idoneo alla formazione","THE ACS - SCUOLA ITALIANA DI ALTA FORMAZIONE S.R.L.","0714604348","info@theacs.it",null,"LA VALUTAZIONE DEI REQUISITI ACUSTICI PASSIVI CON LE NUOVE NORME UNI EN ISO 12354-2017",12,"12/07/2019","19/07/2019","Lezioni frontali","c/o GALGANO INFORMATICA - VIA VALSUGANA, N. 15 - MILANO (MI)","MI","Milano",20139,"riscontro comunicazione AGG15.pdf"]
[null,"Lombardia","Soggetto idoneo alla formazione","THE ACS - SCUOLA ITALIANA DI ALTA FORMAZIONE S.R.L.","0714604348","info@theacs.it",null,"LA VALUTAZIONE DEI REQUISITI ACUSTICI PASSIVI CON LE NUOVE NORME UNI EN ISO 12354-2017",12,"14/06/2019","21/06/2019","Lezioni frontali","C/O HOTEL NH BERGAMO - VIA PIETRO PALEOCAPA, N. 1/G - BERGAMO (BG)","BG","Bergamo",24122,"AGG016.pdf"]
[null,"Puglia","Soggetto idoneo alla formazione","0001 - SON TRAINING SRLS",null,"sontraining@pec.it","Sede legale in VIA TIRATORE 24 \u0096 ATRIPALDA (AV) \nVALERIO D\u0092ANNA\ndanna@sontraining.it","X000004 - Valutazione di Impatto Acustico alla luce della nuova Norma UNI 12354-4",6,"16/05/2019","16/05/2019","Lezioni frontali","Ordine degli Ingegneri di Foggia - Corso Roma, 88 Sc. A","FG","Foggia",71121,"DD. n. 102_06.05.2019.pdf"]
[null,"Puglia","Soggetto idoneo alla formazione","0001 - SON TRAINING SRLS",null,"sontraining@pec.it","Sede legale in VIA TIRATORE 24 \u0096 ATRIPALDA (AV) \nVALERIO D\u0092ANNA\ndanna@sontraining.it","X000005 - Approfondimenti sulle metodologie di valutazione del criterio della normale tollerabilità e accettabilità \u0096 acustica forense",5,"23/09/2019","23/09/2019","Lezioni frontali","Ordine degli ingegneri di Bari - Via Japigia 184 \u0096 BARI","BA","Bari",70126,"DD. n. 101_06.05.2019.pdf"]
[null,"Puglia","Soggetto idoneo alla formazione","0001 - SON TRAINING SRLS",null,"sontraining@pec.it","Sede legale in VIA TIRATORE 24 \u0096 ATRIPALDA (AV) \nVALERIO D\u0092ANNA\ndanna@sontraining.it","X000006 - Valutazione di impatto acustico di impianti eolici secondo le linee guida Ispra",5,"13/01/2020","13/01/2020","Lezioni frontali","Ordine degli ingegneri di Bari - Via Japigia 184 \u0096 BARI","BA","Bari",70126,"DD. n. 101_06.05.2019(1).pdf"]
[null,"Puglia","Soggetto idoneo alla formazione","0001 - SON TRAINING SRLS",null,"sontraining@pec.it","Sede legale in VIA TIRATORE 24 \u0096 ATRIPALDA (AV) \nVALERIO D\u0092ANNA\ndanna@sontraining.it","X000007 - Autorizzazione in deroga per le attività temporanee \u0096 problematiche connesse alla movida \u0096 metodologie applicative",5,"22/11/2019","22/11/2019","Lezioni frontali","Ordine degli ingegneri di Bari - Via Japigia 184 \u0096 BARI","BA","Bari",70126,"DD. n. 101_06.05.2019(2).pdf"]
[null,"Puglia","Soggetto idoneo alla formazione","0001 - SON TRAINING SRLS",null,"sontraining@pec.it","Sede legale in VIA TIRATORE 24 \u0096 ATRIPALDA (AV) \nVALERIO D\u0092ANNA\ndanna@sontraining.it","X000008 - Progettazione acustica e collaudo impianti EVAC",5,"14/07/2020","14/07/2020","Lezioni frontali","Ordine degli ingegneri di Bari - Via Japigia 184 \u0096 BARI","BA","Bari",70126,"DD. n. 101_06.05.2019(3).pdf"]
[null,"Puglia","Soggetto idoneo alla formazione","0001 - SON TRAINING SRLS",null,"sontraining@pec.it","Sede legale in VIA TIRATORE 24 \u0096 ATRIPALDA (AV) \nVALERIO D\u0092ANNA\ndanna@sontraining.it","X000009 - Il confort acustico alla luce dei nuovi criteri ambientali minimi per gli edifici pubblici ai sensi del decreto del Ministero dell\u0092Ambiente DECRETO 11 ottobre 2017",5,"23/04/2020","23/04/2020","Lezioni frontali","Ordine degli ingegneri di Bari - Via Japigia 184 \u0096 BARI","BA","Bari",70126,"DD. n. 101_06.05.2019(4).pdf"]
[null,"Emilia Romagna","Soggetto idoneo alla formazione","Change srl","059 333024","C.CAPUTI@CHANGESRL.IT","CARMEN CAPUTI","CORSO DI AGGIORNAMENTO PER TECNICO COMPETENTE IN ACUSTICA. RUMORE E VIBRAZIONI IN AMBIENTE DI LAVORO. Rif. P.A. 2012-11340/RER/2",8,"17/06/2019","17/06/2019","Lezioni frontali","Via O. Respighi, 83","MO","Modena",41122,"DD_7721_2019.pdf"]
[null,"Emilia Romagna","Soggetto idoneo alla formazione","Change srl","059 333024","C.CAPUTI@CHANGESRL.IT","CARMEN CAPUTI","CORSO DI AGGIORNAMENTO PER TECNICO COMPETENTE IN ACUSTICA. INCERTEZZE DI MISURE IN ACUSTICA. Rif. P.A. 2012-11340/RER/2",8,"24/06/2019","24/06/2019","Lezioni frontali","Via O. Respighi, 83","MO","Modena",41122,"DD_7721_2019(1).pdf"]
[null,"Lombardia","Soggetto idoneo alla formazione","APAVE ITALIA CPM S.r.l.","0364-300342","camilla.bussi@apave.com","Camilla Bussi\n0364-300342 int. 181\ncamilla.bussi@apave.com","CORSO DI AGGIORNAMENTO PER TECNICI COMPETENTI IN ACUSTICA",8,"12/06/2019","25/09/2019","Lezioni frontali","c/o APAVE CERTIFICATION ITALIA - Via dei Mille, n. 22 - 25122 Brescia (BS)","BS","Brescia",25122,"riscontro comunicazione AGG17.pdf"]
["D000008","Campania","Ente di ricerca","0002 - INAIL Settore ricerca","0817784762","campania@inail.it","Dott.ssa Angela Nicotera","D000008 - Giovani e rumore: educare all'ascolto e alla consapevolezza del rischio",6,"12/04/2019","12/04/2019","Lezioni frontali","Via della Repubblica 12","SA","Ravello",84010,"D.D. n. 3 del 27-3-2019 Corso INAIL.pdf"]
[null,"Lombardia","Soggetto idoneo alla formazione","TECO MILANO SRL","0248958304","info@tecomilano.it",null,"CORSO DI AGGIORNAMENTO PER TECNICI COMPETENTI IN ACUSTICA",12,"28/06/2019","29/06/2019","Lezioni frontali","c/o ASSOACUSTICI - CORSO ITALIA, N. 13 - SARONNO (VA)","VA","Saronno",21047,"riscontro comunicazione AGG18.pdf"]
[null,"Lombardia","Soggetto idoneo alla formazione","TECO MILANO SRL","0248958304","info@tecomilano.it",null,"CORSO DI AGGIORNAMENTO PER TECNICI COMPETENTI IN ACUSTICA",7,"27/09/2019","27/09/2019","Lezioni frontali","c/o ASSOACUSTICI - CORSO ITALIA, N. 13 - SARONNO (VA)","VA","Saronno",21047,"riscontro comunicazione AGG19.pdf"]
[null,"Lombardia","Soggetto idoneo alla formazione","TECO MILANO SRL","0248958304","info@tecomilano.it",null,"CORSO DI AGGIORNAMENTO PER TECNICI COMPETENTI IN ACUSTICA",7,"08/11/2019","08/11/2019","Lezioni frontali","c/o ASSOACUSTICI - CORSO ITALIA, N. 13 - SARONNO (VA)","VA","Saronno",21047,"riscontro comunicazione AGG20-unito.pdf"]
[null,"Marche","Ordine professionale","Ordine degli ingegneri della Provincia di Macerata","0733 233111","info@ordineingegnerimacerata.it","Segreteria","D.Lgs. 42/2017 - Le novità introdotte nella normativa dell'inquinamento acustico e sviluppi futuri",4,"17/05/2019","17/05/2019","Lezioni frontali","Via Famiglia Palmieri, 26","MC","Macerata",62100,"Dec. 73 del 18.04.2019.pdf"]
[null,"Emilia Romagna","Soggetto idoneo alla formazione","Son Training soc. a r.l.",3476767388,"limone@sontraining.it","Vincenzo Limone","CORSO DI AGGIORNAMENTO PER TECNICO COMPETENTE IN ACUSTICA. Approfondiementi sulle metodologie di valutazione del criterio della normale tollerabilità e accettabilità - acustica forense. Rif. P.A. 2012-11325/RER/1",5,"15/11/2019","15/11/2019","Lezioni frontali","Via Peruzzi 44 presso il CFP \"Nazareno\"","MO","Carpi",41012,"DD_7721_2019(2).pdf"]
[null,"Emilia Romagna","Soggetto idoneo alla formazione","Son Training soc. a r.l.",3476767388,"limone@sontraining.it","Vincenzo Limone","CORSO DI AGGIORNAMENTO PER TECNICO COMPETENTE IN ACUSTICA. La valutazione di impatto acustico alla luce della nuova normativa Uni 12354-4- sviluppo di casi pratici. Rif. P.A. 2012-11323/RER/1",5,"05/07/2019","05/07/2019","Lezioni frontali","via Peruzzi, 44 - presso il CFP \"Nazareno\"","MO","Carpi",41012,"DD_7721_2019(3).pdf"]
[null,"Emilia Romagna","Soggetto idoneo alla formazione","Son Training soc. a r.l.",3476767388,"limone@sontraining.it","Vincenzo Limone","CORSO DI AGGIORNAMENTO PER TECNICO COMPETENTE IN ACUSTICA. Autorizzazione in deroga per le attività temporanee-problematiche connesse alla movida - metodologie applicative. Rif. P.A. 2012-11324/RER/1",5,"11/10/2019","11/10/2019","Lezioni frontali","via Peruzzi, 44 presso il CFP \"Nazareno\"","MO","Carpi",41012,"DD_7721_2019(4).pdf"]
[null,"Liguria","Soggetto idoneo alla formazione","E - TRAIN s.r.l.","0714604349","info@theacs.it",null,"La valutazione dei requisiti acustici passivi con le nuove norme UNI EN ISO 12354 - 2017.",12,"14/06/2019","21/06/2019","Lezioni frontali","Hotel Poggio - Via di Francia, 24","GE","Arenzano",16011,"Decreto_2019-AM-3269_signed.pdf"]
[null,"Lazio","Ordine professionale","Ordine degli Ingegneri della Provincia di Roma","064879311","protocollo@ording.roma.it","Direttore Didattico Ing. Carlo Fascinelli\nwww.ording.roma.it","Autorizzazione per lo svolgimento del corso di aggiornamento professionale per tecnico competente in acustica, programmato e diretto dall'Ordine degli Ingegneri della Provincia di Roma. Seconda Edizione, anno 2019, due sessioni, 10 ore di formazione.",10,"20/06/2019","27/06/2019","Lezioni frontali","PIAZZA DELLA REPUBBLICA 59","RM","Roma","00185","Copia-9176_istanza_352018.pdf"]
[null,"Liguria","Ordine professionale","Ordine degli Architetti P.P.C. della provincia di Genova","0102473946","info.foage@archiworld.it",null,"Il contenzioso acustico in edilizia, influenza del rumore sul valore degli immobili, responsabilità delle figure coinvolte",15,"17/07/2019","29/07/2019","Lezioni frontali","Piazza San Matteo, 18","GE","Genova",16123,"Decreto_2019-AM-3264_signed.pdf"]
[null,"Liguria","Ordine professionale","Ordine degli Ingegneri della provincia di Genova","010593840","formazione@ordineingegneri.genova.it",null,"Il contenzioso acustico in edilizia, influenza del rumore sul valore degli immobili, responsabilità delle figure coinvolte",15,"03/07/2019","31/07/2019","Lezioni frontali","Piazza della Vittoria, 11/10","GE","Genova",16121,"Decreto_2019-AM-3256_signed.pdf"]
[null,"Marche","Università","UNIVERSITA\u0092 POLITECNICA DELLE MARCHE","0712204875","f.serpilli@univpm.it","Fabio Serpilli - Luca Barbaresi","Aggiornamento professionale in acustica ambientale e acustica edilizia",6,"31/05/2019","31/05/2019","Lezioni frontali","Via Rossini, 26 - PESARO","PU","Pesaro",61100,"Dec. 109 del 28.05.2019.pdf"]
[null,"Lombardia","Soggetto idoneo alla formazione","SCUOLA EDILE DI BERGAMO","035-297671","info@scuolaedilebg.it",null,"PROGETTAZIONE ACUSTICA - LE NUOVE NORME PER IL CALCOLO DEI REQUISITI ACUSTICI PASSIVI",6,"05/07/2019","05/07/2019","Lezioni frontali","VIA ANTONIO LOCATELLI, N. 15","BG","Seriate",24068,"riscontro comunicazione AGG21.pdf"]
[null,"Emilia Romagna","Soggetto idoneo alla formazione","THE ACS - SCUOLA ITALIANA DI ALTA FORMAZIONE SOCIETA' A R. L.","071 4604348","info@theacs.it","Antonio Chiarini","Corso di aggiornamento per tecnici competenti in acustica ambientale ai sensi D.Lgs. 42/2017. La valutazione dei requisiti acustici passivi con le nuove norme UNI EN ISO 12354 2017. Rif. P.A. 2019-11687/RER/3",12,"19/09/2019","26/09/2019","Lezioni frontali","Via San Leonardo, 124 presso HOTEL LINK 124","PR","Parma",43122,"DD_10428_19.pdf"]
[null,"Emilia Romagna","Soggetto idoneo alla formazione","THE ACS - SCUOLA ITALIANA DI ALTA FORMAZIONE SOCIETA' A R. L.","071 4604348","info@theacs.it","Antonio Chiarini","Corso di aggiornamento per tecnici competenti in acustica ambientale ai sensi D.Lgs. 42/2017. La valutazione dei requisiti acustici passivi con le nuove norme UNI EN ISO 12354 2017. Rif. P.A. 2019-11687 RER/2",12,"07/10/2019","14/10/2019","Lezioni frontali","Via Ravegnana 538/d  presso Hotel San Giorgio","FC","Forlì",47122,"DD_10428_19(1).pdf"]
[null,"Emilia Romagna","Soggetto idoneo alla formazione","THE ACS - SCUOLA ITALIANA DI ALTA FORMAZIONE SOCIETA' A R. L.","071 4604348","info@theacs.it","Antonio Chiarini","Corso di aggiornamento per tecnici competenti in acustica ambientale ai sensi D.Lgs. 42/2017. La valutazione dei requisiti acustici passivi con le nuove norme UNI EN ISO 12354 2017. Rif. P.A. 2019-11687 RER/1",12,"10/07/2019","17/07/2019","Lezioni frontali","Viale Palmiro Togliatti, 9/2 presso CDH Hotel","BO","Bologna",40132,"DD_10428_19(2).pdf"]
[null,"Emilia Romagna","Soggetto idoneo alla formazione","THE ACS - SCUOLA ITALIANA DI ALTA FORMAZIONE SOCIETA' A R. L.","071 4604348","info@theacs.it","Antonio Chiarini","Corso di aggiornamento per tecnici competenti in acustica ambientale ai sensi D.Lgs. 42/2017. La valutazione dei requisiti acustici passivi con le nuove norme UNI EN ISO 12354 2017. Rif. P.A. 2019-11687 RER/4",12,"12/07/2019","19/07/2019","Lezioni frontali","Via Emilia Est, 1581 presso Rechigi Park Hotel","MO","Modena",41122,"DD_10428_19(3).pdf"]
[null,"Lazio","Ordine professionale","Ordine degli Ingegneri della Provincia di Roma",null,null,"Direttore del Corso Ing. Carlo Fascinelli","Trasmissione del rumore per via aerea - Potere fonoisolante e isolamento acustico di facciata.",10,"15/07/2019","22/07/2019","Lezioni frontali","Piazza della Repubblica n. 59, 00185 Roma","RM","Roma","00185","G08207_Copia-10721_17_06_2019_3°_edizione.pdf"]
[null,"Lombardia","Soggetto idoneo alla formazione","TECO MILANO SRL","0248958304","info@tecomilano.it",null,"CORSO DI AGGIORNAMENTO PER TECNICI COMPETENTI IN ACUSTICA",7,"04/10/2019","04/10/2019","Lezioni frontali","c/o ASSOACUSTICI - CORSO ITALIA, N. 13 - SARONNO (VA)","VA","Saronno",21047,"riscontro comunicazione AGG22.pdf"]
[null,"Veneto","Soggetto idoneo alla formazione","Iniapa Veneto","0424-708879","info@aineservizi.it",null,"Qualità acustica degli ambienti confinati: metodi di misura ed analisi",6,"04/10/2019","04/10/2019","Lezioni frontali","Via Oppio 32","VI","Mason Vicentino",36064,"RICONOSCIMENTO AINE PROT N. 63261 GIUGNO 2019-fd (1).pdf"]
[null,"Marche","Ordine professionale","Ordine degli Ingegneri della Provincia di Ancona","071 2075392","segreteria@ordineingegneri.ancona.it","Segreteria","Normativa nazionale per misure in acustica ambientale con particolare riferimento al DMA 16.03.1998",5,"04/07/2019","04/07/2019","Lezioni frontali","Via Ing. Roberto Bianchi, snc","AN","Ancona",60131,"DD VAA 125_2019.pdf"]
[null,"Marche","Ordine professionale","Ordine degli Ingegneri della Provincia di Ancona","071 2075392","segreteria@ordineingegneri.ancona.it","Segreteria","Procedure e legislazione nella Regione Marche in materia di acustica ambientale",5,"12/07/2019","12/07/2019","Lezioni frontali","Via Ing. Roberto Bianchi, snc","AN","Ancona",60131,"DD VAA 127_2019.pdf"]
[null,"Emilia Romagna","Soggetto idoneo alla formazione","ADDESTRA S.R.L.","0546 624965","lfiorini@addestra.it","FIORINI LORETTA","Corsi di aggiornamento dei tecnici competenti in acustica. RIDUZIONE ESPOSIZIONE UMANA AL RUMORE E AL DISTURBO. Rif. P.A. 2012-11008/RER - Edizione 2",5,"18/07/2019","18/07/2019","Lezioni frontali","Via Mengolina, 33","RA","Faenza",48018,"DD_3665_19(6).pdf"]
[null,"Emilia Romagna","Soggetto idoneo alla formazione","ADDESTRA S.R.L.","0546 624965","lfiorini@addestra.it","FIORINI LORETTA","Corsi di aggiornamento dei tecnici competenti in acustica. ACUSTICA EDILIZIA: IL CANTIERE E IL COLLAUDO. Rif. P.A. 2012-11008/RER/1 - Edizione 3",5,"09/10/2019","09/10/2019","Lezioni frontali","Via Mengolina, 33","RA","Faenza",48018,"DD_3665_19(7).pdf"]
[null,"Piemonte","Albo professionale","FOIT: Fondazione del'ordine degli ingegneri della Provincia di Torino","011533183","segreteria@foit.it","Ing Rosamaria Miraglino","Acustica degli edifici in legno",4,"24/10/2019","24/10/2019","Lezioni frontali","Via Giovanni Giolitti 1","TO","Torino",10123,"DD_ bollettino 363 del 12 luglio 2019.pdf"]
[null,"Piemonte","Soggetto idoneo alla formazione","ARPA PIEMONTE","01119680487","formazione@arpa.piemonte.it",null,"Gli Impianti Elettroacustici: principi di funzionamento, normativa acustica e sistemi di contenimento delle emissioni sonore",6,"04/10/2019","04/10/2019","Lezioni frontali","Via Pio VII, n 9","TO","Torino",10135,"DD_ bollettino 363 del 12 luglio 2019(1).pdf"]
[null,"Piemonte","Soggetto idoneo alla formazione","ASSO.Forma","0141275914","info@assoforma.net",null,"corso di aggiornamento professionale tecnici competenti in acustica",8,"27/09/2019","27/09/2019","Lezioni frontali","Via Giovanni Borello 1/A","AT","Asti",14010,"DD_ bollettino 363 del 12 luglio 2019(2).pdf"]
[null,"Provincia Autonoma di Trento","Soggetto idoneo alla formazione","SEA Consulenze e servizi s.r.l.","0461433433","info@seaconsulenze.it","dott. Roberto Colombo - Via G. Untervegher, 52 \u0096 38122 Trento","Acustica in edilizia: Progettazione, prevenzione, contrasto dell\u0092inquinamento acustico",16,"18/09/2019","20/09/2019","Lezioni frontali","P.zza Manifattura, 1","TN","Rovereto",38068,"2019-07-25-Prot468506.pdf"]
[null,"Liguria","Ente di ricerca","A.R.P.A.L.","0106437250","arpal@pec.arpal.gov.it","Corsi rivolti ai dipendenti ARPAL, Regione Liguria e di eventuali enti locali ubicati nel territorio regionale.","Dal Valore limite di emissione sonora al valore limite di specifica sorgente.",10,"16/10/2019","17/10/2019","Lezioni frontali","Via Bombrini, 8","GE","Genova",16149,"decreto4359-23luglio2019.pdf"]
[null,"Liguria","Ente di ricerca","A.R.P.A.L.","0106437250","arpal@pec.arpal.gov.it","Corsi rivolti ai dipendenti ARPAL, Regione Liguria e di eventuali enti locali ubicati nel territorio regionale.","La stima dell'incertezza di misura nella procedura di rilevazione del livello di immissione differenziale.",10,"22/07/2020","23/07/2020","Lezioni frontali","Via Bombrini, 8","GE","Genova",16149,"decreto4359-23luglio2019(1).pdf"]
[null,"Liguria","Ente di ricerca","A.R.P.A.L.","0106437250","arpal@pec.arpal.gov.it","Corsi rivolti ai dipendenti ARPAL, Regione Liguria e di eventuali enti locali ubicati nel territorio regionale.","Le nuove norme sull'inquinamento acustico.",10,"27/09/2023","28/09/2023","Lezioni frontali","Via Bombrini, 8","GE","Genova",16149,"decreto4359-23luglio2019(2).pdf"]
[null,"Provincia Autonoma di Trento","Soggetto idoneo alla formazione","Studio Tomazzolli s.a.s.","0463625104","info@studiotomazzolli.it","Sara Tomazzolli - Loc. Piani, 6 - 38023 Cles (TN)","Classificazione acustica e comfort degli edifici: dalla progettazione alla verifica in opera",6,"11/10/2019","11/10/2019","Lezioni frontali","P.zza Navarino, 19 - c/o Sala Borghesi Bertolla","TN","Cles",38023,"2019-07-26-ComunicazioneAccoglimento_Corso_Tomazzolli_Studio.pdf"]
[null,"Veneto","Soggetto idoneo alla formazione","Esse Ti Esse Sicurezza Srl","049-8808270","formazione@essetiesse.it",null,"La valutazione di impatto acustico per le attività di pubblico spettacolo e temporanee",6,"25/10/2019","25/10/2019","Lezioni frontali","Via Romana Aponense 116","PD","Padova",35142,"RICONOSCIMENTO STS PROT N. 75560 LUGLIO 2019.pdf"]
[null,"Veneto","Soggetto idoneo alla formazione","Esse Ti Esse Sicurezza Srl","049-8808270","formazione@essetiesse.it",null,"Analisi di casi di valutazione di impatto acustico per attività di pubblico spettacolo e temporanee",6,"08/11/2019","08/11/2019","Lezioni frontali","Via Romana Aponense 116","PD","Padova",35142,"RICONOSCIMENTO STS PROT N. 75561 LUGLIO 2019.pdf"]
[null,"Piemonte","Soggetto idoneo alla formazione","IEC S.r.l. Industrial Engineering Consultant","0112425353","iec@iectorino.com",null,"Le valutazioni di impatto e clima acustico alla luce delle più recenti modifiche normative",8,"24/09/2019","24/09/2019","Lezioni frontali","Via Botticelli 151","TO","Torino",10154,"DD_ bollettino 363 del 12 luglio 2019(3).pdf"]
[null,"Piemonte","Soggetto idoneo alla formazione","IEC S.r.l. Industrial Engineering Consultant","0112425353","iec@iectorino.com",null,"La bonifica acustica negli ambienti di lavoro: normativa vigente, metodologie di studio ed esercitazione applicativa",8,"07/11/2019","07/11/2019","Lezioni frontali","Via Botticelli 151","TO","Torino",10154,"DD_ bollettino 363 del 12 luglio 2019(4).pdf"]
[null,"Abruzzo","Soggetto idoneo alla formazione","The ACS, Scuola Italiana di Alta Formazione","0714604348","info@theacs.it",null,"La valutazione e la misura del rumore in ambiente esterno",12,"25/09/2019","09/10/2019","Lezioni frontali","Hotel Olimpia Via Tiburtina Valeria, km 111.200","AQ","Avezzano",67068,"DPC025-275 del 23.07.19.pdf"]
[null,"Abruzzo","Soggetto idoneo alla formazione","The ACS, Scuola Italiana di Alta Formazione","0714604348","info@theacs.it",null,"Il Rumore in ambiente di lavoro: valutazione del rischio e piano aziendale di riduzione dell'esposizione al rumore. Il Rumore nei Cantieri",12,"30/09/2019","14/10/2019","Lezioni frontali","Hotel Dragonara - Via Nenni n. 280","CH","San Giovanni Teatino",66020,"DPC025-276 del 23.07.2019.pdf"]
[null,"Marche","Soggetto idoneo alla formazione","E-TRAIN SRL","071 4604348","info@e-train.it","Dott. Antonio Chiarini","La valutazione dei requisiti acustici passivi con le nuove norme UNI EN ISO 12354-2017",12,"30/09/2019","14/10/2019","Lezioni frontali","Via San Francesco D\u0092Assisi, 15 - c/o Hotel San Francesco","AN","Loreto",60025,"DDPF 1268_2019.pdf"]
[null,"Marche","Soggetto idoneo alla formazione","E-TRAIN SRL","071 4604348","info@e-train.it","Dott. Antonio Chiarini","La valutazione dei requisiti acustici passivi con le nuove norme UNI EN ISO 12354-2017",12,"23/09/2019","07/10/2019","Lezioni frontali","Via Valle Piana, 80 - c/o Centro Agro_Alimentare Piceno","AP","San Benedetto del Tronto",63074,"DDPF 1228 del 24.07.2019.pdf"]
[null,"Provincia Autonoma di Trento","Soggetto idoneo alla formazione","SEA Consulenze e servizi s.r.l.","0461433433","info@seaconsulenze.it","dott. Roberto Colombo - Via G. Untervegher, 52 \u0096 38122 Trento","Acustica in edilizia: Progettazione, prevenzione, contrasto dell\u0092inquinamento acustico",16,"23/10/2019","25/10/2019","Lezioni frontali","P.zza Manifattura, 1","TN","Rovereto",38068,"2019-07-31-Prot480892.pdf"]
[null,"Emilia Romagna","Soggetto idoneo alla formazione","Change srl","059 333024","C.CAPUTI@CHANGESRL.IT","CARMEN CAPUTI","CORSO DI AGGIORNAMENTO PER TECNICO COMPETENTE IN ACUSTICA. Software di post elaborazione dati di misura. Principi di impostazione, dati di ingresso e risultati restituiti. Illustrazione di prodotti sul mercato.  Rif. P.A. 2012-11340/RER/1",4,"30/10/2019","30/10/2019","Lezioni frontali","Via O. Respighi, 83","MO","Modena",41122,"DD_7721_19.pdf"]
[null,"Emilia Romagna","Soggetto idoneo alla formazione","Change srl","059 333024","C.CAPUTI@CHANGESRL.IT","CARMEN CAPUTI","CORSO DI AGGIORNAMENTO PER TECNICO COMPETENTE IN ACUSTICA. I requisiti acustici passivi degli edifici. Rif. P.A. 2012-11340/RER/2",8,"27/06/2019","27/06/2019","Lezioni frontali","Via O. Respighi, 83","MO","Modena",41122,"DD_7721_19(1).pdf"]
[null,"Emilia Romagna","Soggetto idoneo alla formazione","Change srl","059 333024","C.CAPUTI@CHANGESRL.IT","CARMEN CAPUTI","ANNULLATO - CORSO DI AGGIORNAMENTO PER TECNICO COMPETENTE IN ACUSTICA. Incertezza di misure in acustica. Rif. P.A. 2012-11340/RER/2",8,"10/01/2020","16/01/2020","Lezioni frontali","Via O. Respighi, 83","MO","Modena",41122,"DD_7721_19(2).pdf"]
[null,"Emilia Romagna","Soggetto idoneo alla formazione","Change srl","059 333024","C.CAPUTI@CHANGESRL.IT","CARMEN CAPUTI","ANNULLATO - CORSO DI AGGIORNAMENTO PER TECNICO COMPETENTE IN ACUSTICA. Rumore e vibrazioni in ambiente di lavoro. Rif. P.A. 2012-11340/RER/2",8,"20/01/2020","22/01/2020","Lezioni frontali","Via O. Respighi, 83","MO","Modena",41122,"DD_7721_19(3).pdf"]
[null,"Emilia Romagna","Soggetto idoneo alla formazione","Associazione Assform","0541 1796402","seg-corsi@assform.it","Semprini Mario Paolo","Aggiornamento Tecnico Competente in Acustica - La normale tollerabilità alla luce dei nuovi dispositivi di legge. Rif. P.A. 2012-11123/RER/1 - Edizione 3",8,"27/09/2019","27/09/2019","Lezioni frontali","Viale Vincenzo Randi, 37  presso Ordine Ingegneri Ravenna","RA","Ravenna",48121,"DD_4996_19.pdf"]
[null,"Lombardia","Ordine professionale","CONSULTA REGIONALE LOMBARDA OAPPC (ORDINI DEGLI ARCHITETTI PIANIFICATORI, PAESAGGISTI E CONSERVATORI)","02-29002174","segreteria@consulta-al.it",null,"IL PROGETTO DEI REQUISITI ACUSTICI PASSIVI",6,"20/09/2019","20/09/2019","Lezioni frontali","SEDE ANIT - VIA LANZONE, N. 31- MILANO","MI","Milano",20123,"riscontro comunicazione AGG28.pdf"]
[null,"Lombardia","Ordine professionale","CONSULTA REGIONALE LOMBARDA OAPPC (ORDINI DEGLI ARCHITETTI PIANIFICATORI, PAESAGGISTI E CONSERVATORI)","02-29002174","segreteria@consulta-al.it",null,"INCERTEZZA DI MISURA E DI CALCOLO IN ACUSTICA EDILIZIA",6,"18/10/2019","18/10/2019","Lezioni frontali","SEDE ANIT - VIA LANZONE, N. 31- MILANO","MI","Milano",20123,"riscontro comunicazione AGG29 pdf unito.pdf"]
[null,"Lombardia","Ordine professionale","CONSULTA REGIONALE LOMBARDA OAPPC (ORDINI DEGLI ARCHITETTI PIANIFICATORI, PAESAGGISTI E CONSERVATORI)","02-29002174","segreteria@consulta-al.it",null,"IL CONTROLLO DELLE VIBRAZIONI NEGLI EDIFICI",8,"03/12/2019","03/12/2019","Lezioni frontali","SEDE ANIT - VIA LANZONE, N. 31- MILANO","MI","Milano",20123,"riscontro comunicazione AGG30.pdf"]
[null,"Lombardia","Soggetto idoneo alla formazione","AIAS Academy S.r.l.","02-94368642",null,null,"ACUSTICA NEI LUOGHI DI LAVORO",8,"02/10/2019","02/10/2019","Lezioni frontali","VIA FARA, N. 35 - MILANO","MI","Milano",20124,"riscontro comunicazione AGG23.pdf"]
[null,"Lombardia","Soggetto idoneo alla formazione","AIAS Academy S.r.l.","02-94368642",null,null,"ACUSTICA FORENSE",16,"10/10/2019","11/10/2019","Lezioni frontali","VIA FARA, N. 35 - MILANO","MI","Milano",20124,"annullamento corso AGG24.pdf"]
[null,"Friuli Venezia Giulia","Soggetto idoneo alla formazione","THE ACS S.r.l.","0714604348","info@theacs.it","theacs@pec.it\ninfo@theacs.it\n0714604348","AGG002. La valutazione e la misura del rumore in ambiente esterno",12,"20/09/2019","27/09/2019","Lezioni frontali","via Scamozzi 5 c/o Auditorium San Marco","UD","Palmanova",33057,"INACCRS3.PDF"]
[null,"Veneto","Soggetto idoneo alla formazione","Esse Ti Esse Sicurezza Srl","049-8808270","formazione@essetiesse.it",null,"La progettazione delle prestazioni acustiche degli elementi edilizi",6,"22/11/2019","22/11/2019","Lezioni frontali","Via Romana Aponense 116","PD","Padova",35142,"RICONOSCIMENTO STS RICHIESTA PROT N. 64748 GIUGNO 2019.pdf"]
[null,"Veneto","Soggetto idoneo alla formazione","Esse Ti Esse Sicurezza Srl","049-8808270","formazione@essetiesse.it",null,"La verifica in opera delle prestazioni acustiche degli elementi edilizi",6,"06/12/2019","06/12/2019","Lezioni frontali","Via Romana Aponense 116","PD","Padova",35142,"RICONOSCIMENTO STS RICHIESTA PROT N. 64764 GIUGNO 2019.pdf"]
[null,"Veneto","Soggetto idoneo alla formazione","Esse Ti Esse Sicurezza Srl","049-8808270","formazione@essetiesse.it",null,"I parametri acustici nei criteri ambientali minimi (CAM) di cui al DM 11/01/2017",6,"20/03/2020","20/03/2020","Lezioni frontali","Via Romana Aponense 116","PD","Padova",35142,"RICONOSCIMENTO STS RICHIESTA PROT N. 64768 GIUGNO 2019.pdf"]
[null,"Lombardia","Soggetto idoneo alla formazione","THE ACS - SCUOLA ITALIANA DI ALTA FORMAZIONE S.R.L.","0714604348","info@theacs.it",null,"LA VALUTAZIONE E LA MISURA DEL RUMORE IN AMBIENTE ESTERNO",12,"04/11/2019","11/11/2019","Lezioni frontali","c/o CONFARTIGIANATO IMPRESE VARESE -  VIALE MILANO, 5 - VARESE","VA","Varese",21100,"riscontro comunicazione AGG25-unito2.pdf"]
[null,"Lombardia","Soggetto idoneo alla formazione","THE ACS - SCUOLA ITALIANA DI ALTA FORMAZIONE S.R.L.","0714604348","info@theacs.it",null,"IL RUMORE IN AMBIENTE DI LAVORO: VALUTAZIONE DEL RISCHIO E PIANO AZIENDALE DI RIDUZIONE DELL'ESPOSIZIONE AL RUMORE. IL RUMORE NEI CANTIERI.",12,"15/11/2019","22/11/2019","Lezioni frontali","c/o BLOOMGROUP - Via Valtorta, 44 - MILANO","MI","Milano",20127,"riscontro comunicazione AGG26-unito2.pdf"]
[null,"Lombardia","Soggetto idoneo alla formazione","THE ACS - SCUOLA ITALIANA DI ALTA FORMAZIONE S.R.L.","0714604348","info@theacs.it",null,"LA VALUTAZIONE E LA MISURA DEL RUMORE IN AMBIENTE ESTERNO",12,"25/10/2019","08/11/2019","Lezioni frontali","c/o HOTEL CRISTALLO - VIALE DELLA STAZIONE, 12A - BRESCIA","BS","Brescia",25122,"riscontro comunicazione  AGG27.pdf"]
[null,"Valle D'Aosta","Soggetto idoneo alla formazione","The Acs Scuola Italiana di Alta Formazione Srl","0714604348","info@theacs.it","Dott. Antonio CHIARINI","La valutazione dei requisiti acustici passivi con le nuove norme UNI EN ISO 12354-2017Legale Rappresentante",12,"14/10/2019","28/10/2019","Lezioni frontali","Loc. Autoporto,33","AO","Aosta",11100,"PD 4833_page-0001.jpg"]
[null,"Veneto","Soggetto idoneo alla formazione","Esse Ti Esse Sicurezza Srl","049-8808270","formazione@essetiesse.it",null,"Il contenzioso in acustica",6,"03/04/2020","03/04/2020","Lezioni frontali","Via Romana Aponense 116","PD","Padova",35142,"RICONOSCIMENTO CORSO STS PROT N. 64770 GIUGNO 2019_fd.pdf"]
[null,"Veneto","Soggetto idoneo alla formazione","Esse Ti Esse Sicurezza Srl","049-8808270","formazione@essetiesse.it",null,"L'integrazione acustica nella applicazionedei protocolli LEED ed CASACLIMA",6,"19/03/2021","19/03/2021","E-Learning","Via Romana Aponense 116","PD","Padova",35142,"RICONOSCIMENTO CORSO STS PROT N. 64782 GIUGNO 2019_fd.pdf"]
[null,"Veneto","Soggetto idoneo alla formazione","Esse Ti Esse Sicurezza Srl","049-8808270","formazione@essetiesse.it",null,"La normativa nazionale in materia di inquinamento acustico: le novità legislative e giurisprudenziali",6,"15/10/2021","15/10/2021","Lezioni frontali","Via Romana Aponense 116","PD","Padova",35142,"RICONOSCIMENTO CORSO STS PROT N. 64785 GIUGNO 2019_fd.pdf"]
[null,"Veneto","Soggetto idoneo alla formazione","Esse Ti Esse Sicurezza Srl","049-8808270","formazione@essetiesse.it",null,"La valutazione del rischio rumore nei luoghi di lavoro",6,"16/04/2021","16/04/2021","E-Learning","Via Romana Aponense 116","PD","Padova",35142,"RICONOSCIMENTO CORSO STS PROT N. 64788 GIUGNO 2019_fd.pdf"]
[null,"Veneto","Soggetto idoneo alla formazione","Esse Ti Esse Sicurezza Srl","049-8808270","formazione@essetiesse.it",null,"La valutazione e la verifica dei descrittori del comfort acustico degli ambienti",6,"26/11/2021","26/11/2021","E-Learning","Via Romana Aponense 116","PD","Padova",35142,"RICONOSCIMENTO CORSO STS PROT N. 64802 GIUGNO 2019_fd.pdf"]
[null,"Marche","Soggetto idoneo alla formazione","E-TRAIN SRL","071 4604348","info@e-train.it","Dott. Antonio Chiarini","La valutazione dei requisiti acustici passivi con le nuove norme UNI",12,"18/09/2019","02/10/2019","Lezioni frontali","Via I Maggio 1/f \u0096  (Zona Piediripa) c/o Studio Tecnico Graziani Sparapani","MC","Macerata",62100,"Decreto 1314 del 2 Ago. 2019.pdf"]
[null,"Marche","Soggetto idoneo alla formazione","E-TRAIN SRL","071 4604348","info@e-train.it","Dott. Antonio Chiarini","La valutazione e la misura del rumore in ambiente esterno.",12,"04/02/2020","18/02/2020","Lezioni frontali","Via I Maggio, 1/f \u0096 Macerata (Zona Piediripa)","MC","Macerata",62100,"Decreto 1314 del 2 Ago. 2019(1).pdf"]
[null,"Marche","Soggetto idoneo alla formazione","E-TRAIN SRL","071 4604348","info@e-train.it","Dott. Antonio Chiarini","La valutazione e la misura del rumore in ambiente esterno.",12,"02/12/2019","16/12/2019","Lezioni frontali","Via Valle Piana, 80 c/o Centro Agroalimentare Piceno","AP","San Benedetto del Tronto",63074,"DDPF 1228 del 24 07 2019.pdf"]
[null,"Liguria","Collegio professionale","Collegio Provinciale Geometri e Geometri Laureati di Genova",null,null,null,"Il contenzioso acustico in edilizia.Influenza del rumore sul valore degli immobili Responsabilità delle figure coinvolte: progettista, direttore dei lavori, collaudatore acustico, impresario esecutore, committente Accettabilità e tollerabilità del rumore",15,"14/10/2019","29/10/2019","Lezioni frontali","Via Brigata Bisagno, n. 8/1-2","GE","Genova",16129,"Decreto_2019-AM-5721_signed.pdf"]
[null,"Lombardia","Ordine professionale","CONSULTA REGIONALE LOMBARDA OAPPC (ORDINI DEGLI ARCHITETTI PIANIFICATORI, PAESAGGISTI E CONSERVATORI)","02-29002174","segreteria@consulta-al.it",null,"IL COLLAUDO ACUSTICO SECONDO LE NORME UNI EN ISO 16283",6,"04/10/2019","04/10/2019","Lezioni frontali","CENTRO PASTORALE PAOLO VI - VIA G. CALINI, 30 - BRESCIA","BS","Brescia",25121,"riscontro comunicazione AGG31.pdf"]
[null,"Lombardia","Ordine professionale","CONSULTA REGIONALE LOMBARDA OAPPC (ORDINI DEGLI ARCHITETTI PIANIFICATORI, PAESAGGISTI E CONSERVATORI)","02-29002174","segreteria@consulta-al.it",null,"INCERTEZZA DI MISURA E DI CALCOLO IN ACUSTICA EDILIZIA",6,"21/11/2019","21/11/2019","Lezioni frontali","CENTRO PASTORALE PAOLO VI - VIA G. CALINI, 30 - BRESCIA","BS","Brescia",25121,"riscontro comunicazione AGG32-unito.pdf"]
[null,"Veneto","Ordine professionale","Ordine degli Ingegneri di Verona e Provincia","045-8035959","ordine@ingegneri.vr.it",null,"Il controllo delle vibrazioni negli edifici",6,"07/10/2019","07/10/2019","Lezioni frontali","Via Santa Teresa 12","VR","Verona",37135,"RICONOSCIMENTO ING VR PROT. 87575 SETTEMBRE 2019_fd.pdf"]
[null,"Veneto","Ordine professionale","Ordine degli Ingegneri di Verona e Provincia","045-8035959","ordine@ingegneri.vr.it",null,"Il progetto dei requisiti acustici passivi. Norme tecniche, legislative e ruolo dei TCA",6,"25/09/2019","25/09/2019","Lezioni frontali","Via Santa Teresa 12","VR","Verona",37135,"RICONOSCIMENTO ING VR PROT. 87578 SETTEMBRE 2019_fd.pdf"]
[null,"Piemonte","Collegio professionale","ORDINE DEI PERITI INDUSTRIALI DELLA PROVINCIA DI CUNEO","0171697102","info@peritiindustrialicuneo.it",null,"Inquinamento da rumore e disturbo da rumore",4,"25/10/2019","25/10/2019","Lezioni frontali","Corso IV Novembre 8","CN","Cuneo",12100,"DD_ bollettino 363 del 12 luglio 2019(5).pdf"]
[null,"Puglia","Soggetto idoneo alla formazione","0002 - THE ACS S.r.l","0714604348","info@theacs.it","Via Solari n.27 Loreto (AN)","X000010 - La valutazione e la misura del rumore in ambiente esterno",12,"11/10/2019","12/10/2019","Lezioni frontali","Grand Hotel Tiziano Viale porta d'Europa (LE)","LE","Lecce",73100,"DD. n. 213_02.09.2019.pdf"]
[null,"Lombardia","Ordine professionale","ORDINE DEGLI INGEGNERI DELLA PROVINCIA DI VARESE","0332-232423","ordine.varese@ingpec.eu",null,"IL COLLAUDO ACUSTICO SECONDO LE NORME UNI EN ISO 16283",6,"11/12/2019","11/12/2019","Lezioni frontali","VIA CAVOUR, 44 - 22100 VARESE","VA","Varese",21100,"riscontro comunicazione AGG33.pdf"]
[null,"Friuli Venezia Giulia","Ordine professionale","Ordine degli Ingegneri della Provincia di Udine","0432 505305","segreteria@ordineingegneri.ud.it","0432 505305\nsegreteria@ordineingegneri.ud.it","AGG003. La valutazione di impatto acustico anche alla luce delle nuove normative",4,"25/10/2019","25/10/2019","Lezioni frontali","Autitorium CEFS, via Bison 65","UD","Udine",33100,"INACCRS4.PDF"]
[null,"Calabria","Soggetto idoneo alla formazione","E-TRAIN S.r.l.","0714604349","info@e-train.it","Sede legale: via Solari 27 - 60025 Loreto (AN)\nSede operativa: Piazza del Popolo, 100 - 62027 San Severino Marche (MC)","Provider Consiglio Nazionale degli Ingegneri (Prot. U-ss/3340/2016 del 13/06/2016)",12,"13/12/2019","14/12/2019","Lezioni frontali","GRAZIANO INGEGNERIA S.R.L. - Via Pusi Antica, 13","CZ","Falerna",88042,"Autorizzazione Corso di Aggiornamento.pdf"]
[null,"Lombardia","Soggetto idoneo alla formazione","TECO MILANO SRL","0248958304","info@tecomilano.it",null,"CORSO DI AGGIORNAMENTO PER TECNICI COMPETENTI IN ACUSTICA",7,"14/11/2019","14/11/2019","Lezioni frontali","c/o ASSOACUSTICI - CORSO ITALIA, N. 13 - SARONNO (VA)","VA","Varese",21047,"riscontro comunicazione AGG34-unito.pdf"]
[null,"Abruzzo","Albo professionale","Ordine degli Ingegneri della Provincia di Teramo","0861/247688","info@ingegneriteramo.it","Tel: 0861/247688\nCell: 347/1518359\nMail: info@ingegneriteramo.it\nPEC: segreteria@ingte.it","Isolamento Acustico degli Edifici",4,"08/11/2019","08/11/2019","Lezioni frontali","Corso Cerulli n. 74","TE","Teramo",64100,"DPC025-341 del 24.09.2019 .pdf"]
[null,"Abruzzo","Albo professionale","Ordine degli Ignegneri di Teramo","0861/247688","info@ingegneriteramo.it","Tel: 0861/247688\nCell: 347/1518359\nMail: info@ingegneriteramo.it\nPEC: segreteria@ingte.it","Acustica Architettonica e Ottimizzazione acustica di un ambiente",4,"15/11/2019","15/11/2019","Lezioni frontali","Corso Cerulli n. 74","TE","Teramo",64100,"DPC025-341 del 24.09.2019 (1).pdf"]
[null,"Lombardia","Soggetto idoneo alla formazione","AFOR SAS DI RABBACHIN MASSIMILIANO & C.","0239430413","info@afor.mi.it",null,"VALUTAZIONE RISCHIO RUMORE E VIBRAZIONI",16,"26/11/2019","03/12/2019","Lezioni frontali","VIA MINTURNO, N. 9","MI","Milano",20128,"riscontro comunicazione AGG35.pdf"]
[null,"Emilia Romagna","Soggetto idoneo alla formazione","ISCOM FORMAZIONE PER LE IMPRESE SCARL","0547 639887","coordinatore1@iscomcesena.it","Dott. Sergio Loggia","Percorso di aggiornamento per Tecnici in Acustica Ambientale. Modulo 1. Rif. P.A. 2012-11039/RER/1 - Edizione 2",10,"16/10/2019","30/10/2019","Lezioni frontali","Via Merenda, 3 presso Collegio provinciale Geometri di Forlì-Cesena","FC","Forlì",47121,"DD_3665_19(8).pdf"]
[null,"Lazio","Ordine professionale","Ordine degli Ingegneri della Provincia di Roma","064879311","protocollo@ording.roma.it","Direttore Didattico: Ing. Carlo Fascinelli","Autorizzazione per lo svolgimento del corso di aggiornamento professionale per tecnico competente in acustica, programmato e diretto dall\u0092Ordine degli Ingegneri della Provincia di Roma. Quarta Edizione, anno 2019, due sessioni, 10 ore di formazione.",10,"08/10/2019","15/10/2019","Lezioni frontali","Piazza della Repubblica, 59","RM","Roma","00185","Copia-15827_G12501_23_09_2019-compresso.pdf"]
[null,"Liguria","Soggetto idoneo alla formazione","The A.C.S. s.r.l.","0714604349","info@theacs.it",null,"Valutazione preliminare di impatto e clima acustico.",12,"08/11/2019","22/11/2019","Lezioni frontali","Hotel Poggio - Via di Francia, 24","GE","Arenzano",16011,"DecDir_5654_2019.pdf"]
[null,"Lazio","Ordine professionale","Ordine Interregionale dei Chimici e dei Fisici del Lazio, Umbria, Abruzzo e Molise","06/48906708","segreteria@chimiciroma.it","Direttore Didattico\nDott. Pietro Nataletti","Autorizzazione per lo svolgimento del corso di aggiornamento professionale per tecnico competente in acustica, programmato e diretto dall\u0092Ordine Interregionale dei Chimici e dei Fisici del Lazio, Umbria, Abruzzo e Molise. Prima Edizione, anno 2019, una se",6,"05/12/2019","05/12/2019","Lezioni frontali","Hotel dei Borgia - Via Palermo, 20","RM","Roma","00184","Copia-Det. G13346 del 07-10-2019.pdf"]
[null,"Marche","Ordine professionale","Ordine degli ingegneri della provincia di Macerata","0733 233111","segreteria@ordineingegnerimacerata.it","Segreteria","La legge quadro n. 447 del 26/10/1995, il concetto di normale tollerabilità (art.844 c.c.) e il disturbo alle persone (art.659 c.p.)",4,"18/10/2019","18/10/2019","Lezioni frontali","Via Famiglia Palmieri, 26 - Macerata c/o Sede Ordine","MC","Macerata",62100,"Dec. 183 del 09.10.2019.pdf"]
[null,"Marche","Soggetto idoneo alla formazione","E-TRAIN SRL","071 4604348","info@e-train.it","Dott. Antonio Chiarini","La valutazione e la misura del rumore in ambiente esterno",12,"02/12/2019","16/12/2019","Lezioni frontali","Strada Provinciale S. Angelo, 155 c/o Resort Finis Africae","AN","Senigallia",60019,"Dec. corso agg. - Senigallia.pdf"]
[null,"Puglia","Soggetto idoneo alla formazione","0002 - THE ACS S.r.l",null,"theacs@pec.it","\u0093The ACS - Scuola Italiana di Alta Formazione S.r.l.\u0094\ntheacs@pec.it","X000011 - La valutazione e la misura del rumore in ambiente esterno",12,"22/11/2019","23/11/2019","Lezioni frontali","Hotel Parco dei Principi - Via Vito Vasile, Prolungamento Viale Europa 6 \u0096 70128 Bari.","BA","Bari",70128,"DD. n. 246_10.10.2019.pdf"]
[null,"Lombardia","Soggetto idoneo alla formazione","TICINO SOCIETA' DI SERVIZI SRL","0382-21095","ticinoservizi@pec.it",null,"CORSO DI AGGIORNAMENTO PER TECNICI COMPETENTI IN ACUSTICA",8,"16/11/2019","16/11/2019","Lezioni frontali","VIA VIGENTINA, N. 108/E - 27100 PAVIA","PV","Pavia",27100,"riscontro comunicazione AGG36.pdf"]
[null,"Puglia","Ordine professionale","0003 - Ordine degli Ingegneri della Provincia di Foggia",null,"ordine.foggia@ingpec.eu","ordine.foggia@ingpec.eu","X000012 - Strumentazione e tecniche di misura NORME TECNICHE UNI \u0096 ACUSTICA",5,"31/10/2019","31/10/2019","Lezioni frontali","REGIO HOTELMANFREDI sito al Km 12 della SP58 in Manfredonia (FG)","FG","Manfredonia",71043,"DD. n. 240_01.10.2019.pdf"]
[null,"Veneto","Ordine professionale","Ordine degli Ingegneri di Padova e Provincia","393-8926845","fip@fondazioneingegneripadova.org",null,"Verifica dei requisiti acustici passivi degli edifici",6,"16/12/2019","16/12/2019","Lezioni frontali","Viale dell'Artigianato 24/2","PD","Cittadella",35013,"RICONOSCIMENTO ING PD PROT. 94369 26.09.2019_fd.pdf"]
[null,"Puglia","Ordine professionale","0003 - Ordine degli Ingegneri della Provincia di Foggia",null,"ordine.foggia@ingpec.eu","ordine.foggia@ingpec.eu","X000013 - Misurazioni di rumore e di vibrazioni nei luoghi di lavoro - ultimi aggiornamenti normativi e tecnici",5,"08/11/2019","08/11/2019","Lezioni frontali","REGIO HOTELMANFREDI sito al Km 12 della SP58 in Manfredonia (FG)","FG","Manfredonia",71043,"DD. n. 240_01.10.2019(1).pdf"]
[null,"Veneto","Ordine professionale","Ordine degli Ingegneri di Padova e Provincia","393-8926845","fip@fondazioneingegneripadova.org",null,"Verifica dei requisiti acustici passivi degli edifici",6,"18/11/2019","18/11/2019","Lezioni frontali","Via Costa Calcinara 101","PD","Monselice",35043,"RICONOSCIMENTO ING PD PROT. 94368 26.09.2019_fd.pdf"]
[null,"Veneto","Ordine professionale","Ordine degli Ingegneri di Padova e Provincia","393-8926845","fip@fondazioneingegneripadova.org",null,"Il progetto dei requisiti acustici passivi",6,"21/10/2019","21/10/2019","Lezioni frontali","Piazza Salvemini 2","PD","Padova",35131,"RICONOSCIMENTO ING PD PROT. 92780 23.09.2019_fd.pdf"]
[null,"Veneto","Ordine professionale","Ordine degli Ingegneri di Padova e Provincia","393-8926845","fip@fondazioneingegneripadova.org",null,"Acustica per interni: comfort degli ambienti chiusi, tempo di riverbero e STI",6,"25/11/2019","25/11/2019","Lezioni frontali","Piazza Salvemini 2","PD","Padova",35131,"RICONOSCIMENTO ING PD PROT. 92779 23.09.2019_fd.pdf"]
[null,"Veneto","Ordine professionale","Ordine degli Ingegneri di Padova e Provincia","393-8926845","fip@fondazioneingegneripadova.org",null,"Incertezza di misura e di calcolo in acustica edilizia",6,"12/12/2019","12/12/2019","Lezioni frontali","Piazza Salvemini 2","PD","Padova",35131,"RICONOSCIMENTO ING PD PROT. 92778 23.09.2019_fd.pdf"]
[null,"Veneto","Soggetto idoneo alla formazione","Esse Ti Esse Sicurezza Srl","049-8808270","formazione@essetiesse.it",null,"Analisi di applicazioni di strumenti e metodi per la mappatura acustica del territorio",6,"13/11/2020","13/11/2020","Lezioni frontali","Via Romana Aponense 116","PD","Padova",35142,"RICONOSCIMENTO CORSO STS PROT N. 85659 SETTEMBRE 2019_fd (3).pdf"]
[null,"Veneto","Ordine professionale","Ordine degli Ingegneri di Treviso e Provincia","0422-583665","segreteria@ingegneritreviso.it",null,"Creazione e taratura di modelli numerici per il calcolo dell'impatto acustico previsionale",6,"12/12/2019","12/12/2019","Lezioni frontali","Via Prato della Fiera 23","TV","Treviso",31100,"RICONOSCIMENTO ING TV PROT. 99436 10.10.2019_fd.pdf"]
[null,"Veneto","Soggetto idoneo alla formazione","Across Srl","0424-708879","info@aineservizi.it",null,"Valutazione di impatto acustico: elementi utili per un approccio efficace",6,"29/11/2019","29/11/2019","Lezioni frontali","Via Oppio 32","VI","Mason Vicentino",36064,"RICONOSCIMENTO AINE PROT N. 102915 18.10.2019_fd.pdf"]
[null,"Veneto","Soggetto idoneo alla formazione","Across Srl","0424-708879","info@aineservizi.it",null,"Progettazione acustica delle facciate",6,"06/06/2020","06/06/2020","Lezioni frontali","Via Oppio 32","VI","Mason Vicentino",36064,"RICONOSCIMENTO AINE PROT N. 102914 18.10.2019_fd.pdf"]
[null,"Veneto","Soggetto idoneo alla formazione","Across Srl","0424-708879","info@aineservizi.it",null,"Rumore e vibrazioni da impianti industriali: casi studio, analisi e proposte di risoluzione",6,"24/01/2020","24/01/2020","Lezioni frontali","Via Oppio 32","VI","Mason Vicentino",36064,"RICONOSCIMENTO AINE PROT N. 102916 18.10.2019_fd.pdf"]
[null,"Veneto","Soggetto idoneo alla formazione","Across Srl","0424-708879","info@aineservizi.it",null,"Spazi multifunzionali dedicati alla musica e alla parola: acustica sperimentale in teatro",6,"08/05/2020","08/05/2020","Lezioni frontali","Via Tre Venezie 17","TV","Treviso",31100,"RICONOSCIMENTO AINE PROT N. 103011 18.10.2019_fd.pdf"]
[null,"Veneto","Soggetto idoneo alla formazione","Across Srl","0424-708879","info@aineservizi.it",null,"La progettazione acustica di edifici in legno",6,"28/02/2020","28/02/2020","Lezioni frontali","Via Oppio 32","VI","Mason Vicentino",36064,"RICONOSCIMENTO AINE PROT N. 103012 18.10.2019_fd.pdf"]
[null,"Veneto","Soggetto idoneo alla formazione","Across Srl","0424-708879","info@aineservizi.it",null,"L'accertamento del rumore ambientale e la valutazione del contributo per specifica sorgente",6,"27/03/2020","27/03/2020","Lezioni frontali","Via Oppio 32","VI","Mason Vicentino",36064,"RICONOSCIMENTO AINE PROT N. 102934 18.10.2019_fd.pdf"]
[null,"Emilia Romagna","Ordine professionale","ORDINE DEGLI INGEGNERI DELLA PROVINCIA DI FORLI'-CESENA","0543 376028","info@ordineing-fc.it","Marisa Quercioli","Acustica in edilizia aggiornamenti nomativi e tecnici. Rif. P.A. 2019-12536/RER/3 - Edizione 1",5,"15/11/2019","15/11/2019","Lezioni frontali","Via Maestri del Lavoro d'Italia, 129","FC","Forlimpopoli",47034,"DD18249_2019.pdf"]
[null,"Emilia Romagna","Ordine professionale","ORDINE DEGLI INGEGNERI DELLA PROVINCIA DI FORLI'-CESENA","0543 376028","info@ordineing-fc.it","Marisa Quercioli","Acustica ambientale aggiornamenti normativi e tecnici. Rif. P.A. 2019-12537/RER/2 - Edizione 1",5,"29/11/2019","29/11/2019","Lezioni frontali","Via Maestri del Lavoro d'Italia, 129","FC","Forlimpopoli",47034,"DD18249_2019(1).pdf"]
[null,"Emilia Romagna","Ente di ricerca","A.R.P.A.E.","0523 489648","acallegari@arpae.it","Anna Callegari","Corso di aggiornamento interno riservato ai TCA dell\u0092Agenzia. L'applicazione del criterio differenziale: approfondimenti tecnici ed esperienze in campo - Edizione 1",6,"29/10/2019","29/10/2019","Lezioni frontali","Viale della Fiera, 8 presso Regione Emilia-Romagna","BO","Bologna",40127,"PG_0541102_2019.pdf"]
[null,"Emilia Romagna","Ente di ricerca","A.R.P.A.E.","0523 489648","acallegari@arpae.it","Anna Callegari","Corso di aggiornamento interno riservato ai TCA dell\u0092Agenzia. L'applicazione del criterio differenziale: approfondimenti tecnici ed esperienze in campo - Edizione 2",6,"19/11/2019","19/11/2019","Lezioni frontali","Via Amendola, 2 presso AUSL di Reggio Emilia","RE","Reggio nell'Emilia",42122,"PG_0541102_2019(1).pdf"]
[null,"Emilia Romagna","Soggetto idoneo alla formazione","THE ACS - SCUOLA ITALIANA DI ALTA FORMAZIONE SOCIETA' A R. L.","071 4604348","info@theacs.it","Antonio Chiarini","Corso di aggiornamento per t.c.a. ambientale ai sensi D.Lgs 42/2017. Il rumore in ambiente di lavoro: valutazione del rischio e piano aziendale di riduzione dell\u0092esposizione al rumore. Il rumore nei cantieri. Rif. P.A. 2019-12539/RER/1",12,"08/11/2019","15/11/2019","Lezioni frontali","Via Emilia Est, 1581 presso Rechigi Park Hotel","MO","Modena",41122,"DD18249_2019(2).pdf"]
[null,"Emilia Romagna","Soggetto idoneo alla formazione","THE ACS - SCUOLA ITALIANA DI ALTA FORMAZIONE SOCIETA' A R. L.","071 4604348","info@theacs.it","Antonio Chiarini","Corso di aggiornamento per t.c.a. ambientale ai sensi D.Lgs 42/2017. Il rumore in ambiente di lavoro: valutazione del rischio e piano aziendale di riduzione dell\u0092esposizione al rumore. Il rumore nei cantieri. Rif. P.A. 2019-12539/RER/2",12,"18/02/2020","10/03/2020","Lezioni frontali","Via Ravegnana, 538/d presso Hotel San Giorgio","FC","Forlì",47122,"DD18249_2019(3).pdf"]
[null,"Emilia Romagna","Soggetto idoneo alla formazione","THE ACS - SCUOLA ITALIANA DI ALTA FORMAZIONE SOCIETA' A R. L.","071 4604348","info@theacs.it","Antonio Chiarini","Corso di aggiornamento di 12 ore per tecnici competenti in acustica ambientale ai sensi D.Lgs 42/2017. La valutazione e la misura del rumore in ambiente esterno. Rif. P.A. 2019-12539/RER/3",12,"19/12/2019","20/12/2019","Lezioni frontali","Viale Palmiro Togliatti, 9/2 presso CDH Hotel","BO","Bologna",40132,"DD18249_2019(4).pdf"]
[null,"Emilia Romagna","Soggetto idoneo alla formazione","THE ACS - SCUOLA ITALIANA DI ALTA FORMAZIONE SOCIETA' A R. L.","071 4604348","info@theacs.it","Antonio Chiarini","Corso di aggiornamento di 12 ore per tecnici competenti in acustica ambientale ai sensi D.Lgs 42/2017. La valutazione e la misura del rumore in ambiente esterno. Rif.P.A. 2019-12539/RER/4",12,"10/02/2020","17/02/2020","Lezioni frontali","Via San Leonardo, 124 presso Hotel Link 124","PR","Parma",43122,"DD18249_2019(5).pdf"]
[null,"Lombardia","Ordine professionale","ORDINE DEGLI INGEGNERI DELLA PROVINCIA DI BERGAMO","035-223234","ordine.bergamo@ingpec.eu",null,"VEDERE IL RUMORE: TEORIA E TECNICA DEL BEAMFORMING",4,"11/12/2019","11/12/2019","Lezioni frontali","PASSAGGIO CANONICI LATERANENSI, 1 - 24121 BERGAMO","BG","Bergamo",24121,"riscontro comunicazione AGG37.pdf"]
[null,"Piemonte","Ordine professionale","Ordine degli ingegneri della Provincia di Novara","0321393260","ording.no@ording.no.it",null,"Il progetto dei requisiti acustici passivi",4,"19/11/2019","19/11/2019","Lezioni frontali","Baluardo Lamarmora, 16","NO","Novara",20100,"DD9ottobre2019n490.pdf"]
[null,"Piemonte","Soggetto idoneo alla formazione","ASSO.FORMA","0141275914","info@asso.forma.net",null,"TECNICO ACUSTICO: quale direzione",8,"28/10/2019","28/10/2019","Lezioni frontali","Via Giovanni Borello 1A","AT","Asti",14100,"DD9ottobre2019n490(1).pdf"]
[null,"Piemonte","Soggetto idoneo alla formazione","APITFORMA","011345003","segreteria@apitforma.it",null,"CORSO DI AGGIORNAMENTO PROFESSIONALE PER TECNICI COMPETENTI IN ACUSTICA",8,"21/11/2019","26/11/2019","Lezioni frontali","Via Imperia 2A","TO","Torino",10135,"DD9ottobre2019n490(2).pdf"]
["D000009","Campania","Ordine professionale","0003 - Ordine degli Ingegneri della Provincia di Napoli","081 552 2126","segreteria@ordineingegnerinapoli.net",null,"D000009 - La valutazione di Impatto acustico e delle emissioni sonore. Principi di valutazione dell'inquinamento e delle immissioni sonore: la diversa impostazione dell'indagine strumentale.",4,"24/10/2019","24/10/2019","Lezioni frontali","Piazza dei Martiri 58","NA","Napoli",80133,"DD_OrdineIngegneri_2019_490.pdf"]
["D000010","Campania","Ordine professionale","0003 - Ordine degli Ingegneri della Provincia di Napoli","0815522126","segreteria@ordineingegnerinapoli.net",null,"D000010 - La valutazione di Impatto acustico e delle emissioni sonore. Caso di studio: sorgenti sonore fisse.",4,"21/11/2019","21/11/2019","Lezioni frontali","Piazza dei Martiri 58","NA","Napoli",80133,"DD_OrdineIngegneri_2019_490(1).pdf"]
["D000011","Campania","Ordine professionale","0003 - Ordine degli Ingegneri della Provincia di Napoli","0815522126","segreteria@ordineingegnerinapoli.net",null,"D000011 - La valutazione di Impatto acustico e delle emissioni sonore. Caso di studio: locali di pubblico spettacolo.",4,"19/12/2019","19/12/2019","Lezioni frontali","Piazza dei Martiri 58","NA","Napoli",80133,"DD_OrdineIngegneriNa_2019_490_544.pdf"]
[null,"Lombardia","Ordine professionale","ORDINE DEGLI INGEGNERI DELLA PROVINCIA DI MILANO","02-76003731","ordine.milano@ingpec.eu",null,"IL RUMORE DEGLI IMPIANTI: IL QUADRO NORMATIVO; L'ATTENUAZIONE DEL RUMORE DELLE SORGENTI PRINCIPALI",4,"07/11/2019","07/11/2019","Lezioni frontali","c/o COIM - Viale Andrea Doria, n. 9 - Milano","MI","Milano",20124,"riscontro comunicazione AGG38.pdf"]
[null,"Lombardia","Ordine professionale","ORDINE DEGLI INGEGNERI DELLA PROVINCIA DI MILANO","0276003731","ordine.milano@ingpec.eu",null,"L'ATTENUAZIONE DEL RUMORE LUNGO IL PERCORSO DI PROPAGAZIONE",4,"14/11/2019","14/11/2019","Lezioni frontali","c/o COIM - Viale Andrea Doria, n. 9 - Milano","MI","Milano",20124,"riscontro comunicazione AGG39.pdf"]
[null,"Lombardia","Ordine professionale","ORDINE DEGLI INGEGNERI DELLA PROVINCIA DI MILANO","0276003731","ordine.milano@ingpec.eu",null,"CONTROLLO DEI PONTI ACUSTICI AD OPERA DEGLI IMPIANTI HVAC",4,"21/11/2019","21/11/2019","Lezioni frontali","c/o COIM - Viale Andrea Doria, n. 9 - Milano","MI","Milano",20124,"riscontro comunicazione AGG40.pdf"]
[null,"Lombardia","Ordine professionale","ORDINE DEGLI INGEGNERI DELLA PROVINCIA DI MILANO","0276003731","ordine.milano@ingpec.eu",null,"COLLAUDO ACUSTICO DEGLI IMPIANTI HVAC",4,"05/12/2019","05/12/2019","Lezioni frontali","c/o COIM - Viale Andrea Doria, n. 9 - Milano","MI","Milano",20124,"riscontro comunicazione AGG41.pdf"]
[null,"Lombardia","Ente di ricerca","ARPA LOMBARDIA - AGENZIA REGIONALE PER LA PROTEZIONE DELL'AMBIENTE","02-696661","arpa@pec.regione.lombardia.it",null,"CORSO DI AGGIORNAMENTO PER TECNICI COMPETENTI IN ACUSTICA",6,"16/10/2019","20/11/2019","Lezioni frontali","c/o POLIS LOMBARDIA - VIA POLA, 12 MILANO - AULA PRESOLANA (EDIZIONE DEL 16/10/2019) - AULA LARIO (EDIZIONE DEL 20/11/2019)","MI","Milano",20124,"riscontro comunicazione AGG42.pdf"]
[null,"Basilicata","Soggetto idoneo alla formazione","SON TRAINING SRLS",3479057102,"sontraining@pec.it",null,"La valutazione di impatto acustico anche alla luce della nuova normativa UNI 12354-4",5,"13/05/2020","13/05/2020","Lezioni frontali","c/o Park Hotel Centro Congressi","PZ","Potenza",85100,"DD n. 835 del 18.9.2019.pdf"]
[null,"Emilia Romagna","Soggetto idoneo alla formazione","ADDESTRA S.R.L.","0546 624975","iscrizioni@addestra.it","FIORINI LORETTA","Corso di aggiornamento per il tecnico competente in acustica. Rif. P.A 2019-12534/RER/3",15,"19/11/2019","28/11/2019","Lezioni frontali","Piazza Caduti San Ruffillo, 5","BO","Bologna",40141,"DD18249_2019(6).pdf"]
[null,"Liguria","Ordine professionale","Ordine degli Ingegneri della provincia di Genova","010593840","formazione@ordineingegneri.genova.it",null,"Il contenzioso acustico in edilizia, influenza del rumore sul valore degli immobili, responsabilità delle figure coinvolte. (Seconda edizione)",15,"07/02/2020","28/02/2020","Lezioni frontali","Piazza della Vittoria, 11/10","GE","Genova",16121,"Decreto_6653del05112019.pdf"]
[null,"Sicilia","Ordine professionale","Ordine degli Ingegneri Palermo","091-581421","segreteria@ingpa.com","Sede Legale: Via F.sco Crispi, 120\n90139 Palermo","Provv. 73257/19 - 9.2 - II modulo - (vedi programma allegato al provv. 73257/19)",4,"01/02/2020","01/02/2020","Lezioni frontali","Via Francesco Crispi, 120","PA","Palermo",90146,"provv_prot_73257_del_07_11_2019_e_programma.pdf"]
[null,"Lombardia","Soggetto idoneo alla formazione","SCUOLA EDILE DI BERGAMO","035297671","info@scuolaedilebg.it",null,"IL CONTROLLO DELLE VIBRAZIONI NEGLI EDIFICI - NORMATIVA DI RIFERIMENTO E TECNICHE DI MISURA IN OPERA",8,"15/11/2019","15/11/2019","Lezioni frontali","VIA ANTONIO LOCATELLI, N. 15 - SERIATE (BG)","BG","Seriate",24068,"riscontro comunicazione AGG43.pdf"]
[null,"Sicilia","Soggetto idoneo alla formazione","CNA - E.C.I.P.A Ragusa","0932-683016","segreteriaeciparag@cnaragusa.it","Sede legale: via Psaumida, 38 97100 Ragusa","Provv. 73269/19 - 3.1 - moduli I, II, III, IV ( vedi allegati al provv. 73269/19)",12,"29/11/2019","30/11/2019","Lezioni frontali","Via Psaumida, 38","RG","Ragusa",97100,"Provv_prot_n_73269_del_07_11_2019_e_programma.pdf"]
[null,"Umbria","Ordine professionale","Ordine degli Ingegneri della Provincia di Perugia","075 5001200","segreteria@ordineingegneriperugia.it","Ordine degli Ingegneri della Provincia di Perugia - Via Campo di Marte 9 - 06124 Perugia.\nordine.perugia@ingpec.eu","Le sorgenti sonore:Dalla caratterizzazione alla valutazione di impatto acustico",6,"06/12/2019","06/12/2019","Lezioni frontali","Etruscan Chocohotel - Via Campo di Marte n. 130 - Perugia","PG","Perugia","06124","DD_11561del14_11_2019.pdf"]
[null,"Lombardia","Soggetto idoneo alla formazione","SCUOLA EDILE DI BERGAMO","035297671","info@scuolaedilebg.it",null,"IL COLLAUDO ACUSTICO SECONDO LE NORME UNI EN ISO 16283",6,"05/12/2019","05/12/2019","Lezioni frontali","VIA ANTONIO LOCATELLI, N. 15 - SERIATE (BG)","BG","Seriate",24068,"riscontro comunicazione AGG44.pdf"]
[null,"Marche","Soggetto idoneo alla formazione","POLIARTE SRL","071 2802979","direzione@assform.it","direzione@assform.it","Aggiornamento TCA: La normale tollerabilità alla luce dei nuovi dispositivi di legge",8,"18/02/2020","18/02/2020","Lezioni frontali","Via Miano, 41A/B","AN","Ancona",60125,"DDPF 805_2019.pdf"]
["D000012","Campania","Soggetto idoneo alla formazione","0004 - e-Train S.r.l. unipersonale","0714604348","info@e-train.it","Maria Vittoria","D000012 - La valutazione dei requisiti acustici passivi con le nuove norme UNI EN 12354-2017",12,"09/12/2019","17/12/2019","Lezioni frontali","Hotel Ramada - Via Galileo Ferraris 40","NA","Napoli",80142,"DD_E-Train2019_488.pdf"]
[null,"Veneto","Ordine professionale","Ordine degli Ingegneri di Venezia","041-5289114","fondazione@ordineingegneri.ve.it",null,"Acustica in edilizia: aspetti pratici del DPCM 5/12/1997, casi studio nelle ristrutturazioni e nei nuovi edifici/",6,"13/12/2019","13/12/2019","Lezioni frontali","Via B. Maderna 7","VE","Venezia",30174,"RICONOSCIMENTO ING VE PROT. 109899 08.11.2019_fd.pdf"]
["D000013","Campania","Soggetto idoneo alla formazione","0001 - Son Training S.r.l.s.",null,"info@sontraining.it","Per informazioni commerciali contattare il  3938319684 - per assistenza tecnica contattare il  3476767388 - oppure inviare una mail a formazione@sontraining.it","D000013 - Approfondimenti sulle metodologie di valutazione del criterio della normale tollerabilità e accettabilità",8,"11/12/2019","11/12/2019","E-Learning","VIA PONTANO 6","NA","Nola",80035,"DD_SonTraining_2019_489.pdf"]
["D000014","Campania","Soggetto idoneo alla formazione","0001 - Son Training S.r.l.s.",null,"info@sontraining.it","Per informazioni commerciali contattare il  3938319684 - per assistenza tecnica contattare il  3476767388 - oppure inviare una mail a formazione@sontraining.it","D000014 - Misurazioni di rumore e di vibrazioni nei luoghi di lavoro - ultimi aggiornamenti normativi e tecnici",8,"23/01/2020","25/01/2020","E-Learning","VIA PONTANO 6","NA","Nola",80035,"DD_SonTraining_2019_489(1).pdf"]
["D000015","Campania","Soggetto idoneo alla formazione","0001 - Son Training S.r.l.s.",null,"info@sontraining.it","Per informazioni commerciali contattare il  3938319684 - per assistenza tecnica contattare il  3476767388 - oppure inviare una mail a formazione@sontraining.it","D000015 - Calcolo dei Requisiti Acustici Passivi ai sensi delle nuove norme UNI sia in fase di progetto che in fase di collaudo",8,"20/04/2020","22/04/2020","E-Learning","VIA PONTANO 6","NA","Nola",80035,"DD_SonTraining_2019_489(2).pdf"]
["D000016","Campania","Soggetto idoneo alla formazione","0001 - Son Training S.r.l.s.",null,"info@sontraining.it","Per informazioni commerciali contattare il  3938319684 - per assistenza tecnica contattare il  3476767388 - oppure inviare una mail a formazione@sontraining.it","D000016 - La valutazione di impatto acustico anche alla luce della nuova normativa UNI 12354-4 - sviluppo di casi pratici",8,"06/10/2020","08/10/2020","E-Learning","VIA PONTANO 6","NA","Nola",80035,"DD_SonTraining_2019_489(3).pdf"]
["D000017","Campania","Soggetto idoneo alla formazione","0001 - Son Training S.r.l.s.",null,"info@sontraining.it","Per informazioni commerciali contattare il  3938319684 - per assistenza tecnica contattare il  3476767388 - oppure inviare una mail a formazione@sontraining.it","D000017 - Autorizzazione in deroga per le attività temporanee - problematiche connesse alla movida - metodologie applicative",8,"12/01/2021","14/01/2021","E-Learning","VIA PONTANO 6","NA","Nola",80035,"DD_SonTraining_2019_489(4).pdf"]
["D000018","Campania","Soggetto idoneo alla formazione","0001 - Son Training S.r.l.s.",null,"info@sontraining.it","Per informazioni commerciali contattare il  3938319684 - per assistenza tecnica contattare il  3476767388 - oppure inviare una mail a formazione@sontraining.it","D000018 - Il confort acustico alla luce dei nuovi criteri ambientali minimi per gli edifici pubblici ai sensi del Decreto del Ministero dell'Ambiente dell'11 ottobre 2017",8,"15/12/2020","17/12/2020","E-Learning","VIA PONTANO 6","NA","Nola",80035,"DD_SonTraining_2019_489(5).pdf"]
["D000019","Campania","Soggetto idoneo alla formazione","0001 - Son Training S.r.l.s.",null,"info@sontraining.it","Per informazioni commerciali contattare il  3938319684 - per assistenza tecnica contattare il  3476767388 - oppure inviare una mail a formazione@sontraining.it","D000019 - Valutazione di impatto acustico di impianti eolici secondo le linee guida ISPRA",8,"03/06/2020","05/06/2020","E-Learning","VIA PONTANO 6","NA","Nola",80035,"DD_SonTraining_2019_489(6).pdf"]
[null,"Marche","Ordine professionale","Ordine dei Periti Industriali della Provincia di Pesaro-Urbino","0721 403962","info@perindps.it",null,"Novità in campo di progettazioni dei requisiti acustici passivi degli edifici",8,"23/01/2020","23/01/2020","Lezioni frontali","A.P.I.M.A./ORDINE DEI PERITI IND. Via degli Olmi 16/4","PU","Pesaro",61122,"DD VAA n. 213 del 22.11.2019.pdf"]
[null,"Lombardia","Ordine professionale","ORDINE DEGLI INGEGNERI DELLA PROVINCIA DI MILANO","0276003731","ordine.milano@ingpec.eu",null,"L'ACUSTICA IN EDILIZIA TRATTATA CON SISTEMI A SECCO",8,"12/02/2020","19/02/2020","Lezioni frontali","c/o FOIM - Viale Andrea Doria, n. 9 - Milano","MI","Milano",20124,"riscontro comunicazione AGG45-unito.pdf"]
[null,"Lombardia","Ordine professionale","ORDINE DEGLI INGEGNERI DELLA PROVINCIA DI MILANO","0276003731","ordine.milano@ingpec.eu",null,"COLLAUDO ACUSTICO SECONDO LE NORME UNI EN ISO 16283 - PARTE 1; PARTE 2; PARTE 3",6,"18/06/2020","18/06/2020","E-Learning","c/o FOIM - Viale Andrea Doria, n. 9 - Milano","MI","Milano",20124,"riscontro comunicazione AGG50-unito-unito.pdf"]
[null,"Friuli Venezia Giulia","Soggetto idoneo alla formazione","THE ACS S.r.l.","071 4604348","theacs@pec.it","071 4604348\ntheacs@pec.it","AGG004. La valutazione e la misura del rumore in ambiente esterno",12,"13/12/2019","20/12/2019","Lezioni frontali","via delle Grazie, 9 c/o Hotel Santin","PN","Pordenone",33170,"INACCRS5[3125].PDF"]
[null,"Lombardia","Soggetto idoneo alla formazione","AIAS ACADEMY S.R.L.","02-94368642","aiasacademy@pec.it",null,"ACUSTICA ARCHITETTONICA",8,"22/01/2020","22/01/2020","Lezioni frontali","VIA G. FARA, 35 - MILANO","MI","Milano",20124,"riscontro comunicazione AGG46-unito.pdf"]
[null,"Lombardia","Soggetto idoneo alla formazione","AIAS ACADEMY S.R.L.","02-94368642","aiasacademy@pec.it",null,"EFFETTI EXTRA-UDITIVI DELL'ESPOSIZIONE AL RUMORE",8,"28/01/2020","28/01/2020","Lezioni frontali","VIA G. FARA, 35 - MILANO","MI","Milano",20124,"riscontro comunicazione AGG47-unito.pdf"]
[null,"Lombardia","Soggetto idoneo alla formazione","AIAS ACADEMY S.R.L.","02-94368642","aiasacademy@pec.it",null,"ACUSTICA NEI LUOGHI DI LAVORO",8,"11/02/2020","11/02/2020","Lezioni frontali","VIA G. FARA, 35 - MILANO","MI","Milano",20124,"riscontro comunicazione AGG48.pdf"]
[null,"Lombardia","Soggetto idoneo alla formazione","AIAS ACADEMY S.R.L.","02-94368642","aiasacademy@pec.it",null,"ACUSTICA FORENSE",8,"16/06/2020","17/06/2020","Lezioni frontali","VIA G. FARA, 35 - MILANO","MI","Milano",20124,"riscontro comunicazione AGG49-unito-bis.pdf"]
[null,"Lombardia","Soggetto idoneo alla formazione","TECO MILANO SRL","0248958304","info@tecomilano.it",null,"CORSO DI AGGIORNAMENTO PER TECNICI COMPETENTI IN ACUSTICA",7,"15/01/2020","15/01/2020","Lezioni frontali","c/o ASSOACUSTICI - CORSO ITALIA, N. 13 - SARONNO (VA)","VA","Saronno",21047,"riscontro comunicazione AGG51.pdf"]
[null,"Sicilia","Soggetto idoneo alla formazione","C.D.S. S.r.l","091 8946407","info@cdsantifortunistica.it","Sede Legale: Via Francesco Speciale, 49/51 \n90129 Palermo","I edizione - Corso di Aggiornamento per Tecnici Competenti in Acustica",30,"09/01/2020","13/02/2020","Lezioni frontali","Via Francesco Speciale, 49/51","PA","Palermo",90129,"PROVV_CDS_CORSO AGGIORNAMENTO.pdf"]
[null,"Sicilia","Soggetto idoneo alla formazione","E-TRAIN S.r.l. - Corso Aggiornamento Catania","071 4604348","info@e-train.it","E-Train S.r.l.\nSede Legale: Via Solari, 27\n60025 - Loreto (AN)","Provv. 77880/19 - 3.1 - I- La valutazione e la misura del rumore in ambiente esterno - previsto 13-20 marzo 2020 spostato in modalità FAD il 19-24 giugno 2020",12,"19/06/2020","26/06/2020","Blended - Learning","Le Dune Sicily Hotel - Viale Kennedy, 10/b","CT","Catania",95121,"PROVV_E-TRAIN_CORSO AGGIORNASMENTO_CATANIA.pdf"]
[null,"Sicilia","Soggetto idoneo alla formazione","E-TRAIN S.r.l. - Corso Aggiornamento Palermo","071 4604348","info@e-train.it","E-TRAIN S.r.l. \nVia Solari, 27\n60025 Loreto (AN)","Provv. 77866/19 - 3.1 - La valutazione e la misura del rumore in ambiente esterno - previsto 14-21 febbraio 2020 spostato in modalità FAD il 24-31 luglio 2020",12,"24/07/2020","31/07/2020","Blended - Learning","c/o Hotel Astoria, Via Montepellegrino, 62","PA","Palermo",90142,"PROVV_E-TRAIN_CORSO_AGGIORNAMENTO_PALERMO.pdf"]
[null,"Sicilia","Ordine professionale","Ordine Degli Ingegneri di Trapani","0923 554797","segreteria@ording.tp.it","Sede Legale: Largo Madonna, 4 \n91100 - Trapani","Provv. 77854/19 -3.1 - modulo A - Corso di Aggiornamento per Tecnici Competenti in Acustica",12,"24/01/2020","25/01/2020","Lezioni frontali","via Largo Madonna, 4","TP","Trapani",91100,"PROVV_ORDINE_INGEGNERI_TRAPANI_CORSO_AGGIORNAMENTO.pdf"]
[null,"Veneto","Ordine professionale","Ordine dei Chimici e dei Fisici di Treviso","380-3441062","segreteria@chimicifisicitreviso.it",null,"La valutazione di impatto acustico: i punti essenziali e le possibili criticità",6,"13/12/2019","13/12/2019","Lezioni frontali","Via Sala Senatore Pastro","TV","Volpago del Montello",31040,"RICONOSCIMENTO_CHIM_FIS_TV_PROT_107254_ 31102019_fd.pdf"]
[null,"Puglia","Soggetto idoneo alla formazione","0001 - SON TRAINING SRLS",null,"sontraining@pec.it","\u0093Son Training S.r.l.s.\u0094 con sede legale in Via Tiratore n.24 \u0096 Atripalda (Av)","X000014 - Misurazioni di rumore nei luoghi di lavoro \u0096 ultimi aggiornamenti normativi e tecnici",5,"22/01/2020","22/01/2020","Lezioni frontali","Ordine degli ingegneri di Brindisi-  Via Filomeno Consiglio n. 56 \u0096 72100 Brindisi","BR","Brindisi",72100,"DD. N.300 del 05.12.2019.pdf"]
[null,"Veneto","Soggetto idoneo alla formazione","Esse Ti Esse Sicurezza Srl","049-8808270","formazione@essetiesse.it",null,"Focus sui modelli di previsione acustica. Strumenti e metodi per la mappatura acustica del territorio",6,"16/10/2020","16/10/2020","Lezioni frontali","Via Romana Aponense 116","PD","Padova",35142,"RICONOSCIMENTO CORSO STS PROT N. 64765 GIUGNO 2019_fd.pdf"]
[null,"Sicilia","Soggetto idoneo alla formazione","Accademia Eraclitea S.r.l.","095 449778","direzione@eraclitea.it","Accademia Eraclitea S.r.l. - sede legale: via Corso delle Province, 203 - 95128 - Catania","Provv. 81551/19 - 6.1 - Corso di Aggiornamento per Tecnici Competenti in Acustica",5,"19/02/2020","19/02/2020","Lezioni frontali","Viale Della Libertà, 106","CT","Catania",95129,"Provv_Corso_agg_Acc_Eraclitea.pdf"]
[null,"Lombardia","Università","DIPARTIMENTO ABC - POLITECNICO DI MILANO","0223995141","tcaa.best@polimi.it",null,"CORSO DI AGGIORNAMENTO PER TECNICI COMPETENTI IN ACUSTICA",12,"15/01/2020","22/01/2020","Lezioni frontali","VIA PONZIO, N. 31","MI","Milano",20133,"riscontro comunicazione AGG52.pdf"]
[null,"Umbria","Soggetto idoneo alla formazione","Centro Studi Edili","0742354243","info.cse@gmail.com","Centro Studi Edili - Palazzo Gerardi, Piazza XX Settembre 19 - 06034 Foligno (PG)","Fondamentali di acustica e concetti base",4,"30/12/2019","30/12/2019","Lezioni frontali","Palazzom Gerardi Via XX Settembre 19 - 06034 Foligno (PG)","PG","Foligno","06034","DETERMINAFN[013388 30 dicembre 2019 centro studi edili.1].pdf"]
[null,"Umbria","Ordine professionale","Ordine degli Ingegneri della Provincia di Perugia","075 5010256","fondazione@ordineingegneriperugia.it","Fondazione Ordine degli Ingegneri di Perugia - Via Campo di Marte 9 06124 Perugia","L'evoluzione dell'acustica ambientale alla luce dei recenti sviluppi normativi nazionali ed europei",6,"23/01/2020","23/01/2020","Lezioni frontali","Etruscan Chocohotel - Via Campo di Marte n. 130 - Perugia","PG","Perugia","06124","D.D. n. 52 del 09 gennaio 2020 - autorizzazione corso di aggiornamento TC Ord. Ingegneri.pdf"]
[null,"Emilia Romagna","Soggetto idoneo alla formazione","Edili Reggio Emilia - Scuola - A.S.E. - Società cooperativa sociale","0522 500450","tecnica@res.re.it","Marcella Catellani","Aggiornamento per Tecnici Competenti in Acustica - IL CONTENZIOSO IN MATERIA DI REQUISITI ACUSTICI PASSIVI DEGLI EDIFICI. Rif.P.A. 2019-13068/RER/1",3,"04/02/2020","04/02/2020","Lezioni frontali","Via del Chionso, 22/A","RE","Reggio nell'Emilia",42022,"DD_42_2020.pdf"]
[null,"Emilia Romagna","Soggetto idoneo alla formazione","Edili Reggio Emilia - Scuola - A.S.E. - Società cooperativa sociale","0522 500450","tecnica@res.re.it","Marcella Catellani","Aggiornamento per Tecnici Competenti in Acustica - CENNI ALLA PROGETTAZIONE ACUSTICA DEGLI EDIFICI IN LEGNO. Rif.P.A. 2019-13068/RER/2",3,"04/02/2020","04/02/2020","Lezioni frontali","Via del Chionso, 22/A","RE","Reggio nell'Emilia",42022,"DD_42_2020(1).pdf"]
[null,"Emilia Romagna","Soggetto idoneo alla formazione","Edili Reggio Emilia - Scuola - A.S.E. - Società cooperativa sociale","0522 500450","tecnica@res.re.it","Marcella Catellani","Aggiornamento per Tecnici Competenti in Acustica - L'ACUSTICA DELLE FACCIATE CONTINUE: PRINCIPI GENERALI E CASE HISTORY. Rif. P.A. 2019-13068/RER/3",4,"07/04/2020","07/04/2020","Lezioni frontali","Via del Chionso, 22/A","RE","Reggio nell'Emilia",42022,"DD_42_2020(2).pdf"]
[null,"Umbria","Soggetto idoneo alla formazione","ARIS formazione e ricerca Società Cooperativa","075 5848056","aris@arisformazione.it","ARIS, Strada S. Lucia n. 8 Perugia (PG)","Autorizzazione in deroga per le attività temporanee - manifestazioni pubbliche - Valutazione di impatto acustico previsionale secondo la metodologia prevista dalla norma UNI 12354- 4 del 2017 e propagazione sonora di rumore ferroviario, stradale ed eolico",12,"11/05/2020","12/05/2020","Lezioni frontali","Strada S. Lucia 8","PG","Perugia","06125","DETERMINAaris spostamento date.pdf"]
[null,"Umbria","Soggetto idoneo alla formazione","ARIS formazione e ricerca Società Cooperativa","075 5848056","aris@arisformazione.it","ARIS, Strada S. Lucia n. 8","La valutazione di impatto acustico utilizzando la metodologia della norma UNI 12354-4",5,"10/03/2020","10/03/2020","Lezioni frontali","Strada S. Lucia 8","PG","Perugia","06125","DETERMINAaris spostamento date(1).pdf"]
[null,"Lazio","Soggetto idoneo alla formazione","STUDIO ASQ Srl","0773/474890","formazione@studioasq.it","Direttore Didattico:\nDott. Giuseppe Loiacono","Autorizzazione per lo svolgimento del corso di aggiornamento professionale per tecnico competente in acustica, programmato e diretto da \u0093STUDIO ASQ Srl\u0094 Prima Edizione, anno 2020, due sessioni, 10 ore di formazione.",10,"15/06/2020","16/06/2020","E-Learning","Via Piave angolo Via Magra snc","LT","Latina","04100","Determinazione_G15964_2019.pdf"]
[null,"Lazio","Soggetto idoneo alla formazione","LEGISLAZIONE TECNICA Srl","06/5921743","segreteria.corsi@legislazionetecnica.it","Direttore Didattico:\nDott.ssa Rosalisa Lancia","Autorizzazione per lo svolgimento del corso di aggiornamento professionale per tecnico competente in acustica, programmato e diretto da \u0093Legislazione Tecnica Srl\u0094 - Prima Edizione, anno 2020, due sessioni, 10 ore di formazione.",10,"09/04/2020","10/04/2020","Lezioni frontali","Via dell'Architettura, 16","RM","Roma","00144","Det_G15965_2019.pdf"]
[null,"Lazio","Soggetto idoneo alla formazione","CRESCO Formazione e Consulenza Srl","0776/1815108","lisa.lombardozzi@crescosrl.net","Direttore Didattico:\nDott. Antonio Accettola","Autorizzazione per lo svolgimento del corso di aggiornamento professionale per tecnico competente in acustica, programmato e diretto da \u0093CRESCO Formazione e Consulenza Srl\u0094 - Prima Edizione, anno 2020, una sessione, 8 ore di formazione.",8,"30/01/2020","30/01/2020","Lezioni frontali","Via Tofaro n° 42/E","FR","Sora","03039","Det_G18391_2019.pdf"]
[null,"Lombardia","Soggetto idoneo alla formazione","TECO Milano s.r.l.","02-48958304","info@tecomilano.it",null,"CORSO DI AGGIORNAMENTO PER TECNICI COMPETENTI IN ACUSTICA",7,"27/02/2020","27/02/2020","Lezioni frontali","c/o Assoacustici - Corso Italia, n. 13 - Saronno (VA)","VA","Saronno",21047,"riscontro comunicazione AGG53-unito.pdf"]
[null,"Liguria","Collegio professionale","Collegio dei Periti Industriali e dei Periti Industriali Laureati","010585349","formazione@perindgenova.it",null,"Attività di misura e contenzioso in ambito acustico.",12,"21/01/2020","23/01/2020","Lezioni frontali","Via Pammatone, 2/24","GE","Genova",16121,"DecretoDir_338_2020.pdf"]
[null,"Liguria","Ordine professionale","Ordine degli Architetti P.P.C. della provincia di Genova","0102473946","info.foage@archiworld.it",null,"Acustica forense - Il contenzioso acustico in edilizia, ed esercitazioni pratiche sull'uso dei fonometri e software di acquisizione.",15,"07/09/2020","14/09/2020","Lezioni frontali, E-Learning","Piazza della Vittoria, 10/11","GE","Genova",16121,"DecretoDir_339_2020.pdf"]
[null,"Friuli Venezia Giulia","Ente di ricerca","ARPA FVG","0432 1918146","daniela.domevscek@arpa.fvg.it","daniela.domevscek@arpa.fvg.it","AGG005. Corso di aggiornamento in acustica riservato al personale interno di ARPA",6,"12/02/2020","12/02/2020","Lezioni frontali","via Cairoli, 12 c/o sede ARPA FVG","UD","Palmanova",33057,"INACCRS6_ARPA FVG_VERIFICA CONFORMITÀ CORSO AGGIORNAMENTO.PDF"]
[null,"Lazio","Ordine professionale","Ordine degli Ingegneri della Provincia di Roma","06/4879311","protocollo@ording.roma.it","Direttore Didattico: Ing. Carlo Fascinelli","Autorizzazione per lo svolgimento del corso di aggiornamento professionale per tecnico competente in acustica, programmato e diretto dall\u0092\u0094Ordine degli Ingegneri della Provincia di Roma\u0094. Prima Edizione, anno 2020, due sessioni, 10 ore di formazione.",10,"21/02/2020","26/02/2020","Lezioni frontali","Piazza della Repubblica, 59","RM","Roma","00185","Copia_Det_G00639_27_01_2020.pdf"]
[null,"Piemonte","Soggetto idoneo alla formazione","IEC srl, Engineering Consultant","0112425353","iec@iectorino.com",null,"Le valutazioni di impatto e clima acustico  alla luce delle più recenti modifiche normative",8,"20/02/2020","20/02/2020","Lezioni frontali","Via Botticelli 151","TO","Torino",10154,"dd_A16_n13_21gennaio2020.pdf"]
[null,"Piemonte","Ordine professionale","FOIT: Fondazione del'ordine degli ingegneri della Provincia di Torino","0115186908","segreteria@foit.it","Via Giovanni Giolitti n. 1, 10123 Torino","Intelligibilità del parlato negli ambienti scolastici: teoria e pratica",8,"06/02/2020","06/02/2020","Lezioni frontali","Via Giovanni Giolitti n. 1","TO","Torino",10123,"dd_A16_n13_21gennaio2020(1).pdf"]
[null,"Piemonte","Ordine professionale","FOIT: Fondazione dell'Ordine degli Ingegneri della Provincia di Torino","011533183","segreteria@foit.it",null,"La norma UNI EN ISO 16283 di recnte pubblicazione_ Il confronto  con la ritirata norma UNI EN ISO 140",3,"08/04/2020","08/04/2020","Lezioni frontali","Via Giolitti, n 1","TO","Torino",10123,"dd_A16_n13_21gennaio2020(2).pdf"]
[null,"Piemonte","Soggetto idoneo alla formazione","ASSO.FORMA","0141275914","info@assoforma.net",null,"Le sfaccettature della professione acustica",8,"27/05/2020","03/06/2020","E-Learning","Via G. Borello 1/A","AT","Asti",14100,"dd_A16_n13_21gennaio2020(3).pdf"]
[null,"Piemonte","Soggetto idoneo alla formazione","IEC srl, Engineering Consultant","0112425353","iec@iectorino.com",null,"La bonifica acustica  negli ambienti di lavoro: normativa vigente, metodologie di studio ed esercitazione applicativa",8,"15/10/2020","15/10/2020","Lezioni frontali","Via Botticelli 151","TO","Torino",10154,"dd_A16_n13_21gennaio2020(4).pdf"]
[null,"Piemonte","Soggetto idoneo alla formazione","ASSO.FORMA","0141275914","info@assoforma.net",null,"Ii Fonometro: Funzionamento ed errori di misura",6,"03/07/2020","10/07/2020","E-Learning","Via G. Borello 1/A","AT","Asti",14100,"dd_A16_n13_21gennaio2020(5).pdf"]
[null,"Piemonte","Soggetto idoneo alla formazione","FOIT: Fondazione del'ordine degli ingegneri della Provincia di Torino","011533183","segreteria@foit.it",null,"Misure acustiche con tecnica MLS",6,"17/04/2020","17/04/2020","Lezioni frontali","Via Giovanni Giolitti n.1","TO","Torino",10123,"dd_A16_n13_21gennaio2020(6).pdf"]
[null,"Piemonte","Ordine professionale","FOIT: Fondazione del'ordine degli ingegneri della Provincia di Torino","011533183","segreteria@foit.it",null,"Aggiornamenti normativi in tema di contenzioso e requisiti acustici passivi",4,"05/06/2020","05/06/2020","E-Learning","Via Giovanni Giolitti n. 1","TO","Torino",10123,"dd_A16_n13_21gennaio2020(7).pdf"]
[null,"Lazio","Università","Università degli Studi di Roma Tre - Dipartimento di Architettura","06/57339626","marco.frascarolo@uniroma3.it","Direttori Didattici:\nProf. Marco Frascarolo\nProf. Giovanni Mario Mattia","Autorizzazione per lo svolgimento del corso di aggiornamento professionale per tecnico competente in acustica, programmato e diretto dall\u0092Università degli studi di Roma Tre - Dipartimento di Architettura - Prima Edizione, anno 2020, due sessioni, 10 ore d",10,"11/07/2020","18/07/2020","E-Learning","Largo Giovanni Battista Marzi, 10","RM","Roma","00153","Det.G00922_del_03.02.2020.pdf"]
[null,"Lombardia","Ordine professionale","CONSULTA REGIONALE LOMBARDA OAPPC","02-29002174","segreteria@consulta-al.it",null,"IL COLLAUDO ACUSTICO SECONDO LE UNI ES ISO 16283",6,"18/02/2020","18/02/2020","Lezioni frontali","c/o ANIT - Via Lanzone, n. 31 Milano","MI","Milano",20123,"riscontro comunicazione AGG55.pdf"]
[null,"Lombardia","Ordine professionale","CONSULTA REGIONALE LOMBARDA OAPPC","02-29002174","segreteria@consulta-al.it",null,"ACUSTICAPER INTERNI:COMFORT DEGLI AMBIENTI CHIUSI, TEMPO DI RIVERBERO E STI",6,"28/02/2020","28/02/2020","Lezioni frontali","c/o Centro Pastorale Paolo VI - Via G. Calini, n. 30 Brescia","BS","Brescia",25121,"riscontro comunicazione AGG56-unito.pdf"]
[null,"Lombardia","Ordine professionale","CONSULTA REGIONALE LOMBARDA OAPPC","02-29002174","segreteria@consulta-al.it",null,"ACUSTICAPER INTERNI:COMFORT DEGLI AMBIENTI CHIUSI, TEMPO DI RIVERBERO E STI",6,"09/06/2020","10/06/2020","E-Learning","c/o ANIT - Via Lanzone, n. 31 Milano","MI","Milano",20123,"riscontro comunicazione AGG57-unito.pdf"]
[null,"Provincia Autonoma di Trento","Ordine professionale","Ordine degli Ingegneri della provincia di Trento","0461983193","info@ordineingegneritn.it","Ordine degli Ingegneri della provincia di Trento \u0096 P.zza S. Maria maggiore, 23 \u0096 38122 Trento","Acustica Incertezza di misura e di calcolo in acustica edilizia",6,"18/12/2020","18/12/2020","E-Learning","P.zza S. Maria maggiore, 23","TN","Trento",38122,"4192631452020-01-29-ComunicazioneAccoglimento.pdf"]
[null,"Friuli Venezia Giulia","Soggetto idoneo alla formazione","THE ACS S.r.l.","071 4604348","info@theacs.it","071 4604348\ninfo@theacs.it","AGG006. Valutazione previsionale di impatto acustico",12,"06/03/2020","13/03/2020","Lezioni frontali","via Scamozzi 5 c/o Auditorium San Marco","UD","Palmanova",33057,"INACCRS7_THE ACS SRL_VERIFICA CONFORMITÀ CORSO AGGIORNAMENTO.PDF"]
[null,"Lombardia","Soggetto idoneo alla formazione","AREA ISO S.R.L.","030-2722014","info@areaiso.it",null,"ERRORI PIU' COMUNI, PIU' O MENO GRAVI, NEI QUALI E' POSSIBILE INCORRERE DURANTE L'ESECUZIONE DI RILIEVI ACUSTICI (ERRORI DI MISURA)",8,"06/03/2020","06/03/2020","Lezioni frontali","c/o AC Hotel Brescia by Marriott - Via Giulio Quinto Stefana, n. 3 20125 Brescia","BS","Brescia",20125,"riscontro comunicazione AGG54-unito.pdf"]
[null,"Veneto","Ordine professionale","Ordine degli Ingegneri di Padova e Provincia","393-8926845","fip@fondazioneingegneripadova.org",null,"Il collaudo acustico secondo le UNI EN ISO 16283. Tecniche di misura in opera dei requisiti acustici passivi",6,"18/03/2020","18/03/2020","Lezioni frontali","Piazza Salvemini 2","PD","Padova",35131,"RICONOSCIMENTO ING PD PROT. 8571 28.01.2020_fd.pdf"]
[null,"Veneto","Ordine professionale","Ordine degli Ingegneri di Venezia","041-5289114","fondazione@ordineingegneri.ve.it",null,"Acustica forense",6,"21/02/2020","21/02/2020","Lezioni frontali","Via B. Maderna 7","VE","Venezia",30174,"RICONOSCIMENTO ING VE PROT. 4750 17.01.2020_fd.pdf"]
["D000020","Campania","Ordine professionale","0005 - Ordine degli Ingegneri della Provincia di Avellino","0825 36437",null,null,"D000020 - La valutazione dell'impatto acustico e delle immissioni sonore. Principi di valutazione dell'inquinamento e delle immissioni sonore: la diversa impostazione dell'indagine strumentale",4,"26/02/2020","26/02/2020","Lezioni frontali","Via Ammaturo 100 ex C.da Valle Mecca 36","AV","Avellino",83100,"DD 43 2020.pdf"]
["D000021","Campania","Ordine professionale","0005 - Ordine degli Ingegneri della Provincia di Avellino","0825 36437",null,null,"D000021 - La valutazione dell'impatto acustico e delle immissioni sonore. Caso di studio: sorgenti sonore fisse.",4,"08/07/2020","08/07/2020","E-Learning","Via Ammaturo 100 ex C.da Valle Mecca 36","AV","Avellino",83100,"DD 43 2020(1).pdf"]
["D000022","Campania","Ordine professionale","0005 - Ordine degli Ingegneri della Provincia di Avellino","0825 36437",null,null,"D000022 - La valutazione dell'impatto acustico e delle immissioni sonore. Caso di studio: locali di pubblico spettacolo.",4,"27/07/2020","27/07/2020","E-Learning","Via Ammaturo 100 ex C.da Valle Mecca 36","AV","Avellino",83100,"DD 43 2020(2).pdf"]
[null,"Emilia Romagna","Ordine professionale","ORDINE DEGLI INGEGNERI DELLA PROVINCIA DI RAVENNA","0544 35680","posta@ordineingegneri.ra.it","Mattia Galli","Corso di aggiornamento per TCA: Acustica degli Edifici e Contenziosi Legali. Rif. P.A. 2019-13188/RER/1",4,"29/05/2020","29/05/2020","Lezioni frontali","Viale Randi, 37 [sede regia vdc]","RA","Ravenna",48121,"DD 1617_2020.pdf"]
[null,"Puglia","Soggetto idoneo alla formazione","0002 - THE ACS S.r.l",null,"theacs@pec.it",null,"X000015 - La valutazione dei requisiti acustici passivi con le nuove norme UNI EN ISO 12354-2017",12,"27/03/2020","28/03/2020","Lezioni frontali","Hotel Parco dei Principi - Via Vito Vasile, Prolungamento Viale Europa 6 \u0096 70128 Bari.","BA","Bari",70128,"DD. n. 62_18.02.2020_bari.pdf"]
[null,"Puglia","Soggetto idoneo alla formazione","0002 - THE ACS S.r.l",null,"theacs@pec.it",null,"X000016 - ANNULLATO_La valutazione dei requisiti acustici passivi con le nuove norme UNI EN ISO 12354-2017",12,"18/11/2020","02/12/2020","Lezioni frontali","Hotel Cicolella - Viale XXIV Maggio, 60 - Foggia - Viale XXIV Maggio, 60 - Foggia","FG","Foggia",70128,"DD. n. 63_18.02.2020_foggia.pdf"]
[null,"Puglia","Soggetto idoneo alla formazione","0002 - THE ACS S.r.l",null,"theacs@pec.it",null,"X000017 - La valutazione dei requisiti acustici passivi con le nuove norme UNI EN ISO 12354-2017",12,"22/05/2020","29/05/2020","Lezioni frontali","Grand Hotel Tiziano - Viale Porta d'Europa - Lecce","LE","Lecce",73100,"DD. n. 64_18.02.2020_lecce.pdf"]
[null,"Abruzzo","Ordine professionale","Ordine Ingegneri Provincia di Teramo","0861/247688","formazione@ingegneriteramo.it","0861/247688\nformazione@ingegneriteramo.it\nCorso Cerulli, 74\n64100 Teramo","Le emissioni sonore derivanti dai locali di pubblico spettacolo",4,"09/07/2020","09/07/2020","E-Learning","Corso Cerulli n. 74","TE","Teramo",64100,"DPC025-49 del 20.02.2020.pdf"]
[null,"Lombardia","Ordine professionale","ORDINE DEGLI INGEGNERI DELLA PROVINCIA DI BRESCIA","030-2294711","segreteria@bs.ingegneri.legalmail.it",null,"ACUSTICA DI PICCOLI AMBIENTI E SALE DI REGISTRAZIONE",4,"20/03/2020","20/03/2020","Lezioni frontali","c/o Ordine degli Ingegneri della Provincia di Brescia - Via Cefalonia, 70 25124 Brescia","BS","Brescia",25124,"riscontro comunicazione AGG64-unito.pdf"]
[null,"Lombardia","Ordine professionale","ORDINE PERITI INDUSTRIALI E PERITI INDUSTRIALI LAUREATI DELLA PROVINCIA DI COMO","031-267431","info@ordineperiticomo.it",null,"ACUSTICA NEL CICLO DI PROGETTO",8,"30/03/2020","30/03/2020","Lezioni frontali","c/o Ordine Periti Industriali e Periti Industriali Laureati della Provincia di Como - Via Vittorio Emanuele, 113 - 22100 Como","CO","Como",22100,"riscontro comunicazione AGG65.pdf"]
[null,"Toscana","Soggetto idoneo alla formazione","CESAL - ASSFORM","0573/365083","info@cesalweb.it",null,"Il collaudo dei requisiti acustici passivi degli edifici",8,"14/10/2019","14/10/2019","Lezioni frontali","Hotel Mirage via Baracca 231","FI","Firenze",56127,"DecrDir2500Febbr2020+All.pdf"]
[null,"Toscana","Soggetto idoneo alla formazione","DELTA FORMAZIONE","0571/34503","info@deltaformazione.com",null,"Strumentazione e tecniche di misura",5,"10/12/2019","10/12/2019","Lezioni frontali","via Viviani 5","PI","Santa Croce sull'Arno",56029,"DecrDir2500Febbr2020+All(1).pdf"]
[null,"Toscana","Soggetto idoneo alla formazione","SCUOLA EDILE GROSSETANA","0564/45456","direzione@scuolaedilegrossetana.it",null,"Acustica in edilizia",15,"07/11/2019","08/11/2019","Lezioni frontali","viale Monte Rosa n°196","GR","Grosseto",58100,"DecrDir2500Febbr2020+All(2).pdf"]
[null,"Toscana","Soggetto idoneo alla formazione","SOCIP","050 983935","formazione@socipsrl.it",null,"Requisiti acustici passivi, classificazione acustica edifici, VIAC e criteri ambientali",20,"23/05/2019","11/10/2019","Lezioni frontali","via Ravizza 12","PI","Pisa",56121,"DecrDir2500Febbr2020+All(3).pdf"]
[null,"Toscana","Soggetto idoneo alla formazione","ARPAT","055 32061","r.gozzani@arpat.toscana.it",null,"Conduzione di verifiche acustiche",90,"27/05/2019","25/11/2019","Lezioni frontali","via Porpora 22","FI","Firenze",50144,"DecrDir2500Febbr2020+All(4).pdf"]
[null,"Toscana","Soggetto idoneo alla formazione","UPSKILL","0584/1661026","abelloni@upskilltc.it",null,"Requisiti acustici passivi edifici, impatto e clima acustico",10,"06/11/2019","11/11/2019","Lezioni frontali","via Trieste 28","LU","Viareggio",55049,"DecrDir2500Febbr2020+All(5).pdf"]
[null,"Toscana","Ordine professionale","ORDINE ARCHITETTI P.P.C. DI FIRENZE","055/0881982","formazione@fondazionearchitettifirenze.it",null,"Isolamento e vibrazioni",5,"24/09/2019","24/09/2019","Lezioni frontali","piazza Stazione 50","FI","Firenze",50123,"DecrDir2500Febbr2020+All(6).pdf"]
[null,"Toscana","Soggetto idoneo alla formazione","Q&S Qualità e Sicurezza","0574-965334","a.ottanelli@qes.toscana.it",null,"Vibrazioni e rumore in ambienti di lavoro, acustica forense",8,"09/12/2019","09/12/2019","Lezioni frontali","Hotel AC via Bausi 5","FI","Firenze",50144,"DecrDir2500Febbr2020+All(7).pdf"]
[null,"Toscana","Ordine professionale","ORDINE INGEGNERI DELLA PROVINCIA DI AREZZO","0575-27730","info@ordineingegneriarezzo.it",null,"Requisiti acustici passivi degli edifici",4,"26/11/2019","26/11/2019","Lezioni frontali","via Petrarca  21","AR","Arezzo",52100,"DecrDir2500Febbr2020+All(8).pdf"]
[null,"Toscana","Soggetto idoneo alla formazione","CNA SERVIZI SC","0586 267553","CNASERVIZI.FORMAZIONE@CNALIVORNO.IT",null,"Il rumore negli impianti di ventilazione",5,"06/12/2019","06/12/2019","Lezioni frontali","via Martin Luther King 15","LI","Livorno",57128,"DecrDir2500Febbr2020+All(9).pdf"]
[null,"Toscana","Collegio professionale","COLLEGIO PERITI DI LUCCA","0583-491942","info@perindlu.i",null,"Novità introdotte dal D.Lgs. 42/2017",5,"13/12/2019","13/12/2019","Lezioni frontali","Sede Comunale Capannori piazza Moro 15","LU","Capannori",55012,"DecrDir2500Febbr2020+All(10).pdf"]
[null,"Toscana","Soggetto idoneo alla formazione","AGENZIA FORMATIVA DEL COMUNE DI FIRENZE","055-2625694","elisabetta.boddi@comune.fi.it",null,"Rumore di infrastrutture di trasporto, acustica e strumentazione",10,"09/12/2019","10/12/2019","Lezioni frontali","via Nicolodi","FI","Firenze",50131,"DecrDir2500Febbr2020+All(11).pdf"]
["D000023","Campania","Soggetto idoneo alla formazione","0001 - Son Training S.r.l.s.",null,"info@sontraining.it","Per informazioni commerciali contattare il  3938319684 - per assistenza tecnica contattare il  3476767388 - oppure inviare una mail a formazione@sontraining.it","D000023 - Inquinamento acustico provocato da attività di cantiere.",5,"08/04/2020","08/04/2020","E-Learning","VIA PONTANO 6","NA","Nola",80035,"DD 2020 70 Son Training.pdf"]
[null,"Toscana","Soggetto idoneo alla formazione","ASL","0577 536669","iole.pinto@uslsudest.toscana.it",null,"Problematiche acustiche connesse a strutture sanitarie",6,"13/11/2019","13/11/2019","Lezioni frontali","Strada Di Ruffolo","SI","Siena",53100,"DecrDir2500Febbr2020+All(12).pdf"]
["D000024","Campania","Soggetto idoneo alla formazione","0001 - Son Training S.r.l.s.",null,"info@sontraining.it","Per informazioni commerciali contattare il  3938319684 - per assistenza tecnica contattare il  3476767388 - oppure inviare una mail a formazione@sontraining.it","D000024 - Inquinamento acustico provocato da infrastrutture ferroviarie.",5,"16/04/2020","16/04/2020","E-Learning","VIA PONTANO 6","NA","Nola",80035,"DD 2020 70 Son Training(1).pdf"]
["D000025","Campania","Soggetto idoneo alla formazione","0001 - Son Training S.r.l.s.",null,"info@sontraining.it","Per informazioni commerciali contattare il  3938319684 - per assistenza tecnica contattare il  3476767388 - oppure inviare una mail a formazione@sontraining.it","D000025 - Misurazione di vibrazioni indotte da infrastrutture e attività di cantiere.",5,"30/04/2020","30/04/2020","E-Learning","VIA PONTANO 6","NA","Nola",80035,"DD 2020 70 Son Training(2).pdf"]
["D000026","Campania","Soggetto idoneo alla formazione","0006 - The ACS S.r.l. Scuola Italiana di Alta Formazione","071 460 4348","info@theacs.it",null,"D000026 - La valutazione e la misura del rumore in ambiente esterno.",12,"26/06/2020","03/07/2020","Lezioni frontali","Hotel Ramada - Via Galileo Ferraris 40","NA","Napoli",80146,"DD 2020 72 The ACS.pdf"]
[null,"Umbria","Università","CIRIAF Centro Interuniversitario di Ricerca sull'Inquinamento e sull'Ambiente \"Mauro Felli\" Università degli Studi di Perugia","075 5853717","centro.ciriaf@unipg.it","UNI PG - Polo Ingegneria Via G. Duranti 63 06125 Perugia","Valutazione di impatto acustico previsionale secondo le metodologie previste dalle norme UNI EN ISO 12354",6,"23/03/2020","23/03/2020","Lezioni frontali","Sede ARPA Terni - via Carlo Alberto Dalla Chiesa 32","TR","Terni","05100","DETERMINA 1626 25 febbraio 2020 CIRIAF.pdf"]
[null,"Umbria","Università","CIRIAF Centro Interuniversitario di Ricerca sull'Inquinamento e sull'Ambiente \"Mauro Felli\" Università degli Studi di Perugia","075 5853717","centro.ciriaf@unipg.it","UNI PG - Polo Ingegneria - via G. Duranti 63 06125 Perugia","Valutazione di impatto acustico previsionale di sorgenti stradali, ferroviarie e industriali",6,"24/03/2020","24/03/2020","Lezioni frontali","Sede di ARPA Umbria di Perugia - via Pievaiola n. 207/B-3, S. Sisto","PG","Perugia","06132","DETERMINAFN 1627 25 febbraio 2020 CIRIAF.pdf"]
[null,"Lazio","Ordine professionale","Ordine degli Ingegneri della Provincia di Roma","064879311","protocollo@ording.roma.it","Direttore Didattico: Ing. Carlo Fascinelli","Autorizzazione per lo svolgimento del corso di aggiornamento professionale per tecnico competente in acustica, programmato e diretto dall\u0092Ordine degli Ingegneri della Provincia di Roma. Seconda Edizione, anno 2020, due sessioni, 10 ore di formazione.",10,"27/03/2020","03/04/2020","Lezioni frontali","Piazza della Repubblica n° 59","RM","Roma","00185","G01911_del_25_02_2020.pdf"]
[null,"Lombardia","Soggetto idoneo alla formazione","AFOR SAS di Rabbachin Massimiliano & C.","02-39430413","info@afor.mi.it",null,"VALUTAZIONE RISCHIO RUMORE E VIBRAZIONI",16,"30/04/2020","07/05/2020","Lezioni frontali","VIA VALTORTA, N. 35","MI","Milano",20127,"riscontro comunicazione AGG66-unito.pdf"]
[null,"Lombardia","Soggetto idoneo alla formazione","THE ACS - SCUOLA ITALIANA DI ALTA FORMAZIONE S.R.L.","071-4604348","info@theacs.it",null,"LA VALUTAZIONE E LA MISURA DEL RUMORE IN AMBIENTE ESTERNO",12,"09/03/2020","16/03/2020","Lezioni frontali","c/o BLOOM GROUP - VIA VALTORTA, 44","MI","Milano",20127,"riscontro comunicazione AGG58.pdf"]
[null,"Lombardia","Soggetto idoneo alla formazione","THE ACS - SCUOLA ITALIANA DI ALTA FORMAZIONE S.R.L.","071-4604348","info@theacs.it",null,"LA VALUTAZIONE E LA MISURA DEL RUMORE IN AMBIENTE ESTERNO",12,"05/06/2020","12/06/2020","E-Learning","c/o HOTEL NH - VIA PIETRO PALEOCAPA, 1/G","BG","Bergamo",24122,"riscontro comunicazione AGG59-unito-unito.pdf"]
["D000027","Campania","Ordine professionale","0003 - Ordine degli Ingegneri della Provincia di Napoli","0815522126","segreteria@ordineingegnerinapoli.net",null,"D000027 - La valutazione dell'impatto acustico e delle immissioni sonore- Principi di valutazionedell'inquinamento e delle immissioni sonore: la diversa impostazione dell'indagine strumentale.",4,"30/04/2021","30/04/2021","E-Learning","Piazza dei Martiri","NA","Napoli",80133,"DD 2020 078.pdf"]
["D000028","Campania","Ordine professionale","0003 - Ordine degli Ingegneri della Provincia di Napoli","0815522126","segreteria@ordineingegnerinapoli.net",null,"D000028 - La valutazione dell'impatto acustico e delle immissioni sonore - Principi di valutazione dell'inquinamento e delle immissioni sonore: la diversa impostazione dell'indagine strumentale.",4,"11/09/2020","11/09/2020","E-Learning","Sala Consiliare Comune di Sorrento - Piazza Sant'Antonio 1","NA","Sorrento",80067,"DD 2020 078(1).pdf"]
["D000029","Campania","Ordine professionale","0003 - Ordine degli Ingegneri della Provincia di Napoli","0815522126","segreteria@ordineingegnerinapoli.net",null,"D000029 - La valutazione dell'impatto acustico e delle immissioni sonore - Caso di studio: sorgenti sonore fisse.",4,"18/09/2020","18/09/2020","E-Learning","Istituto Tecnico Statale \"Graziani\" Torre Annunzianta - Via Sepolcri 21","NA","Torre Annunziata",80058,"DD 2020 079.pdf"]
[null,"Emilia Romagna","Soggetto idoneo alla formazione","Associazione Assform","0541 1796402","seg-corsi@assform.it","Semprini Mario Paolo","Aggiornamento Tecnico Competente in Acustica - La normale tollerabilità alla luce dei nuovi dispositivi di legge. Rif. P.A. 2012-11123/RER/1 - Edizione 4",8,"19/02/2020","19/02/2020","Lezioni frontali","Via Piave, 125  presso  Iscom","MO","Modena",41121,"DD_4996_2019(1).pdf"]
["D000030","Campania","Ordine professionale","0003 - Ordine degli Ingegneri della Provincia di Napoli","0815522126","segreteria@ordineingegnerinapoli.net",null,"D000030 - La valutazione dell'impatto acustico e delle immissioni sonore - Caso di studio: locali pubblico spettacolo.",4,"25/09/2020","25/09/2020","E-Learning","Sala Baronale - Palazzo della Città - Corso V. Emanule","NA","Villaricca",80010,"DD 2020 080.pdf"]
["D000031","Campania","Ordine professionale","0003 - Ordine degli Ingegneri della Provincia di Napoli","0815522126","segreteria@ordineingegnerinapoli.net",null,"D000031 - Gestione e valutazione dell'inquinamento acustico derivante dallo svolgimento di attività temporanee relative a cantieri edili e manifestazioni in luogo pubblico.",4,"22/09/2020","22/09/2020","E-Learning","Ordine degli Ingegneri di Napoli - Piazza dei Martiri 58","NA","Napoli",80121,"DD 2020 081.pdf"]
["D000032","Campania","Ordine professionale","0003 - Ordine degli Ingegneri della Provincia di Napoli","0815522126","segreteria@ordineingegnerinapoli.net",null,"D000032 - Isolamento acustico in edilizia: aspetti teorici e riferimenti normativi.",4,"08/10/2020","08/10/2020","E-Learning","Ordine degli Ingegneri di Napoli - Piazza dei Martiri 58","NA","Napoli",80121,"DD 2020 081(1).pdf"]
["D000033","Campania","Ordine professionale","0003 - Ordine degli Ingegneri della Provincia di Napoli","0815522126","segreteria@ordineingegnerinapoli.net",null,"D000033 - Isolamento acustico in facciata.",4,"21/10/2020","21/10/2020","E-Learning","Ordine degli Ingegneri di Napoli - Piazza dei Martiri 58","NA","Napoli",80121,"DD 2020 081(2).pdf"]
["D000034","Campania","Ordine professionale","0003 - Ordine degli Ingegneri della Provincia di Napoli","0815522126","segreteria@ordineingegnerinapoli.net",null,"D000034 - Isolamento acustico tra ambienti adiacenti.",4,"10/11/2020","10/11/2020","E-Learning","Ordine degli Ingegneri di Napoli - Piazza dei Martiri 58","NA","Napoli",80121,"DD 2020 081(3).pdf"]
["D000035","Campania","Ordine professionale","0003 - Ordine degli Ingegneri della Provincia di Napoli","0815522126","segreteria@ordineingegnerinapoli.net",null,"D000035 - Isolamento acustico tra ambienti soprastanti.",4,"24/11/2020","24/11/2020","Lezioni frontali","Ordine degli Ingegneri di Napoli - Piazza dei Martiri 58","NA","Napoli",80121,"DD 2020 081(4).pdf"]
["D000036","Campania","Ordine professionale","0003 - Ordine degli Ingegneri della Provincia di Napoli","0815522126","segreteria@ordineingegnerinapoli.net",null,"D000036 - Valutazione del rischio rumore negli ambienti di lavoro.",4,"14/01/2021","14/01/2021","E-Learning","Ordine degli Ingegneri di Napoli - Piazza dei Martiri 58","NA","Napoli",80121,"DD 2020 081(5).pdf"]
[null,"Emilia Romagna","Soggetto idoneo alla formazione","Associazione Assform","0541 1796402","seg-corsi@assform.it","Semprini Mario Paolo","Aggiornamento Tecnico Competente in Acustica - La normale tollerabilità alla luce dei nuovi dispositivi di legge. Rif. P.A. 2012-11123/RER/1 - Edizione 5",8,"26/05/2020","27/05/2020","Lezioni frontali","Corso Giovanni XXIII, 131 [sede regia vdc]","RN","Rimini",47921,"DD_4996_2019(2).pdf"]
[null,"Lombardia","Soggetto idoneo alla formazione","THE ACS - SCUOLA ITALIANA DI ALTA FORMAZIONE S.R.L.","071-4604348","info@theacs.it",null,"LA VALUTAZIONE E LA MISURA DEL RUMORE IN AMBIENTE ESTERNO",12,"09/04/2020","16/04/2020","Lezioni frontali","C/O HOTEL LA FAVORITA - VIA S. COGNETTI DE MARTIIS, 1 - MANTOVA","MN","Mantova",46100,"riscontro comunicazione AGG60-unito(1).pdf"]
[null,"Lombardia","Soggetto idoneo alla formazione","THE ACS - SCUOLA ITALIANA DI ALTA FORMAZIONE S.R.L.","071-4604348","info@theacs.it",null,"LE VIBRAZIONI NEGLI AMBIENTI DI VITA E DI LAVORO",12,"27/07/2020","31/07/2020","Lezioni frontali, E-Learning","C/O HOTEL IMPERO - PIAZZA DELLA PACE, 21 - CREMONA","CR","Cremona",26100,"riscontro comunicazione AGG61-unito bis.pdf"]
[null,"Lombardia","Soggetto idoneo alla formazione","THE ACS - SCUOLA ITALIANA DI ALTA FORMAZIONE S.R.L.","071-4604348","info@theacs.it",null,"LA VALUTAZIONE DEI REQUISITI ACUSTICI PASSIVI CON LE NUOVE NORME UNI EN ISO 12354 - 2017",12,"19/06/2020","26/06/2020","Lezioni frontali, E-Learning","C/O STUDIO FORMAZIONE SRL - VIA FORO BOARIO, 18 - BRESCIA","BS","Brescia",25124,"riscontro comunicazione AGG62-unito.pdf"]
[null,"Lombardia","Soggetto idoneo alla formazione","THE ACS - SCUOLA ITALIANA DI ALTA FORMAZIONE S.R.L.","071-4604348","info@theacs.it",null,"LA VALUTAZIONE DEI REQUISITI ACUSTICI PASSIVI CON LE NUOVE NORME UNI EN ISO 12354 - 2017",12,"08/04/2020","15/04/2020","Lezioni frontali","C/O CONFARTIGIANATO IMPRESE VARESE - VIALE MILANO, 5 - VARESE","VA","Varese",21100,"riscontro comunicazione AGG63-unito(1).pdf"]
[null,"Valle D'Aosta","Soggetto idoneo alla formazione","The Acs Scuola Italiana di Alta Formazione Srl","0714604348","info@theacs.it","Dott. Chiarini Antonio","La valutazione e la misura del rumore in ambiente esterno",12,"07/04/2020","21/04/2020","Lezioni frontali","Loc. Autoporto,33","AO","Pollein",11100,"PD 809 - 2020 AUTORIZZAZIONE CORSO-convertito 1.pdf"]
[null,"Marche","Ordine professionale","Ordine degli Ingegneri della Provincia di Ascoli Piceno","0736 258143","segreteria@ordineingap.it","Segreteria","la progettazione dei requisiti acustici passivi secondo le norme UNI EN ISO 12354",12,"13/03/2020","27/03/2020","Lezioni frontali","c/o Comune di Monsampolo del Tronto \u0096 Sala Conferenze in Piazza Bachelet","AP","Monsampolo del Tronto",63077,"Dec. 52.2020 corso agg ord. Ingg. AP.pdf"]
[null,"Marche","Albo professionale","Ordine degli Ingegneri della Provincia di Ancona",3284120947,"segreteria@ordineingegneri.ancona.it","Segreteria","Le procedure amministrative in materia di acustica",10,"13/11/2020","04/12/2020","E-Learning","c/o Ordine degli Ingegneri, sito ad Ancona in Via Ing. Roberto Bianchi snc","AN","Ancona",60131,"Dec. 54.2020 Agg Ingg. AN.pdf"]
["D000037","Campania","Soggetto idoneo alla formazione","0006 - The ACS S.r.l. Scuola Italiana di Alta Formazione","071 460 4348","info@theacs.it",null,"D000037 - La valutazione e la misura del rumore in ambiente esterno",12,"04/05/2020","11/05/2020","Lezioni frontali","Hotel Europa - Caserta - Via Roma 19","CE","Caserta",81100,"DD 2020 095 aggCaserta.pdf"]
["D000038","Campania","Soggetto idoneo alla formazione","0006 - The ACS S.r.l. Scuola Italiana di Alta Formazione","071 460 4348","info@theacs.it",null,"D000038 - La valutazione e la misura del rumore in ambiente esterno",12,"18/09/2020","25/09/2020","Lezioni frontali","l\u0092Hotel Salerno \u0096 Lungomare Clemente Tafuri 1","SA","Salerno",84127,"DD 2020 096 PD 5315 aggSalerno.pdf"]
[null,"Marche","Collegio professionale","Collegio Provinciale Geometri e Geometri Laureati di Macerata","0733 264769","info@cgeometrimacerata.it","Segreteria","Novità in campo di progettazioni dei requisiti acustici passivi degli edifici",8,"25/11/2020","26/11/2020","E-Learning","Via Ancona 51 \u0096 Macerata (c/o sede del Collegio, sala Piermattei)","MC","Macerata",62100,"DD_VAA_agg_Acustica_Geom. MC_rettifica_55.2020_02.docx.pdf"]
[null,"Lombardia","Ordine professionale","CONSULTA REGIONALE LOMBARDA OAPPC","02-29002174","segreteria@consulta-al.it",null,"AGG67. ACCERTAMENTI FONOMETRICI E SCORPORO DI SORGENTI",6,"15/12/2020","15/12/2020","E-Learning","c/o Centro Pastorale Paolo VI - Via G. Calini, n. 30 Brescia","BS","Brescia",25125,"riscontro comunicazione AGG67-unito.pdf"]
[null,"Lombardia","Ordine professionale","CONSULTA REGIONALE LOMBARDA OAPPC","02-29002174","segreteria@consulta-al.it",null,"AGG68. ACCERTAMENTI FONOMETRICI E SCORPORO DI SORGENTI",6,"24/11/2020","24/11/2020","Lezioni frontali","c/o SEDE ANIT - VIA LANZONE, n.31 - 20123 MILANO","MI","Milano",20123,"riscontro comunicazione AGG68-2.pdf"]
[null,"Emilia Romagna","Soggetto idoneo alla formazione","THE ACS - SCUOLA ITALIANA DI ALTA FORMAZIONE SOCIETA' A R. L.","071 4604348","info@theacs.it","Antonio Chiarini","Corso di aggiornamento di 12 ore per tecnici competenti in acustica ambientale ai sensi D.Lgs 42/2017. Le vibrazioni negli ambienti di vita e di lavoro. MODENA  Rif. P.A. 2019-13399/RER/1",12,"26/03/2020","02/04/2020","Lezioni frontali","Via Solari, 27 Loreto (AN) [sede regia vdc]","MO","Modena",41100,"DD_4226_2020.pdf"]
[null,"Emilia Romagna","Soggetto idoneo alla formazione","ADDESTRA S.R.L.","0546 624965","lfiorini@addestra.it","FIORINI LORETTA","Corsi di aggiornamento dei tecnici competenti in acustica - Analisi legislativa e normativa del DPCM 05/12/1997: tutte le critiche e le osservazioni non pertinenti, non è vero che contiene errori! Rif. P.A. 2012-11008/RER/1 - Edizione 4",5,"10/04/2020","10/04/2020","Lezioni frontali","via Mengolina, 33 [sede regia vdc]","RA","Faenza",48018,"DD_3665_19(9).pdf"]
[null,"Lombardia","Soggetto idoneo alla formazione","TECO Milano","02-48958304","info@tecomilano.it",null,"CORSO DI AGGIORNAMENTO PER TECNICI COMPETENTI IN ACUSTICA",8,"15/04/2020","15/04/2020","Lezioni frontali","c/o ASSOACUSTICI - Corso Italia, 13 Saronno (VA)","VA","Saronno",21047,"riscontro comunicazione AGG70-unito.pdf"]
[null,"Lombardia","Soggetto idoneo alla formazione","TECO Milano","0248958304","info@tecomilano.it",null,"CORSO DI AGGIORNAMENTO PER TECNICI COMPETENTI IN ACUSTICA",8,"21/04/2020","21/04/2020","Lezioni frontali","c/o ASSOACUSTICI - Corso Italia, 13 Saronno (VA)","VA","Saronno",21047,"riscontro comunicazione AGG71-unito.pdf"]
[null,"Abruzzo","Soggetto idoneo alla formazione","Coprai Training S.r.l.","085412961","info@copraitraining.it","https://www.copraitraining.it/","La valutazione dei requisiti acustici passivi con le nuove norme UNI EN ISO 12354-2017",12,"10/03/2021","24/03/2021","E-Learning","Coprai Training \u0096 Via Federico Fellini, 2","PE","Spoltore",65010,"DPC025-091 del 02.04.20(1).pdf"]
[null,"Abruzzo","Soggetto idoneo alla formazione","Coprai Training S.r.l.","085412961","info@copraitraining.it","https://www.copraitraining.it/","Le vibrazioni negli ambienti di vita e di lavoro",12,"04/12/2020","18/12/2020","E-Learning","Ordine degli Ingegneri della provincia dell\u0092Aquila - Via Giuseppe Saragat n. 32","AQ","L'Aquila",67100,"Autorizzazione Cambio Date Coprai Training S.r.l. - Secondo Corso.pdf"]
[null,"Abruzzo","Soggetto idoneo alla formazione","Coprai Training S.r.l.","085412961","info@copraitraining.it","https://www.copraitraining.it/","La valutazione dei requisiti acustici passivi con le nuove norme UNI EN ISO 12354-2017",12,"29/06/2020","13/07/2020","Lezioni frontali","Università degli Studi di Teramo \u0096 Via R. Balzarini n. 1","TE","Teramo",64100,"DPC025-093 del 02.04.2020.pdf"]
[null,"Lombardia","Soggetto idoneo alla formazione","INFO PLANET S.R.L.","0382-472092","info@infoplanet.pv.it",null,"CORSO DI AGGIORNAMENTO PER TECNICI COMPETENTI IN ACUSTICA",12,"14/04/2020","16/04/2020","Lezioni frontali","Via Breventano, n. 26/B","PV","Pavia",27100,"riscontro comunicazione AGG72.pdf"]
[null,"Lombardia","Soggetto idoneo alla formazione","TICINO SOCIETA' DI SERVIZI SRL","0382-21095","ticinoservizi@pec.it",null,"CORSO DI AGGIORNAMENTO PER TECNICI COMPETENTI IN ACUSTICA",8,"23/05/2020","30/05/2020","Lezioni frontali","VIA VIGENTINA, N. 108/E - 27100 PAVIA","PV","Pavia",27100,"riscontro comunicazione AGG69.pdf"]
[null,"Lombardia","Soggetto idoneo alla formazione","TECO Milano","0248958304","info@tecomilano.it",null,"CORSO DI AGGIORNAMENTO PER TECNICI COMPETENTI IN ACUSTICA",8,"21/04/2020","22/04/2020","Lezioni frontali","c/o ASSOACUSTICI - Corso Italia, 13 Saronno (VA)","VA","Saronno",21047,"riscontro comunicazione AGG73.pdf"]
[null,"Emilia Romagna","Soggetto idoneo alla formazione","THE ACS - SCUOLA ITALIANA DI ALTA FORMAZIONE SOCIETA' A R. L.","071 4604348","info@theacs.it","Antonio Chiarini","Corso di aggiornamento di 12 ore per tecnici competenti in acustica ambientale ai sensi D.Lgs 42/2017. Le vibrazioni negli ambienti di vita e di lavoro. PIACENZA Rif. P.A. 2019-13399/RER/2",12,"17/04/2020","24/04/2020","Lezioni frontali","Via Solari, 27 Loreto (AN) [sede regia vdc]","PC","Piacenza",29100,"DD_4226_2020(1).pdf"]
[null,"Marche","Soggetto idoneo alla formazione","E-TRAIN SRL","071 4604348","info@e-train.it","Dott. Antonio Chiarini","Valutazione previsionale di impatto acustico",12,"21/04/2020","05/05/2020","E-Learning","Via Solari, 27","AN","Loreto",60025,"Dec. 229.2020.pdf"]
[null,"Marche","Soggetto idoneo alla formazione","E-TRAIN SRL","071 4604348","info@e-train.it","Dott. Antonio Chiarini","Le vibrazioni negli ambienti di vita e di lavoro",12,"29/04/2020","20/05/2020","E-Learning","Via Valle Piana, 80 - c/o Centro Agroalimentare Piceno","AP","San Benedetto del Tronto",63074,"DDPF 240_2020.pdf"]
[null,"Piemonte","Soggetto idoneo alla formazione","FORTE CHANCE PIEMONTE","0114379979","umberto.cadili@fortechance.it",null,"Il rumore dei cantieri: regolamentazione acustica, interventi di mitigazione e efficacia",4,"18/06/2020","18/06/2020","Lezioni frontali","Via Avellino 6","TO","Torino",10144,"DD A16 n 142 del 10-04-2020_bur.pdf"]
[null,"Piemonte","Ordine professionale","ORDINE DEGLI INGEGNERI DELLA PROVINCIA DI VERCELLI","0161213240","ordingvc@ordingvc.it",null,"Panoramica normativa e requisiti acustici passivi",8,"25/03/2021","01/04/2021","E-Learning","Via Duomo 31","VC","Vercelli",13100,"DD A16 n 142 del 10-04-2020_bur(1).pdf"]
[null,"Piemonte","Soggetto idoneo alla formazione","APITFORMA","011345003","segreteria@apitforma.it",null,"Progettazione acustica e adempimenti normativi",8,"15/06/2020","29/06/2020","E-Learning","Via Imperia 2 A","TO","Torino",10135,"DD A16 n 142 del 10-04-2020_bur(2).pdf"]
[null,"Piemonte","Soggetto idoneo alla formazione","ARPA PIEMONTE","01119680487","formazione@arpa.piemonte.it",null,"Il risanamento acustico delle attività produttive",18,"04/06/2020","18/06/2020","E-Learning","Via Pio VII 9","TO","Torino",10135,"DD A16 n 142 del 10-04-2020_bur(3).pdf"]
[null,"Emilia Romagna","Soggetto idoneo alla formazione","THE ACS - SCUOLA ITALIANA DI ALTA FORMAZIONE SOCIETA' A R. L.","0714604348","info@theacs.it","Antonio Chiarini","Corso di aggiornamento di 12 ore per tecnici competenti in acustica ambientale ai sensi D.Lgs 42/2017. Valutazione previsionale di impatto acustico. BOLOGNA Rif. P.A. 2019-13399/RER/4",12,"08/05/2020","15/05/2020","Lezioni frontali","Via Solari, 27 Loreto (AN) [sede regia vdc]","BO","Bologna",40100,"DD_4226_2020(2).pdf"]
[null,"Emilia Romagna","Soggetto idoneo alla formazione","THE ACS - SCUOLA ITALIANA DI ALTA FORMAZIONE SOCIETA' A R. L.","0714604348","info@theacs.it","Antonio Chiarini","Corso di aggiornamento di 12 ore per tecnici competenti in acustica ambientale ai sensi D.Lgs 42/2017. La valutazione dei requisiti acustici passivi con le nuove norme UNI EN ISO12354-2017. RAVENNA Rif. P.A. 2019-13399/RER/3",12,"05/06/2020","12/06/2020","Lezioni frontali","Via Solari, 27 Loreto (AN) [sede regia vdc]","RA","Ravenna",48100,"DD_4226_2020(3).pdf"]
[null,"Marche","Soggetto idoneo alla formazione","SERPILLI SRL","071 9945538","info@serpilli.com","ing. Serpilli / ing. Papini","Novità Legislative e procedure amministrative in acustica",10,"08/05/2020","15/05/2020","Lezioni frontali, E-Learning","Via Grandi 48b","AN","Ancona",60100,"DD 229 del 20 marzo 2020.docx.pdf"]
[null,"Lombardia","Soggetto idoneo alla formazione","TECO Milano","0248958304","info@tecomilano.it",null,"CORSO DI AGGIORNAMENTO PER TECNICI COMPETENTI IN ACUSTICA",8,"14/05/2020","15/05/2020","Lezioni frontali","c/o ASSOACUSTICI - Corso Italia, 13 Saronno (VA)","VA","Saronno",21047,"riscontro comunicazione AGG74.pdf"]
[null,"Puglia","Università","0004 - Dipartimento di Scienze dell\u0092Ingegneria e dell\u0092Architettura - (ICAR) del Politecnico di Bari in collaborazione con l\u0092Ordine degli Ingegneri della Provincia di Bari",null,null,null,"X000018 - Acustica Forense",10,"10/07/2020","17/07/2020","Lezioni frontali","via E. Orabona, 4","BA","Bari",70125,"Det-146-2020.pdf"]
[null,"Puglia","Università","0004 - Dipartimento di Scienze dell\u0092Ingegneria e dell\u0092Architettura - (ICAR) del Politecnico di Bari in collaborazione con l\u0092Ordine degli Ingegneri della Provincia di Bari",null,null,null,"X000019 - Pianificazione, risanamento e controllo emissioni acustiche",10,"12/02/2021","19/02/2021","Lezioni frontali","via E. Orabona, 4","BA","Bari",70125,"Det-146-2020(1).pdf"]
[null,"Puglia","Università","0004 - Dipartimento di Scienze dell\u0092Ingegneria e dell\u0092Architettura - (ICAR) del Politecnico di Bari in collaborazione con l\u0092Ordine degli Ingegneri della Provincia di Bari",null,null,null,"X000020 - Acustica Ambientale",10,"06/11/2020","18/12/2020","Lezioni frontali","via E. Orabona, 4","BA","Bari",70125,"Det-146-2020(2).pdf"]
[null,"Puglia","Università","0004 - Dipartimento di Scienze dell\u0092Ingegneria e dell\u0092Architettura - (ICAR) del Politecnico di Bari in collaborazione con l\u0092Ordine degli Ingegneri della Provincia di Bari",null,null,null,"X000021 - Acustica Edilizia",10,"04/12/2020","11/12/2020","Lezioni frontali","via E. Orabona, 4","BA","Bari",70125,"Det-146-2020(3).pdf"]
[null,"Puglia","Università","0004 - Dipartimento di Scienze dell\u0092Ingegneria e dell\u0092Architettura - (ICAR) del Politecnico di Bari in collaborazione con l\u0092Ordine degli Ingegneri della Provincia di Bari",null,null,null,"X000022 - Acustica Ambientale",10,"15/09/2020","18/09/2020","Lezioni frontali","Corso Trieste n.27","BA","Bari",70126,"Det-146-2020(4).pdf"]
[null,"Puglia","Università","0004 - Dipartimento di Scienze dell\u0092Ingegneria e dell\u0092Architettura - (ICAR) del Politecnico di Bari in collaborazione con l\u0092Ordine degli Ingegneri della Provincia di Bari",null,null,null,"X000023 - Acustica Edilizia",5,"19/11/2020","19/11/2020","Lezioni frontali","via E. Orabona, 4","BA","Bari",70125,"Det-146-2020(5).pdf"]
["D000039","Campania","Soggetto idoneo alla formazione","0007 - Join Academy & Consulting Soc. Coop. a r.l.","08119319567","joinacademy@gmail.com",null,"D000039 - REVOCATO - La valutazione di impatto acustico per le attività di pubblico spettacolo e temporanee.",6,"08/07/2020","08/07/2020","Lezioni frontali","via Variante Nazionale delle Puglie 112","NA","Casalnuovo di Napoli",80013,"DD 2020 05 05 n. 210 JoinAcademy 12 CorsiAgg.pdf"]
["D000040","Campania","Soggetto idoneo alla formazione","0007 - Join Academy & Consulting Soc. Coop. a r.l.","08119319567","joinacademy@gmail.com",null,"D000040 - REVOCATO - Analisi di casi di valutazione di impatto acustico per le attività di pubblico spettacolo e temporanee",6,"16/09/2020","16/09/2020","Lezioni frontali","via Variante Nazionale delle Puglie 112","NA","Casalnuovo di Napoli",80013,"DD 2020 05 05 n. 210 JoinAcademy 12 CorsiAgg(1).pdf"]
["D000041","Campania","Soggetto idoneo alla formazione","0007 - Join Academy & Consulting Soc. Coop. a r.l.","08119319567","joinacademy@gmail.com",null,"D000041 - ANNULLATO - Focus sui modelli di previsione acustica: strumenti e metodi per la mappatura acustica del territorio.",6,"11/12/2020","11/12/2020","Lezioni frontali","via Variante Nazionale delle Puglie 112","NA","Casalnuovo di Napoli",80013,"DD 2020 05 05 n. 210 JoinAcademy 12 CorsiAgg(2).pdf"]
["D000042","Campania","Soggetto idoneo alla formazione","0007 - Join Academy & Consulting Soc. Coop. a r.l.","08119319567","joinacademy@gmail.com",null,"D000042 - ANNULLATO - La progettazione delle prestazioni acustiche degli elementi edilizi.",6,"18/12/2020","18/12/2020","Lezioni frontali","via Variante Nazionale delle Puglie 112","NA","Casalnuovo di Napoli",80013,"DD 2020 05 05 n. 210 JoinAcademy 12 CorsiAgg(3).pdf"]
["D000043","Campania","Soggetto idoneo alla formazione","0007 - Join Academy & Consulting Soc. Coop. a r.l.","08119319567","joinacademy@gmail.com",null,"D000043 - Analisi di applicazioni di strumenti e metodi per la mappatura acustica del territorio.",6,"11/02/2021","11/02/2021","Lezioni frontali","via Variante Nazionale delle Puglie 112","NA","Casalnuovo di Napoli",80013,"DD 2020 05 05 n. 210 JoinAcademy 12 CorsiAgg(4).pdf"]
["D000044","Campania","Soggetto idoneo alla formazione","0007 - Join Academy & Consulting Soc. Coop. a r.l.","08119319567","joinacademy@gmail.com",null,"D000044 - REVOCATO - La verifica in opera delle prestazioni acustiche degli elementi edilizi",6,"12/05/2021","12/05/2021","Lezioni frontali","via Variante Nazionale delle Puglie 112","NA","Casalnuovo di Napoli",80013,"DD 2020 05 05 n. 210 JoinAcademy 12 CorsiAgg(5).pdf"]
["D000045","Campania","Soggetto idoneo alla formazione","0007 - Join Academy & Consulting Soc. Coop. a r.l.","08119319567","joinacademy@gmail.com",null,"D000045 - REVOCATO - L'integrazione acustica nell'applicazione dei protocolli LEED e CASACLIMA.",6,"15/09/2021","15/09/2021","Lezioni frontali","via Variante Nazionale delle Puglie 112","NA","Casalnuovo di Napoli",80013,"DD 2020 05 05 n. 210 JoinAcademy 12 CorsiAgg(6).pdf"]
["D000046","Campania","Soggetto idoneo alla formazione","0007 - Join Academy & Consulting Soc. Coop. a r.l.","08119319567","joinacademy@gmail.com",null,"D000046 - REVOCATO- I parametri acustici nei criteri ambientali minimi (CAM) di cui al D.M. 11/01/2017.",6,"10/11/2021","10/11/2021","Lezioni frontali","via Variante Nazionale delle Puglie 112","NA","Casalnuovo di Napoli",80013,"DD 2020 05 05 n. 210 JoinAcademy 12 CorsiAgg(7).pdf"]
["D000047","Campania","Soggetto idoneo alla formazione","0007 - Join Academy & Consulting Soc. Coop. a r.l.","08119319567","joinacademy@gmail.com",null,"D000047 - REVOCATO - Il contenzioso in acustica.",6,"02/02/2022","02/02/2022","Lezioni frontali","via Variante Nazionale delle Puglie 112","NA","Casalnuovo di Napoli",80013,"DD 2020 05 05 n. 210 JoinAcademy 12 CorsiAgg(8).pdf"]
["D000048","Campania","Soggetto idoneo alla formazione","0007 - Join Academy & Consulting Soc. Coop. a r.l.","08119319567","joinacademy@gmail.com",null,"D000048 - REVOCATO - La normativa nazionale in materia di inquinamento acustico: le novità legislative e giurisprudenziali.",6,"11/05/2022","11/05/2022","Lezioni frontali","via Variante Nazionale delle Puglie 112","NA","Casalnuovo di Napoli",80013,"DD 2020 05 05 n. 210 JoinAcademy 12 CorsiAgg(9).pdf"]
["D000049","Campania","Soggetto idoneo alla formazione","0007 - Join Academy & Consulting Soc. Coop. a r.l.","08119319567","joinacademy@gmail.com",null,"D000049 - REVOCATO - La valutazione e la verifica dei descrittori del confort acustico degli ambienti.",6,"14/09/2022","14/09/2022","Lezioni frontali","via Variante Nazionale delle Puglie 112","NA","Casalnuovo di Napoli",80013,"DD 2020 05 05 n. 210 JoinAcademy 12 CorsiAgg(10).pdf"]
["D000050","Campania","Soggetto idoneo alla formazione","0007 - Join Academy & Consulting Soc. Coop. a r.l.","08119319567","joinacademy@gmail.com",null,"D000050 - REVOCATO - La valutazione del rischio rumore nei luoghi di lavoro.",6,"09/11/2022","09/11/2022","Lezioni frontali","via Variante Nazionale delle Puglie 112","NA","Casalnuovo di Napoli",80013,"DD 2020 05 05 n. 210 JoinAcademy 12 CorsiAgg(11).pdf"]
[null,"Emilia Romagna","Soggetto idoneo alla formazione","THE ACS - SCUOLA ITALIANA DI ALTA FORMAZIONE SOCIETA' A R. L.","0714604348","info@theacs.it","Antonio Chiarini","Corso di aggiornamento di 12 ore per tecnici competenti in acustica ambientale ai sensi D.Lgs 42/2017. Valutazione previsionale di impatto acustico. BOLOGNA Rif. P.A. 2019-13399/RER/4 Ed. 2",12,"15/05/2020","22/05/2020","Lezioni frontali","Via Solari, 27 Loreto (AN) [sede regia vdc]","BO","Bologna",40100,"DD_4226_2020(4).pdf"]
[null,"Lombardia","Soggetto idoneo alla formazione","AIAS ACADEMY S.R.L.","02-94368642","aiasacademy@pec.it",null,"ACUSTICA NEI LUOGHI DI LAVORO",8,"09/06/2020","10/06/2020","Lezioni frontali, E-Learning","VIA G. FARA, N.35 - MILANO","MI","Milano",20124,"riscontro comunicazione AGG75-unito.pdf"]
[null,"Umbria","Soggetto idoneo alla formazione","ARIS Formazione e Ricerca Società Cooperativa","075 5848056","aris@arisformazione.it","ARIS Strada S. Lucia 8 -  06125 Perugia (PG)","La valutazione di impatto acustico utilizzando la metodologia della norma UNI 12354-4",5,"25/05/2020","25/05/2020","E-Learning","Strada S.Lucia 8","PG","Perugia","06125","DD n 3966 del 12_05_2020.pdf"]
[null,"Marche","Soggetto idoneo alla formazione","E-TRAIN SRL","071 4604348","info@e-train.it","Dott. Antonio Chiarini","Incertezza di misura in acustica applicata",8,"10/07/2020","17/07/2020","E-Learning","Via Solari, 27","AN","Loreto",60025,"DDPF 247_2020.pdf"]
[null,"Veneto","Soggetto idoneo alla formazione","ISRE QAS","041995202","amministrazione@qasc.it","QAS Consulting Soc. Coop.\nSpinea (VE)","Esercitazioni per una corretta elaborazione della documentazione di impatto acustico. Il ruolo del tecnico competente in acustica e le richieste della amministrazione pubblica.",6,"15/06/2020","15/06/2020","Lezioni frontali, E-Learning","Via Sanremo,36","VE","Spinea",30038,"APPROVAZIONE ISRE QAS PROT N. 43506 MAGGIO 2020.pdf"]
[null,"Emilia Romagna","Soggetto idoneo alla formazione","Associazione Assform","0541 1796402","seg-corsi@assform.it","Semprini Mario Paolo","Aggiornamento Tecnico Competente in Acustica. La normale tollerabilità alla luce dei nuovi dispositivi di legge. Rif. P.A. 2012-11123/RER/1 - Edizione 6",8,"03/06/2020","04/06/2020","Lezioni frontali","Corso Giovanni XXIII, 131  [sede regia vdc]","RN","Rimini",47921,"DD_4996_2019(3).pdf"]
[null,"Marche","Soggetto idoneo alla formazione","E-TRAIN SRL","071 4604348","info@e-train.it","Dott. Antonio Chiarini","Incertezza di misura in acustica applicata",8,"29/05/2020","05/06/2020","E-Learning","Via Solari, 27","AN","Loreto",60025,"ALLEGATO A DDPF 247_20.pdf"]
[null,"Lombardia","Soggetto idoneo alla formazione","TECO Milano S.r.l.","0248958304","info@tecomilano.it",null,"CORSO DI AGGIORNAMENTO PER TECNICI COMPETENTI IN ACUSTICA",8,"17/06/2020","18/06/2020","Lezioni frontali, E-Learning","c/o ASSOACUSTICI - Corso Italia, 13 Saronno (VA)","VA","Saronno",21047,"riscontro comunicazione AGG76.pdf"]
[null,"Umbria","Ordine professionale","Ordine degli Ingegneri della Provincia di Terni","0744 403284","segreteria@ordingtr.it","Ordine degli Ingegneri della Provincia di Terni Piazza Ridolfi 4/7 - 05100 Terni","Disposizioni normative ed applicazioni pratiche nell'acustica ambientale",12,"19/06/2020","03/07/2020","E-Learning","Piazza M. Ridolfi n. 4/7","TR","Terni","05100","D.D. 4383 25 mag 2020 Ord.Ing TR.pdf"]
[null,"Lombardia","Ordine professionale","CONSULTA REGIONALE LOMBARDA OAPPC","02-29002174","segreteria@consulta-al.it",null,"ACUSTICA PER INTERNI: COMFORT DEGLI AMBIENTI CHIUSI, TEMPO DI RIVERBERO E STI",6,"17/06/2020","18/06/2020","E-Learning","c/o ANIT - Via Lanzone, n. 31 20123 Milano","MI","Milano",20123,"riscontro comunicazione AGG77.pdf"]
[null,"Lombardia","Ordine professionale","CONSULTA REGIONALE LOMBARDA OAPPC","0229002174","segreteria@consulta-al.it",null,"ACUSTICA PER INTERNI: COMFORT DEGLI AMBIENTI CHIUSI, TEMPO DI RIVERBERO E STI",6,"30/06/2020","01/07/2020","E-Learning","c/o ANIT - Via Lanzone, n. 31 20123 Milano","MI","Milano",20123,"riscontro comunicazione AGG78.pdf"]
[null,"Lombardia","Ente di ricerca","ARPA LOMBARDIA","02-696661","arpa@pec.regione.lombardia.it",null,"CORSO DI AGGIORNAMENTO PER TECNICI COMPETENTI IN ACUSTICA",6,"25/06/2020","25/06/2020","E-Learning","Via Rosellini, n. 17 20124 Milano","MI","Milano",20124,"riscontro comunicazione AGG79.pdf"]
[null,"Lombardia","Ente di ricerca","ARPA LOMBARDIA","02696661","arpa@pec.regione.lombardia.it",null,"CORSO DI AGGIORNAMENTO PER TECNICI COMPETENTI IN ACUSTICA",6,"10/09/2020","10/09/2020","E-Learning","Via Rosellini, n. 17 20124 Milano","MI","Milano",20124,"riscontro comunicazione AGG80.pdf"]
[null,"Friuli Venezia Giulia","Soggetto idoneo alla formazione","THE ACS S.r.l.","071 4604348","theacs@pec.it","071 4604348\ntheacs@pec.it","AGG007. La valutazione di impatto e clima acustico",12,"26/06/2020","03/07/2020","E-Learning","web conference GO TO MEETING","TS","Trieste",34100,"INACCRS8.PDF"]
[null,"Emilia Romagna","Soggetto idoneo alla formazione","ADDESTRA S.R.L.","0546624965","lfiorini@addestra.it","FIORINI LORETTA","La Direttiva Rumore 2005/88/CE come aggiornamento della Direttiva 2000/14/CE. Rif. P.A. 2012-11008/RER/1 - Edizione 5",5,"11/06/2020","11/06/2020","Lezioni frontali","via Mengolina, 33 [sede regia vdc]","RA","Faenza",48018,"DD_3665_19(10).pdf"]
[null,"Lombardia","Ordine professionale","CONSULTA REGIONALE LOMBARDA OAPPC","0229002174","segreteria@consulta-al.it",null,"INCERTEZZA DI MISURA E DI CALCOLO IN ACUSTICA EDILIZIA",6,"24/06/2020","25/06/2020","Lezioni frontali, E-Learning","c/o ANIT - Via Lanzone, n. 31 20123 Milano","MI","Milano",20123,"riscontro comunicazione AGG81.pdf"]
[null,"Lombardia","Ordine professionale","CONSULTA REGIONALE LOMBARDA OAPPC","0229002174","segreteria@consulta-al.it",null,"IL CONTROLLO DELLE VIBRAZIONI NEGLI EDIFICI E NEI LORO IMPIANTI.",8,"21/09/2020","28/09/2020","Lezioni frontali, E-Learning","c/o ANIT - Via Lanzone, n. 31 20123 Milano","MI","Milano",20123,"riscontro comunicazione AGG82-unito.pdf"]
[null,"Lazio","Soggetto idoneo alla formazione","SIPAR Srl","0775/242026","info@siparsrl.com","DOCENTI;\nNataletti Pietro\nAnnesi Diego","SIPAR Srl - Riscontro alla vostra richiesta acquisita al protocollo regionale con n. 2020_466249. Corso di aggiornamento professionale autorizzato con determinazione regionale n. G02579 del 06/03/2020. Attivazione FAD per lezioni teoriche interrotte a seg",10,"08/07/2020","09/07/2020","E-Learning","Via Casilina Sud, 132/c","FR","Ferentino","03013","SIPAR Srl Nulla Osta.2020.0505372.pdf"]
[null,"Lazio","Ordine professionale","Ordine degli Ingegneri della Provincia di Roma","06/4879311","protocollo@ording.roma.it","DOCENTI:\nIng. Martino Greco\nDott. Diego Annesi","Riscontro alla vostra richiesta acquisita al protocollo regionale con n. 2020_484733. Corso di aggiornamento professionale autorizzato con determinazione regionale n. G01911 del 25/02/2020. Attivazione FAD per lezioni teoriche interrotte a seguito dell\u0092em",10,"23/06/2020","25/06/2020","E-Learning","Piazza della Repubblica, 59","RM","Roma","00185","Nulla Osta Ordine Ingegneri Roma.2020.0505301.pdf"]
[null,"Lombardia","Ordine professionale","ORDINE DEGLI INGEGNERI DELLA PROVINCIA DI COMO","031-269810","formazione@ordingcomo.org",null,"INCERTEZZA DI MISURA E DI CALCOLO IN ACUSTICA EDILIZIA",6,"15/07/2020","15/07/2020","Lezioni frontali, E-Learning","VIA VOLTA, N. 62 COMO","CO","Como",22100,"riscontro comunicazione AGG83-unitobis.pdf"]
[null,"Lombardia","Ordine professionale","ORDINE DEGLI INGEGNERI DELLA PROVINCIA DI COMO","031269810","formazione@ordingcomo.org",null,"IL CONTROLLO DELLE VIBRAZIONI NEGLI EDIFICI E NEI LORO IMPIANTI. NORMATIVA DI RIFERIMENTO E TECNICHE DI MISURA IN OPERA.",8,"20/07/2020","27/07/2020","Lezioni frontali, E-Learning","VIA VOLTA, N. 62 COMO","CO","Como",22100,"riscontro comunicazione AGG84.pdf"]
[null,"Umbria","Soggetto idoneo alla formazione","ARIS formazione e ricerca Società Cooperativa","075 5848056","aris@arisformazione.it","Aris formazione e ricerca società cooperativa  - Strada S. Lucia n. 8 Perugia","Autorizzazione in deroga per le attività temporanee - manifestazioni pubbliche - Valutazione di impatto acustico previsionale secondo la metodologia prevista dalla norma UNI 12354- 4 del 2017 e propagazione sonora di rumore ferroviario, stradale ed eolico",12,"22/06/2020","24/06/2020","E-Learning","Strada S. Lucia 8","PG","Perugia","06125","DETERMINA ARIS spostamento date.0].pdf"]
[null,"Lombardia","Soggetto idoneo alla formazione","TECO Milano","0248958304","info@tecomilano.it",null,"LA MODELLIZZAZIONE DEL RUMORE DELLE INFRASTRUTTURE LINEARI DI TRASPORTO",8,"22/06/2020","23/06/2020","Lezioni frontali, E-Learning","c/o ASSOACUSTICI - Corso Italia, 13 Saronno (VA)","VA","Saronno",21047,"riscontro comunicazione AGG85.pdf"]
[null,"Lazio","Soggetto idoneo alla formazione","CRESCO Formazione e Consulenza Srl","0776/1815115","lisa.lombardozzi@crescosrl.net","Direttore Didattico\nDott. Antonio Accettola","Autorizzazione per lo svolgimento del corso di aggiornamento professionale per TCA, programmato e gestito dalla CRESCO Formazione e Consulenza Srl - Seconda Edizione, anno 2020, due sessioni, 21 e 23 luglio 2020 \u0096 8 ore formazione in modalità FAD",8,"21/07/2020","23/07/2020","E-Learning","Via Tofaro, 42","FR","Sora","03039","G06906_2020.CRESCO.pdf"]
[null,"Basilicata","Soggetto idoneo alla formazione","Cerpes sas di Cerpes srl & C.","0835/259609",null,"formazione@pec.cerpes.it","Il rumore ambientale: normative e approfondimento sulla valutazione del rumore eolico",5,"28/05/2021","28/05/2021","Lezioni frontali","V.le Italia, 4","MT","Matera",75100,"D.D. n. 543 dell'8 giugno 2020.pdf"]
[null,"Lombardia","Soggetto idoneo alla formazione","APAVE ITALIA CPM S.R.L.","0364-300342","info@pec.cpmapave.it",null,"CORSO DI AGGIORNAMENTO PER TECNICI COMPETENTI IN ACUSTICA",4,"17/07/2020","17/07/2020","Lezioni frontali, E-Learning","Via Artigiani, n. 63 - Bienno (BS)","BS","Bienno",25040,"riscontro comunicazione AGG86.pdf"]
[null,"Emilia Romagna","Soggetto idoneo alla formazione","Associazione Assform","05411796402","seg-corsi@assform.it","Semprini Mario Paolo","Aggiornamento Tecnico Competente in Acustica. L'acustica nei luoghi di intrattenimento, di pubblico spettacolo e nei pubblici esercizi. Rif. P.A. 2019-14233/RER/1 - Edizione 1",8,"24/06/2020","25/06/2020","Lezioni frontali","Corso Giovanni XXIII, 131  [sede regia vdc]","RN","Rimini",47921,"DD_10169_2020.pdf"]
[null,"Emilia Romagna","Soggetto idoneo alla formazione","Associazione Assform","05411796402","seg-corsi@assform.it","Semprini Mario Paolo","Aggiornamento Tecnico Competente in Acustica. La classificazione acustica degli edifici. Rif.P.A. 2019-14362/RER/1 - Edizione 1",8,"30/06/2020","01/07/2020","Lezioni frontali","Corso Giovanni XXIII, 131  [sede regia vdc]","RN","Rimini",47921,"DD_10169_2020(1).pdf"]
[null,"Emilia Romagna","Soggetto idoneo alla formazione","Associazione Assform","05411796402","seg-corsi@assform.it","Semprini Mario Paolo","Aggiornamento Tecnico Competente in Acustica. L'uso di strumenti evoluti per l'analisi della qualità acustica di ambienti interni. Rif. P.A. 2019-14558/RER/1 - Edizione 1",8,"21/09/2020","22/09/2020","Lezioni frontali","Corso Giovanni XXIII, 131  [sede regia vdc]","RN","Rimini",47921,"DD_15009_2020.pdf"]
[null,"Emilia Romagna","Soggetto idoneo alla formazione","Associazione Assform","05411796402","seg-corsi@assform.it","Semprini Mario Paolo","Aggiornamento Tecnico Competente in Acustica: La normale tollerabilità alla luce dei nuovi dispositivi di legge. Rif. P.A. 2019-14557/RER/1 - Edizione 1",8,"29/09/2020","30/09/2020","Lezioni frontali","Corso Giovanni XXIII, 131  [sede regia vdc]","RN","Rimini",47921,"DD_15009_2020(1).pdf"]
[null,"Liguria","Soggetto idoneo alla formazione","THE ACS SRL","0714604349","info@theacs.it","Erogazione in Videoconferenza \ncausa stato di emergenza sanitaria da Covid-19.","Il rumore in ambiente di lavoro: valutazione del rischio e piano aziendale di riduzione dell\u0092esposizione al rumore",12,"15/07/2020","30/07/2020","E-Learning","Hotel Poggio - Via di Francia, 24\u0093NH Hotel\u0094 in Via XX Settembre, 2","SP","La Spezia",19124,"DecretoDirigenziale_3543_2020.pdf"]
[null,"Abruzzo","Soggetto idoneo alla formazione","Fondazione Architetti, Chieti-Pescara","085/693726","fondazione@architettichpe.it","Arch. Maria Cicchitti","TECNICO COMPETENTE IN ACUSTICA EDILIZIA-ARCHITETTONICA: ATTIVITÀ PRODUTTIVE E PUBBLICI ESERCIZI",8,"20/07/2020","27/07/2020","E-Learning","Piazza Garibaldi, n.42","PE","Pescara",65127,"DPC025-150 del 18.06.2020.pdf"]
[null,"Marche","Ordine professionale","Ordine degli ingegneri della Provincia di Ascoli Piceno","0736 258143","segreteria@ordineingap.it","segreteria Ordine","la progettazione dei requisiti acustici passivi secondo le norme UNI EN ISO 12354",12,"13/07/2020","20/07/2020","E-Learning","Via Piceno Aprutina n. 47","AP","Ascoli Piceno",63100,"DD_VAA_104 del 16.06.2020_agg_Acustica_Ingg  AP.docx.pdf"]
[null,"Liguria","Ordine professionale","Ordine degli Ingegneri della provincia di Savona","019-822678","ingegneri.savona@ordineingegnerisavona.it",null,"Incertezza di misura e di calcolo in acustica edilizia \u0096 Modelli di calcolo, valutazioni, implicazioni",6,"30/10/2020","30/10/2020","Lezioni frontali, E-Learning","Corso Italia 8/11","SV","Savona",17100,"DecretoDirigenziale_3544_2020.pdf"]
[null,"Veneto","Ordine professionale","Ordine degli Ingegneri di Padova e Provincia",3938926845,"fondazioneingpd@pec.it","Massimo Coccato","Semplificazione della documentazione di impatto acustico. Il ruolo del tecnico competente tra le esigenze del committente e le regole previste dall'ente di controllo",6,"10/09/2020","11/09/2020","Lezioni frontali, Blended - Learning, E-Learning","Piazza Salvemini 2","PD","Padova",35100,"RICONOSCIMENTO ING PD PROT. 53665 22 GIUGNO 2020.pdf"]
[null,"Lombardia","Soggetto idoneo alla formazione","TECO Milano","0248958304","info@tecomilano.it",null,"RISANAMENTO ACUSTICO DI INSEDIAMENTI INDUSTRIALI",4,"10/07/2020","10/07/2020","Lezioni frontali, E-Learning","c/o ASSOACUSTICI - Corso Italia, 13 Saronno (VA)","VA","Saronno",21047,"riscontro comunicazione AGG87.pdf"]
[null,"Lombardia","Soggetto idoneo alla formazione","AIAS ACADEMY S.R.L.","0294368642","aiasacademy@pec.it",null,"ACUSTICA NEI LUOGHI DI LAVORO",8,"21/07/2020","22/07/2020","Lezioni frontali, E-Learning","VIA FARA, 35 - MILANO","MI","Milano",20124,"riscontro comunicazione AGG88.pdf"]
[null,"Lazio","Ordine professionale","Ordine degli Architetti, Pianificatori, Paesaggisti e Conservatori di Roma e Provincia","0697604508-0697604560","presidenza@architettiroma.it","Direttore Didattico:\nArch. Andrea Zingarini","Autorizzazione per lo svolgimento del corso di aggiornamento profess. per TCA, programmato e gestito dall\u0092Ordine degli Architetti, Pianificatori, Paesaggisti e Conservatori di Roma e Provincia - 1° Edizione 2020, 21 e 27 luglio 2020\u0096modalità FAD",8,"20/10/2020","27/10/2020","E-Learning","Piazza Manfredo Fanti, 47","RM","Roma","00185","G07289_21_06_2020_9444_ordine architetti.pdf"]
[null,"Lombardia","Ordine professionale","ORDINE DEGLI INGEGNERI DELLA PROVINCIA DI LECCO",null,"segreteria@ordinglc.it",null,"AGG89. La qualità acustica interna -UNI11532 - i casi degli uffici e dei ristoranti",5,"16/09/2020","16/09/2020","Lezioni frontali, E-Learning","VIA ACHILLE GRANDI N. 9, 23900 LECCO (LC)","LC","Lecco",23900,"T1.2020.0028944_riscontro AGG89.pdf"]
[null,"Piemonte","Soggetto idoneo alla formazione","SKILLAB S.r.l.","0115718500","amministrazione@skillab.it",null,"Rumore e Vibrazioni negli ambieni di lavoro, Acustica Forense e progettazione Acustica",8,"17/12/2020","17/12/2020","Lezioni frontali","Corso Stati Uniti 38","TO","Torino",10122,"DD 319_A1602B_2020 del  09-07-2020_BU.pdf"]
[null,"Piemonte","Ordine professionale","FOIT Fondazione dell'Ordine degli Ingegneri della Provincia di Torino","0115186908","segreteria@foit.it",null,"Acustica degli Uffici",4,"23/10/2020","23/10/2020","E-Learning","Via Giovanni Giolitti 1","TO","Torino",10123,"DD 319_A1602B_2020 del  09-07-2020_BU(1).pdf"]
[null,"Piemonte","Soggetto idoneo alla formazione","Associazione ASSO.FORMA","0141275914","info@assoforma.net",null,"La consulenza Tecnica nei Procedimenti Giudiziari ex art. 844 cc",6,"30/10/2020","30/10/2020","E-Learning","Via Giovanni Borello 1/A","AT","Asti",14100,"DD 319_A1602B_2020 del  09-07-2020_BU(2).pdf"]
[null,"Piemonte","Ordine professionale","ORDINE PERITI INDUSTRIALI DELLA PROVINCIA DI CUNEO","0171697102","info@peritiindustrialicuneo.it",null,"Acustica Edilizia ed Architettonica degli Ambienti Confinati",4,"23/10/2020","23/10/2020","E-Learning","Corso IV Novembre 8","CN","Cuneo",12100,"DD 319_A1602B_2020 del  09-07-2020_BU(3).pdf"]
[null,"Lombardia","Soggetto idoneo alla formazione","E-TRAIN SRL",null,null,null,"AGG90. Il rumore nei cantieri: igiene del lavoro e controllo dell\u0092impatto acustico",12,"18/09/2020","09/10/2020","Lezioni frontali","Bloom Group \u0096 Via Valtorta, 44 \u0096 Milano","MI","Milano",20136,"T1.2020.0031408-unito.pdf"]
[null,"Veneto","Ordine professionale","Ordine degli ingegneri di Padova e Provincia",3938926845,"fip@fondazioneingegneripadova.it","Ordine degli Ingegneri di Padova e Provincia","Acustica Forense: Ambiti e principali aspetti normativi",6,"30/07/2020","30/07/2020","Blended - Learning, E-Learning","Viale dell'Artiginato, 24/2","PD","Cittadella",35013,"Acustica Forense Ing Padova Prot. n. 66449 del 30.07.2020.pdf"]
[null,"Veneto","Ordine professionale","Ordine degli ingegneri di Padova e Provincia",3938926845,"fip@fondazioneingegneripadova.it","Ordine degli Ingegneri di Padova e Provincia","Errori nelle misure acustiche",6,"30/07/2020","30/07/2020","Blended - Learning, E-Learning","Viale dell'Artiginato, 24/2","PD","Padova",35100,"Errori nelle misure acustiche Ing Padova Prot. n. 66445  del 30.07.2020.pdf"]
[null,"Veneto","Ordine professionale","Ordine degli ingegneri di Padova e Provincia",3938926845,"fip@fondazioneingegneripadova.it","Ordine degli ingegneri di Padova e Provincia","Valutazione e Verifica dei descrittori del confort acustico degli ambienti",6,"06/10/2020","06/10/2020","Lezioni frontali, Blended - Learning, E-Learning","Viale dell'Artiginato, 24/2","PD","Cittadella",35013,"Valutazione e Verifica dei descrittori del confort acustico degli ambienti Ing Padova Prot. n. 66433 del 30.07.2020.pdf"]
[null,"Veneto","Soggetto idoneo alla formazione","Centro di Formazione STS Srl","0498809842","info@centrodiformazionests.it","Centro di Formazione STS Srl","Esperienze e applicazioni nell'ambito della documentazione di impatto acustico",6,"13/11/2020","13/11/2020","Lezioni frontali, Blended - Learning, E-Learning","Via Romana Aponense","PD","Padova",35142,"Esperienze e Applicazioni nell'ambito della documentazione di impatto acustico STS Prot. 66455 del 30.07.2020.pdf"]
[null,"Veneto","Soggetto idoneo alla formazione","Centro di Formazione STS Srl","0498809842","info@centrodiformazionests.it","Centro di Formazione STS Srl","I Modelli di calcolo previsionali e le loro applicazioni per l'acustica ambientale",6,"16/10/2020","16/10/2020","Lezioni frontali, Blended - Learning, E-Learning","Via Romana Aponense","PD","Padova",35142,"I modelli di calcolo previsionali e le loro applicazioni per l'acustica ambientale STS Prot. 66458 del 30.07.2020.pdf"]
[null,"Emilia Romagna","Soggetto idoneo alla formazione","Associazione Assform","0541 1796402","seg-corsi@assform.it","Semprini Mario Paolo","Aggiornamento Tecnico Competente in Acustica: Gli errori nelle misure di rumore e di vibrazione. Rif. P.A. 2019-14559/RER/1 - Edizione 1",5,"21/10/2020","21/10/2020","Lezioni frontali","Corso Giovanni XXIII, 131 [sede regia vdc]","RN","Rimini",47921,"DD_15009_2020(2).pdf"]
[null,"Emilia Romagna","Soggetto idoneo alla formazione","Change srl","059 333024","C.CAPUTI@CHANGESRL.IT","CARMEN CAPUTI","Annullato - CORSO DI AGGIORNAMENTO PER TECNICO COMPETENTE IN ACUSTICA. Approfondimento sulla progettazione dell\u0092isolamento acustico. Rif. P.A. 2012-11340/RER/1",4,"22/09/2020","25/09/2020","Lezioni frontali","Via O. Respighi, 83 [sede regia vdc]","MO","Modena",41122,"DD_7721_2019(6).pdf"]
[null,"Emilia Romagna","Soggetto idoneo alla formazione","Change srl","059 333024","C.CAPUTI@CHANGESRL.IT","CARMEN CAPUTI","Annullato - CORSO DI AGGIORNAMENTO PER TECNICO COMPETENTE IN ACUSTICA. La progettazione dei requisiti acustici passivi degli edifici in legno. Rif. P.A. 2012-11340/RER/1",4,"29/09/2020","02/10/2020","Lezioni frontali","Via O. Respighi, 83 [sede regia vdc]","MO","Modena",41122,"DD_7721_2019(7).pdf"]
[null,"Puglia","Soggetto idoneo alla formazione","0001 - SON TRAINING SRLS",null,null,null,"X000024 - Misurazioni di vibrazioni indotte da infrastrutture e attività di cantiere",5,"07/07/2020","07/07/2020","E-Learning","via Tiratore n. 24 - 83042 Atripalda (AV)","BA","Bari",70126,"Det_203_2020_ Son Training_completa.pdf"]
[null,"Puglia","Soggetto idoneo alla formazione","0005 - Consorzio Servizi Artigianato e Piccole Industrie (C.S.A.P.I)",null,null,null,"X000025 - Valutazione dell'impatto e clima acustico alla luce delle nuove normative",10,"14/02/2020","15/02/2020","Lezioni frontali","viale M.T. Cicerone n.6 - 73020 \u0096 Cavallino (LE)","LE","Cavallino",73020,"DD. N.305 del 13.12.2019.pdf"]
[null,"Puglia","Soggetto idoneo alla formazione","0006 - E-TRAIN S.r.l.",null,null,null,"X000026 - Valutazione previsionale di impatto acustico",12,"28/09/2020","12/10/2020","Blended - Learning","Hotel Majesty Via G.Gentile 97/B- Bari","BA","Bari",70126,"DD. 252_19.08.2020_completa.pdf"]
[null,"Puglia","Ordine professionale","0007 - Ordine degli Ingegneri della Provincia di Barletta-Andria-Trani",null,null,null,"X000027 - Acustica edilizia",8,"23/09/2020","25/09/2020","E-Learning","Via Arcangelo Prologo, 23 - Palazzo Bianchi","BT","Trani",76125,"DD_253_19.08.2020_completa.pdf"]
["D000051","Campania","Soggetto idoneo alla formazione","0001 - Son Training S.r.l.s.",null,"info@sontraining.it","Per informazioni commerciali contattare il  3938319684 - per assistenza tecnica contattare il  3476767388 - oppure inviare una mail a formazione@sontraining.it","D000051 - Strumentazioni e tecniche di misura - esercitazioni pratiche sull'uso dei fonometri.",5,"18/09/2020","18/09/2020","Lezioni frontali","VIA PONTANO 6","NA","Nola",80035,"DD 2020 340 Agg..pdf"]
["D000052","Campania","Soggetto idoneo alla formazione","0001 - Son Training S.r.l.s.",null,"info@sontraining.it","Per informazioni commerciali contattare il  3938319684 - per assistenza tecnica contattare il  3476767388 - oppure inviare una mail a formazione@sontraining.it","D000052 - Modelli di previsione acustica. Corso base sull'utilizzo dei software di simulazione - esempi pratici.",5,"25/09/2020","25/09/2020","Lezioni frontali","VIA PONTANO 6","NA","Nola",80035,"DD 2020 340 Agg.(1).pdf"]
["D000053","Campania","Soggetto idoneo alla formazione","0001 - Son Training S.r.l.s.",null,"info@sontraining.it","Per informazioni commerciali contattare il  3938319684 - per assistenza tecnica contattare il  3476767388 - oppure inviare una mail a formazione@sontraining.it","D000053 - Progettazione acustica e collaudo impianti EVAC - data prevista.",5,"29/10/2020","29/10/2020","E-Learning","VIA PONTANO 6","NA","Nola",80035,"DD 2020 340 Agg.(2).pdf"]
["D000054","Campania","Soggetto idoneo alla formazione","0001 - Son Training S.r.l.s.",null,"info@sontraining.it","Per informazioni commerciali contattare il  3938319684 - per assistenza tecnica contattare il  3476767388 - oppure inviare una mail a formazione@sontraining.it","D000054 - Monitoraggio acustico da cantiere - Calcolo del valore di missione - Le norme uni 10855 e la UNI 11728/2018 - le linee guida Ispra.",5,"09/10/2020","09/10/2020","Lezioni frontali","VIA PONTANO 6","NA","Nola",80035,"DD 2020 340 Agg.(3).pdf"]
["D000055","Campania","Soggetto idoneo alla formazione","0001 - Son Training S.r.l.s.",null,"info@sontraining.it","Per informazioni commerciali contattare il  3938319684 - per assistenza tecnica contattare il  3476767388 - oppure inviare una mail a formazione@sontraining.it","D000055 - Analisi dettagliata di tutti i parametri acustici da misurare in ambiente di vita e di lavoro.",5,"12/11/2020","12/11/2020","Lezioni frontali","VIA PONTANO 6","NA","Nola",80035,"DD 2020 340 Agg.(4).pdf"]
["D000056","Campania","Soggetto idoneo alla formazione","0001 - Son Training S.r.l.s.",null,"info@sontraining.it","Per informazioni commerciali contattare il  3938319684 - per assistenza tecnica contattare il  3476767388 - oppure inviare una mail a formazione@sontraining.it","D000056 - Progettazione degli elementi edilizi ai fini del rispetto dei Requisiti acustici passivi.",5,"06/11/2020","06/11/2020","Lezioni frontali","VIA PONTANO 6","NA","Nola",80035,"DD 2020 340 Agg.(5).pdf"]
["D000057","Campania","Soggetto idoneo alla formazione","0001 - Son Training S.r.l.s.",null,"info@sontraining.it","Per informazioni commerciali contattare il  3938319684 - per assistenza tecnica contattare il  3476767388 - oppure inviare una mail a formazione@sontraining.it","D000057 - Interventi di correzione acustica: metodologie di progettazione ed esempi di calcolo.",5,"20/11/2020","20/11/2020","Lezioni frontali","VIA PONTANO 6","NA","Nola",80035,"DD 2020 340 Agg.(6).pdf"]
["D000058","Campania","Soggetto idoneo alla formazione","0001 - Son Training S.r.l.s.",null,"info@sontraining.it","Per informazioni commerciali contattare il  3938319684 - per assistenza tecnica contattare il  3476767388 - oppure inviare una mail a formazione@sontraining.it","D000058 - La stima dell'incertezza di misura nella procedura di rilevazione del livello acustico ambientale.",5,"09/12/2020","09/12/2020","Lezioni frontali","VIA PONTANO 6","NA","Nola",80035,"DD 2020 340 Agg.(7).pdf"]
[null,"Lombardia","Soggetto idoneo alla formazione","TECO MILANO SRL",null,null,null,"AGG91. Gli Interventi per la mitigazione acustica. Le Cappottature (per le macchine) e le cabine (per gli operatori).",4,"25/09/2020","25/09/2020","Lezioni frontali","c/o Assoacustici Corso Italia 13 \u0096 Saronno (VA)","VA","Saronno",21047,"T1.20200033118.pdf"]
[null,"Lombardia","Soggetto idoneo alla formazione","AIAS Academy S.r.l.",null,null,null,"AGG92. Acustica nei luoghi di lavoro",8,"19/11/2020","19/11/2020","Lezioni frontali","AIAS Academy S.r.l. \u0096 via Fara, 35","MI","Milano",20124,"T1.2020.0034030.pdf"]
[null,"Lombardia","Soggetto idoneo alla formazione","AIAS Academy S.r.l.",null,null,null,"AGG93. Acustica forense",8,"11/11/2020","11/11/2020","Lezioni frontali","AIAS Academy S.r.l. \u0096 via Fara, 35","MI","Milano",20124,"T1.2020.0034031.pdf"]
[null,"Abruzzo","Ente di ricerca","ARTA Abruzzo","08545007576","c.zamboni@artaabruzzo.it",null,"Corso di Aggiornamento Professionale per Tecnici in Acustica Ambientale",8,"13/10/2020","14/10/2020","E-Learning","Viale G. Marconi n. 49","PE","Pescara",65100,"DPC025-221 del 08.09.2020.pdf"]
[null,"Emilia Romagna","Soggetto idoneo alla formazione","Associazione Assform","0541 1796402","seg-corsi@assform.it","Semprini Mario Paolo","Aggiornamento Tecnico Competente in Acustica: Vedere il rumore: Teoria e pratica della tecnica beamforming. Rif. P.A. 2019-14560/RER/1 - Edizione 1",5,"22/10/2020","22/10/2020","Lezioni frontali","Corso Giovanni XXIII, 131 [sede regia vdc]","RN","Rimini",47921,"DD_15009_2020(3).pdf"]
[null,"Emilia Romagna","Soggetto idoneo alla formazione","THE ACS - SCUOLA ITALIANA DI ALTA FORMAZIONE SOCIETA' A R. L.","071 4604348","info@theacs.it","Antonio Chiarini","Corso di aggiornamento di 12 ore per tecnici competenti in acustica ambientale ai sensi D.Lgs 42/2017. Valutazione previsionale di impatto acustico. BOLOGNA Rif. P.A. 2019-13399/RER/4 - Edizione 3",12,"28/09/2020","12/10/2020","Lezioni frontali","Via Solari, 27 Loreto (AN) [sede regia vdc]","BO","Bologna",40100,"DD_4226_2020(5).pdf"]
[null,"Emilia Romagna","Soggetto idoneo alla formazione","THE ACS - SCUOLA ITALIANA DI ALTA FORMAZIONE SOCIETA' A R. L.","0714604348","info@theacs.it","Antonio Chiarini","Corso di aggiornamento di 12 ore per tecnici competenti in acustica ambientale ai sensi D.Lgs 42/2017. La valutazione dei requisiti acustici passivi con le nuove norme UNI EN ISO12354-2017. RAVENNA Rif. P.A. 2019-13399/RER/3 - Edizione 2",12,"28/10/2020","11/11/2020","Lezioni frontali","Via Solari, 27 Loreto (AN) [sede regia vdc]","RA","Ravenna",48100,"DD_4226_2020(6).pdf"]
[null,"Emilia Romagna","Soggetto idoneo alla formazione","THE ACS - SCUOLA ITALIANA DI ALTA FORMAZIONE SOCIETA' A R. L.","0714604348","info@theacs.it","Antonio Chiarini","Corso di aggiornamento di 12 ore per tecnici competenti in acustica ambientale ai sensi D.Lgs 42/2017. La valutazione e la misura del rumore in ambiente esterno - BOLOGNA Rif. P.A. 2019-12539/RER/3 - Edizione 2",12,"19/11/2020","03/12/2020","Lezioni frontali","Via Solari, 27 Loreto (AN) [sede regia vdc]","BO","Bologna",40100,"DD_18249_2019.pdf"]
[null,"Lazio","Soggetto idoneo alla formazione","CRESCO Formazione e Consulenza Srl","07761815115","lisa.lombardozzi@crescosrl.net","Direttore Didattico:\nIng. Mariconte Raffaele","Autorizzazione per lo svolgimento del corso di aggiornamento professionale per TCA, programmato e gestito dalla CRESCO Formazione e Consulenza Srl \u0096 Terza Edizione, anno 2020, unica sessione, 30 settembre 2020 \u0096 5 ore di formazione - modalità FAD",5,"30/09/2020","30/09/2020","E-Learning","Via Tofaro, 42","FR","Sora","03039","Copia_G10550_2020.pdf"]
[null,"Abruzzo","Soggetto idoneo alla formazione","Coprai Training S.r.l.","085412961","info@copraitraining.it","https://www.copraitraining.it/","Valutazione previsionale di impatto Acustico",10,"15/10/2020","22/10/2020","Lezioni frontali, E-Learning","Via F.Fellini n. 2 c/o \u0093Centro ARCA\u0094","PE","Spoltore",65010,"DPC025-230 del 15.09.2020.pdf"]
[null,"Sicilia","Soggetto idoneo alla formazione","ERGON AMBIENTE E LAVORO SRL","091340837","ergon@ergon.palermo.it","pec: ergon.palermo@pec.it","D.R.S. n.  874/2020 -6.1 - Modulo 1 - (vedi allegato al D.R.S.874/20 - previsto il 23.10.2020 rinviato al 18.11.2020",5,"18/11/2020","18/11/2020","Blended - Learning","Via Duca Della Verdura, 63","PA","Palermo",90143,"DRS_874_ERGON_SRL_CORSO_AGGIORNAMENTO_e_programma(3).pdf"]
[null,"Lombardia","Soggetto idoneo alla formazione","E-TRAIN SRL",null,null,null,"AGG94. Il rumore in ambiente di lavoro: valutazione del rischio e piano aziendale di riduzione dall\u0092esposizione al rumore. Il rumore nei cantieri",12,"09/10/2020","23/10/2020","Lezioni frontali","c/o. Hotel La Favorita \u0096 Via S. Cognetti de Martiis, 1 Mantova.","MN","Mantova",46100,"T1.2020.0035480.pdf"]
[null,"Lombardia","Soggetto idoneo alla formazione","AIAS Academy S.r.l.",null,null,null,"AGG95. Acustica Architettonica e CAM",8,"03/11/2020","03/11/2020","Lezioni frontali","AIAS Academy S.r.l. \u0096 via Fara, 35","MI","Milano",20124,"T1.2020.0035478.pdf"]
[null,"Sardegna","Ordine professionale","0001 - ORDINE DEGLI INGEGNERI DELLA PROVINCIA DI CAGLIARI","070499703","ordine.cagliari@ingpec.eu",null,"P000001 - I requisiti acustici passivi degli edifici e l\u0092acustica architettonica ed edilizia",8,"23/09/2020","24/09/2020","Lezioni frontali","Via Tasso 25","CA","Cagliari","09128","Determinazione n_328 prot_11756 del 17-06-2020.pdf"]
[null,"Sardegna","Ordine professionale","0001 - ORDINE DEGLI INGEGNERI DELLA PROVINCIA DI CAGLIARI","070499703","ordine.cagliari@ingpec.eu",null,"P000002 - Rumore e vibrazioni negli ambienti di lavoro",8,"14/10/2020","15/10/2020","Lezioni frontali","Via Tasso 25","CA","Cagliari","09128","Determinazione n_328 prot_11756 del 17-06-2020(1).pdf"]
[null,"Lombardia","Soggetto idoneo alla formazione","E-TRAIN SRL",null,null,null,"AGG96. L\u0092incertezza di misura in acustica applicata",8,"30/11/2020","07/12/2020","Lezioni frontali","Hotel NH - Via Pietro Paleocapa, 1/G \u0096 Bergamo","BG","Bergamo",24122,"T1.2020.0039611 AGG96-unito.pdf"]
[null,"Lombardia","Soggetto idoneo alla formazione","TICINO SOCIETA' DI SERVIZI SRL",null,null,null,"AGG97. Gli errori nelle misure di rumore e di vibrazione",4,"26/10/2020","26/10/2020","Lezioni frontali","Via Vigentina 108/E","PV","Pavia",27100,"T1.2020.0039612 AGG97.pdf"]
[null,"Marche","Soggetto idoneo alla formazione","E-TRAIN SRL","0714604348","info@e-train.it","Dott. Antonio Chiarini","La valutazione e la misura del rumore in ambiente esterno",12,"25/01/2021","08/02/2021","E-Learning","Via Solari, 27","AN","Loreto",60025,"Dec._960_2020.pdf"]
[null,"Marche","Soggetto idoneo alla formazione","E-TRAIN SRL","0714604348","info@e-train.it","Dott. Antonio Chiarini","Rumore nei cantieri edili",12,"23/11/2020","09/12/2020","E-Learning","c/o Hotel David Palace - Lungomare Gramsci Sud, 503","FM","Porto San Giorgio",63822,"Decreto n. 855_2020.pdf"]
[null,"Abruzzo","Soggetto idoneo alla formazione","Fondazione Architetti, Chieti-Pescara","085/693726","fondazione@architettichpe.it","Arch. Maria Cicchitti","Tecnico Competente in Acustica Edilizia-Architettonica: Aspetti Progettuali e Aspetti in Opera",8,"20/11/2020","27/11/2020","E-Learning","Piazza Garibaldi, n.42","PE","Pescara",65127,"DPC025-256 del 02.10.20.pdf"]
[null,"Puglia","Ordine professionale","0008 - Ordine degli Ingegneri della Provincia di Lecce",null,null,null,"X000028 - Acustica Forense",12,"26/10/2020","04/11/2020","E-Learning","Viale M.Depietro n.23","LE","Lecce",73100,"Det_277_2020_completa.pdf"]
[null,"Lazio","Ordine professionale","Ordine degli Ingegneri della Provincia di Roma","064879311","protocollo@ording.roma.it","Direttore Didattico\nIng. Carlo Fascinelli","Autorizzazione per lo svolgimento del corso di aggiornamento professionale per TCA, programmato e diretto dall\u0092Ordine Ingegneri Prov. di Roma. 4° Edizione, anno 2020, due sessioni, 21 e 23 Ottobre 2020 \u0096 10 ore formazione \u0096 modalità FAD o in presenza",10,"21/10/2020","23/10/2020","Lezioni frontali, E-Learning","Piazza della Repubblica, 59","RM","Roma","00185","Det_G11342_03_10_2020_.pdf"]
[null,"Lazio","Ordine professionale","Ordine Interregionale dei Chimici e dei Fisici del Lazio, Umbria, Abruzzo e Molise","06/48906708","segreteria@chimiciroma.it","Direttore Didattico\nDott. Fabrizio Martinelli","Autorizzazione svolgimento corso di aggiorn. profess. per TCA, programm. e gestito dall\u0092Ordine Interr. Chimici e Fisici del Lazio, Umbria, Abruzzo e Molise \u0096 1° Edizione, anno 2020, unica sessione, 12 ottobre 2020 \u0096 7 ore di formaz. \u0096 modalità FAD.",7,"12/10/2020","12/10/2020","E-Learning","Via delle Quattro Fontane, 16","RM","Roma","00184","Det_G11341_03_10_2020.pdf"]
[null,"Marche","Soggetto idoneo alla formazione","E-TRAIN SRL","0714604348","info@e-train.it","Dott. Antonio Chiarini","La valutazione dei requisiti acustici passivi con le nuove norme UNI EN ISO 12354-2017",12,"11/02/2021","25/02/2021","E-Learning","Via I Maggio 1/F","MC","Macerata",62100,"ddpf n 932 del 21 09 2020.pdf"]
[null,"Abruzzo","Ente di ricerca","ARTA Abruzzo","08545007576","c.zamboni@artaabruzzo.it",null,"Corso di Aggiornamento Professionale per Tecnici in Acustica Ambientale",8,"20/10/2020","21/10/2020","Blended - Learning, E-Learning","Viale G. Marconi n. 49","PE","Pescara",65100,"DPC025-259 del 06.10.2020.pdf"]
[null,"Lombardia","Soggetto idoneo alla formazione","E-TRAIN SRL",null,null,null,"AGG98. La valutazione dei requisiti acustici passivi con le nuove norme UNI EN ISO 12354- 2017",12,"20/11/2020","04/12/2020","Lezioni frontali","Bloom Group \u0096 Via Valtorta 44 - MILANO","MI","Milano","02013","T1.20200043001.pdf"]
[null,"Lombardia","Soggetto idoneo alla formazione","TICINO SOCIETA' DI SERVIZI SRL",null,null,null,"AGG99. Vedere il rumore: Teoria e pratica della tecnica beamforming.",4,"02/11/2020","02/11/2020","Lezioni frontali","Via Vigentina 108/E","PV","Pavia",27100,"T1.2020.0042976.pdf"]
[null,"Umbria","Ordine professionale","Ordine dei Periti Industriali e Periti Industriali Laureati della Provincia di Perugia e l'Ordine degli Ingegneri della Provincia di Perugia","075 5005044","perindpg@perindpg.it","Ordine dei Periti Industriali e Periti Industriali Laureati Via Campo di Marte 32 -  06124 Perugia - Ordine degli Ingegneri della Provincia di Perugia - Via Campo di Marte 9 - 06124 Perugia","I Requisiti acustici passivi degli edifici e la redazione del progetto acustico",6,"28/10/2020","30/10/2020","E-Learning","Via Campo di Marte 32","PG","Perugia","06124","DD 9019 12_10_2020.pdf"]
[null,"Puglia","Soggetto idoneo alla formazione","0006 - E-TRAIN S.r.l.",null,null,null,"X000029 - Rumore nei cantieri: igiene del lavoro e controllo dell'impatto acustico_ANNULLATO",12,"30/10/2020","13/11/2020","E-Learning","Via Solari n.27 \u0096 Loreto (AN)","BA","Bari",70011,"Det_289_del 2020_completa.pdf"]
[null,"Lombardia","Soggetto idoneo alla formazione","E-TRAIN SRL",null,null,null,"AGG100. La valutazione e la misura del rumore in ambiente esterno",12,"22/10/2020","05/11/2020","Lezioni frontali","Collegio De Filippi, via Don Luigi Brambilla, 15 - 21100 Varese","VA","Varese",25100,"T1.2020.0043660.pdf"]
[null,"Lombardia","Soggetto idoneo alla formazione","TECO MILANO SRL",null,null,null,"AGG101. La modellizzazione del rumore delle infrastrutture lineari di trasporto",8,"21/10/2020","22/10/2020","Lezioni frontali","c/o Assoacustici Corso Italia 13 \u0096 Saronno (VA)","VA","Saronno",21047,"T1.2020.0043662.pdf"]
[null,"Lombardia","Soggetto idoneo alla formazione","TECO MILANO SRL",null,null,null,"AGG102. Nuovi modelli di propagazione in ambito internazionale",4,"23/10/2020","23/10/2020","Lezioni frontali","c/o Assoacustici Corso Italia 13 \u0096 Saronno (VA)","VA","Saronno",21047,"T1.2020.0043663.pdf"]
["D000059","Campania","Soggetto idoneo alla formazione","0004 - e-Train S.r.l. unipersonale","0714604348","info@e-train.it","Maria Vittoria","D000059 - Igiene del lavoro",4,"10/02/2021","10/02/2021","Lezioni frontali","FAD sincrona","NA","Napoli",80142,"DD 2020 425 13-10-2020 eTrain.pdf"]
["D000060","Campania","Soggetto idoneo alla formazione","0004 - e-Train S.r.l. unipersonale","0714604348","info@e-train.it","Maria Vittoria Giovagnoli","D000060 - Impatto sonoro del cantiere",4,"17/02/2021","17/02/2021","Lezioni frontali","FAD sincrona","NA","Napoli",80142,"DD 2020 425 13-10-2020 eTrain(1).pdf"]
["D000061","Campania","Soggetto idoneo alla formazione","0004 - e-Train S.r.l. unipersonale","0714604348","info@e-train.it","Maria Vittoria Giovagnoli","D000061 - Rumore emesso ed immesso dal cantiere.",4,"24/02/2021","24/02/2021","Lezioni frontali","FAD sincrona","NA","Napoli",80142,"DD 2020 425 13-10-2020 eTrain(2).pdf"]
[null,"Toscana","Soggetto idoneo alla formazione","CESAL  -  ASS FORM","0541/1796402","info@assform.it",null,"IL COLLAUDO DEI REQUISITI ACUSTICI PASSIVI DI EDIFICI",8,"10/02/2020","10/02/2020","Lezioni frontali","PISTOIA VIA C.BATTISTI 35","PT","Pistoia",51100,"DecretoDir15973_08-10-2020.pdf"]
[null,"Toscana","Soggetto idoneo alla formazione","CESAL  -  ASS FORM","0541/1796402","info@assform.it",null,"IL COLLAUDO DEI REQUISITI ACUSTICI PASSIVI DI EDIFICI",8,"24/02/2020","24/02/2020","Lezioni frontali","PISTOIA VIA C.BATTISTI 35","PT","Pistoia",51100,"DecretoDir15973_08-10-2020(1).pdf"]
[null,"Toscana","Collegio professionale","COLLEGIO DEGLI INGEGNERI DELLA TOSCANA","055/2823662","info@collegioingegneri.toscana.it",null,"ACUSTICA FORENSE",8,"26/05/2020","28/05/2020","E-Learning","VIA DELLA FORTEZZA 6","FI","Firenze",50129,"DecretoDir15973_08-10-2020(2).pdf"]
[null,"Toscana","Collegio professionale","COLLEGIO DEGLI INGEGNERI DELLA TOSCANA","055/2823662","info@collegioingegneri.toscana.it",null,"ACUSTICA ARCHITETTONICA E CAM",8,"09/06/2020","11/06/2020","E-Learning","VIA DELLA FORTEZZA 6","FI","Firenze",50129,"DecretoDir15973_08-10-2020(3).pdf"]
[null,"Toscana","Collegio professionale","COLLEGIO DEGLI INGEGNERI DELLA TOSCANA","055/2823662","info@collegioingegneri.toscana.it",null,"ACUSTICA FORENSE",8,"07/07/2020","09/07/2020","E-Learning","VIA DELLA FORTEZZA 6","FI","Firenze",50129,"DecretoDir15973_08-10-2020(4).pdf"]
[null,"Toscana","Collegio professionale","COLLEGIO DEGLI INGEGNERI DELLA TOSCANA","055/2823662","info@collegioingegneri.toscana.it",null,"ACUSTICA ARCHITETTONICA E CAM",8,"21/07/2020","23/07/2020","E-Learning","VIA DELLA FORTEZZA 6","FI","Firenze",50129,"DecretoDir15973_08-10-2020(5).pdf"]
[null,"Toscana","Collegio professionale","COLLEGIO DEGLI INGEGNERI DELLA TOSCANA","055/2823662","info@collegioingegneri.toscana.it",null,"ACUSTICA NEI LUOGHI DI LAVORO",8,"28/07/2020","30/07/2020","E-Learning","VIA DELLA FORTEZZA 6","FI","Firenze",50129,"DecretoDir15973_08-10-2020(6).pdf"]
[null,"Toscana","Soggetto idoneo alla formazione","DELTA FORMAZIONE","0571/34503","info@deltaformazione.com",null,"AGGIORNAMENTI NORMATIVI IN MATERIA DI ACUSTICA",5,"29/02/2020","29/02/2020","Lezioni frontali","VIA VIVIANI 4","PI","Santa Croce sull'Arno",56029,"DecretoDir15973_08-10-2020(7).pdf"]
[null,"Toscana","Ordine professionale","ORDINE INGEGNERI DELLA PROVINCIA DI MASSA CARRARA","0585/70466","ordine@ordineingegnerimassacarrara.it",null,"LINEE GUIDA PER EFFETTUAZIONE CONTROLLI SU REQUISITI ACUSTICI PASSIVI DEGLI EDIFICI",4,"22/07/2020","22/07/2020","E-Learning","PIAZZA MATTEOTTI 4","MS","Carrara",54033,"DecretoDir15973_08-10-2020(8).pdf"]
[null,"Toscana","Ordine professionale","ORDINE PERITI INDUSTRIALI E PER. IND LAUREATI DELLA PROVINCIA DI LUCCA","0583/491942","info@perindlu.it",null,"RICHIESTE DI DEROGA AI VALORI LIMITE ACUSTICI PER SVOLGIMENTO MANIFESTAZIONI TEMPORANEE",5,"16/07/2020","16/07/2020","Lezioni frontali","VIA ROMANA 615/S","LU","Lucca",55100,"DecretoDir15973_08-10-2020(9).pdf"]
[null,"Toscana","Soggetto idoneo alla formazione","SCUOLA EDILE CPT LUCCA","0583/55555","scuolacpt@luccaedile.it",null,"RICHIESTA DI DEROGA PER CANTIERI E MANIFESTAZIONI TEMPORANEE",5,"17/07/2020","21/07/2020","E-Learning","VIA FORNACETTE 458","LU","Lucca",55100,"DecretoDir15973_08-10-2020(10).pdf"]
[null,"Toscana","Soggetto idoneo alla formazione","SECURA","055/704506","secura@secura.it",null,"RUMORE INFRASTRUTTURE TRASPORTO, INCERTEZZA MISURE FONOMETRICHE E TARATURA MODELLI ACUSTICI",10,"15/06/2020","26/06/2020","E-Learning","VIA SOFFIANO 15","FI","Firenze",50143,"DecretoDir15973_08-10-2020(11).pdf"]
[null,"Toscana","Soggetto idoneo alla formazione","SOCIP","050/983935","formazione@socipsrl.it",null,"MODIFICHE NORMATIVA ACUSTICA IN RELAZIONE AI LIMITI E ALLA NORMALE TOLLERABILITA\u0092",5,"23/07/2020","24/07/2020","E-Learning","VIA RAVIZZA 12","PI","Pisa",56121,"DecretoDir15973_08-10-2020(12).pdf"]
[null,"Toscana","Soggetto idoneo alla formazione","SOCIP","050/983935","formazione@socipsrl.it",null,"VALUTAZIONE IMPATTI E CLIMA ACUSTICO",5,"03/09/2020","04/09/2020","E-Learning","VIA RAVIZZA 12","PI","Pisa",56121,"DecretoDir15973_08-10-2020(13).pdf"]
[null,"Toscana","Soggetto idoneo alla formazione","SOCIP","050/983935","formazione@socipsrl.it",null,"MODIFICHE NORMATIVA ACUSTICA IN RELAZIONE AI LIMITI E ALLA NORMALE TOLLERABILITA\u0092",5,"23/09/2020","24/09/2020","E-Learning","VIA RAVIZZA 12","PI","Pisa",56121,"DecretoDir15973_08-10-2020(14).pdf"]
[null,"Toscana","Soggetto idoneo alla formazione","TEKNOFORM","0571/1962649","teknoform@teknoform.it",null,"VALUTAZIONE E VERIFICA DEI REQUISITI ACUSTICI PASSIVI DI EDIFICI",5,"21/02/2020","21/02/2020","Lezioni frontali","VIA USCIANA 132","PI","Castelfranco di Sotto",56022,"DecretoDir15973_08-10-2020(15).pdf"]
[null,"Sicilia","Soggetto idoneo alla formazione","SERVIZITALIA scrl","091 6250423","info@servizitalia.it","pec: amministrazione@pec.servizitalia.it","D.R.S. n.  912/2020 - 3.1 - Modulo 1 - Il controllo dell'Inquinamento acustico",10,"27/11/2020","28/11/2020","Blended - Learning","Via Salvatore Puglisi, 15/19","PA","Palermo",90143,"D.R.S._912_ Corso_Aggiornamento_Servizitalia_scrl.pdf"]
[null,"Lombardia","Ordine professionale","ORDINE DEGLI INGEGNERI DELLA PROVINCIA DI LECCO",null,null,null,"AGG103. Aggiornamento normativa e legislazione acustica in edilizia: i CAM e gli ecobonus",3,"30/11/2020","30/11/2020","Lezioni frontali","VIA ACHILLE GRANDI N. 9, 23900 LECCO (LC)","LC","Lecco",23900,"T1.2020.0045312.pdf"]
[null,"Piemonte","Ordine professionale","ORDINE DEGLI ARCHITETTI PPC DI TORINO","011-5360508 / 338-4407666","architettitorino@oato.it / a.feltrin@oato.it",null,"L'Acustica nei Mude: aspetti tecnici e legali",4,"20/11/2020","20/11/2020","E-Learning","Via Giovanni Giolitti 1","TO","Torino",10123,"dd 549 del 12 ottobre 2020.pdf"]
[null,"Piemonte","Soggetto idoneo alla formazione","APITFORMA","011-345003","segreteria@apitforma.it",null,"Intensimetria Acustica",6,"03/11/2020","10/11/2020","E-Learning","Via Imperia 2 A","TO","Torino",10135,"dd 549 del 12 ottobre 2020(1).pdf"]
[null,"Emilia Romagna","Soggetto idoneo alla formazione","THE ACS - SCUOLA ITALIANA DI ALTA FORMAZIONE SOCIETA' A R. L.","071 4604348","info@theacs.it","Antonio Chiarini","Corso di aggiornamento di 12 ore per tecnici competenti in acustica ambientale ai sensi D.Lgs 42/2017. Il rumore nei cantieri: igiene del lavoro e controllo dell\u0092impatto acustico - MODENA Rif. P.A. 2019-14882/RER/1",12,"30/10/2020","13/11/2020","Lezioni frontali","Via Solari, 27 Loreto (AN) [sede regia vdc]","MO","Modena",41100,"DD_16997_2020.pdf"]
[null,"Emilia Romagna","Soggetto idoneo alla formazione","THE ACS - SCUOLA ITALIANA DI ALTA FORMAZIONE SOCIETA' A R. L.","0714604348","info@theacs.it","Antonio Chiarini","Corso di aggiornamento di 8 ore per tecnici competenti in acustica ambientale ai sensi D.Lgs 42/2017. Incertezza di misura in acustica applicata - RAVENNA Rif. P.A. 2019-14882/RER/2",8,"22/02/2021","01/03/2021","Lezioni frontali","Via Solari, 27 Loreto (AN) [sede regia vdc]","RA","Ravenna",48100,"DD_16997_2020(1).pdf"]
[null,"Marche","Soggetto idoneo alla formazione","E-TRAIN SRL","0714604348","info@e-train.it","Dott. Antonio Chiarini","Valutazione previsionale di impatto acustico",12,"18/11/2020","02/12/2020","E-Learning","Via Valle Piana, 80 c/o Centro Agroalimentare Piceno","AP","San Benedetto del Tronto",63074,"DDPF 995_20(1).pdf"]
[null,"Lombardia","Soggetto idoneo alla formazione","E-TRAIN SRL",null,null,null,"AGG104. Valutazione di impatto e clima acustico, rumore da impianti elettroacustici in luogo pubblico",12,"02/12/2020","04/12/2020","Lezioni frontali, E-Learning","Studio Formazione srl \u0096 Via Foro Boario, 18 \u0096 25124 Brescia.","BS","Brescia",25124,"T1.2020.0046888-unito.pdf"]
[null,"Lombardia","Soggetto idoneo alla formazione","E-TRAIN SRL",null,null,null,"AGG105. La valutazione dei requisiti acustici passivi con le nuove norme UNI EN ISO 12354-2017",12,"03/12/2020","17/12/2020","Lezioni frontali","Hotel Impero \u0096 Piazza della Pace, 21 \u0096 Cremona","CR","Cremona",26100,"T1.2020.0046886.pdf"]
[null,"Emilia Romagna","Soggetto idoneo alla formazione","ADDESTRA S.R.L.","0546 624975","iscrizioni@addestra.it","FIORINI LORETTA","Corso di aggiornamento per il tecnico competente in acustica - RIDUZIONE ESPOSIZIONE UMANA AL RUMORE E AL DISTURBO. Rif. P.A. 2019-14422/RER/2 - Edizione 1",10,"19/10/2020","20/10/2020","Lezioni frontali","via Mengolina, 33 [sede regia vdc]","RA","Faenza",48018,"DD_ 12780_2020.pdf"]
[null,"Emilia Romagna","Soggetto idoneo alla formazione","Associazione Assform","0541 1796402","seg-corsi@assform.it","Semprini Mario Paolo","Aggiornamento Tecnico Competente in Acustica. La classificazione acustica degli edifici. Rif. P.A. 2019-14362/RER/1 - Edizione 2",8,"11/11/2020","12/11/2020","Lezioni frontali","Corso Giovanni XXIII, 131 [sede regia vdc]","RN","Rimini",47921,"DD_10169_2020(4).pdf"]
[null,"Piemonte","Soggetto idoneo alla formazione","IEC S.r.l. Industrial Engineering Consultant","0112425353","iec@iectorino.com",null,"Piani di risanamento Acustico per le \"Sorgenti Fisse\": adempimenti normativi, impostazione metodologica e casi studio",8,"01/12/2020","01/12/2020","Lezioni frontali","Via Botticelli 151","TO","Torino",10154,"dd 549 del 12 ottobre 2020(2).pdf"]
[null,"Friuli Venezia Giulia","Soggetto idoneo alla formazione","E-TRAIN S.r.l.","071 4604348","info@e-train.it",null,"AGG008. Il rumore in ambiente di lavoro: valutazione del rischio e piano aziendale di riduzione dell\u0092esposizione al rumore. Il rumore nei cantieri",12,"06/11/2020","20/11/2020","E-Learning","Formazione a distanza (FAD) - Go to meeting","TS","Trieste",34100,"INACCRS9.PDF"]
[null,"Umbria","Ordine professionale","Ordine degli Ingegneri della Provincia di Perugia","075 5001200","segreteria@ordineingegneriperugia.it","Ordine degli Ingegneri della Provincia di Perugia - Via Campo di Marte 9, 06124 Perugia (PG)","La valutazione previsionale d'impatto acustico dalla misura dello stato di fatto alla redazione della relazione tecnica",10,"10/11/2020","17/11/2020","E-Learning","Via Campo di Marte 9","PG","Perugia","06124","Determina n. 9532 del 26 ottobre 2020 autorizzazione corso Ordine degli Ingegneri della Provincia di Perugia.pdf"]
["D000062","Campania","Soggetto idoneo alla formazione","0008 - Centro Italiano per l'Ambiente e la Cultura APS & Noesi Evolution S.r.l.",3474700261,"info@tca2020.org",null,"D000062 - Strumentazioni, software e prodotti innovativi per la misura e l'elaborazione sonora.",12,"16/12/2020","17/12/2020","Blended - Learning","Viale Augusto 9","NA","Napoli",80125,"DECRETO_DIRIGENZIALE_DIP50_6_N_4_DEL_05_06_2019.pdf"]
["D000063","Campania","Soggetto idoneo alla formazione","0008 - Centro Italiano per l'Ambiente e la Cultura APS & Noesi Evolution S.r.l.",3474700261,"info@tca2020.org",null,"D000063 - L'attività del MATTM Direttiva 2002/49/CE sull'inquinamento acustico, Direttiva 2000/147CE macchine rumorose.",4,"07/12/2021","07/12/2021","E-Learning","Viale Augusto 9","NA","Napoli",80125,"DECRETO_DIRIGENZIALE_DIP50_6_N_4_DEL_05_06_2019(1).pdf"]
["D000064","Campania","Soggetto idoneo alla formazione","0008 - Centro Italiano per l'Ambiente e la Cultura APS & Noesi Evolution S.r.l.",3474700261,"info@tca2020.org",null,"D000064 - Elaborati tecnici, misure e indagini del rumore. Casi di studio significativi.",12,"23/06/2021","24/06/2021","Lezioni frontali","Viale Augusto 9","NA","Napoli",80125,"DECRETO_DIRIGENZIALE_DIP50_6_N_4_DEL_05_06_2019(2).pdf"]
["D000065","Campania","Soggetto idoneo alla formazione","0008 - Centro Italiano per l'Ambiente e la Cultura APS & Noesi Evolution S.r.l.",3474700261,"info@tca2020.org",null,"D000065 - Rumore, ambienti di lavoro e piani di riduzione dell'esposizione.",12,"18/05/2021","19/05/2021","E-Learning","Viale Augusto 9","NA","Napoli",80125,"DECRETO_DIRIGENZIALE_DIP50_6_N_4_DEL_05_06_2019(3).pdf"]
["D000066","Campania","Soggetto idoneo alla formazione","0008 - Centro Italiano per l'Ambiente e la Cultura APS & Noesi Evolution S.r.l.",3474700261,"info@tca2020.org",null,"D000066 - Gestione del rumore ambientale e Community Noise.",12,"22/09/2021","23/09/2021","Lezioni frontali, E-Learning","Viale Augusto 9","NA","Napoli",80125,"DECRETO_DIRIGENZIALE_DIP50_6_N_4_DEL_05_06_2019(4).pdf"]
["D000067","Campania","Soggetto idoneo alla formazione","0008 - Centro Italiano per l'Ambiente e la Cultura APS & Noesi Evolution S.r.l.",3474700261,"info@tca2020.org",null,"D000067 - Metodi di valutazione dei requisiti di Acustici in Edilizia, l'acustica Architettonica ed il comfort.",12,"16/03/2021","17/03/2021","Blended - Learning","Viale Augusto 9","NA","Napoli",80125,"DECRETO_DIRIGENZIALE_DIP50_6_N_4_DEL_05_06_2019(5).pdf"]
["D000068","Campania","Soggetto idoneo alla formazione","0008 - Centro Italiano per l'Ambiente e la Cultura APS & Noesi Evolution S.r.l.",3474700261,"info@tca2020.org",null,"D000068 - Strumentazioni, software e prodotti innovativi per la misura e l'elaborazione sonora.",12,"23/11/2021","24/11/2021","E-Learning","Viale Augusto 9","NA","Napoli",80125,"DECRETO_DIRIGENZIALE_DIP50_6_N_4_DEL_05_06_2019(6).pdf"]
[null,"Lombardia","Soggetto idoneo alla formazione","Apave Italia Cpm S.r.l",null,null,null,"AGG106. Attenuazione del rumore degli impianti civili",4,"13/11/2020","13/11/2020","Lezioni frontali","Via Artigiani 63","BS","Bienno",25040,"T1.2020.0048064.pdf"]
[null,"Marche","Ordine professionale","Ordine degli Ingegneri della Provincia di Macerata","0733 233111","segreteria@ordineingegnerimacerata.it","Segreteria","valutazione dell\u0092impatto acustico, criteri esecutivi per la misura e valutazione del contributo acustico di singole sorgenti, criteri esecutivi per la redazione e progettazione delle valutazioni di impatto di clima acustico",4,"06/11/2020","06/11/2020","E-Learning","Via Famiglia Palmieri, 26","MC","Macerata",62100,"DD VAA 201.2020.pdf"]
[null,"Marche","Ordine professionale","Ordine dei periti industriali delle province di AN e MC","0717108118","segreteria@periti-industriali.an.it","segreteria","Novità in campo della progettazione dei requisiti acustici passivi",8,"11/11/2020","12/11/2020","E-Learning","A.P.I.M.A. Via degli Olmi, 16/4","PU","Pesaro",61122,"DD VAA n. 25 del 31.01.2020.pdf"]
[null,"Lazio","Soggetto idoneo alla formazione","Informa Srl",null,null,null,"Autorizzazione per lo svolgimento del corso di aggiornamento professionale per tecnico competente in acustica, programmato e gestito da C \u0096 Prima Edizione, anno 2020, unica sessione, 30 novembre 2020 \u0096 8 ore di formazione\u0096 modalità FAD.",8,"30/11/2020","30/11/2020","E-Learning","Via Clauzetto n. 12","RM","Roma","00188","G12657_30_10_2020_informa.pdf"]
[null,"Lazio","Soggetto idoneo alla formazione","CRESCO Formazione e Consulenza Srl",null,null,null,"Autorizzazione per lo svolgimento del corso di aggiornamento professionale per tecnico competente in acustica, programmato e gestito dalla CRESCO Formazione e Consulenza Srl \u0096 Quarta Edizione, anno 2020, due  sessioni, 19 e 24 novembre 2020 \u0096 8 ore di for",8,"19/11/2020","24/11/2020","E-Learning","Via Tofaro, 42","FR","Sora","03039","G12775_02_11_2020_Copia-16669.pdf"]
[null,"Lombardia","Ordine professionale","ORDINE DEGLI INGEGNERI DI BERGAMO",null,null,null,"AGG107. Sistemi anti-calpestio in bassa frequenza di risonanza",3,"30/11/2020","30/11/2020","E-Learning","Passaggio Canonici Lateranensi, 1 \u0096 24121 Bergamo","BG","Bergamo",24121,"T1.2020.0050585.pdf"]
[null,"Lombardia","Soggetto idoneo alla formazione","TECO MILANO SRL",null,null,null,"AGG108. La modellizzazione del rumore delle infrastrutture lineari di trasporto",8,"25/11/2020","26/11/2020","Lezioni frontali, E-Learning","c/o Assoacustici Corso Italia 13 \u0096 Saronno (VA)","VA","Saronno",21047,"T1.2020.0050584.pdf"]
[null,"Lombardia","Soggetto idoneo alla formazione","TECO MILANO SRL",null,null,null,"AGG109. Nuovi modelli di propagazione in ambito internazionale",4,"27/11/2020","27/11/2020","Lezioni frontali, E-Learning","c/o Assoacustici Corso Italia 13 \u0096 Saronno (VA)","VA","Saronno",21047,"T1.2020.0050581.pdf"]
[null,"Marche","Ordine professionale","Ordine degli Ingegneri della Provincia di Fermo","0734228664","info@ordineingegneri.fermo.it","Ing. Ulissi Daniele","la progettazione dei requisiti acustici passivi secondo le norme UNI EN ISO 12354",12,"10/11/2020","24/11/2020","E-Learning","Via Brunforte, 11","FM","Fermo",63900,"DD VAA - Ingg FM corso agg.docx.pdf"]
[null,"Liguria","Soggetto idoneo alla formazione","E - TRAIN s.r.l.","0714604349","info@theacs.it","Qualora dovessero perdurare le misure di prevenzione volte a contrastare la diffusione del Covid-19, in linea con quanto disposto dal verbale 06/04/2020 del TTNC, si ricorrerà a/l'erogazione in modalità diretta videoconferenza tramite piattaforma Go To Me","La valutazione e la misura del rumore in ambiente esterno.",12,"23/03/2021","06/04/2021","Lezioni frontali, E-Learning","Poggio Hotel, Via di Francia 24, Arenzano (GE)","GE","Arenzano",16011,"DecretoDirigenziale_6921_2020_SIGNED.pdf"]
["D000069","Campania","Soggetto idoneo alla formazione","0004 - e-Train S.r.l. unipersonale","0714604348","info@e-train.it","Maria Vittoria Giovagnoli","D000069 - La valutazione previsionale di impatto e clima acustica.",4,"29/01/2021","29/01/2021","Lezioni frontali","Sede eTrain S.r.l.","NA","Napoli",80142,"DD_492_11_11_2020_eTrainAggTca(1).pdf"]
["D000070","Campania","Soggetto idoneo alla formazione","0004 - e-Train S.r.l. unipersonale","0714604348","info@e-train.it","Maria Vittoria Giovagnoli","D000070 - La valutazione del rispetto del limite di emissione, del rispetto di immissione assoluto e differenziale.",4,"05/02/2021","05/02/2021","Lezioni frontali","Sede eTrain S.r.l.","NA","Napoli",80142,"DD_492_11_11_2020_eTrainAggTca(2).pdf"]
["D000071","Campania","Soggetto idoneo alla formazione","0004 - e-Train S.r.l. unipersonale","0714604348","info@e-train.it","Maria Vittoria Giovagnoli","D000071 - La valutazione previsionale di impatto acustico nei locali di intrattenimento musicale.",4,"12/02/2021","12/02/2021","Lezioni frontali","Sede eTrain S.r.l.","NA","Napoli",80142,"DD_492_11_11_2020_eTrainAggTca.pdf"]
[null,"Emilia Romagna","Soggetto idoneo alla formazione","ADDESTRA S.R.L.","0546 624975","iscrizioni@addestra.it","FIORINI LORETTA","Corso di aggiornamento per tecnici competenti in acustica - MISURAZIONI DI RUMORE E VIBRAZIONI NEI LUOGHI DI LAVORO. Rif. P.A. 2019-14422/RER/1 Ed. 1",5,"10/12/2020","10/12/2020","Lezioni frontali","via Mengolina, 33 [sede regia vdc]","RA","Faenza",48018,"DD_ 12780_2020(1).pdf"]
[null,"Marche","Ordine professionale","Ordine degli ingegneri della provincia di Macerata","0733233111","segreteria@ordineingegnerimacerata.it","segreteria","Criteri esecutivi per la redazione e la modifica della classificazione acustica comunale (linea guida ispra), esempi pratici di gestione dei piani mediante strumenti GIS",4,"27/11/2020","27/11/2020","E-Learning","via Famiglia Palmieri n. 26","MC","Macerata",62100,"DD VAA 222.2020.pdf"]
[null,"Provincia Autonoma di Bolzano","Ordine professionale","0001 - Ordine degli Ingegneri della Provincia Autonoma di Bolzano","0471 303063","info@ingbz.it","Dall'Aglio Sabrina","M000001 - I Criteri Minimi Ambientali e la loro applicazione ad ambienti inclusivi",4,"11/12/2020","11/12/2020","E-Learning","Formazione a distanza (FAD) - GoTo Webinar","BZ","Bolzano",39100,"Autorizzazione_Corso aggiornamento_TCA_13112020_774837.pdf"]
["D000072","Campania","Ordine professionale","0009 - Ordine dei Periti Industrali e dei Periti Industriali Laureati di Napoli","081 204 512","segreteria@perindnapoli.it",null,"D000072 - Modalità di progettazione degli elementi edilizi ai fini del rispetto dei requisiti acustici passivi e collaudi in opera.",5,"12/05/2021","12/05/2021","Lezioni frontali","Via M. Cervantes 64","NA","Napoli",80133,"DD n. 519 19-11-2020.pdf"]
[null,"Veneto","Soggetto idoneo alla formazione","ISRE QAS","041995202","amministrazione@qasc.it","QAS Consulting Soc. Coop.\nSpinea (VE)","Valutazione di impatto acustico: casi concreti ed esempi di elaborazione",6,"18/12/2020","18/12/2020","E-Learning","Via Sanremo, 36","VE","Spinea",30038,"Atto di Riconocimento Prot. Arpav n. 99990 del 12.11.2020.pdf"]
[null,"Veneto","Soggetto idoneo alla formazione","Centro Studi Amministrativi della Marca Trevigiana","0422383338","info@comunitrevigiani.it","Centro Studi Amministrativi della Marca Trevigiana","Corso di formazione in materia di acustica ambientale",6,"26/05/2020","26/05/2020","E-Learning","Via Cal di Breda, 116","TV","Treviso",31100,"Atto di Riconoscimento Centro Studi Amministrativi della Marca Trevigiana.pdf"]
[null,"Umbria","Soggetto idoneo alla formazione","Meccanotecnica Umbra Academy S.r.l.","0743 2791","info@mtuacademy.org","Meccanotecnica Umbra Academy S.r.l. - Via G. Agnelli n. 7/9, 06042 Campello sul Clitunno (PG)","Sviluppi recenti dell'acustica ambientale in ambito Nazionale ed Europeo: legislazione e tecniche di modellazione",4,"18/12/2020","18/12/2020","E-Learning","Via G. Agnelli 7/9","PG","Campello sul Clitunno","06042","DD 10691 del 19_11_2020.pdf"]
[null,"Emilia Romagna","Ordine professionale","ORDINE DEGLI INGEGNERI DELLA PROVINCIA DI FORLI'-CESENA","0543376028","info@ordineing-fc.it","Valentina Frulli (segreteria)","Aggiornamento per Tecnico Acustico - Rumore e vibrazioni in ambiente di lavoro. Rif. P.A. 2019-14918/RER/1",5,"10/12/2020","10/12/2020","Lezioni frontali","Via Bruni, 3  [sede regia vdc]","FC","Forlì",47121,"DD_18878_2020.pdf"]
[null,"Emilia Romagna","Ordine professionale","ORDINE DEGLI INGEGNERI DELLA PROVINCIA DI FORLI'-CESENA","0543376028","info@ordineing-fc.it","Valentina Frulli (segreteria)","Aggiornamento per Tecnico Acustico - Strumentazione e tecniche di misura. Richiami sui trasduttori: microfoni ed accelerometri. Rif. P.A. 2019-14919/RER/1",5,"15/12/2020","15/12/2020","Lezioni frontali","Via Bruni, 3  [sede regia vdc]","FC","Forlì",47121,"DD_18878_2020(1).pdf"]
[null,"Emilia Romagna","Ente di ricerca","A.R.P.A.E.","0523 489648","acallegari@arpae.it","Anna Callegari","Corso di aggiornamento interno riservato ai TCA di ARPAE. La revisione della Linea Guida 02/DT - Gestione delle SIA in materia di inquinamento acustico.",6,"23/11/2020","26/11/2020","Lezioni frontali","Via Po, 5 [sede regia vdc]","BO","Bologna",40139,"PG_0769836_2020.pdf"]
[null,"Emilia Romagna","Soggetto idoneo alla formazione","Associazione Assform","0541 1796402","seg-corsi@assform.it","Semprini Mario Paolo","Aggiornamento Tecnico Competente in Acustica: Gli errori nelle misure di rumore e di vibrazione. Rif. P.A. 2019-14559/RER/1 - Edizione 2",5,"28/11/2020","28/11/2020","Lezioni frontali","Corso Giovanni XXIII, 131 [sede regia vdc]","RN","Rimini",47921,"DD_15009_2020(4).pdf"]
[null,"Emilia Romagna","Soggetto idoneo alla formazione","Associazione Assform","0541 1796402","seg-corsi@assform.it","Semprini Mario Paolo","Aggiornamento Tecnico Competente in Acustica. L'acustica nei luoghi di intrattenimento, di pubblico spettacolo e nei pubblici esercizi. Rif. P.A. 2019-14233/RER/1 - Edizione 2",8,"03/12/2020","04/12/2020","Lezioni frontali","Corso Giovanni XXIII, 131 [sede regia vdc]","RN","Rimini",47921,"DD_10169_2020(5).pdf"]
[null,"Friuli Venezia Giulia","Soggetto idoneo alla formazione","E-TRAIN S.r.l.","0714604348","info@e-train.it",null,"AGG009. La valutazione e la misura del rumore in ambiente esterno",12,"06/07/2021","20/07/2021","E-Learning","Formazione a distanza (FAD) - Go to meeting","TS","Trieste",34100,"INACCRS10.PDF"]
[null,"Veneto","Ordine professionale","Ordine degli Ingegneri di Verona e Provincia","045-8035959","ordine@ingegneri.vr.it",null,"Il collaudo acustico secondo le UNI EN ISO 16283. Tecniche di misura in opera dei requisiti acustici passivi.",6,"08/04/2020","08/04/2020","Lezioni frontali","Via Santa Teresa 12","VR","Verona",37135,"Riconoscimento Corso Aggiornamento Ordine Ing. Verona Prot. Arpav n. 103928 del 24.11.2020_fd.pdf"]
[null,"Veneto","Ordine professionale","Ordine degli Ingegneri di Verona e Provincia","045-8035959","ordine@ingegneri.vr.it",null,"Il collaudo acustico secondo le UNI EN ISO 16283. Tecniche di misura in opera dei requisiti acustici passivi.",6,"02/12/2020","02/12/2020","E-Learning","Via Santa Teresa 12","VR","Verona",37135,"Riconoscimento Corso Aggiornamento Ordine Ing. Verona Prot. Arpav n. 103928 del 24.11.2020_fd(1).pdf"]
[null,"Veneto","Soggetto idoneo alla formazione","Centro di Formazione STS Srl","049-8809842","info@centrodiformazionests.it",null,"La valutazione di impatto acustico per le attività di pubblico spettacolo e temporanee",6,"10/12/2021","10/12/2021","Lezioni frontali, E-Learning","Via Romana Aponense 116","PD","Padova",35142,"RICONOSCIMENTO STS PROT N. 75561 LUGLIO 2019(1).pdf"]
[null,"Sicilia","Soggetto idoneo alla formazione","E-TRAIN S.r.l.  Corso Aggiornamento Catania","071 4604348","info@e-train.it","E-Train S.r.l.\nSede Legale: Via Solari, 27\n60025 - Loreto (AN)","Provv. 77880/19 - 3.2 - II -Il rumore in ambiente di lavoro: valutazione del rischio e piano aziendale di riduzione dell'esposizione al rumore. Il rumore nei cantieri - previsto per il 12-19 marzo 2021, anticipato al 8-15 marzo 2021 modalità FAD",12,"08/03/2021","15/03/2021","Blended - Learning, E-Learning","Le Dune Sicily Hotel - Viale Kennedy, 10/b","CT","Catania",95121,"PROVV_E-TRAIN_CORSO AGGIORNAMENTO_CATANIA.pdf"]
[null,"Veneto","Soggetto idoneo alla formazione","Centro di Formazione STS Srl","049-8809842","info@centrodiformazionests.it",null,"Analisi di casi di valutazione di impatto acustico per le attività di pubblico spettacolo e temporanee",6,"06/12/2019","06/12/2019","Lezioni frontali","Via Romana Aponense 116","PD","Padova",35142,"RICONOSCIMENTO STS PROT N. 75561 LUGLIO 2019(4).pdf"]
[null,"Veneto","Soggetto idoneo alla formazione","Centro di Formazione STS Srl","049-8809842","info@centrodiformazionests.it",null,"Analisi di casi di valutazione di impatto acustico per le attività di pubblico spettacolo e temporanee",6,"07/11/2019","07/11/2019","Lezioni frontali","Via Romana Aponense 116","PD","Padova",35142,"RICONOSCIMENTO STS PROT N. 75561 LUGLIO 2019(3).pdf"]
[null,"Sicilia","Soggetto idoneo alla formazione","E-TRAIN S.r.l. - Corso Aggiornamento Catania","071 4604348","info@e-train.it","E-Train S.r.l.\nSede Legale: Via Solari, 27\n60025 - Loreto (AN)","Provv. 77880/19 - 3.3 - III -La valutazione dei requisiti acustici passivi con le nuove norme UNI EN ISO 12354-2017",6,"11/03/2022","11/03/2022","Lezioni frontali","Le Dune Sicily Hotel - Viale Kennedy, 10/b","CT","Catania",95121,"PROVV_E-TRAIN_CORSO AGGIORNAMENTO_CATANIA(1).pdf"]
[null,"Veneto","Soggetto idoneo alla formazione","Centro di Formazione STS Srl","049-8809842","info@centrodiformazionests.it",null,"Il contenzioso in acustica",6,"18/06/2021","18/06/2021","E-Learning","Via Romana Aponense 116","PD","Padova",35142,"RICONOSCIMENTO CORSO STS PROT N. 64770 GIUGNO 2019_fd(1).pdf"]
[null,"Veneto","Soggetto idoneo alla formazione","Centro di Formazione STS Srl","049-8809842","info@centrodiformazionests.it",null,"La normativa nazionale in materia di inquinamento acustico: le novità legislative e giurisprudenziali",6,"08/04/2022","08/04/2022","Lezioni frontali, E-Learning","Via Romana Aponense 116","PD","Padova",35142,"RICONOSCIMENTO CORSO STS PROT N. 64785 GIUGNO 2019_fd(1).pdf"]
[null,"Veneto","Soggetto idoneo alla formazione","Centro di Formazione STS Srl","049-8809842","info@centrodiformazionests.it",null,"La valutazione di impatto acustico per le attività di pubblico spettacolo e temporanee",6,"10/12/2021","10/12/2021","E-Learning","Via Romana Aponense 116","PD","Padova",35142,"RICONOSCIMENTO STS PROT N. 75561 LUGLIO 2019(2).pdf"]
[null,"Sicilia","Soggetto idoneo alla formazione","E-TRAIN S.r.l. - Corso Aggiornamento Palermo","071 4604348","info@e-train.it","E-Train S.r.l.\nSede Legale: Via Solari, 27\n60025 - Loreto (AN)","Provv. 77866/19 - 3.2 - II- Il rumore in ambiente di lavoro: valutazione del rischio e piano aziendale di riduzione dell'esposizione al rumore. Il rumore nei cantieri - previsto per il 12-19 febbraio 2021 posticipato al 13.09.2021-20.09.2021- modalità FAD",12,"13/09/2021","27/09/2021","Blended - Learning, E-Learning","c/o Hotel Astoria, Via Montepellegrino, 62","PA","Palermo",90142,"PROVV_E-TRAIN_CORSO_AGGIORNAMENTO_PALERMO(1).pdf"]
[null,"Sicilia","Soggetto idoneo alla formazione","E-TRAIN S.r.l. - Corso Aggiornamento Palermo","071 4604348","info@e-train.it","E-TRAIN S.r.l. \nVia Solari, 27\n60025 Loreto (AN)","Provv. 77866/19 - 3.3 - III - La valutazione dei requisiti acustici passivi con le nuove norme UNI EN ISO 12354-2017",6,"11/02/2022","11/02/2022","Lezioni frontali","c/o Hotel Astoria, Via Montepellegrino, 62","PA","Palermo",90142,"PROVV_E-TRAIN_CORSO_AGGIORNAMENTO_PALERMO(2).pdf"]
[null,"Veneto","Soggetto idoneo alla formazione","Centro di Formazione STS Srl","049-8809842","info@centrodiformazionests.it",null,"La valutazione del rischio rumore nei luoghi di lavoro",6,"11/11/2022","11/11/2022","Lezioni frontali, E-Learning","Via Romana Aponense 116","PD","Padova",35142,"RICONOSCIMENTO CORSO STS PROT N. 64788 GIUGNO 2019_fd(1).pdf"]
[null,"Veneto","Soggetto idoneo alla formazione","Centro di Formazione STS Srl","049-8809842","info@centrodiformazionests.it",null,"I parametri acustici nei criteri ambientali minimi (CAM) di cui al D.M. 11.01.2017",6,"14/05/2021","14/05/2021","E-Learning","Via Romana Aponense 116","PD","Padova",35142,"RICONOSCIMENTO STS RICHIESTA PROT N. 64768 GIUGNO 2019(1).pdf"]
[null,"Veneto","Soggetto idoneo alla formazione","Centro di Formazione STS Srl","049-8809842","info@centrodiformazionests.it",null,"La valutazione e la verifica dei descrittori del comfort acustico degli ambienti",6,"14/10/2022","14/10/2022","Lezioni frontali, E-Learning","Via Romana Aponense 116","PD","Padova",35142,"RICONOSCIMENTO CORSO STS PROT N. 64802 GIUGNO 2019_fd(1).pdf"]
[null,"Veneto","Soggetto idoneo alla formazione","Centro di Formazione STS Srl","049-8809842","info@centrodiformazionests.it",null,"I parametri acustici nei criteri ambientali minimi (CAM) di cui al D.M. 11.01.2017",6,"16/06/2020","16/06/2020","E-Learning","Via Romana Aponense 116","PD","Padova",35142,"RICONOSCIMENTO STS RICHIESTA PROT N. 64768 GIUGNO 2019(2).pdf"]
[null,"Veneto","Soggetto idoneo alla formazione","Centro di Formazione STS Srl","049-8809842","info@centrodiformazionests.it",null,"I modelli di calcolo previsionali e le loro applicazioni per l\u0092acustica ambientale",6,"20/05/2022","20/05/2022","Lezioni frontali, E-Learning","Via Romana Aponense 116","PD","Padova",35142,"I modelli di calcolo previsionali e le loro applicazioni per l'acustica ambientale STS Prot. 66458 del 30.07.2020(1).pdf"]
[null,"Veneto","Soggetto idoneo alla formazione","Centro di Formazione STS Srl","049-8809842","info@centrodiformazionests.it",null,"Analisi di casi di valutazione di impatto acustico per le attivita\u0092 di pubblico spettacolo e temporanee",6,"21/01/2022","21/01/2022","Lezioni frontali, E-Learning","Via Romana Aponense 116","PD","Padova",35142,"RICONOSCIMENTO STS PROT N. 75561 LUGLIO 2019(5).pdf"]
[null,"Veneto","Soggetto idoneo alla formazione","Centro di Formazione STS Srl","049-8809842","info@centrodiformazionests.it",null,"La progettazione delle prestazioni acustiche degli elementi edilizi",6,"24/09/2021","24/09/2021","E-Learning","Via Romana Aponense 116","PD","Padova",35142,"RICONOSCIMENTO STS RICHIESTA PROT N. 64748 GIUGNO 2019(1).pdf"]
[null,"Veneto","Soggetto idoneo alla formazione","Centro di Formazione STS Srl","049-8809842","info@centrodiformazionests.it",null,"Il contenzioso in acustica",6,"26/06/2020","26/06/2020","E-Learning","Via Romana Aponense 116","PD","Padova",35142,"RICONOSCIMENTO CORSO STS PROT N. 64770 GIUGNO 2019_fd(2).pdf"]
[null,"Veneto","Soggetto idoneo alla formazione","Centro di Formazione STS Srl","049-8809842","info@centrodiformazionests.it",null,"La verifica in opera delle prestazioni acustiche degli elementi edilizi",6,"27/11/2020","27/11/2020","E-Learning","Via Romana Aponense 116","PD","Padova",35142,"RICONOSCIMENTO STS RICHIESTA PROT N. 64764 GIUGNO 2019(1).pdf"]
[null,"Veneto","Soggetto idoneo alla formazione","Centro di Formazione STS Srl","049-8809842","info@centrodiformazionests.it",null,"La progettazione delle prestazioni acustiche degli elementi edilizi",6,"30/10/2020","30/10/2020","E-Learning","Via Romana Aponense 116","PD","Padova",35142,"RICONOSCIMENTO STS RICHIESTA PROT N. 64748 GIUGNO 2019(2).pdf"]
[null,"Veneto","Soggetto idoneo alla formazione","Centro di Formazione STS Srl","049-8809842","info@centrodiformazionests.it",null,"La verifica in opera delle prestazioni acustiche degli elementi edilizi",6,"31/01/2020","31/01/2020","Lezioni frontali","Via Romana Aponense 116","PD","Padova",35142,"RICONOSCIMENTO STS RICHIESTA PROT N. 64764 GIUGNO 2019(2).pdf"]
[null,"Veneto","Soggetto idoneo alla formazione","Centro di Formazione STS Srl","049-8809842","info@centrodiformazionests.it",null,"La valutazione di impatto acustico per le attivita\u0092 di pubblico spettacolo e temporanee",6,"22/05/2020","22/05/2020","Lezioni frontali, E-Learning","Via Romana Aponense 116","PD","Padova",35142,"RICONOSCIMENTO STS PROT N. 75560 LUGLIO 2019(1).pdf"]
[null,"Sicilia","Soggetto idoneo alla formazione","Accademia Eraclitea S.r.l.","095 449778","direzione@eraclitea.it","I edizione -Accademia Eraclitea S.r.l. - sede legale: via Corso delle Province, 203 - 95128 - Catania","Provv. 81551/19 - 6.2 -Corso di Aggiornamento per Tecnici Competenti in Acustica previsto per il 08.04.2020 svolto modalità FAD il 06.10.2020",5,"06/10/2020","06/10/2020","Blended - Learning","Viale Della Libertà, 106","CT","Catania",95129,"Provv_Corso_agg_Acc_Eraclitea(1).pdf"]
[null,"Lombardia","Ordine professionale","ORDINE DEGLI INGEGNERI DELLA PROVINCIA DI MILANO",null,null,null,"AGG110. INTRODUZIONE ALL\u0092INTENSIMETRIA ACUSTICA",6,"11/12/2020","11/12/2020","Lezioni frontali, E-Learning","Sala corsi Fondazione Ordine Ingegneri Milano in Viale A. Doria, 9, 20124, Milano","MI","Milano",20124,"T1.2020.0054465.pdf"]
[null,"Basilicata","Soggetto idoneo alla formazione","EUREKA Società Cooperativa","0835/973600","eurekapolicoro@pec.it",null,"Impatto acustico in ambienti di vita e lavoro",30,"17/12/2020","17/12/2020","E-Learning","Via Santa Croce snc","MT","Policoro",75025,"DD n. 623.pdf"]
[null,"Emilia Romagna","Soggetto idoneo alla formazione","ISCOM FORMAZIONE PER LE IMPRESE SCARL","0547 639887","coordinatore1@iscomcesena.it","Dott. Sergio Loggia","PERCORSO DI AGGIORNAMENTO TECNICI  IN ACUSTICA AMBIENTALE - MODULO 2. Rif. P.A. 2012-11039/RER/2 - 1 edizione",10,"10/12/2020","17/12/2020","Lezioni frontali","Via G. Bruno, 118  [sede regia vdc]","FC","Cesena",47521,"DD_3665_2019(1).pdf"]
[null,"Sicilia","Soggetto idoneo alla formazione","SERVIZITALIA scrl","091 6250423","info@servizitalia.it","pec: amministrazione@pec.servizitalia.it","D.R.S. n.  912/2020 - 3.2 -Modulo 2 - la tutela dell'Inquinamento acustico e la pianificazione territoriale",10,"04/12/2020","05/12/2020","Blended - Learning","Via Salvatore Puglisi, 15/19","PA","Palermo",90143,"D.R.S._912_ Corso_Aggiornamento_Servizitalia_scrl(1).pdf"]
[null,"Sicilia","Soggetto idoneo alla formazione","SERVIZITALIA scrl","091 6250423","info@servizitalia.it","pec: amministrazione@pec.servizitalia.it","D.R.S. n.  912/2020 - 3.3 -Modulo 3 - Valutazione di impatto acustico e autorizzazioni in deroga",10,"11/12/2020","12/12/2020","Blended - Learning","Via Salvatore Puglisi, 15/19","PA","Palermo",90143,"D.R.S._912_ Corso_Aggiornamento_Servizitalia_scrl(2).pdf"]
[null,"Sicilia","Soggetto idoneo alla formazione","ERGON AMBIENTE E LAVORO SRL","091340837","ergon@ergon.palermo.it","pec: ergon.palermo@pec.it","D.R.S. n. 874/2020 -6.2 -Modulo 2 - (vedi allegato al D.R.S.874/20)",5,"06/11/2020","06/11/2020","Blended - Learning","Via Duca Della Verdura, 63","PA","Palermo",90143,"DRS_874_ERGON_SRL_CORSO_AGGIORNAMENTO_e_programma(5).pdf"]
[null,"Sicilia","Soggetto idoneo alla formazione","ERGON AMBIENTE E LAVORO SRL","091340837","ergon@ergon.palermo.it","pec: ergon.palermo@pec.it","D.R.S. n.  874/2020 -6.3 -Modulo 3 - (vedi allegato al D.R.S.874/20)",5,"16/04/2021","16/04/2021","Blended - Learning, E-Learning","Via Duca Della Verdura, 63","PA","Palermo",90143,"DRS_874_ERGON_SRL_CORSO_AGGIORNAMENTO_e_programma(2).pdf"]
[null,"Sicilia","Soggetto idoneo alla formazione","ERGON AMBIENTE E LAVORO SRL","091340837","ergon@ergon.palermo.it","pec: ergon.palermo@pec.it","D.R.S. n. 874/2020 -6.4 -Modulo 4 - (vedi allegato al D.R.S.874/20)",5,"28/05/2021","28/05/2021","Lezioni frontali","Via Duca Della Verdura, 63","PA","Palermo",90143,"DRS_874_ERGON_SRL_CORSO_AGGIORNAMENTO_e_programma.pdf"]
[null,"Sicilia","Soggetto idoneo alla formazione","ERGON AMBIENTE E LAVORO SRL","091340837","ergon@ergon.palermo.it","pec: ergon.palermo@pec.it","D.R.S. n. 874/2020 -6.6 -Modulo 6 - (vedi allegato al D.R.S.874/20)",5,"19/11/2021","19/11/2021","Lezioni frontali","Via Duca Della Verdura, 63","PA","Palermo",90143,"DRS_874_ERGON_SRL_CORSO_AGGIORNAMENTO_e_programma(1).pdf"]
[null,"Sicilia","Soggetto idoneo alla formazione","ERGON AMBIENTE E LAVORO SRL","091340837","ergon@ergon.palermo.it","pec: ergon.palermo@pec.it","D.R.S. n. 874/2020 - 6.5 - Modulo 5 - (vedi allegato al D.R.S.874/20)",5,"08/10/2021","08/10/2021","Lezioni frontali","Via Duca Della Verdura, 63","PA","Palermo",90143,"DRS_874_ERGON_SRL_CORSO_AGGIORNAMENTO_e_programma(4).pdf"]
[null,"Sicilia","Soggetto idoneo alla formazione","CNA - E.C.I.P.A Ragusa","0932-683016","segreteriaeciparag@cnaragusa.it","Sede legale: via Psaumida, 38 97100 Ragusa","Provv. 73269/19 - 3.2 -moduli V, VI (vedi allegati al provv. 73269/19)",12,"14/02/2020","15/02/2020","Lezioni frontali","Via Psaumida, 38","RG","Ragusa",97100,"Provv_prot_n_73269_del_07_11_2019_e_programma(1).pdf"]
[null,"Sicilia","Soggetto idoneo alla formazione","CNA - E.C.I.P.A Ragusa","0932-683016","segreteriaeciparag@cnaragusa.it","Sede legale: via Psaumida, 38 97100 Ragusa","Provv. 73269/19 - 3.3 -modulo VII  (vedi allegati al provv. 73269/19)",6,"15/01/2021","15/01/2021","Lezioni frontali","Via Psaumida, 38","RG","Ragusa",97100,"Provv_prot_n_73269_del_07_11_2019_e_programma(2).pdf"]
[null,"Sicilia","Ordine professionale","Ordine degli Ingegneri Palermo","091 - 581421","segreteria@ingpa.com","Sede Legale: Via F.sco Crispi, 120 90139 Palermo","Provv. 73257/19 - 9.3 - III modulo (vedi programma allegato al provv. 73257/19)",4,"07/02/2020","07/02/2020","Lezioni frontali","Via Francesco Crispi, 120","PA","Palermo",90146,"provv_prot_73257_del_07_11_2019_e_programma(1).pdf"]
[null,"Sicilia","Ordine professionale","Ordine degli Ingegneri Palermo","091 - 581421","segreteria@ingpa.com","Sede Legale: Via F.sco Crispi, 120 90139 Palermo","Provv. 73257/19 - 9.4 -IV modulo - (vedi programma allegato al provv. 73257/19) previsto il 29.01.2021 posticipato al 04.03.2021",4,"04/03/2021","04/03/2021","Blended - Learning, E-Learning","Via Francesco Crispi, 120","PA","Palermo",90146,"provv_prot_73257_del_07_11_2019_e_programma(2).pdf"]
[null,"Sicilia","Ordine professionale","Ordine degli Ingegneri Palermo","091 - 581421","segreteria@ingpa.com","Sede Legale: Via F.sco Crispi, 120 90139 Palermo","Provv. 73257/19 - 9.5 -V modulo - (vedi programma allegato al provv. 73257/19) previsto il 30.01.2021 posticipato al 11.03.2021",4,"11/03/2021","11/03/2021","Blended - Learning, E-Learning","Via Francesco Crispi, 120","PA","Palermo",90146,"provv_prot_73257_del_07_11_2019_e_programma(3).pdf"]
[null,"Sicilia","Ordine professionale","Ordine degli Ingegneri Palermo","091 - 581421","segreteria@ingpa.com","Sede Legale: Via F.sco Crispi, 120 90139 Palermo","Provv. 73257/19 - 9.6 -VI modulo - (vedi programma allegato al provv. 73257/19) previsto il 05.02.2021 posticipato al 18.03.2021",4,"18/03/2021","18/03/2021","Blended - Learning, E-Learning","Via Francesco Crispi, 120","PA","Palermo",90146,"provv_prot_73257_del_07_11_2019_e_programma(4).pdf"]
[null,"Sicilia","Ordine professionale","Ordine degli Ingegneri Palermo","091 - 581421","segreteria@ingpa.com","Sede Legale: Via F.sco Crispi, 120 90139 Palermo","Provv. 73257/19 - 9.7 -VII modulo - (vedi programma allegato al provv. 73257/19)",4,"28/01/2022","28/01/2022","Lezioni frontali","Via Francesco Crispi, 120","PA","Palermo",90146,"provv_prot_73257_del_07_11_2019_e_programma(5).pdf"]
[null,"Sicilia","Ordine professionale","Ordine degli Ingegneri Palermo","091 - 581421","segreteria@ingpa.com","Sede Legale: Via F.sco Crispi, 120 90139 Palermo","Provv. 73257/19 - 9.8 -VIII modulo - (vedi programma allegato al provv. 73257/19)",4,"29/01/2022","29/01/2022","Lezioni frontali","Via Francesco Crispi, 120","PA","Palermo",90146,"provv_prot_73257_del_07_11_2019_e_programma(6).pdf"]
[null,"Sicilia","Ordine professionale","Ordine degli Ingegneri Palermo","091 - 581421","segreteria@ingpa.com","Sede Legale: Via F.sco Crispi, 120 90139 Palermo","Provv. 73257/19 - 9.9 - IX modulo - (vedi programma allegato al provv. 73257/19)",4,"04/02/2022","04/02/2022","Lezioni frontali","Via Francesco Crispi, 120","PA","Palermo",90146,"provv_prot_73257_del_07_11_2019_e_programma(7).pdf"]
[null,"Sicilia","Ordine professionale","Ordine degli Ingegneri Palermo","091 - 581421","segreteria@ingpa.com","Sede Legale: Via F.sco Crispi, 120 90139 Palermo","Provv. 73257/19 - 9.1 -I modulo - (vedi programma allegato al provv. 73257/19)",4,"31/01/2020","31/01/2020","Lezioni frontali","Via Francesco Crispi, 120","PA","Palermo",90146,"provv_prot_73257_del_07_11_2019_e_programma(8).pdf"]
[null,"Emilia Romagna","Soggetto idoneo alla formazione","Associazione Assform","0541 1796402","seg-corsi@assform.it","Semprini Mario Paolo","Aggiornamento Tecnico Competente in Acustica -  Vedere il rumore: Teoria e pratica della tecnica beamforming. Rif. P.A. 2019-14560/RER/1 - Edizione 2",5,"12/12/2020","12/12/2020","Lezioni frontali","Corso Giovanni XXIII, 131 [sede regia vdc]","RN","Rimini",47921,"DD_15009_2020(5).pdf"]
[null,"Sardegna","Ordine professionale","0001 - ORDINE DEGLI INGEGNERI DELLA PROVINCIA DI CAGLIARI","070499703","ordine.cagliari@ingpec.eu",null,"P000003 - I requisiti acustici passivi degli edifici e l\u0092acustica architettonica",8,"16/12/2020","17/12/2020","E-Learning","Via Tasso 25","CA","Cagliari","09128","determinazione n_1150 prot_25737 del 15-12-2020.pdf"]
[null,"Valle D'Aosta","Soggetto idoneo alla formazione","E-TRAIN Srl","+39 071 4604349","info@e-train.it www.e-train.it",null,"ANNULLATO. Valutazione di impatto e clima acustico, rumore da impianti elettroacustici in luogo pubblico.",12,"09/04/2021","16/04/2021","Lezioni frontali, E-Learning","Località Autoporto n. 33","AO","Pollein",11020,"PD 5835 2020-convertito.pdf"]
[null,"Lombardia","Soggetto idoneo alla formazione","TECO MILANO SRL",null,null,null,"AGG111. Nuovi modelli di propagazione in ambito internazionale",4,"15/01/2021","15/01/2021","Lezioni frontali","c/o Assoacustici Corso Italia 13 \u0096 Saronno (VA)","VA","Saronno",21047,"T1.2020.0060478.pdf"]
["D000073","Campania","Soggetto idoneo alla formazione","0008 - Centro Italiano per l'Ambiente e la Cultura APS & Noesi Evolution S.r.l.",3474700261,"info@tca2020.org",null,"D000073 - Strumentazioni, software e prodotti innovativi per la misura e l'elaborazione sonora.",12,"28/12/2020","29/12/2020","Blended - Learning","Viale Augusto 9","NA","Napoli",80125,"DD n. 2020. 606 del 16-12-2020.pdf"]
[null,"Umbria","Soggetto idoneo alla formazione","Centro Studi Edili","0742","infocse@gmail.com","Centro Studi Edili sede legale di Foligno (PG) - Palazzo Gerardi, Piazza XX Settembre 19, 06034.","Edizioni Gemelle di 4 ore  \" Fondamenti di acustica concetti di base\"",4,"28/12/2020","31/12/2020","E-Learning","Piazza XX settembre 19","PG","Foligno","06034","Determina 12194 17 dicembre 2020 Fondamenti  C S Edili].pdf"]
[null,"Umbria","Soggetto idoneo alla formazione","Centro Studi Edili","0742354243","infocse@gmail.com","Centro Studi Edili sede legale di Foligno (PG), Palazzo Gerardi, via XX Settembre 19, 06034","Edizioni gemelle di 4 ore \"Normativa nazionale e regionale e la regolamentazione comunale in tema di acustica ambientale\"",4,"28/12/2020","30/12/2020","E-Learning","Palazzom Gerardi Via XX Settembre 19 - 06034 Foligno (PG)","PG","Foligno","06034","Determina 12196 17 dicembre 2020 Normatica C S Edili.pdf"]
[null,"Veneto","Ordine professionale","Ordine degli Ingegneri di Rovigo e Provincia","042521159","segreteria@ordineingegnerirovigo.it","Ordine Ingegneri di Rovigo","Acustica Architettonica",6,"22/09/2020","22/09/2020","E-Learning","Via Leopoldo Baruchello 6/6","RO","Rovigo",45100,"Acustica Architettonica Rovigo Prot ARPAV 25.08.2020.pdf"]
[null,"Puglia","Soggetto idoneo alla formazione","0005 - Consorzio Servizi Artigianato e Piccole Industrie (C.S.A.P.I)",null,null,null,"X000030 - Autorizzazione in deroga per le attività temporanee",10,"19/02/2021","20/02/2021","E-Learning","viale Cicerone 6, Rione Castromediano Cavallino (LE)","LE","Cavallino",73020,"Det_390 del 23.12.2020_signed-signed_COMPLETA.pdf"]
[null,"Veneto","Soggetto idoneo alla formazione","Esse Ti Esse Sicurezza Srl","049-8809842","info@centrodiformazionests.it",null,"La verifica in opera delle prestazioni acustiche degli elementi edilizi",6,"10/03/2023","10/03/2023","Lezioni frontali, E-Learning","Via Romana Aponense 116","PD","Padova",35142,"RICONOSCIMENTO STS RICHIESTA PROT N. 64764 GIUGNO 2019(3).pdf"]
[null,"Veneto","Soggetto idoneo alla formazione","Centro di Formazione STS Srl","049-8809842","info@centrodiformazionests.it",null,"Esperienze ed applicazioni nell\u0092ambito della documentazione di impatto acustico",6,"26/05/2023","26/05/2023","Lezioni frontali, E-Learning","Via Romana Aponense 116","PD","Padova",35142,"Esperienze e Applicazioni nell'ambito della documentazione di impatto acustico STS Prot. 66455 del 30.07.2020(1).pdf"]
[null,"Emilia Romagna","Soggetto idoneo alla formazione","Change srl","059 333024","C.CAPUTI@CHANGESRL.IT","CARMEN CAPUTI","CORSO DI AGGIORNAMENTO PER TECNICO COMPETENTE IN ACUSTICA - I requisiti acustici nei Criteri Ambientali Minimi. Rif. P.A. 2012-14910/RER/1 \u0096 Edizione 1",4,"21/01/2021","21/01/2021","Lezioni frontali","Via O. Respighi, 83  [sede regia vdc]","MO","Modena",41122,"DD_18878_2020(2).pdf"]
[null,"Veneto","Soggetto idoneo alla formazione","Esse Ti Esse Sicurezza Srl","049-8809842","info@centrodiformazionests.it",null,"Analisi di casi di valutazione di impatto acustico per le attivita\u0092 di pubblico spettacolo e temporanee",6,"05/06/2020","05/06/2020","Lezioni frontali, E-Learning","Via Romana Aponense 116","PD","Padova",35142,"aggiornamento TCA_05.06.2020.pdf"]
[null,"Lazio","Ordine professionale","Ordine degli Architetti, Pianificatori, Paesaggisti e Conservatori di Roma e Provincia","06/97604508-06/97604560","presidenza@architettiroma.it","Direttore Didattico \nArch. Andrea Zingarini","Autorizzazione svolgimento corso di aggiorn. professionale per TCA, programmato e gestito dall\u0092Ordine degli Architetti, P., P. e C. di Roma e Provincia - Prima Edizione, anno 2021, due sessioni, 19 e 26 gennaio 2021 \u0096 8 ore formaz, - modalità FAD.",8,"19/01/2021","26/01/2021","E-Learning","Piazza Manfredo Fanti, 47","RM","Roma","00185","Copia_Det.G00048_2021.pdf"]
["D000074","Campania","Soggetto idoneo alla formazione","0001 - Son Training S.r.l.s.",null,"info@sontraining.it","Per informazioni commerciali contattare il  3938319684 - per assistenza tecnica contattare il  3476767388 - oppure inviare una mail a formazione@sontraining.it","D000074 - La Classificazione Acustica del territorio comunale e Norme di attuazione - dalla pianificazione allo sviluppo in maniera sostenibile.",5,"26/02/2021","26/02/2021","E-Learning","VIA PONTANO 6","NA","Nola",80035,"DD_n._1_11_01_2021_SonTraining.pdf"]
["D000075","Campania","Soggetto idoneo alla formazione","0001 - Son Training S.r.l.s.",null,"info@sontraining.it","Per informazioni commerciali contattare il  3938319684 - per assistenza tecnica contattare il  3476767388 - oppure inviare una mail a formazione@sontraining.it","D000075 - Determinazione dei livelli di pressione sonora emesso dalle macchine e dalle apparecchiature sulla base del livello di potenza sonora in ambiente di lavoro.",5,"26/03/2021","26/03/2021","Lezioni frontali","VIA PONTANO 6","NA","Nola",80035,"DD_n._1_11_01_2021_SonTraining(1).pdf"]
["D000076","Campania","Soggetto idoneo alla formazione","0001 - Son Training S.r.l.s.",null,"info@sontraining.it","Per informazioni commerciali contattare il  3938319684 - per assistenza tecnica contattare il  3476767388 - oppure inviare una mail a formazione@sontraining.it","D000076 - Progettazione del confort acustico nelle scuole e in ambienti ospedalieri.",5,"09/04/2021","09/04/2021","Lezioni frontali","VIA PONTANO 6","NA","Nola",80035,"DD_n._1_11_01_2021_SonTraining(2).pdf"]
["D000077","Campania","Soggetto idoneo alla formazione","0001 - Son Training S.r.l.s.",null,"info@sontraining.it","Per informazioni commerciali contattare il  3938319684 - per assistenza tecnica contattare il  3476767388 - oppure inviare una mail a formazione@sontraining.it","D000077 - Valutazione preliminare di impatto acustico per attività commerciali.",5,"23/04/2021","23/04/2021","Lezioni frontali","VIA PONTANO 6","NA","Nola",80035,"DD_n._1_11_01_2021_SonTraining(3).pdf"]
["D000078","Campania","Soggetto idoneo alla formazione","0001 - Son Training S.r.l.s.",null,"info@sontraining.it","Per informazioni commerciali contattare il  3938319684 - per assistenza tecnica contattare il  3476767388 - oppure inviare una mail a formazione@sontraining.it","D000078 - Caratteristiche acustiche interne di ambienti confinati - Metodi di progettazione e tecniche di valutazione - la serie UNI 11532.",5,"21/05/2021","21/05/2021","Lezioni frontali","VIA PONTANO 6","NA","Nola",80035,"DD_n._1_11_01_2021_SonTraining(4).pdf"]
["D000079","Campania","Soggetto idoneo alla formazione","0001 - Son Training S.r.l.s.",null,"info@sontraining.it","Per informazioni commerciali contattare il  3938319684 - per assistenza tecnica contattare il  3476767388 - oppure inviare una mail a formazione@sontraining.it","D000079 - Tollerabilità delle immissioni acustiche: le novità introdotte - commento ed analisi delle ultime sentenze in merito - acustica forense.",5,"28/05/2021","28/05/2021","Lezioni frontali","VIA PONTANO 6","NA","Nola",80035,"DD_n._1_11_01_2021_SonTraining(5).pdf"]
["D000080","Campania","Soggetto idoneo alla formazione","0001 - Son Training S.r.l.s.",null,"info@sontraining.it","Per informazioni commerciali contattare il  3938319684 - per assistenza tecnica contattare il  3476767388 - oppure inviare una mail a formazione@sontraining.it","D000080 - Misurazioni di rumore e vibrazione nei luoghi di lavoro - progettazione degli interventi di bonifica.",5,"25/06/2021","25/06/2021","Lezioni frontali","VIA PONTANO 6","NA","Nola",80035,"DD_n._1_11_01_2021_SonTraining(6).pdf"]
["D000081","Campania","Soggetto idoneo alla formazione","0001 - Son Training S.r.l.s.",null,"info@sontraining.it","Per informazioni commerciali contattare il  3938319684 - per assistenza tecnica contattare il  3476767388 - oppure inviare una mail a formazione@sontraining.it","D000081 - Valutazione previsionale di impatto acustico per le attività di pubblico spettacolo e temporanee.",5,"09/07/2021","09/07/2021","Lezioni frontali","VIA PONTANO 6","NA","Nola",80035,"DD_n._1_11_01_2021_SonTraining(7).pdf"]
["D000082","Campania","Soggetto idoneo alla formazione","0001 - Son Training S.r.l.s.",null,"info@sontraining.it","Per informazioni commerciali contattare il  3938319684 - per assistenza tecnica contattare il  3476767388 - oppure inviare una mail a formazione@sontraining.it","D000082 - Modelli di previsione acustica. Corso base sull'utilizzo dei software di simulazione - esempi pratici.",5,"14/09/2021","14/09/2021","Lezioni frontali","VIA PONTANO 6","NA","Nola",80035,"DD_n._1_11_01_2021_SonTraining(8).pdf"]
["D000083","Campania","Soggetto idoneo alla formazione","0001 - Son Training S.r.l.s.",null,"info@sontraining.it","Per informazioni commerciali contattare il  3938319684 - per assistenza tecnica contattare il  3476767388 - oppure inviare una mail a formazione@sontraining.it","D000083 - Tecniche di progettazione della insonorizzazione di impianti tecnologici industriali e civili.",5,"28/09/2021","28/09/2021","Lezioni frontali","VIA PONTANO 6","NA","Nola",80035,"DD_n._1_11_01_2021_SonTraining(9).pdf"]
["D000084","Campania","Soggetto idoneo alla formazione","0001 - Son Training S.r.l.s.",null,"info@sontraining.it","Per informazioni commerciali contattare il  3938319684 - per assistenza tecnica contattare il  3476767388 - oppure inviare una mail a formazione@sontraining.it","D000084 - La stima dell'incertezza di misura nella procedura di rilevazione del livello acustico ambientale.",5,"19/10/2021","19/10/2021","Lezioni frontali","VIA PONTANO 6","NA","Nola",80035,"DD_n._1_11_01_2021_SonTraining(10).pdf"]
[null,"Emilia Romagna","Soggetto idoneo alla formazione","Associazione Assform","0541 1796402","seg-corsi@assform.it","Semprini Mario Paolo","Aggiornamento Tecnico Competente in Acustica. Gli errori nelle misure di rumore e di vibrazione. Rif. P.A. 2019-14559/RER/1 - Edizione 3",5,"27/01/2021","27/01/2021","Lezioni frontali","Corso Giovanni XXIII, 131 [sede regia vdc]","RN","Rimini",47921,"DD_15009_2020(6).pdf"]
[null,"Emilia Romagna","Soggetto idoneo alla formazione","Associazione Assform","0541 1796402","seg-corsi@assform.it","Semprini Mario Paolo","Aggiornamento Tecnico Competente in Acustica. Vedere il rumore: Teoria e pratica della tecnica beamforming. Rif. P.A. 2019-14560/RER/1 - Edizione 3",5,"28/01/2021","28/01/2021","Lezioni frontali","Corso Giovanni XXIII, 131 [sede regia vdc]","RN","Rimini",47921,"DD_15009_2020(7).pdf"]
[null,"Lazio","Soggetto idoneo alla formazione","CRESCO Formazione e Consulenza Srl","07761815115","info@pec.crescosrl.net","Direttore Didattico:\nMariconte Raffaele","Autorizzazione svolgimento corso di aggiornamento profess. per TCA, programmato e gestito dalla CRESCO Formazione e Consulenza Srl - Prima Edizione, anno 2021, unica sessione, 4 febbraio 2021 \u0096 5 ore formazione - modalità FAD.",5,"04/02/2021","04/02/2021","E-Learning","Via Tofaro, 42","FR","Sora","03039","Det_G00184_2021.pdf"]
[null,"Lazio","Ordine professionale","Ordine degli Ingegneri della Provincia di Roma",null,null,null,"La qualità acustica degli ambienti confinati, aggiornamenti normativi ed esempi pratici.",10,"16/02/2021","18/02/2021","E-Learning","Piazza della Repubblica n. 59, 00185 Roma","RM","Roma","00185","G00186_2021_Copia-293-compresso.pdf"]
[null,"Umbria","Soggetto idoneo alla formazione","Centro Studi Edili","0742354243","info.cse@gmail.com","Centro Studi Edili - Palazzo Gerardi,  Piazza xx Settembre 19 - 06034 Foligno (PG)","Fondamentali di acustica e concetti base",4,"26/02/2021","26/02/2021","E-Learning","Piazza XX settembre 19","PG","Foligno","06034","DD n. 400 del 19 gennaio 2020 autorizzazione corso C.S.E.pdf"]
[null,"Lombardia","Soggetto idoneo alla formazione","TECO MILANO SRL",null,null,null,"AGG112. Rumore e vibrazioni dei luoghi di lavoro",6,"19/02/2021","19/02/2021","Lezioni frontali","c/o Assoacustici Corso Italia 13 \u0096 Saronno (VA)","VA","Saronno",21047,"Riscontro AGG112.pdf"]
[null,"Lombardia","Soggetto idoneo alla formazione","TECO MILANO SRL",null,null,null,"AGG113. Rumore e vibrazioni dei cantieri",6,"22/02/2021","22/02/2021","Lezioni frontali","c/o Assoacustici Corso Italia 13 \u0096 Saronno (VA)","VA","Saronno",21047,"Riscontro AGG113.pdf"]
[null,"Lombardia","Soggetto idoneo alla formazione","AIAS Academy S.r.l.",null,null,null,"AGG114. Acustica Forense.",8,"11/02/2021","11/02/2021","Lezioni frontali","Viale Thomas Alva Edison, 110 - 20099 Sesto San Giovanni (MI)","MI","Sesto San Giovanni",20099,"Riscontro AGG114-unito.pdf"]
[null,"Lombardia","Soggetto idoneo alla formazione","AIAS Academy S.r.l.",null,null,null,"AGG115. Acustica nei luoghi di lavoro",8,"24/02/2021","24/02/2021","Lezioni frontali","Viale Thomas Alva Edison, 110 - 20099 Sesto San Giovanni (MI)","MI","Sesto San Giovanni",20099,"Riscontro AGG115.pdf"]
[null,"Lombardia","Soggetto idoneo alla formazione","AIAS Academy S.r.l.",null,null,null,"AGG116. Acustica Architettonica e CAM",8,"11/03/2021","11/03/2021","Lezioni frontali","Viale Thomas Alva Edison, 110 - 20099 Sesto San Giovanni (MI)","MI","Sesto San Giovanni",20099,"Riscontro AGG116.pdf"]
[null,"Sardegna","Soggetto idoneo alla formazione","0002 - ARTIGIAN SERVICE S C C A R L",null,null,null,"P000004 - Normative e approfondimento sulla valutazione del rumore eolico",10,"01/02/2021","15/02/2021","E-Learning","Via Michele Pira n. 27","OR","Oristano","09170","det n_64 prot_2041 del 25-01-2021.pdf"]
[null,"Puglia","Soggetto idoneo alla formazione","0001 - SON TRAINING SRLS",null,"sontraining@pec.it",null,"X000031 - La bonifica acustica negli ambienti di lavoro: progettazione, metodi ed esempi applicativi \u0096 il piano aziendale di riduzione dell\u0092esposizione al rumore (PARE)",5,"05/02/2021","05/02/2021","E-Learning","Ordine degli Architetti di BARI \u0096 Via Japigia 184 \u0096 BARI","BA","Bari",70126,"Det_011_del 21.01.2021_MCB_signed-signed_completa.pdf"]
[null,"Puglia","Soggetto idoneo alla formazione","0001 - SON TRAINING SRLS",null,"sontraining@pec.it",null,"X000032 - Come scegliere correttamente gli elementi edilizi sulla base delle loro caratteristiche acustiche",5,"12/03/2021","12/03/2021","E-Learning","Ordine degli Architetti di BARI \u0096 Via Japigia 184 \u0096 BARI","BA","Bari",70126,"Det_011_del 21.01.2021_MCB_signed-signed_completa(1).pdf"]
[null,"Puglia","Soggetto idoneo alla formazione","0001 - SON TRAINING SRLS",null,"sontraining@pec.it",null,"X000033 - Misurazione in opera della rumorosità di impianti \u0096 esempi applicativi su ascensori ed impianti tecnologici in genere",5,"17/06/2021","17/06/2021","E-Learning","Ordine degli Architetti di Bari - Via Japigia 184 \u0096 BARI","BA","Bari",70126,"Det_011_del 21.01.2021_MCB_signed-signed_completa(2).pdf"]
[null,"Puglia","Soggetto idoneo alla formazione","0001 - SON TRAINING SRLS",null,"sontraining@pec.it",null,"X000034 - Analisi dettagliata dei parametri acustici da misurare in ambiente di vita e di lavoro",5,"15/07/2021","15/07/2021","E-Learning","Ordine degli Architetti di Bari - Via Japigia 184 \u0096 BARI","BA","Bari",70126,"Det_011_del 21.01.2021_MCB_signed-signed_completa(3).pdf"]
[null,"Puglia","Soggetto idoneo alla formazione","0001 - SON TRAINING SRLS",null,"sontraining@pec.it",null,"X000035 - Metodiche di misurazione dei Requisiti Acustici Passivi ai sensi delle ultime norme UNI di collaudo",5,"23/07/2021","23/07/2021","E-Learning","Ordine degli Architetti di Bari - Via Japigia 184 \u0096 BARI","BA","Bari",70126,"Det_011_del 21.01.2021_MCB_signed-signed_completa(4).pdf"]
[null,"Puglia","Soggetto idoneo alla formazione","0001 - SON TRAINING SRLS",null,"sontraining@pec.it",null,"X000036 - Strumentazioni e tecniche di misura \u0096 corrette impostazioni ed esercitazioni pratiche sull\u0092uso dei fonometri",5,"05/10/2021","05/10/2021","E-Learning","Ordine degli Architetti di Bari - Via Japigia 184 \u0096 BARI","BA","Bari",70126,"Det_011_del 21.01.2021_MCB_signed-signed_completa(5).pdf"]
[null,"Marche","Ordine professionale","Ordine degli ingegneri della provincia di Macerata","0733 233111","segreteria@ordineingegnerimacerata.it","Segreteria","acustica per gli interni e regole per l\u0092acustica nelle ristrutturazioni",10,"24/03/2021","30/03/2021","E-Learning","Via Famiglia Palmieri n. 26","MC","Macerata",62100,"DDVAA_Ingg_MC_corso_agg_feb_2021.docx.pdf"]
[null,"Abruzzo","Soggetto idoneo alla formazione","Fondazione Architetti, Chieti-Pescara","085/693726","fondazione@architettichpe.it","Arch. Maria Cicchitti\nhttps://www.architettichpe.it/","Tecnico Competente Acustica: La Pianificazione Integrata dell'Inquinamento Acustico Urbano",8,"26/02/2021","05/03/2021","E-Learning","Piazza Garibaldi, n. 42","PE","Pescara",65127,"DPC021-017 del 22.01.21.pdf"]
[null,"Friuli Venezia Giulia","Ordine professionale","Ordine degli Ingegneri della Provincia di Trieste","040773690","segreteria@ordineingegneri.ts.it","040773690\nsegreteria@ordineingegneri.ts.it\ntrieste@ordineingegneri.legalmail.it","AGG010. Corso di aggiornamento per tecnici competenti in acustica",18,"19/02/2021","19/03/2021","E-Learning","modalità FAD","TS","Trieste",34100,"INACCRS12.PDF"]
[null,"Piemonte","Soggetto idoneo alla formazione","IEC S.r.l. Industrial Engineering Consultant","0112425353","iec@iectorino.com",null,"Piani di risanamento Acustico per le \"Sorgenti Fisse\": adempimenti normativi, impostazione metodologica e casi studio",8,"25/03/2021","25/03/2021","Lezioni frontali","Via Botticelli 151","TO","Torino",10154,"dd BU  28 del 21_1_2021.1.pdf"]
[null,"Piemonte","Soggetto idoneo alla formazione","IEC S.r.l. Industrial Engineering Consultant","0112425353","iec@iectorino.com",null,"La bonifica acustica negli ambienti di lavoro: normativa vigente, metodologie di studio ed esercitazione applicativa",8,"12/05/2021","12/05/2021","Lezioni frontali","Via Botticelli 151","TO","Torino",10154,"dd BU  28 del 21_1_2021.1(1).pdf"]
[null,"Lombardia","Soggetto idoneo alla formazione","SINTEX S.r.l.",null,null,null,"AGG117. LE VALUTAZIONI PREVISIONALI DI CLIMA E IMPATTO ACUSTICO",8,"02/03/2021","02/03/2021","Lezioni frontali","Centro di formazione SINTEX S.r.l. - 25030 Torbole Casaglia (Bs), via Artigianato 9","BS","Torbole Casaglia",25030,"T1.2021.0008735.pdf"]
[null,"Sardegna","Ordine professionale","0001 - ORDINE DEGLI INGEGNERI DELLA PROVINCIA DI CAGLIARI","070499703","ordine.cagliari@ingpec.eu",null,"P000005 - Criteri esecutivi per la pianificazione, il risanamento ed il controllo delle emissioni sonore",8,"18/03/2021","19/03/2021","E-Learning","Via Tasso 25","CA","Cagliari","09128","Determinazione n_328 prot_11756 del 17-06-2020(2).pdf"]
[null,"Emilia Romagna","Soggetto idoneo alla formazione","ADDESTRA S.R.L.","0546 624975",null,"FIORINI LORETTA","Corso di aggiornamento per il tecnico competente in acustica - MISURAZIONI DI RUMORE E VIBRAZIONI NEI LUOGHI DI LAVORO. Rif. P.A. 2019-14422/RER/1 - Edizione 2",5,"01/03/2021","01/03/2021","Lezioni frontali","via Mengolina, 33 [sede regia vdc]","RA","Faenza",48018,"DD_ 12780_2020(2).pdf"]
[null,"Emilia Romagna","Soggetto idoneo alla formazione","Associazione Assform","0541 1796402","seg-corsi@assform.it","Semprini Mario Paolo","Aggiornamento Tecnico Competente in Acustica. L'uso di strumenti evoluti per l'analisi della qualità acustica di ambienti interni. Rif. P.A. 2019-14558/RER/1 - Edizione 2",8,"16/02/2021","17/02/2021","Lezioni frontali","Corso Giovanni XXIII, 131 [sede regia vdc]","RN","Rimini",47921,"DD_15009_2020(8).pdf"]
[null,"Emilia Romagna","Soggetto idoneo alla formazione","Associazione Assform","0541 1796402","seg-corsi@assform.it","Semprini Mario Paolo","Aggiornamento Tecnico Competente in Acustica. La classificazione acustica degli edifici. Rif. P.A. 2019-14362/RER/1 - Edizione 3",8,"22/02/2021","23/02/2021","Lezioni frontali","Corso Giovanni XXIII, 131 [sede regia vdc]","RN","Rimini",47921,"DD_10169_2020(6).pdf"]
[null,"Sicilia","Soggetto idoneo alla formazione","TECNASERVICE -SRL","0932-663167","tecnaservicesrl@cnaragusa.it","web: www.tecnaserviceragusa.com","D.R.S. n.  887/2020 5.1 - Rumore di Infrastrutture di trasporto - modalità FAD",6,"05/03/2021","05/03/2021","Blended - Learning, E-Learning","Via Psaumida, 38","RG","Ragusa",97100,"DRS_887_TECNASERVICE+PROGRAMMA.pdf"]
[null,"Sicilia","Soggetto idoneo alla formazione","TECNASERVICE -SRL","0932-663167","tecnaservicesrl@cnaragusa.it","www.tecnaserviceragusa.com","D.R.S. n. 887/2020 - 5.2 - 'Lo stato di attuazione del Dlgs.42/17: cosa è cambiato rispetto alla legge quadro 447/95'",6,"02/04/2021","02/04/2021","Lezioni frontali","Via Psaumida, 38","RG","Ragusa",97100,"DRS_887_TECNASERVICE+PROGRAMMA(1).pdf"]
[null,"Sicilia","Soggetto idoneo alla formazione","TECNASERVICE -SRL","0932-663167","tecnaservicesrl@cnaragusa.it","www.tecnaserviceragusa.com","D.R.S. n. 887/2020 5.3 - III - Pareri preventivi sulle immissioni sonore delle sorgenti",6,"07/05/2021","07/05/2021","Lezioni frontali","Via Psaumida, 38","RG","Ragusa",97100,"DRS_887_TECNASERVICE+PROGRAMMA(2).pdf"]
[null,"Sicilia","Soggetto idoneo alla formazione","TECNASERVICE -SRL","0932-663167","tecnaservicesrl@cnaragusa.it","www.tecnaserviceragusa.com","D.R.S. n.  887/2020 5.4 - IV - Misure e limiti per le sorgenti sonore fisse",6,"04/06/2021","04/06/2021","Lezioni frontali","Via Psaumida, 38","RG","Ragusa",97100,"DRS_887_TECNASERVICE+PROGRAMMA(3).pdf"]
[null,"Sicilia","Soggetto idoneo alla formazione","TECNASERVICE -SRL","0932-663167","tecnaservicesrl@cnaragusa.it","www.tecnaserviceragusa.com","D.R.S. n.  887/2020 5.5 - V - Acustica Forense - corso previsto per il 25.06.2021 spostato all' 8.10.2021",6,"08/10/2021","08/10/2021","Lezioni frontali","Via Psaumida, 38","RG","Ragusa",97100,"DRS_887_TECNASERVICE+PROGRAMMA(4).pdf"]
[null,"Lombardia","Soggetto idoneo alla formazione","Scuola Edile di Bergamo",null,null,null,"AGG118. Incertezza di misura e calcolo in acustica",6,"01/03/2021","01/03/2021","E-Learning","Via Antonio Locatelli 15","BG","Seriate",24068,"T1.2021.0011885.pdf"]
[null,"Lazio","Ordine professionale","Ordine degli Ingegneri della Provincia di Roma","064879311","protocollo@ording.roma.it","Direttore Didattico\nIng. Carlo Fascinelli","Autorizzazione per lo svolgimento corso di aggiorn. prof. per TCA, programmato e gestito dall\u0092Ordine degli Ingegneri Provincia di Roma \u0096 2° Edizione, anno 2021, 17/24 marzo 2021 \u0096 10 ore formazione - modalità FAD.",10,"17/03/2021","24/03/2021","E-Learning","Piazza della Repubblica, 59","RM","Roma","00185","Det_G01603_2021.pdf"]
[null,"Marche","Soggetto idoneo alla formazione","E-TRAIN SRL","071 4604348","info@e-train.it","Dott. Antonio Chiarini","Criteri ambientali minimi e comfort acustico",8,"20/04/2021","27/04/2021","E-Learning","Via Solari, 27","AN","Loreto",60025,"DDPF 25_21.pdf"]
[null,"Umbria","Ordine professionale","Ordine degli Ingegneri della Provincia di Terni","0744 403284","segreteria@ordingtr.it","Ordine degli Ingegneri della Provincia di Terni - Piazza M. Ridolfi 4/7 05100 Terni\nhttp://formazione.ordingtr.it","Aggiornamento teorico e pratico su Legislazione e tecniche di modellazione relative all'Acustica Ambientale in ambito Nazionale e Comunitario",12,"09/04/2021","16/04/2021","E-Learning","Piazza M. Ridolfi n. 4/7","TR","Terni","05100","DD n. 1478 del 17 02 207 Ordine Ing. Provincia di TR.pdf"]
[null,"Toscana","Collegio professionale","COLLEGIO DEI GEOMETRI DELLA PROVINCIA DI FIRENZE","055/5002371","info@geometrifirenze.it",null,"PROGETTAZIONE REQUISITI ACUSTICI PASSIVI DI EDIFICI",5,"11/11/2020","11/11/2020","E-Learning","VIA S.LAVAGNINI 42","FI","Firenze","05012","DecrDir2142Febbr2021Ric2Corsi2020.pdf"]
[null,"Toscana","Collegio professionale","COLLEGIO DEI GEOMETRI DELLA PROVINCIA DI FIRENZE","055/5002371","info@geometrifirenze.it",null,"COLLAUDO ACUSTICO SECONDO UNI16283",5,"17/12/2020","17/12/2020","E-Learning","VIA S.LAVAGNINI 42","FI","Firenze",50129,"DecrDir2142Febbr2021Ric2Corsi2020(1).pdf"]
[null,"Toscana","Collegio professionale","COLLEGIO DEGLI INGEGNERI DELLA TOSCANA","055/2823662","info@collegioingegneri.toscana.it",null,"ACUSTICA ARCHITETTONICA E CAM",8,"27/10/2020","28/10/2020","E-Learning","VIA DELLA FORTEZZA 6","FI","Firenze",50129,"DecrDir2142Febbr2021Ric2Corsi2020(2).pdf"]
[null,"Toscana","Collegio professionale","COLLEGIO DEGLI INGEGNERI DELLA TOSCANA","055/2823662","info@collegioingegneri.toscana.it",null,"ACUSTICA NEI LUOGHI DI LAVORO",8,"17/11/2020","18/11/2020","E-Learning","VIA DELLA FORTEZZA 6","FI","Firenze",50129,"DecrDir2142Febbr2021Ric2Corsi2020(3).pdf"]
[null,"Toscana","Collegio professionale","COLLEGIO DEGLI INGEGNERI DELLA TOSCANA","055/2823662","info@collegioingegneri.toscana.it",null,"ACUSTICA FORENSE",8,"01/12/2020","03/12/2020","E-Learning","VIA DELLA FORTEZZA 6","FI","Firenze",50129,"DecrDir2142Febbr2021Ric2Corsi2020(4).pdf"]
[null,"Toscana","Soggetto idoneo alla formazione","COMUNE DI FIRENZE   STRUTTURA FORMATIVA INTERNA","055/2625682","direzione.istruzione@comune.fi.it",null,"COMPITI DEI COMUNI IN MATERIA DI ACUSTICA E DISPOSIZIONI COMUNITARIE",6,"26/11/2020","09/12/2020","E-Learning","via Nicolodi 2","FI","Firenze",50131,"DecrDir2142Febbr2021Ric2Corsi2020(5).pdf"]
[null,"Toscana","Soggetto idoneo alla formazione","COMUNE DI FIRENZE   STRUTTURA FORMATIVA INTERNA","055/2625682","direzione.istruzione@comune.fi.it",null,"IL DECRETO 81/2008 E LA DIRETTIVA MACCHINE PER LA TUTELA DEI LAVORAT",6,"26/11/2020","09/12/2020","E-Learning","via Nicolodi 2","FI","Firenze",50131,"DecrDir2142Febbr2021Ric2Corsi2020(6).pdf"]
[null,"Toscana","Soggetto idoneo alla formazione","AGENZIA FORMATIVA DELTA FORMAZIONE","0571/34503","info@deltaformazione.com",null,"IMPATTO E CLIMA ACUSTICO",5,"10/10/2020","10/10/2020","E-Learning","VIA VIVIANI 4","PI","Santa Croce sull'Arno",56124,"DecrDir2142Febbr2021Ric2Corsi2020(7).pdf"]
[null,"Toscana","Soggetto idoneo alla formazione","AGENZIA FORMATIVA DELTA FORMAZIONE","0571/34503","info@deltaformazione.com",null,"IMPATTO E CLIMA ACUSTICO",5,"19/12/2020","19/12/2020","E-Learning","VIA VIVIANI 4","PI","Santa Croce sull'Arno",56124,"DecrDir2142Febbr2021Ric2Corsi2020(8).pdf"]
[null,"Toscana","Ordine professionale","ORDINE INGEGNERI DELLA PROVINCIA DI MASSA CARRARA","0585/70466","ordine@ordineingegnerimassacarrara.it",null,"RUMORE DERIVANTE DA IMPIANTI DI VENTILAZIONE",4,"09/10/2020","09/10/2020","E-Learning","PIAZZA MATTEOTTI 4","MS","Carrara",54033,"DecrDir2142Febbr2021Ric2Corsi2020(9).pdf"]
[null,"Toscana","Soggetto idoneo alla formazione","AGENZIA FORMATIVA PITAGORA","0587/707050","info@pitagoraformazione.net",null,"VALUTAZIONE E MISURA DEL RUMORE IN AMBIENTE ESTERNO",12,"10/12/2020","17/12/2020","E-Learning","VIA BASILICATA 1/A","SI","Montepulciano",53045,"DecrDir2142Febbr2021Ric2Corsi2020(10).pdf"]
[null,"Toscana","Soggetto idoneo alla formazione","AGENZIA FORMATIVA SECURA","055/704506","secura@secura.it",null,"RUMORE INFRASTRUTTURE TRASPORTO INCERTEZZA MISURE E TARATURA MODELLI ACUSTICI",10,"29/09/2020","20/10/2020","E-Learning","VIA SOFFIANO 15","FI","Firenze",50143,"DecrDir2142Febbr2021Ric2Corsi2020(11).pdf"]
[null,"Toscana","Soggetto idoneo alla formazione","AGENZIA FORMATIVA UPSKILL","0584/1661026","abelloni@upskilltc.it",null,"RICHIESTE DI DEROGA AI LIMITI ACUSTICI PER ATTIVITA\u0092 TEMPORANEE",5,"15/10/2020","15/10/2020","E-Learning","VIA TRIESTE 28","LU","Viareggio",55049,"DecrDir2142Febbr2021Ric2Corsi2020(12).pdf"]
[null,"Toscana","Soggetto idoneo alla formazione","AGENZIA FORMATIVA UPSKILL","0584/1661026","abelloni@upskilltc.it",null,"VALUTAZIONE PREVISIONALE IMPATTO ACUSTICO",5,"28/10/2020","28/10/2020","E-Learning","VIA TRIESTE 28","LU","Viareggio",55049,"DecrDir2142Febbr2021Ric2Corsi2020(13).pdf"]
[null,"Veneto","Soggetto idoneo alla formazione","ISRE QAS","041995202","amministrazione@qasc.it","QAS Consulting Soc. Coop. Spinea (VE)","Aggiornamento normativo per TCA in materia di acustica ambientale ed edilizia",6,"22/02/2021","22/02/2021","Lezioni frontali, E-Learning","Viale Sanremo 36","VE","Spinea",30038,"RICONOSCIMENTO CORSO QAS CONSULTING PROT 11080 DEL 8.2.21.pdf"]
[null,"Veneto","Ordine professionale","Ordine degli Ingegneri di Padova e Provincia",3938926845,"fip@fondazioneingegneripadova.org","Ordine degli Ingegneri di Padova e Provincia","Impatto acustico dei cantieri e la norma UNI 11728 - Linee guida sulla pianificazione e gestione del rumore di cantiere",6,"18/03/2021","18/03/2021","Lezioni frontali, E-Learning","Piazza Salvemini 2","PD","Padova",35100,"RICONOSCIMENTO CORSO ING PROT 11081 DEL 8.2.21.pdf"]
[null,"Veneto","Ordine professionale","Ordine degli Ingegneri di Padova e Provincia",3938926845,"fip@fondazioneingegneripadova.org","Ordine degli Ingegneri di Padova e Provincia","Misure acustiche con tecnica MLS",6,"15/02/2021","15/02/2021","Lezioni frontali, E-Learning","Piazza Salvemini 2","PD","Padova",35100,"RICONOSCIMENTO CORSO ING PROT 11085 DEL 8.2.21.pdf"]
[null,"Veneto","Ordine professionale","Ordine degli Ingegneri di Padova e Provincia",3938926845,"fip@fondazioneingegneripadova.org","Ordine degli Ingegneri di Padova e Provincia","Trasmissioni laterali del rumore in edilizia - Modelli di calcolo e misure in laboratorio",6,"16/02/2021","16/02/2021","Lezioni frontali, E-Learning","Piazza Salvemini 2","PD","Padova",35100,"RICONOSCIMENTO CORSO ING PROT 11086 DEL 8.2.21.pdf"]
[null,"Veneto","Ordine professionale","Ordine degli Ingegneri di Padova e Provincia",3938926845,"fip@fondazioneingegneripadova.org","Ordine degli Ingegneri di Padova e Provincia","Acustica per interni: comfort degli ambienti chiusi, tempo di riverberazione e STI - La valutazione della qualità acustica in spazi confinati",6,"04/03/2021","04/03/2021","Lezioni frontali, E-Learning","Piazza Salvemini 2","PD","Padova",35100,"RICONOSCIMENTO CORSO ING PROT 11087 DEL 8.2.21.pdf"]
[null,"Sicilia","Soggetto idoneo alla formazione","E-Train s.r.l. - Palermo","071 4604349","info@e-train.it","E-Train S.r.l.\nSede Legale: Via Solari, 27\n60025 - Loreto (AN)\netrain@pec.it","D.R.S. n. 72/2021 - 3.1 - I - La valutazione dei requisiti acustici passivi con le nuove norme UNI ISO 12354-2017 - variazione date previste per il 08-15 ottobre 2020 posticipate al 20-27 aprile 2021 (FAD)",12,"20/04/2021","27/04/2021","Blended - Learning, E-Learning","Piazza Ruggero Settimo","PA","Palermo",90139,"DRS_n.72_2021_Palermo_sede_ occasionale_e_programma.pdf"]
[null,"Lazio","Ordine professionale","Ordine degli Architetti, Pianificatori, Paesaggisti e Conservatori di Roma e Provincia","06/97604508-06/97604560","ordine@pec.architettiroma.it","Direttore Didattico:\nArch. Chiara Alippi","Autorizzazione corso di aggiornam. prof. per TCA, gestito dall\u0092Ordine degli Architetti, Pianificatori, Paesaggisti e Conservatori di Roma e Provincia - Seconda Edizione, anno 2021, due sessioni, 16 e 23 marzo 2021 \u0096 8 ore formazione - modalità FAD.",8,"16/03/2021","23/03/2021","E-Learning","Piazza Manfredo Fanti, 47","RM","Roma","00185","Copia_Det_G01849_2021.pdf"]
[null,"Emilia Romagna","Soggetto idoneo alla formazione","Associazione Assform","0541 1796402","seg-corsi@assform.it","Semprini Mario Paolo","Aggiornamento Tecnico Competente in Acustica. La classificazione acustica degli edifici. Rif. P.A. 2019-14362/RER/1 - Edizione 4",8,"22/03/2021","23/03/2021","Lezioni frontali","Corso Giovanni XXIII, 131 [sede regia vdc]","RN","Rimini",47921,"DD_10169_2020(7).pdf"]
[null,"Veneto","Soggetto idoneo alla formazione","ISRE QAS","041-991615","amministrazione@qasc.it",null,"Aggiornamento normativo per TCA in materia di acustica ambientale ed edilizia_seconda edizione",6,"29/03/2021","29/03/2021","E-Learning","Viale Sanremo 36","VE","Spinea",30038,"27790b_RICONOSCIMENTO_CORSO_QAS_CONSULTING_PROT_5514_DEL_22.01.21_fd.pdf"]
[null,"Lombardia","Ordine professionale","ORDINE DEGLI INGEGNERI DELLA PROVINCIA DI PAVIA","0382/22070","segreteria2@ording.pv.it","www.isiformazione.it","AGG119. Gli errori più comuni nelle misure acustiche",6,"25/03/2021","26/03/2021","Lezioni frontali, E-Learning","Viale Indipendenza 11","PV","Pavia",27100,"T1.2021.0013872.pdf"]
[null,"Lombardia","Ordine professionale","Ordine degli Architetti PPC della Provincia di Bergamo",null,null,null,"AGG120. Il collaudo acustico secondo le UNI EN ISO 16283",6,"09/03/2021","16/03/2021","Lezioni frontali, E-Learning","Sede ANIT, via Lanzone, 31","MI","Milano",20123,"T1.2021.0014993-unito.pdf"]
[null,"Veneto","Ordine professionale","Ordine degli Ingegneri di Venezia e Provincia","041 5289114","fondazione@ordineingegneri.ve.it","Ordine degli Ingegneri di Venezia e Provincia","CORSO IN STREAMING ACUSTICA IN EDILIZIA II MODULO - Acustica edilizia e tenuta all'aria dell'involucro. Casi studio nelle ristrutturazioni e nei nuovi edifici",6,"17/03/2021","24/03/2021","E-Learning","Via B. Maderna 7","VE","Venezia",30174,"RICONOSCIMENTO ING VE PROT. 12221 11.02.2021_fd.pdf"]
[null,"Marche","Ordine professionale","Ordine degli ingegneri della provincia di macerata","0733 233111","segreteria@ordineingegnerimacerata.it","segreteria","il rumore delle infrastrutture di trasporto lineari - norme in materia di inquinamento acustico da traffico ferroviario e veicolare",4,"19/03/2021","19/03/2021","E-Learning","via Famiglia Palmieri n. 26","MC","Macerata",62100,"DDVAA_Ingg_MC_corso_agg_marzo_2021.docx.pdf"]
[null,"Umbria","Soggetto idoneo alla formazione","Meccanotecnica Umbra Academy S.r.l.","0743 2791","info@mtuacademy.org","Meccanotecnica Umbra Academy Via Giovanni Agnelli 7 - Campello sul Clitunno 06042 (PG)","La valutazione previsionale d'impatto acustico: dalla misura dello stato di fatto alla redazione della relazione tecnica",4,"15/04/2021","15/04/2021","E-Learning","Via G. Agnelli 7/9","PG","Campello sul Clitunno","06042","D.D. n. 2217 del 11 marzo 2021 Meccanotecnica Umbra Academy1.0].pdf"]
[null,"Umbria","Soggetto idoneo alla formazione","Centro Studi Edili","0742354243","info.cse@gmail.com","Centro Studi Edili \nsede Palazzo Gerardi - Piazza XX Settembre 19- 06034 Foligno (PG)","Fondamenti di acustica concetti di base modulo 2",4,"26/03/2021","23/04/2021","E-Learning","Palazzom Gerardi Via XX Settembre 19 - 06034 Foligno (PG)","PG","Foligno","06034","DD n. 2218 del 11 marzo 2021 Autorizzazione Centro Studi Edili [1.0].pdf"]
[null,"Veneto","Ordine professionale","Ordine degli Ingegneri di Vicenza e Provincia","0444322947","segreteria@ordine.ingegneri.vi.it","Ordine degli Ingegneri di Vicenza e Provincia","LA VALUTAZIONE DI IMPATTO ACUSTICO PER LE ATTIVITA' DI PUBBLICO SPETTACOLO E TEMPORANEE - parte 1",6,"15/04/2021","15/04/2021","Lezioni frontali, E-Learning","Via Luigi Massignan 4/b","VI","Vicenza",36100,"RICONOSCIMENTO ING VI PROT. 15989 23.02.2021_fd.pdf"]
[null,"Veneto","Ordine professionale","Ordine degli Ingegneri di Vicenza e Provincia","0444322947","segreteria@ordine.ingegneri.vi.it","Ordine degli Ingegneri di Vicenza e Provincia","Tecniche di progettazione e valutazione delle prestazioni acustiche degli edifici",6,"01/04/2021","01/04/2021","Lezioni frontali, E-Learning","Via Luigi Massignan 4/b","VI","Vicenza",36100,"RICONOSCIMENTO ING VI PROT. 17922 26.02.2021_fd.pdf"]
[null,"Lazio","Ordine professionale","Ordine degli Ingegneri della Provincia di Roma","064879311","protocollo@ording.roma.it","Direttore Didattico:\nIng. Carlo Fascinelli","Autorizzazione svolgimento corso di aggiorn. profess. per TCA, programmato e gestito dall\u0092Ordine degli Ingegneri della Provincia di Roma - Terza Edizione, anno 2021, due sessioni, 19 e 21 aprile 2021 \u0096 10 ore formazione - modalità FAD.",10,"19/04/2021","21/04/2021","E-Learning","Piazza della Repubblica, 59","RM","Roma","00185","Det_G02599_2021.pdf"]
[null,"Umbria","Soggetto idoneo alla formazione","Centro Studi Edili","0742354243","info.cse@gmail.com","Centro Studi Edili - Palazzo Gerardi Piazza XX Settembre 19- 06034 Foligno (PG)","Fondamentali di acustica  concetti base",4,"02/04/2021","02/04/2021","E-Learning","Piazza XX settembre 19","PG","Foligno","06034","DD n. 2288 del 15 marzo 2021 Centro Studi Edili Fon. Base.pdf"]
[null,"Umbria","Soggetto idoneo alla formazione","Centro Studi Edili","0742354243","info.cse@gmail.com","Centro Studi Edili - Palazzo Gerardi - Piazza XX Settembre 19 - 06034 Foligno (PG)","Normativa nazionale e regionale e la regolamentazione comunale in tema di acustica ambientale",4,"09/04/2021","09/04/2021","E-Learning","Piazza XX settembre 19","PG","Foligno","06034","DD n. 2289 del 15 marzo 2021 Centro Studi Edili  Normativa.pdf"]
[null,"Marche","Soggetto idoneo alla formazione","E-TRAIN SRL","071 4604348","info@e-train.it","Dott. Antonio Chiarini","Nuove date - Incertezza di misura in acustica applicata. Codice Siform2: 1019397",8,"19/07/2021","26/07/2021","E-Learning","Via I Maggio, 1/F","MC","Macerata",62100,"ddpf n.932 del 21.09.2020.pdf"]
[null,"Umbria","Soggetto idoneo alla formazione","E-TRAIN S.r.l.","071 4604348","info@e-train","E-TRAIN S.r.l. - Via Solari 27 - 60025 Loreto (AN)","La valutazione e la misura del rumore in ambiente esterno",12,"29/04/2021","13/05/2021","E-Learning","Via dell'Arboreto","PG","Gubbio","06024","DD n. 2808 del 31 marzo 2021 spostamento date corso E TRAIN di cui alla DD 2472 2021.pdf"]
[null,"Umbria","Soggetto idoneo alla formazione","E-TRAIN S.r.l.","071 4604348","info@e-train","E-TRAIN S.r.l. sede sita in Via Solari 27 - 60025 Loreto (AN)","Criteri Ambientali Minimi: confort acustico e classificazione acustica edificio",8,"14/06/2021","21/06/2021","E-Learning","Via dell'Arboreto","PG","Gubbio","06024","DD n 3736 del 28 aprile spostamento date E TRAIN .pdf"]
[null,"Umbria","Soggetto idoneo alla formazione","E-TRAIN S.r.l.","071 4604348","info@e-train","E-TRAIN S.r.l. via Solari 27- 60025 Loreto (AN)","Valutazione e misura del rumore degli impianti tecnici: civili ed industriali",12,"29/04/2021","13/05/2021","E-Learning","Via dell'Arboreto 62","PG","Gubbio","06024","D.D. 2474 del 23 marzo 2021 E-TRAIN corso aprile maggio.pdf"]
[null,"Lombardia","Soggetto idoneo alla formazione","TECO MILANO SRL",null,null,null,"AGG121. Il contenzioso acustico e la consulenza tecnica",6,"16/04/2021","16/04/2021","Lezioni frontali","c/o Assoacustici Corso Italia 13 \u0096 Saronno (VA)","VA","Saronno",21047,"T1.2021.0033656.pdf"]
[null,"Lombardia","Soggetto idoneo alla formazione","TECO MILANO SRL",null,null,null,"ANNULLATO. AGG122. La valutazione dei requisiti acustici passivi. La previsione delle prestazioni acustiche dei componenti di edificio. Il collaudo in opera-Le norme UNI EN ISO",6,"23/04/2021","23/04/2021","Lezioni frontali","c/o Assoacustici Corso Italia 13 \u0096 Saronno (VA)","VA","Saronno",21047,"T1.2021.0033659-unito.pdf"]
[null,"Friuli Venezia Giulia","Ordine professionale","Ordine degli ingegneri della Provincia di Udine","0432 505305","segreteria@ordineingegneri.ud.it",null,"AGG011. Corso di aggiornamento per tecnici competenti in acustica",18,"21/05/2021","04/06/2021","E-Learning","via Monte San Marco 56","UD","Udine",33100,"INACCRS13.PDF"]
[null,"Friuli Venezia Giulia","Soggetto idoneo alla formazione","E-TRAIN S.r.l.","0714604348","info@e-train.it","etrain@pec.it","AGG012. La qualità acustica interna degli ambienti confinati. La norma UNI 11532 e i descrittori acustici.",12,"14/09/2021","05/10/2021","E-Learning","modalità FAD","TS","Trieste",34100,"INACCRS14.PDF"]
[null,"Puglia","Soggetto idoneo alla formazione","0006 - E-TRAIN S.r.l.",null,null,null,"X000037 - La valutazione previsionale di impatto acustico. (ANNULLATO)",12,"18/06/2021","02/07/2021","E-Learning","Via Solari n.27  Loreto (AN)","BA","Bari",70011,"Det_113_del 30.03.2021_signed_signed-signed_completa.pdf"]
[null,"Puglia","Soggetto idoneo alla formazione","0006 - E-TRAIN S.r.l.",null,null,null,"X000038 - Criteri Ambientali Minimi,comfort acustico e classificazione acustica degli edifici.",8,"30/09/2021","07/10/2021","E-Learning","Via Solari n.27 Loreto (AN)","BA","Bari",70011,"Det_113_del 30.03.2021_signed_signed-signed_completa(1).pdf"]
[null,"Puglia","Soggetto idoneo alla formazione","0006 - E-TRAIN S.r.l.",null,null,null,"X000039 - Valutazione e misura del rumore degli impianti tecnici civili e industriali.",12,"17/09/2021","01/10/2021","E-Learning","Via Solari n.27 Loreto (AN)","BA","Bari",70011,"Det_113_del 30.03.2021_signed_signed-signed_completa(2).pdf"]
[null,"Puglia","Soggetto idoneo alla formazione","0006 - E-TRAIN S.r.l.",null,null,null,"X000040 - La valutazione dei requisiti acustici passivi con le nuove norme UNI EN ISO 12354-2017.",12,"22/11/2021","06/12/2021","E-Learning","Via Solari n.27 Loreto (AN)","BA","Bari",70011,"Det_113_del 30.03.2021_signed_signed-signed_completa(3).pdf"]
[null,"Marche","Albo professionale","Ordine degli Ingegneri della Provincia di Ancona","071 2075392","segreteria@ordineingegneri.ancona.it",null,"il rumore negli ambienti di lavoro e nei cantieri edili",10,"17/05/2021","27/05/2021","E-Learning","Via Ing. Roberto Bianchi snc","AN","Ancona",60131,"DDVAA_Ingg_AN_corso_agg_Mag_2021.docx.pdf"]
[null,"Lombardia","Soggetto idoneo alla formazione","E-TRAIN SRL",null,null,null,"ANNULLATO-AGG124. La valutazione e la misura del rumore in ambiente esterno",12,"25/05/2021","03/06/2021","Lezioni frontali, E-Learning","Bloom Group \u0096 Via Valtorta 44 - MILANO","MI","Milano",20136,"T1.2021.0037062-unito bis.pdf"]
[null,"Puglia","Università","0004 - Dipartimento di Scienze dell&#146;Ingegneria e dell&#146;Architettura - (ICAR) del Politecnico di Bari in collaborazione con l&#146;Ordine degli Ingegneri della Provincia di Bari",null,null,null,"X000041 - Corso ARPA Puglia 2021",10,"15/04/2021","20/04/2021","E-Learning","via E. Orabona, 4","BA","Bari",70125,"Det_130_del 06.04.2021_CorsiPoliba_signed_signed-signed_completo.pdf"]
[null,"Lombardia","Soggetto idoneo alla formazione","E-TRAIN SRL",null,null,null,"ANNULLATO-AGG125. Criteri Ambientali Minimi (CAM). Comfort acustico e classificazione acustica edifici",8,"20/05/2021","27/05/2021","Lezioni frontali, E-Learning","Bloom Group \u0096 Via Valtorta, 44 \u0096 MILANO","MI","Milano",20136,"T1.2021.0037034-unito bis.pdf"]
[null,"Puglia","Università","0004 - Dipartimento di Scienze dell&#146;Ingegneria e dell&#146;Architettura - (ICAR) del Politecnico di Bari in collaborazione con l&#146;Ordine degli Ingegneri della Provincia di Bari",null,null,null,"X000042 - Acustica Ambientale",10,"14/05/2021","21/05/2021","E-Learning","via E. Orabona, 4","BA","Bari",70125,"Det_130_del 06.04.2021_CorsiPoliba_signed_signed-signed_completo(1).pdf"]
[null,"Puglia","Università","0004 - Dipartimento di Scienze dell&#146;Ingegneria e dell&#146;Architettura - (ICAR) del Politecnico di Bari in collaborazione con l&#146;Ordine degli Ingegneri della Provincia di Bari",null,null,null,"X000043 - 47° Convegno AIA online - Corso Antimeridiano",3,"28/05/2021","28/05/2021","E-Learning","via E. Orabona, 4","BA","Bari",70125,"Det_130_del 06.04.2021_CorsiPoliba_signed_signed-signed_completo(2).pdf"]
[null,"Puglia","Università","0004 - Dipartimento di Scienze dell&#146;Ingegneria e dell&#146;Architettura - (ICAR) del Politecnico di Bari in collaborazione con l&#146;Ordine degli Ingegneri della Provincia di Bari",null,null,null,"X000044 - 47° Convegno AIA online- Corso Pomeridiano",3,"28/05/2021","28/05/2021","E-Learning","via E. Orabona, 4","BA","Bari",70125,"Det_130_del 06.04.2021_CorsiPoliba_signed_signed-signed_completo(3).pdf"]
[null,"Puglia","Università","0004 - Dipartimento di Scienze dell&#146;Ingegneria e dell&#146;Architettura - (ICAR) del Politecnico di Bari in collaborazione con l&#146;Ordine degli Ingegneri della Provincia di Bari",null,null,null,"X000045 - Metrologia - 2021",10,"05/10/2021","08/10/2021","E-Learning","via E. Orabona, 4","BA","Bari",70125,"Det_130_del 06.04.2021_CorsiPoliba_signed_signed-signed_completo(4).pdf"]
[null,"Puglia","Università","0004 - Dipartimento di Scienze dell&#146;Ingegneria e dell&#146;Architettura - (ICAR) del Politecnico di Bari in collaborazione con l&#146;Ordine degli Ingegneri della Provincia di Bari",null,null,null,"X000046 - Acustica Edilizia",10,"20/09/2021","24/09/2021","E-Learning","via E. Orabona, 4","BA","Bari",70125,"Det_130_del 06.04.2021_CorsiPoliba_signed_signed-signed_completo(5).pdf"]
[null,"Puglia","Università","0004 - Dipartimento di Scienze dell&#146;Ingegneria e dell&#146;Architettura - (ICAR) del Politecnico di Bari in collaborazione con l&#146;Ordine degli Ingegneri della Provincia di Bari",null,null,null,"X000047 - Acustica Forense",10,"25/10/2021","28/10/2021","E-Learning","via E. Orabona, 4","BA","Bari",70125,"Det_130_del 06.04.2021_CorsiPoliba_signed_signed-signed_completo(6).pdf"]
[null,"Puglia","Università","0004 - Dipartimento di Scienze dell&#146;Ingegneria e dell&#146;Architettura - (ICAR) del Politecnico di Bari in collaborazione con l&#146;Ordine degli Ingegneri della Provincia di Bari",null,null,null,"X000048 - Seminario AIA PoliBa (Prevista riprogrammazione date)",4,"11/11/2021","11/11/2021","E-Learning","via E. Orabona, 4","BA","Bari",70125,"Det_130_del 06.04.2021_CorsiPoliba_signed_signed-signed_completo(7).pdf"]
[null,"Puglia","Università","0004 - Dipartimento di Scienze dell&#146;Ingegneria e dell&#146;Architettura - (ICAR) del Politecnico di Bari in collaborazione con l&#146;Ordine degli Ingegneri della Provincia di Bari",null,null,null,"X000049 - Acustica Ambientale",10,"15/11/2021","19/11/2021","E-Learning","via E. Orabona, 4","BA","Bari",70125,"Det_130_del 06.04.2021_CorsiPoliba_signed_signed-signed_completo(8).pdf"]
[null,"Puglia","Università","0004 - Dipartimento di Scienze dell&#146;Ingegneria e dell&#146;Architettura - (ICAR) del Politecnico di Bari in collaborazione con l&#146;Ordine degli Ingegneri della Provincia di Bari",null,null,null,"X000050 - Metrologia- 2022",10,"28/01/2022","04/02/2022","E-Learning","via E. Orabona, 4","BA","Bari",70125,"Det_130_del 06.04.2021_CorsiPoliba_signed_signed-signed_completo(9).pdf"]
[null,"Puglia","Università","0004 - Dipartimento di Scienze dell&#146;Ingegneria e dell&#146;Architettura - (ICAR) del Politecnico di Bari in collaborazione con l&#146;Ordine degli Ingegneri della Provincia di Bari",null,null,null,"X000051 - Acustica Edilizia - RINVIATO A DATA DA DEFINIRSI-",10,"29/11/2021","03/12/2021","E-Learning","via E. Orabona, 4","BA","Bari",70125,"Det_130_del 06.04.2021_CorsiPoliba_signed_signed-signed_completo(10).pdf"]
[null,"Puglia","Università","0004 - Dipartimento di Scienze dell&#146;Ingegneria e dell&#146;Architettura - (ICAR) del Politecnico di Bari in collaborazione con l&#146;Ordine degli Ingegneri della Provincia di Bari",null,null,null,"X000052 - Acustica Forense",10,"18/03/2022","25/03/2022","E-Learning","via E. Orabona, 4","BA","Bari",70125,"Det_130_del 06.04.2021_CorsiPoliba_signed_signed-signed_completo(11).pdf"]
[null,"Emilia Romagna","Soggetto idoneo alla formazione","THE ACS - SCUOLA ITALIANA DI ALTA FORMAZIONE SOCIETA' A R. L.","071 4604348","info@theacs.it","Antonio Chiarini","Corso di aggiornamento di 12 ore per tecnici competenti in acustica ambientale ai sensi D.Lgs. 42/2017. La valutazione dei requisiti acustici passivi con le nuove norme UNI EN ISO12354-2017. RAVENNA- Rif. P.A. 2019-13399/RER/3 - Edizione 3",12,"21/05/2021","11/06/2021","Lezioni frontali","Via Solari, 27 Loreto (AN) [sede regia vdc]","RA","Ravenna",48100,"DD_4226_2020(7).pdf"]
[null,"Emilia Romagna","Soggetto idoneo alla formazione","THE ACS - SCUOLA ITALIANA DI ALTA FORMAZIONE SOCIETA' A R. L.","0714604348","info@theacs.it","Antonio Chiarini","Corso di aggiornamento di 12 ore per tecnici competenti in acustica ambientale ai sensi D.Lgs 42/2017. Valutazione previsionale di impatto acustico. BOLOGNA - Rif. P.A. 2019-13399/RER/4 - Edizione 4",12,"15/06/2021","29/06/2021","Lezioni frontali","Via Solari, 27 Loreto (AN) [sede regia vdc]","BO","Bologna",40100,"DD_4226_2020(8).pdf"]
[null,"Emilia Romagna","Soggetto idoneo alla formazione","THE ACS - SCUOLA ITALIANA DI ALTA FORMAZIONE SOCIETA' A R. L.","0714604348","info@theacs.it","Antonio Chiarini","Corso di aggiornamento di 12 ore per tecnici competenti in acustica ambientale ai sensi D.Lgs. 42/2017. Le vibrazioni negli ambienti di vita e di lavoro. MODENA - Rif. P.A. 2019-13399/RER/1 - Edizione 2",12,"19/07/2021","26/07/2021","Lezioni frontali","Via Solari, 27 Loreto (AN) [sede regia vdc]","MO","Modena",41100,"DD_4226_2020(9).pdf"]
[null,"Emilia Romagna","Soggetto idoneo alla formazione","THE ACS - SCUOLA ITALIANA DI ALTA FORMAZIONE SOCIETA' A R. L.","0714604348","info@theacs.it","Antonio Chiarini","Corso di aggiornamento di 12 ore per tecnici competenti in acustica ambientale ai sensi D.Lgs. 42/2017. La valutazione e la misura del rumore in ambiente esterno. BOLOGNA Rif. P.A. 2019-12539/RER/3 - Edizione 3",12,"13/09/2021","27/09/2021","Lezioni frontali","Via Solari, 27 Loreto (AN) [sede regia vdc]","BO","Bologna",40100,"DD_18249_2019(1).pdf"]
[null,"Veneto","Soggetto idoneo alla formazione","ACROSS SRL","0424-708879","info@aineservizi.it",null,"Rumore e vibrazioni da impianti industriali: casi studio, analisi e proposte di risoluzione",6,"15/04/2021","16/04/2021","Lezioni frontali, E-Learning","Via S. Pio X, 13","VI","Pianezze",36060,"RICONOSCIMENTO AINE PROT N. 102916 18.10.2019_fd(1).pdf"]
[null,"Veneto","Soggetto idoneo alla formazione","ACROSS SRL","0424708879","info@aineservizi.it",null,"La progettazione acustica di edifici in legno",6,"17/12/2020","18/12/2020","Lezioni frontali, E-Learning","Via S. Pio X, 13","VI","Pianezze","03606","RICONOSCIMENTO AINE PROT N. 103012 18.10.2019_fd(1).pdf"]
[null,"Veneto","Soggetto idoneo alla formazione","ACROSS SRL","0424708879","info@aineservizi.it",null,"La Progettazione acustica delle facciate",6,"18/02/2021","19/02/2021","Lezioni frontali, E-Learning","Via S. Pio X, 13","VI","Vicenza",36064,"RICONOSCIMENTO AINE PROT N. 102914 18.10.2019_fd (1).pdf"]
[null,"Veneto","Soggetto idoneo alla formazione","INIAPA VENETO","0424-708879","info@aineservizi.it",null,"Qualità acustica degli ambienti confinati: metodi di misura ed analisi",6,"28/01/2021","29/01/2021","Lezioni frontali, E-Learning","Via S. Pio X, 13","VI","Pianezze",36060,"INIAPA_RICONOSCIMENTO AINE PROT N. 63261 GIUGNO 2019-fd.pdf"]
[null,"Veneto","Soggetto idoneo alla formazione","ACROSS SRL","0424-708879","info@aineservizi.it",null,"L'accertamento del rumore ambientale e la valutazione del contributo per specifica sorgente",6,"03/06/2021","04/06/2021","E-Learning","Via Oppio 32","VI","Mason Vicentino",36060,"RICONOSCIMENTO AINE PROT N. 102934.pdf"]
[null,"Abruzzo","Soggetto idoneo alla formazione","Coprai Training S.r.l.","085412961","info@copraitraining.it","https://www.copraitraining.it/","Valutazione previsionale di impatto Acustico",12,"11/05/2021","25/05/2021","E-Learning","Via F.Fellini n. 2 c/o \u0093Centro ARCA\u0094","PE","Spoltore",65010,"DPC025-144 del 13.04.2021.pdf"]
[null,"Abruzzo","Soggetto idoneo alla formazione","Coprai Training S.r.l.","085412961","info@copraitraining.it","https://www.copraitraining.it/","La qualità acustica interna degli ambienti confinanti. La norma UNI 11532 e i descrittori acustici",12,"27/05/2021","10/06/2021","E-Learning","Via F.Fellini n. 2 c/o \u0093Centro ARCA\u0094","PE","Spoltore",65010,"DPC025-144 del 13.04.2021(1).pdf"]
[null,"Puglia","Ordine professionale","0009 - Ordine degli Ingegneri della Provincia di Brindisi","0831526405","ordine.brindisi@ingpec.eu",null,"X000053 - Progettazione ai sensi dei Requisiti Acustici Passivi degli edifici con le ultime norme tecniche",5,"19/04/2021","19/04/2021","E-Learning","Via F. Consiglio,52/B","BR","Brindisi",72100,"Det_146_2021_Ord_Ing_BRINDISI_signed_signed-signed_completo.pdf"]
[null,"Veneto","Ordine professionale","Ordine degli Ingegneri di Verona e Provincia","0458035959","ordine@ingegneri.vr.it","Ordine degli Ingegneri di Verona e Provincia","Il controllo delle vibrazioni degli edifici e nei loro impianti. Normativa di riferimento e tecniche di misura in opera.",6,"24/05/2021","31/05/2021","Lezioni frontali, E-Learning","Via Santa Teresa, 12","VR","Verona",37135,"RICONOSCIMENTO ING VR PROT. 30947 APRILE 2021_fd.pdf"]
[null,"Veneto","Ordine professionale","Ordine degli Ingegneri di Treviso e Provincia","0422591854","segreteria@ingegneritreviso.it","Ordine degli Ingegneri di Treviso e Provincia","Isolamento acustico degli edifici: evoluzioni normative e costruttive",6,"07/05/2021","07/04/2021","Lezioni frontali, E-Learning","Via Prato della Fiera, 21","TV","Treviso",31100,"RICONOSCIMENTO ING TV PROT. 31444 APRILE 2021_fd.pdf"]
[null,"Lazio","Soggetto idoneo alla formazione","SIPAR Srl","0775/242026","info@siparsrl.com","Direttore Didattico:\nProf. Pietro Nataletti","Autorizzazione per lo svolgimento del corso di aggiornam. profess. per TCA, programmato e gestito dal SIPAR Srl Prima Edizione, anno 2021, due sessioni, 20 e 22 aprile 2021 \u0096 10 ore formazione - modalità FAD.",10,"20/04/2021","22/04/2021","E-Learning","Via Casilina Sud, 132/C","FR","Ferentino","03013","G04258_2021_sipar.pdf"]
[null,"Sicilia","Soggetto idoneo alla formazione","E-Train s.r.l. - Palermo","071 4604348","info@e-train.it","E-Train S.r.l.\nSede Legale: Via Solari, 27\n60025 - Loreto (AN)\netrain@pec.it","D.R.S. n. 72/2021 - 3.2 - II - La valutazione e la misura del rumore in ambiente esterno",12,"07/10/2021","14/10/2021","Lezioni frontali","Piazza Ruggero Settimo","PA","Palermo",90139,"DRS_n.72_2021_Palermo_sede_ occasionale_e_programma(1).pdf"]
[null,"Sicilia","Soggetto idoneo alla formazione","E-Train s.r.l. - Palermo","071 4604348","info@e-train.it","E-Train S.r.l.\nSede Legale: Via Solari, 27\n60025 - Loreto (AN)\netrain@pec.it","D.R.S. n. 72/2021 - 3.3 - III - Le Vibrazioni negli ambienti di vita e di lavoro",6,"06/10/2022","06/10/2022","Lezioni frontali","Piazza Ruggero Settimo","PA","Palermo",90139,"DRS_n.72_2021_Palermo_sede_ occasionale_e_programma(2).pdf"]
["D000085","Campania","Soggetto idoneo alla formazione","0007 - Join Academy & Consulting Soc. Coop. a r.l.","08119319567","joinacademy@gmail.com",null,"D000085 - Qualità acustica di ambienti confinanti: metodi di misura e analisi.",5,"07/06/2021","07/06/2021","Lezioni frontali","via Variante Nazionale delle Puglie 112","NA","Casalnuovo di Napoli",80013,"DD n. 195 21-04-2021 Agg 85-86.pdf"]
["D000086","Campania","Soggetto idoneo alla formazione","0007 - Join Academy & Consulting Soc. Coop. a r.l.","08119319567","joinacademy@gmail.com",null,"D000086 - Il rumore delle infrastrutture di trasporto.",5,"25/06/2021","25/06/2021","Lezioni frontali","via Variante Nazionale delle Puglie 112","NA","Casalnuovo di Napoli",80013,"DD n. 195 21-04-2021 Agg 85-86(1).pdf"]
[null,"Marche","Soggetto idoneo alla formazione","E-TRAIN SRL","071 4604348","info@e-train.it","Dott. Antonio Chiarini","Il miglioramento dei requisiti acustici nella ristrutturazione edilizia",6,"20/04/2021","27/04/2021","E-Learning","Via Solari, 27","AN","Loreto",60025,"DDPF 262_21.pdf"]
[null,"Lazio","Ordine professionale","Ordine degli Ingegneri della Provincia di Roma","064879311","protocollo@ording.roma.it","Direttore Didattico\nIng. Carlo Fascinelli","Autorizzazione svolgimento del corso di aggiorn. profess. per TCA, programmato e gestito dall\u0092Ordine degli Ingegneri della Provincia di Roma - Quarta Edizione, anno 2021, due sessioni, 18 e 20 maggio 2021 \u0096 10 ore formazione - modalità FAD.",10,"18/05/2021","20/05/2021","E-Learning","Piazza della Repubblica, 59","RM","Roma","00185","Det_G04371_2021.pdf"]
[null,"Lazio","Soggetto idoneo alla formazione","CRESCO Formazione e Consulenza Srl","07761815115","lisa.lombardozzi@crescosrl.net","Direttore Didattico\nTCA Raffaele Mariconte","Autorizzazione per lo svolgimento del corso di aggiorn. profess. per TCA, programmato e gestito dalla CRESCO Formazione e Consulenza Srl - Seconda Edizione anno 2021, due sessioni, 06 e 10 maggio 2021 \u0096 10 ore formazione - modalità FAD.",10,"06/05/2021","10/05/2021","E-Learning","Via Tofaro, 42","FR","Sora","03039","Det_G04372_2021.pdf"]
[null,"Lombardia","Ordine professionale","Ordine Architetti PPC della Provincia di Bergamo",null,null,null,"AGG126. Incertezza di misura e di calcolo in acustica edilizia.",6,"17/05/2021","17/05/2021","Lezioni frontali, E-Learning","ANIT, Via Lanzone 31, 20123 Milano","MI","Milano",20123,"T1.2021.0039299.pdf"]
[null,"Lombardia","Soggetto idoneo alla formazione","AFOR SAS di Massimiliano Rabbachin e C.",null,null,null,"AGG127. Valutazione Rischio Rumore e Vibrazioni",16,"07/05/2021","15/05/2021","Lezioni frontali","Via Valtorta 35 - 20127 MILANO","MI","Milano",20128,"T1.2021.0039291.pdf"]
[null,"Lombardia","Soggetto idoneo alla formazione","TECO MILANO SRL",null,null,null,"AGG128. La valutazione dei requisiti acustici passivi. La previsione delle prestazioni acustiche dei componenti di edificio. Il collaudo in opera-Le norme UNI EN ISO",6,"14/05/2021","14/05/2021","Lezioni frontali, E-Learning","c/o Assoacustici Corso Italia 13 \u0096 Saronno (VA)","VA","Saronno",21047,"T1.2021.0039298.pdf"]
[null,"Piemonte","Soggetto idoneo alla formazione","Associazione ASSO.FORMA","0141275914","info@assoforma.net",null,"La qualità acustica interna: riverbero, intellegibilità e la recente UNI 11352",6,"30/04/2021","30/04/2021","E-Learning","Via Giovanni Borello 1/A","AT","Asti",14100,"dd 253 20_4_2021  BU 16 S1 22_4_2021.pdf"]
[null,"Piemonte","Soggetto idoneo alla formazione","Associazione ASSO.FORMA","0141275914","info@assoforma.net",null,"Tecniche di analisi del segnale sonoro - utilizzo della norma 10855",6,"21/05/2021","21/05/2021","E-Learning","Via Giovanni Borello 1/A","AT","Asti",14100,"dd 253 20_4_2021  BU 16 S1 22_4_2021(1).pdf"]
[null,"Piemonte","Ordine professionale","FOIT Fondazione dell'Ordine degli Ingegneri della Provincia di Torino","011-5186908","segreteria@foit.it",null,"Acustica degli Uffici",4,"09/06/2021","09/06/2021","E-Learning","Via Giovanni Giolitti 1","TO","Torino",10123,"dd 253 20_4_2021  BU 16 S1 22_4_2021(2).pdf"]
[null,"Piemonte","Soggetto idoneo alla formazione","IEC S.r.l. Industrial Engineering Consultant","0112425353","iec@iectorino.com",null,"La misura delle emissioni acustiche ambientali della macchine e delle attrezzature destinate all'aperto",8,"06/07/2021","06/07/2021","Lezioni frontali","Via Botticelli 151","TO","Torino",10154,"dd 253 20_4_2021  BU 16 S1 22_4_2021(3).pdf"]
[null,"Piemonte","Soggetto idoneo alla formazione","APITFORMA","011345003","segreteria@apitforma.it",null,"La valutazione del rumore intrusivo: aspetti tecnici e giuridici",6,"11/10/2021","13/10/2021","E-Learning","Via Imperia 2 A","TO","Torino",10135,"dd 253 20_4_2021  BU 16 S1 22_4_2021(4).pdf"]
[null,"Piemonte","Soggetto idoneo alla formazione","APITFORMA","011345003","segreteria@apitforma.it",null,"La propagazione del suono nelle strutture edilizie e i requisiti acustici passivi",8,"03/05/2021","05/05/2021","E-Learning","Via Imperia 2 A","TO","Torino",10135,"dd 253 20_4_2021  BU 16 S1 22_4_2021(5).pdf"]
[null,"Piemonte","Soggetto idoneo alla formazione","FORTE CHANCE PIEMONTE","0114379979 - 3385273021","info@fortechance.it",null,"Il rumore delle infrastrutture lineari",4,"18/05/2021","20/05/2021","E-Learning","Via Bologna 78","TO","Torino",10152,"dd 253 20_4_2021  BU 16 S1 22_4_2021(6).pdf"]
["D000087","Campania","Soggetto idoneo alla formazione","0001 - Son Training S.r.l.s.",null,"info@sontraining.it","Per informazioni commerciali contattare il  3938319684 - per assistenza tecnica contattare il  3476767388 - oppure inviare una mail a formazione@sontraining.it","D000087 - Impianti Evac, misure di intellegibilità dello STI/STIPA e altri metodi e parametri.",5,"27/05/2021","27/05/2021","Lezioni frontali","VIA PONTANO 6","NA","Nola",80035,"DD n. 196 19-04-2021 Agg.pdf"]
["D000088","Campania","Soggetto idoneo alla formazione","0001 - Son Training S.r.l.s.",null,"info@sontraining.it","Per informazioni commerciali contattare il  3938319684 - per assistenza tecnica contattare il  3476767388 - oppure inviare una mail a formazione@sontraining.it","D000088 - Infrastrutture di trasporto lineari \u0096 concorsualità delle sorgenti sonore.",5,"24/06/2021","24/06/2021","Lezioni frontali","VIA PONTANO 6","NA","Nola",80035,"DD n. 196 19-04-2021 Agg(1).pdf"]
[null,"Emilia Romagna","Soggetto idoneo alla formazione","Associazione Assform","0541 1796402","seg-corsi@assform.it","Semprini Mario Paolo","Aggiornamento Tecnico Competente in Acustica - La normale tollerabilità alla luce dei nuovi dispositivi di legge. Rif. P.A. 2019-14557/RER/1 - Edizione 2",8,"22/04/2021","23/04/2021","Lezioni frontali","Corso Giovanni XXIII, 131 [sede regia vdc]","RN","Rimini",47921,"DD_15009_2020(9).pdf"]
[null,"Emilia Romagna","Soggetto idoneo alla formazione","Associazione Assform","0541 1796402","seg-corsi@assform.it","Semprini Mario Paolo","Aggiornamento Tecnico Competente in Acustica. L'acustica nei luoghi di intrattenimento, di pubblico spettacolo e nei pubblici esercizi. Rif. P.A. 2019-14233/RER/1 - Edizione 3",8,"06/05/2021","07/05/2021","Lezioni frontali","Corso Giovanni XXIII, 131 [sede regia vdc]","RN","Rimini",47921,"DD_10169_2020(8).pdf"]
[null,"Emilia Romagna","Soggetto idoneo alla formazione","Associazione Assform","0541 1796402","seg-corsi@assform.it","Semprini Mario Paolo","Aggiornamento Tecnico Competente in Acustica: Gli errori nelle misure di rumore e di vibrazione. Rif. P.A. 2019-14559/RER/1 - Edizione 4",5,"11/06/2021","11/06/2021","Lezioni frontali","Corso Giovanni XXIII, 131 [sede regia vdc]","RN","Rimini",47921,"DD_15009_2020(10).pdf"]
[null,"Emilia Romagna","Soggetto idoneo alla formazione","Associazione Assform","0541 1796402","seg-corsi@assform.it","Semprini Mario Paolo","Aggiornamento Tecnico Competente in Acustica: Vedere il rumore: Teoria e pratica della tecnica beamforming. Rif. P.A. 2019-14560/RER/1 - Edizione 4",5,"18/06/2021","18/06/2021","Lezioni frontali","Corso Giovanni XXIII, 131 [sede regia vdc]","RN","Rimini",47921,"DD_15009_2020(11).pdf"]
[null,"Emilia Romagna","Soggetto idoneo alla formazione","Associazione Assform","0541 1796402","seg-corsi@assform.it","Semprini Mario Paolo","Aggiornamento Tecnico Competente in Acustica: Le vibrazioni agli edifici. Rif. P.A. 2019-15517/RER/1 - Edizione 1",8,"20/05/2021","21/05/2021","Lezioni frontali","Corso Giovanni XXIII, 131 [sede regia vdc]","RN","Rimini",47921,"DD_5427_2021.pdf"]
[null,"Emilia Romagna","Soggetto idoneo alla formazione","Associazione Assform","0541 1796402","seg-corsi@assform.it","Semprini Mario Paolo","Aggiornamento Tecnico Competente in Acustica:  Le norme per la posa in opera dei materiali per l'isolamento acustico. Rif. P.A. 2019-15518/RER/1 - Edizione 1",5,"22/06/2021","22/06/2021","Lezioni frontali","Corso Giovanni XXIII, 131 [sede regia vdc]","RN","Rimini",47921,"DD_5427_2021(1).pdf"]
[null,"Emilia Romagna","Soggetto idoneo alla formazione","ADDESTRA S.R.L.","0546 624975","iscrizioni@addestra.it","FIORINI LORETTA","Corso di aggiornamento per il tecnico competente in acustica - MISURAZIONI DI RUMORE E VIBRAZIONI NEI LUOGHI DI LAVORO. Rif. P.A. 2019-14422/RER/1 - Edizione 3",5,"27/04/2021","27/04/2021","Lezioni frontali","via Mengolina, 33 [sede regia vdc]","RA","Faenza",48018,"DD_12780_2020.pdf"]
[null,"Lazio","Soggetto idoneo alla formazione","Studio ASQ Srl","0773/474890","formazione@studioasq.it","Direttore Didattico:\nDott. Giuseppe Loiacono","Autorizzazione per lo svolgimento del corso di aggiorn. profess. per TCA, programmato e gestito dallo Studio ASQ Srl \u0096 Prima Edizione anno 2021, due sessioni, 18 e 20 maggio 2021 \u0096 10 ore formazione - modalità FAD.",10,"18/05/2021","20/05/2021","E-Learning","Via Piave ang. Via Magna snc","LT","Latina","04100","Det_G04645_2021.pdf"]
["D000089","Campania","Soggetto idoneo alla formazione","0004 - e-Train S.r.l. unipersonale","0714604348","info@e-train.it","Maria Vittoria Giovagnoli","D000089 - Valutazione e misura del rumore degli impianti tecnici: civili e industriali.",12,"04/06/2021","18/06/2021","E-Learning","Sede eTrain S.r.l.","NA","Napoli",80142,"DD n. 197 19-04-2021 E-Train.pdf"]
[null,"Umbria","Soggetto idoneo alla formazione","Meccanotecnica Umbra Academy S.r.l.","0743 2791","info@mtuacademy.org","Meccanotecnica Umbra Academy - Via G. Agnelli 7/9 - 06042 Campello sul Clitunno (PG)","La valutazione previsionale di Impatto acustico: dalla misura dello stato di fatto alla redazione della relazione tecnica , seconda edizione",4,"20/05/2021","20/05/2021","E-Learning","Via G. Agnelli 7/9","PG","Campello sul Clitunno","06042","DD 3735 Meccanotecnica corso 20 maggio 2021.pdf"]
[null,"Umbria","Università","CIRIAF Centro Interuniversitario di Ricerca sull'Inquinamento e sull'Ambiente \"Mauro Felli\" Università degli Studi di Perugia","075 5853717","centro.ciriaf@unipg.it","UNIPG - Polo di Ingegneria - Via G. Duranti 63 - 06125 Perugia","Approfondimento di acustica: Psicoacustica, propagazione acustica, pianificazione acustica territoriale, acustica architettonica e acustica edilizia",12,"14/06/2021","15/06/2021","E-Learning","Via G. Duranti 63","PG","Perugia","06125","DD 3737 corso CIRIAF 14 15 giugno.pdf"]
[null,"Friuli Venezia Giulia","Soggetto idoneo alla formazione","E-TRAIN S.r.l.","0714604348","info@e-train.it","info@e-train.it\netrain@pec.it\n0714604348","AGG013. Valutazione previsionale di impatto acustico",12,"06/05/2021","20/05/2021","E-Learning","modalità FAD","TS","Trieste",34100,"INACCRS15.PDF"]
[null,"Marche","Ordine professionale","Ordine degli Ingegneri della Provincia di Macerata","0733 233111;","segreteria@ordineingegnerimacerata.it",null,"Sistemi di monitoraggio acustico e vibrazionale - modelli acustici previsionali",4,"07/05/2021","07/05/2021","E-Learning","Via Famiglia Palmieri n. 26","MC","Macerata",62100,"DDVAA_Ingg_MC_corso_agg_7.5.2021.docx.pdf"]
[null,"Veneto","Ordine professionale","Ordine degli Ingegneri di Padova e Provincia",3938926845,"fip@fondazioneingegneripadova.org","Ordine degli Ingegneri di Padova e Provincia","Acustica per interni: comfort degli ambienti chiusi, tempo di riverberazione e STI - La valutazione della qualità acustica in spazi confinati",6,"26/03/2021","26/03/2021","Lezioni frontali, E-Learning","Piazza Salvemini 2","PD","Padova",35100,"RICONOSCIMENTO CORSO ING PROT 11087 DEL 8.2.21 (1).pdf"]
[null,"Umbria","Ordine professionale","Ordine dei Periti Industriali e Peri","075 5005044","perindpg@perindpg.it","Ordine dei Periti Industriali e dei Periti Industriali Laureati della Provincia di Perugia Via Campo di Marte 32 06012 Perugia - Ordine degli Ingegneri della Provincia di Perugia - Via Campo di Marte 9 06012 Perugia","R.A.P.: ultimi chiarimenti interpretativi e misure in opera",6,"26/05/2021","27/05/2021","E-Learning","Campo di Marte 32","PG","Perugia","06012","DD 4217 del 05 maggio 2021 ordine periti.pdf"]
[null,"Marche","Soggetto idoneo alla formazione","Son Training srls","081 0146331","sontraining@sontraining.it","Dott.ssa De stasio","La valutazione di impatto acustico anche alla luce della nuova norma UNI12354R08;4R08; sviluppo di casi pratici",5,"26/05/2021","26/05/2021","E-Learning","Viale Rinascimento, 47","AP","San Benedetto del Tronto",63074,"ddpf_1_BIM_2021.docx.pdf"]
[null,"Emilia Romagna","Ordine professionale","ORDINE DEGLI INGEGNERI DELLA PROVINCIA DI FORLI'-CESENA","0543 376028","info@ordineing-fc.it","segreteria   Valentina Frulli","Aggiornamento per Tecnico Acustico - Acustica Ambientale: Aggiornamenti. Rif. P.A. 2019-15674/RER/1",5,"17/06/2021","17/06/2021","Lezioni frontali","Via Famiglia Bruni, 3  [sede regia vdc]","FC","Forlì",47121,"DD_7165_2021.pdf"]
[null,"Emilia Romagna","Ordine professionale","ORDINE DEGLI INGEGNERI DELLA PROVINCIA DI FORLI'-CESENA","0543 376028","info@ordineing-fc.it","segreteria  Valentina Frulli","Aggiornamento per Tecnico Acustico - Le immissioni di rumore e la normale tollerabilità. Rif. P.A. 2019-15672/RER/1",5,"08/07/2021","08/07/2021","Lezioni frontali","Via Famiglia Bruni, 3  [sede regia vdc]","FC","Forlì",47121,"DD_7165_2021(1).pdf"]
[null,"Lazio","Ordine professionale","Ordine degli Ingegneri della Provincia di Latina","0773/694208","posta@ordineingegnerilatina.it","Direttore Didattico:\nIng. Gianluca Zorzetto","Autorizzazione svolgimento del corso di aggiorn. profess. per TCA, programmato e gestito dall\u0092Ordine degli Ingegneri della Provincia di Latina - Prima Edizione, anno 2021, tre sessioni, 17, 24 e 31 maggio 2021 \u0096 10 ore formazione - modalità FAD.",10,"17/05/2021","31/05/2021","E-Learning","Piazza A. Celli n° 3","LT","Latina","04100","Det_G05242_2021.pdf"]
[null,"Umbria","Soggetto idoneo alla formazione","E-TRAIN S.r.l.","071 4604348","info@e-train","E-TRAIN S.r,l, Via Solari 27, 60025 Loreto (AN)","Il miglioramento dei requisiti acustici nella ristrutturazione edilizia",6,"14/06/2021","14/06/2021","E-Learning","Via dell'Arboreto 62","PG","Gubbio","06012","D D n 4375 del 10 maggio 2021 Autorizzazione corso E TRAIN giugno .pdf"]
[null,"Lombardia","Soggetto idoneo alla formazione","TECO MILANO SRL",null,null,null,"AGG129. Comfort acustico negli edifici scolastici - Metodi di progettazione e tecniche di valutazione",6,"11/06/2021","11/06/2021","Lezioni frontali, E-Learning","c/o Assoacustici Corso Italia 13 \u0096 Saronno (VA)","VA","Saronno",21047,"T1.2021.0043653.pdf"]
[null,"Lombardia","Soggetto idoneo alla formazione","TECO MILANO SRL",null,null,null,"AGG130. Comfort acustico negli uffici - Metodi di progettazione e tecniche di valutazione",6,"18/06/2021","18/06/2021","Lezioni frontali, E-Learning","c/o Assoacustici Corso Italia 13 \u0096 Saronno (VA)","VA","Saronno",21047,"T1.2021.0043654.pdf"]
[null,"Lombardia","Ordine professionale","ORDINE DEGLI INGEGNERI DELLA PROVINCIA DI PAVIA",null,null,null,"AGG131. Gli errori più comuni nelle misure acustiche, II edizione",6,"03/06/2021","04/06/2021","E-Learning","Viale Indipendenza 11","PV","Pavia",27100,"T1.2021.0043655.pdf"]
[null,"Lombardia","Soggetto idoneo alla formazione","Apave Italia Cpm S.r.l",null,null,null,"AGG132. Analisi dei requisiti acustici passivi degli edifici finalizzata alla riduzione dell'esposizione umana al rumore",4,"18/06/2021","18/06/2021","Lezioni frontali, E-Learning","Via Artigiani 63","BS","Bienno",25040,"T1.2021.0043656.pdf"]
[null,"Liguria","Ordine professionale","Ordine degli Architetti P.P.C. della provincia di Genova","0102473272","info@archigenova.it",null,"Rumore e vibrazioni in ambiente di lavoro",5,"06/07/2021","06/07/2021","Lezioni frontali","PIAZZA SAN MATTEO,18","GE","Genova",16123,"REG_AM_2858_2021.pdf"]
[null,"Emilia Romagna","Soggetto idoneo alla formazione","ADDESTRA S.R.L.","0546 624975","iscrizioni@addestra.it","FIORINI LORETTA","Corso di aggiornamento per il tecnico competente in acustica - Misurazione e valutazione dei rischi derivanti da rumore e vibrazioni negli ambienti di lavoro. Rif. P.A. 2019-14422/RER/1 - Edizione 4",5,"30/06/2021","30/06/2021","Lezioni frontali","via Mengolina, 33 [sede regia vdc]","RA","Faenza",48018,"DD_12780_2020(1).pdf"]
[null,"Emilia Romagna","Soggetto idoneo alla formazione","Edili Reggio Emilia - Scuola - A.S.E. - Società cooperativa sociale","0522 500450","tecnica@res.re.it","Marcella Catellani","Il superbonus 110% e gli altri incentivi: quali opportunità e obblighi in materia di acustica degli edifici. Il ruolo del TCA. Rif. P.A. 2019-15582/RER/1",4,"08/06/2021","08/06/2021","Lezioni frontali","Via del Chionso, 22/A [sede regia vdc]","RE","Reggio nell'Emilia",42122,"DD_7165_2021(2).pdf"]
[null,"Emilia Romagna","Soggetto idoneo alla formazione","Edili Reggio Emilia - Scuola - A.S.E. - Società cooperativa sociale","0522 500450","tecnica@res.re.it","Marcella Catellani","Progettazione dei sistemi elettroacustici di diffusione sonora: dall'impianto EVAC ai grandi eventi musicali dal vivo. Rif. P.A. 2019-15582/RER/2",4,"20/07/2021","20/07/2021","Lezioni frontali","Via del Chionso, 22/A [sede regia vdc]","RE","Reggio nell'Emilia",42122,"DD_7165_2021(3).pdf"]
[null,"Emilia Romagna","Soggetto idoneo alla formazione","Edili Reggio Emilia - Scuola - A.S.E. - Società cooperativa sociale","0522 500450","tecnica@res.re.it","Marcella Catellani","La misura delle vibrazioni in ambito industriale e civile. La scelta dell'indagine acustico-vibrazionale appropriata per la risoluzione dei problemi di rumore. Rif. P.A. 2019-15582/RER/3",4,"25/10/2021","25/10/2021","Lezioni frontali","Via del Chionso, 22/A [sede regia vdc]","RE","Reggio nell'Emilia",42122,"DD_7165_2021(4).pdf"]
[null,"Lazio","Ordine professionale","Ordine degli Architetti, Pianificatori, Paesaggisti e Conservatori di Roma e Provincia","0697604508","presidenza@architettiroma.it","Direttore Didattico:\nArch. Chiara Alippi","Autorizzazione svolgimento del corso di aggiorn. profess. per TCA, programmato e gestito dall\u0092Ordine degli Architetti, Pian., Paesagg. e Conserv. di Roma e Provincia \u0096Terza Edizione, anno 2021, due sessioni, 8 e 15 giugno 2021 \u0096 8 ore form.",8,"08/06/2021","15/05/2021","E-Learning","Piazza Manfredo Fanti, 47","RM","Roma","00185","Det_G05835_2021.pdf"]
[null,"Emilia Romagna","Soggetto idoneo alla formazione","SICER S.R.L.","051 0390850","formazione@sicersrl.com","MICHELA SCAPOLI","Aggiornamento tecnici competenti in acustica. Rif. PA 2019-13238/RER/1 - Edizione 1",8,"07/08/2020","07/08/2020","Lezioni frontali","Via Palazzetti, 5/F","BO","San Lazzaro di Savena",40068,"DD_3015_2020.pdf"]
[null,"Lazio","Ordine professionale","Ordine degli Ingegneri della Provincia di Roma","06/4879311","protocollo@ording.roma.it","Direttore Didattico:\nIng. Carlo Fascinelli","Autorizzazione per lo svolgimento del corso di aggiornamento profess. per TCA, programmato e gestito dall\u0092Ordine degli Ingegneri della Provincia di Roma - Quinta Edizione, anno 2021, due sessioni, 15 e 17 giugno 2021 \u0096 10 ore formazione - modalità FAD.",10,"15/06/2021","17/06/2021","E-Learning","Piazza della Repubblica, 59","RM","Roma","00185","Det_G06008_2021.pdf"]
[null,"Marche","Soggetto idoneo alla formazione","E-TRAIN SRL","071 4604348","info@e-train.it","Dott. Antonio Chiarini","Valutazioni delle prestazioni acustiche di edifici a partire dalle prestazioni dei prodotti",8,"16/06/2021","23/06/2021","E-Learning","Via Solari, 27","AN","Loreto",60025,"DDPF 262_21(1).pdf"]
[null,"Lombardia","Ordine professionale","ORDINE DEGLI INGEGNERI DELLA PROVINCIA DI COMO",null,null,null,"AGG133. Strumentazioni e tecniche per le misurazioni e l\u0092analisi acustica",4,"25/06/2021","25/06/2021","Lezioni frontali, E-Learning","Via Volta 62","CO","Como",22100,"T1.2021.0048637.pdf"]
[null,"Lombardia","Ordine professionale","ORDINE DEGLI INGEGNERI DELLA PROVINCIA DI COMO",null,null,null,"AGG134. Vibrazioni. Concetti base ed applicazioni",4,"23/07/2021","23/07/2021","Lezioni frontali, E-Learning","Via Volta 62","CO","Como",22100,"T1.2021.0048635.pdf"]
[null,"Lombardia","Soggetto idoneo alla formazione","ARPA LOMBARDIA",null,null,null,"AGG135. Rumore aeroportuale. Edizione 1",8,"17/06/2021","17/06/2021","E-Learning","Via Rosellini, 17","MI","Milano",20124,"T1.2021.0048633.pdf"]
[null,"Lombardia","Soggetto idoneo alla formazione","ARPA LOMBARDIA",null,null,null,"AGG136.Rumore aeroportuale. Edizione 2",8,"15/07/2021","15/07/2021","E-Learning","Via Rosellini, 17","MI","Milano",20124,"T1.2021.0048632.pdf"]
[null,"Umbria","Soggetto idoneo alla formazione","E-TRAIN S.r.l.","071 4604348","info@e-train","E-TRAIN S.r.l. Via Solari 27 - 60025 Loreto (AN)","Valutazione previsionale di impatto acustico",12,"09/07/2021","23/07/2021","E-Learning","Via dell'Arboreto 62","PG","Gubbio","06024","DD 5568 del 09 giugno 2021 Autorizzazione corso E-TRAIN.pdf"]
[null,"Emilia Romagna","Soggetto idoneo alla formazione","Associazione Assform","0541 1796402","seg-corsi@assform.it","Semprini Mario Paolo","Aggiornamento Tecnico Competente in Acustica. L'uso di strumenti evoluti per l'analisi della qualità acustica di ambienti interni. Rif. P.A. 2019-14558/RER/1 - Edizione 3",8,"05/07/2021","06/07/2021","Lezioni frontali","Corso Giovanni XXIII, 131 [sede regia vdc]","RN","Rimini",47921,"DD_15009_2020(12).pdf"]
[null,"Emilia Romagna","Ente di ricerca","ARPAE","0523 489648","acallegari@arpae.it","Anna Callegari","Corso di aggiornamento interno riservato ai TCA di ARPAE. La gestione e la disciplina delle attività rumorose temporanee: la nuova DGR 1197/2020.",6,"11/05/2021","13/05/2021","Lezioni frontali","Via Po, 5 [sede regia vdc]","BO","Bologna",40139,"PG_0406976_2021.pdf"]
[null,"Lombardia","Soggetto idoneo alla formazione","TECO MILANO SRL",null,null,null,"AGG137. VALUTAZIONE DEL RISCHIO E DEL DANNO DA RUMORE IN AMBIENTE DI LAVORO CON L\u0092AUSILIO DEL SOFTWARE RUMOURS.",4,"13/07/2021","13/07/2021","Lezioni frontali, E-Learning","c/o Assoacustici Corso Italia 13 \u0096 Saronno (VA)","VA","Saronno",21047,"T1.2021.0051817.pdf"]
[null,"Lombardia","Soggetto idoneo alla formazione","TECO MILANO SRL",null,null,null,"AGG138. VALUTAZIONE DEL RISCHIO E DEL DANNO DA VIBRAZIONI IN AMBIENTE DI LAVORO CON L\u0092AUSILIO DEL SOFTWARE TREMOURS.",4,"16/07/2021","16/07/2021","Lezioni frontali, E-Learning","c/o Assoacustici Corso Italia 13 \u0096 Saronno (VA)","VA","Saronno",21047,"T1.2021.0051818.pdf"]
[null,"Lombardia","Soggetto idoneo alla formazione","SINTEX S.r.l.",null,null,null,"AGG139.RUMORE E VIBRAZIONI NEGLI AMBIENTI DI LAVORO",8,"09/07/2021","09/07/2021","Lezioni frontali, E-Learning","Centro di formazione SINTEX S.r.l. - 25030 Torbole Casaglia (Bs), via Artigianato 9","BS","Torbole Casaglia",25030,"T1.2021.0051814.pdf"]
[null,"Lazio","Soggetto idoneo alla formazione","CRESCO Formazione e Consulenza Srl","07761815115","lisa.lombardozzi@crescosrl.net","DIRETTORE DIDATTICO:\nTCA Mariconte Raffaele","Autorizzazione per lo svolgimento del corso di aggiorn. prof. per TCA, programmato e gestito dalla CRESCO Formazione e Consulenza Srl \u0096 Terza Edizione anno 2021, una sessione, 9 Luglio 2021 \u0096 5 ore formazione - modalità FAD.",5,"09/07/2021","09/07/2021","E-Learning","Via Tofaro, 42","FR","Sora","03039","Det_G07367_2021.pdf"]
[null,"Marche","Soggetto idoneo alla formazione","E-TRAIN SRL","071 4604348","info@e-train.it","Dott. Antonio Chiarini","La valutazione dei requisiti acustici passivi con le nuove norme UNI EN ISO 12354-2017.",12,"05/07/2021","19/07/2021","E-Learning","Via Solari, 27","AN","Loreto",60025,"DDPF 545_2021.pdf"]
[null,"Marche","Soggetto idoneo alla formazione","E-TRAIN SRL","071 4604348","info@e-train.it","Dott. Antonio Chiarini","Nuove date - Valutazione e misura del rumore degli impianti tecnici",12,"28/10/2021","11/11/2020","E-Learning","Via Solari, 27","AN","Loreto",60025,"DDPF 262_21(2).pdf"]
[null,"Umbria","Soggetto idoneo alla formazione","Centro Studi Edili","0742354243","info.cse@gmail.com","Palazzo Gerardi - Piazza XX Settembre 19 - 06034 Foligno (PG)","Fondamentali di acustica  concetti base modulo 2",4,"30/06/2021","30/06/2021","E-Learning","Palazzom Gerardi Via XX Settembre 19 - 06034 Foligno (PG)","PG","Foligno","06034","DD_6314del25_06_2021.pdf"]
[null,"Umbria","Soggetto idoneo alla formazione","Centro Studi Edili","0742354243","info.cse@gmail.com","Centro Studi Edili - Palazzo Gerardi - Piazza XX Settembre 19. 06034 Foligno (PG)","Fondamentali di acustica  concetti base modulo 3",4,"09/07/2021","09/07/2021","E-Learning","Palazzom Gerardi Via XX Settembre 19 - 06034 Foligno (PG)","PG","Foligno","06034","DD_6314del25_06_2021(1).pdf"]
[null,"Emilia Romagna","Soggetto idoneo alla formazione","ISCOM FORMAZIONE PER LE IMPRESE SCARL","0547 639887","coordinatore1@iscomcesena.it","Loggia Sergio","AGGIORNAMENTO PER TCA. MODULO 3. Determinazione del rumore stradale, ferroviario e di cantiere. Monitoraggi settimanali di rumore stradale. Utilizzo dei modelli matematici per la diffusione del rumore in ambiente esterno. Rif. P.A. 2019-16066/RER/3. Ed. 1",10,"22/07/2021","29/07/2021","Lezioni frontali","Via G. Bruno, 118 [sede regia vdc]","FC","Cesena",47521,"DD_12415_2021.pdf"]
[null,"Friuli Venezia Giulia","Soggetto idoneo alla formazione","E-TRAIN S.r.l.","071 4604348","info@e-train.it",null,"AGG014. Valutazioni delle prestazioni acustiche di edifici a partire dalle prestazioni dei prodotti - Norma UNI 12354 parti IV, V, VI",8,"23/07/2021","30/07/2021","Lezioni frontali","modalità FAD","TS","Trieste",34100,"INACCRS16.PDF"]
[null,"Friuli Venezia Giulia","Soggetto idoneo alla formazione","E-TRAIN S.r.l.","071 4604348","info@e-train.it",null,"AGG015. Il miglioramento dei requisiti acustici nella ristrutturazione edilizia",6,"29/07/2021","29/07/2021","Lezioni frontali","modalità FAD","TS","Trieste",34100,"INACCRS17.PDF"]
[null,"Lombardia","Soggetto idoneo alla formazione","E-TRAIN SRL",null,null,null,"AGG143. Criteri Ambientali Minimi (CAM). Comfort acustico e classificazione acustica edifici",8,"20/07/2021","27/07/2021","Lezioni frontali, E-Learning","Bloom Group \u0096 Via Valtorta, 44 \u0096 MILANO","MI","Milano",20136,"T1.2021.0062065.pdf"]
[null,"Lombardia","Soggetto idoneo alla formazione","AIAS Academy S.r.l.",null,null,null,"AGG140. Acustica nei luoghi di lavoro",8,"23/09/2021","23/09/2021","Lezioni frontali, E-Learning","AIAS Academy S.r.l. - Viale Thomas Alva Edison, 110","MI","Sesto San Giovanni",20099,"T1.2021.0062401.pdf"]
[null,"Lombardia","Soggetto idoneo alla formazione","AIAS Academy S.r.l.",null,null,null,"AGG141. Acustica Forense",8,"04/11/2021","04/11/2021","Lezioni frontali, E-Learning","AIAS Academy S.r.l. - Viale Thomas Alva Edison, 110","MI","Sesto San Giovanni",20099,"T1.2021.0062403.pdf"]
[null,"Lombardia","Soggetto idoneo alla formazione","AIAS Academy S.r.l.",null,null,null,"AGG142. Acustica Architettonica e CAM",8,"15/12/2021","15/12/2021","Lezioni frontali, E-Learning","AIAS Academy S.r.l. - Viale Thomas Alva Edison, 110","MI","Sesto San Giovanni",20099,"T1.2021.0062395.pdf"]
[null,"Piemonte","Ordine professionale","FOIT Fondazione dell'Ordine degli Ingegneri della Provincia di Torino","011-5186908","segreteria@foit.it",null,"Analisi delle Misure: Noise & Vibrations Works",4,"19/10/2021","19/10/2021","Lezioni frontali","Via Giovanni Giolitti 1","TO","Torino",10123,"dd 449_A1602B del 12_7_2021.pdf"]
[null,"Piemonte","Ordine professionale","FOIT Fondazione dell'Ordine degli Ingegneri della Provincia di Torino","011-5186908","segreteria@foit.it",null,"Impianti di Climatizzazione: caratterizzazione dell'emissione Acustica e Misure di Verifica",3,"23/09/2021","23/09/2021","Lezioni frontali","Via Giovanni Giolitti 1","TO","Torino",10123,"dd 449_A1602B del 12_7_2021(1).pdf"]
[null,"Piemonte","Ordine professionale","FOIT Fondazione dell'Ordine degli Ingegneri della Provincia di Torino","011-5186908","segreteria@foit.it",null,"Impianti Elettroacustici e Sistemi di Controllo e Limitazione",4,"23/11/2021","23/11/2021","Lezioni frontali","Via Giovanni Giolitti 1","TO","Torino",10123,"dd 449_A1602B del 12_7_2021(2).pdf"]
[null,"Piemonte","Soggetto idoneo alla formazione","IEC S.r.l. Industrial Engineering Consultant","0112425353","iec@iectorino.com",null,"La Valutazione dell'Incertezza nell'ambito dell'Acustica Ambientale",8,"21/10/2021","21/10/2021","Lezioni frontali","Via Botticelli 151","TO","Torino",10154,"dd 449_A1602B del 12_7_2021(3).pdf"]
[null,"Piemonte","Ordine professionale","FOIT Fondazione dell'Ordine degli Ingegneri della Provincia di Torino","011-5186908","segreteria@foit.it",null,"Impianti Elettroacustici e Sistemi di Controllo e Limitazione",4,"22/11/2021","22/11/2021","Lezioni frontali","Via Giovanni Giolitti 1","TO","Torino",10123,"dd 449_A1602B del 12_7_2021(4).pdf"]
[null,"Piemonte","Soggetto idoneo alla formazione","Associazione ASSO.FORMA","0141275914","info@assoforma.net",null,"Clima Acustico e Piani di Risanamento: Aspetti critici e problematiche di applicazione",6,"24/09/2021","01/10/2021","E-Learning","Via Giovanni Borello 1/A","AT","Asti",14100,"dd 449_A1602B del 12_7_2021(5).pdf"]
[null,"Veneto","Soggetto idoneo alla formazione","Centro di Formazione STS Srl","049-8809842","info@centrodiformazionests.it",null,"Il contenzioso in acustica",6,"22/10/2021","22/10/2021","E-Learning","Via Romana Aponense 116","PD","Padova",35142,"RICONOSCIMENTO CORSO STS PROT N. 64770 GIUGNO 2019_fd(3).pdf"]
[null,"Emilia Romagna","Soggetto idoneo alla formazione","ADDESTRA S.R.L.","0546 624975","iscrizioni@addestra.it","FIORINI LORETTA","Corso di aggiornamento per il tecnico competente in acustica - La valutazione previsionale di impatto acustico nel settore industriale. Strumenti e Metodi. Rif. P.A. 2019-14422/RER/1 - Edizione 5",5,"21/10/2021","21/10/2021","Lezioni frontali","Via Mengolina, 33 [sede regia vdc]","RA","Faenza",48018,"DD_12780_2020(2).pdf"]
[null,"Marche","Ordine professionale","Ordine degli Ingegneri della Provincia di Macerata","0733 233111","segreteria@ordineingegnerimacerata.it",null,"Principi di acustica forense \u0096 Il contenzioso in acustica \u0096 la normativa nazionale in materia di acustica",4,"06/08/2021","06/08/2021","E-Learning","Via Famiglia Palmieri n. 26","MC","Macerata",62100,"DD_VAA_agg_Acustica_Ingg  MC_06.08.2021.docx.pdf"]
[null,"Emilia Romagna","Soggetto idoneo alla formazione","THE ACS - SCUOLA ITALIANA DI ALTA FORMAZIONE SOCIETA' A R. L.","071 4604348","info@theacs.it","Antonio Chiarini","Corso di aggiornamento di 8 ore per tecnici competenti in acustica ambientale ai sensi D.Lgs 42/2017. Incertezza di misura in acustica applicata. RAVENNA Rif. P.A. 2019-14882/RER/2 - Edizione 2",8,"04/10/2021","11/10/2021","Lezioni frontali","Via Solari, 27 Loreto (AN) [sede regia vdc]","RA","Ravenna",48100,"DD_16997_2020(2).pdf"]
[null,"Emilia Romagna","Soggetto idoneo alla formazione","THE ACS - SCUOLA ITALIANA DI ALTA FORMAZIONE SOCIETA' A R. L.","071 4604348","info@theacs.it","Antonio Chiarini","Corso d aggiornamento di 12 ore per tecnici competenti in acustica ambientale ai sensi D.Lgs 42/2017. Le vibrazioni negli ambienti di vita e di lavoro. MODENA Rif. P.A. 2019-13399/RER/1 - Edizione 3",12,"05/11/2021","19/11/2021","Lezioni frontali","Via Solari, 27 Loreto (AN) [sede regia vdc]","MO","Modena",41100,"DD_4226_2020(10).pdf"]
[null,"Emilia Romagna","Soggetto idoneo alla formazione","THE ACS - SCUOLA ITALIANA DI ALTA FORMAZIONE SOCIETA' A R. L.","071 4604348","info@theacs.it","Antonio Chiarini","Corso di aggiornamento per tecnici competenti in acustica ambientale ai sensi D.Lgs 42/2017. La valutazione dei requisiti acustici passivi con le nuove norme UNI EN ISO 12354-2017. RAVENNA Rif. P.A. 2019-13399/RER/3 - Edizione 4",12,"15/09/2021","01/10/2021","Lezioni frontali","Via Solari, 27 Loreto (AN) [sede regia vdc]","RA","Ravenna",48100,"DD_4226_2020(11).pdf"]
[null,"Emilia Romagna","Soggetto idoneo alla formazione","THE ACS - SCUOLA ITALIANA DI ALTA FORMAZIONE SOCIETA' A R. L.","071 4604348","info@theacs.it","Antonio Chiarini","Corso di aggiornamento per tecnici competenti in acustica ambientale ai sensi D.Lgs 42/2017. Valutazione previsionale di impatto acustico. BOLOGNA Rif. P.A. 2019-13399/RER/4 - Edizione 5",12,"22/09/2021","06/10/2021","Lezioni frontali","Via Solari, 27 Loreto (AN) [sede regia vdc]","BO","Bologna",40100,"DD_4226_2020(12).pdf"]
[null,"Friuli Venezia Giulia","Soggetto idoneo alla formazione","EN.A.I.P FRIULI VENEZIA GIULIA",null,"direzione@enaip.fvg.it","0432 693611\n338 79346","AGG016. Il fonoassorbimento e l'acustica degli ambienti chiusi",4,"04/03/2022","04/03/2022","Lezioni frontali","modalità FAD","TS","Trieste",34100,"INACCRS18.PDF"]
[null,"Friuli Venezia Giulia","Soggetto idoneo alla formazione","EN.A.I.P FRIULI VENEZIA GIULIA",null,"direzione@enaip.fvg.it","0432 693611\n348 79346","AGG017. Acustica dei locali pubblici",4,"23/11/2021","23/11/2021","Lezioni frontali","modalità FAD","TS","Trieste",34100,"INACCRS19.PDF"]
[null,"Friuli Venezia Giulia","Soggetto idoneo alla formazione","EN.A.I.P FRIULI VENEZIA GIULIA",null,"direzione@enaip.fvg.it","0432 693611\n348 79346","AGG018. La mappatura acustica e la percezione del rumore in ambiente urbano",4,"27/01/2022","27/01/2022","Lezioni frontali","modalità FAD","TS","Trieste",34100,"INACCRS20.PDF"]
[null,"Veneto","Ordine professionale","Ordine degli Ingegneri di Verona e Provincia","0458035959","ordine@ingegneri.vr.it",null,"Incertezza di misura e di calcolo in acustica edilizia. Modelli di calcolo, valutazioni, implicazioni",6,"09/09/2021","10/09/2021","E-Learning","Via Santa Teresa 12","VR","Verona",37135,"RICONOSCIMENTO ING VR PROT ARPAV N. 68203 27.07.2021_fd.pdf"]
[null,"Umbria","Soggetto idoneo alla formazione","Centro Studi Edili","0742354243","info.cse@gmail.com","Centro Studi Edili - Palazzo Gerardi, Piazza XX Settembre 06034 Foligno (PG)","Fondamenti di acustica concetti di base Mod. 1",4,"06/08/2021","06/08/2021","E-Learning","Palazzo Gerardi Via XX Settembre 19 - 06034 Foligno (PG)","PG","Foligno","06034","DD 7563 del 29 luglio 2021 Centro Studi Edili Con base mod 1.pdf"]
[null,"Umbria","Soggetto idoneo alla formazione","Centro Studi Edili","0742354243","info.cse@gmail.com","Palazzo Gerardi - Piazza XX Settembre 19, 06034 Foligno (PG)","Normativa nazionale e regionale e la regolamentazione comunale in tema di acustica ambientale",4,"13/08/2021","13/08/2021","E-Learning","Palazzo Gerardi Via XX Settembre 19 - 06034 Foligno (PG)","PG","Foligno","06034","D D 7562 del 29 luglio 2021 Centro studi Edili Normativa.pdf"]
[null,"Marche","Albo professionale","Ordine degli Ingegneri della Provincia di Ancona","0712075392","segreteria@ordineingegneri.ancona.ie-train.it",null,"Acustica forense \u0096 Legislazione nazionale ed internazionale, rumore delle infrastrutture (portuali) e aeroportuali",12,"10/09/2021","24/09/2021","E-Learning","Via Ing. Roberto Bianchi snc","AN","Ancona",60131,"DD_VAA_agg_Acustica_Ingg  AN_Sett_2021.docx.pdf"]
[null,"Umbria","Soggetto idoneo alla formazione","Centro Studi Edili","0742354243","info.cse@gmail.com","Palazzo Gerardi - Piazza XX Settembre 19 - 06034 Foligno (PG)","Fondamenti di acustica concetti di base Mod. 3",4,"20/08/2021","20/08/2021","E-Learning","Palazzo Gerardi Via XX Settembre 19 - 06034 Foligno (PG)","PG","Foligno","06034","DD 7565 del 29 luglio 2021 CSE Fondamenti acust Mod 3.pdf"]
[null,"Umbria","Soggetto idoneo alla formazione","Centro Studi Edili","0742","info.cse@gmail.com","Palazzo Gerardi - Piazza XX Settembre 19, 06034 Foligno (PG)","Fondamentali di acustica  concetti base Mod 2",4,"27/08/2021","27/08/2021","E-Learning","Palazzo Gerardi Via XX Settembre 19 - 06034 Foligno (PG)","PG","Foligno","06034","DD 7564 del 29 luglio 2021 CSE Fon acustica Mod 2.pdf"]
[null,"Umbria","Soggetto idoneo alla formazione","Centro Studi Edili","0742354243","info.cse@gmail.com","Palazzo Gerardi - Piazza XX Settembre 19, 06034 Foligno (PG)","Fondamenti di acustica Mod. 1",4,"03/09/2021","03/08/2021","E-Learning","Palazzo Gerardi Via XX Settembre 19 - 06034 Foligno (PG)","PG","Foligno","06034","DD 7563 del 29 luglio 2021 Centro Studi Edili Con base mod 1(1).pdf"]
[null,"Umbria","Soggetto idoneo alla formazione","Centro Studi Edili","0742354243","info.cse@gmail.com","Palazzo  Gerardi - Piazza XX Settembre, 06034 Foligno (PG)","Normativa nazionale e regionale e la regolamentazione comunale in tema di acustica ambientale",4,"10/09/2021","10/09/2021","E-Learning","Palazzo Gerardi Via XX Settembre 19 - 06034 Foligno (PG)","PG","Foligno","06034","D D 7562 del 29 luglio 2021 Centro studi Edili Normativa(1).pdf"]
[null,"Umbria","Soggetto idoneo alla formazione","Centro Studi Edili","0742354243","info.cse@gmail.com","Palazzo Gerardi - Piazza XX Settembre 19, 06034 Foligno (PG)","Fondamentali di acustica  concetti base Mod. 3",4,"17/09/2021","17/09/2021","E-Learning","Palazzo Gerardi Via XX Settembre 19 - 06034 Foligno (PG)","PG","Foligno","06034","DD 7565 del 29 luglio 2021 CSE Fondamenti acust Mod 3(1).pdf"]
[null,"Umbria","Soggetto idoneo alla formazione","Centro Studi Edili","0742354243","info.cse@gmail.com","Palazzo Gerardi - Piazza XX Settembre n. 19, 06034 Foligno (PG)","Fondamentali di acustica  concetti base Mod. 2",4,"24/09/2021","24/09/2021","E-Learning","Palazzo Gerardi Via XX Settembre 19 - 06034 Foligno (PG)","PG","Foligno","06034","DD 7564 del 29 luglio 2021 CSE Fon acustica Mod 2(1).pdf"]
[null,"Umbria","Soggetto idoneo alla formazione","Centro Studi Edili","0742 354243","info.cse@gmail.com","Palazzo Gerardi - P.zza XX Settembre n. 19 , 06034 Foligno (PG)","Fondamenti di acustica concetti di base Mod. 1",4,"01/10/2021","01/10/2021","E-Learning","P.zza XX Settembre 19","PG","Foligno","06034","Pubblicazione DD 7563 del 29 luglio 2021 CSE  Con base mod 1.pdf"]
[null,"Umbria","Soggetto idoneo alla formazione","Centro Studi Edili","0742354243","info.cse@gmail.com","Palazzo Gerardi - Piazza XX Settembre 19, 06034 Foligno (PG)","Normativa nazionale e regionale e la regolamentazione comunale in tema di acustica ambientale",4,"08/10/2021","08/10/2021","E-Learning","P.zza XX Settembre 19","PG","Foligno","06034","D D 7562 del 29 luglio 2021 Centro studi Edili Normativa(2).pdf"]
[null,"Umbria","Soggetto idoneo alla formazione","Centro Studi Edili","0742354243","info.cse@gmail.com","Palazzo Gerardi - P.zza XX Settembre n. 19, \n06034 Foligno (PG)","Fondamenti di acustica concetti di base Mod. 3",4,"22/10/2021","22/10/2021","E-Learning","P.zza XX Settembre 19","PG","Foligno","06034","DD 7565 del 29 luglio 2021 CSE Fondamenti acust Mod 3(2).pdf"]
[null,"Umbria","Soggetto idoneo alla formazione","Centro Studi Edili","0742354243","info.cse@gmail.com","Palazzo Gerardi - P.zza XX Settembre n. 19, 06034 Foligno (PG)","Fondamenti di acustica concetti di base Mod. 2",4,"29/10/2021","29/10/2021","E-Learning","P.zza XX Settembre 19","PG","Foligno","06034","DD 7564 del 29 luglio 2021 CSE Fon acustica Mod 2(2).pdf"]
[null,"Lombardia","Ordine professionale","Ordine degli Architetti PPC della Provincia di Monza e della Brianza",null,null,null,"AGG144. Acustica per interni: comfort degli ambienti chiusi, tempo di riverberazione e STI",6,"15/10/2021","15/10/2021","Lezioni frontali, E-Learning","Via Zucchi 25- Monza","MB","Monza",20900,"T1.2021.0074828.pdf"]
[null,"Lombardia","Ordine professionale","Ordine degli Architetti PPC della Provincia di Monza e della Brianza",null,null,null,"AGG145. Competenze dei professionisti rispetto ai requisiti acustici passivi degli edifici",3,"11/11/2021","11/11/2021","Lezioni frontali, E-Learning","Via Zucchi 25- Monza","MB","Monza",20900,"T1.2021.0074831.pdf"]
[null,"Lombardia","Ordine professionale","Ordine degli Architetti PPC della Provincia di Monza e della Brianza",null,null,null,"AGG146. Regole per l\u0092acustica edilizia nelle ristrutturazioni",3,"16/12/2021","16/12/2021","Lezioni frontali, E-Learning","Via Zucchi 25- Monza","MB","Monza",20900,"T1.2021.0074832.pdf"]
[null,"Lombardia","Ordine professionale","ORDINE DEGLI INGEGNERI DELLA PROVINCIA DI COMO",null,null,null,"AGG147. CARATTERISTICHE ACUSTICHE INTERNE DI AMBIENTI CONFINATI",4,"24/09/2021","24/09/2021","Lezioni frontali, E-Learning","Via Volta 62","CO","Como",22100,"T1.2021.0074834.pdf"]
[null,"Lombardia","Ordine professionale","ORDINE DEGLI INGEGNERI DELLA PROVINCIA DI COMO",null,null,null,"AGG148. IL PUNTO DI VISTA DELL\u0092ARPA: CLIMA, IMPATTO, CONTROLLI",4,"22/10/2021","22/10/2021","Lezioni frontali, E-Learning","Via Volta 62","CO","Como",22100,"T1.2021.0074836.pdf"]
[null,"Lombardia","Soggetto idoneo alla formazione","TECO MILANO SRL",null,null,null,"ANNULLATO. AGG149. Comfort acustico negli uffici - Metodi di progettazione e tecniche di valutazione",6,"10/09/2021","10/09/2021","Lezioni frontali, E-Learning","c/o Assoacustici Corso Italia 13 \u0096 Saronno (VA)","VA","Saronno",21047,"T1.2021.0076639-unito.pdf"]
[null,"Sardegna","Ordine professionale","Ordine degli ingegneri della Provincia di Cagliari","070499703","ordine.cagliari@ingpec.eu",null,"Il rumore degli impianti meccanici in ambito civile",8,"12/10/2021","13/10/2021","E-Learning","Via Tasso 25","CA","Cagliari","09128","Det590_prot19574del23_08_2021.pdf"]
[null,"Liguria","Collegio professionale","Collegio Provinciale Geometri e Geometri Laureati di Genova","0105700735","geometrige@geometrinrete.ge.it",null,"Aggiornamento obbligatorio quinquennale elenco tecnici competenti in acustica ai sensi del D.lgs. 42/2017 e della DGR del 07/11/2018",15,"13/09/2021","27/09/2021","Lezioni frontali","V.le Brigata Bisagno, 8/1-2","GE","Genova",16129,"REG_AM_5265_2021_SIGNED.pdf"]
[null,"Lazio","Soggetto idoneo alla formazione","CRESCO Formazione e Consulenza Srl","07761815115","lisa.lombardozzi@crescosrl.net","TCA Raffaele Mariconte","Autorizzazione per lo svolgimento del corso di aggiorn. Profess. per TCA, programmato e gestito dalla CRESCO Formazione e Consulenza Srl \u0096 Quarta Edizione anno 2021, una sessione, 14 Settembre 2021 \u0096 5 ore formazione - modalità FAD.",5,"14/09/2021","14/09/2021","E-Learning","Via Tofaro, 42","FR","Sora","03039","Det_GR4900-000002_ CRESCO.pdf"]
[null,"Lombardia","Soggetto idoneo alla formazione","TECO MILANO SRL",null,null,null,"ANNULLATO. AGG150. Comfort acustico negli uffici - Metodi di progettazione e tecniche di valutazione",6,"01/10/2021","01/10/2021","Lezioni frontali, E-Learning","c/o Assoacustici Corso Italia 13 \u0096 Saronno (VA)","VA","Saronno",21047,"T1.2021.0080697-unito.pdf"]
[null,"Umbria","Soggetto idoneo alla formazione","Centro Studi Edili","0742354243","info.cse@gmail.com","Palazzo Gerardi - Piazza XX Settembre 19 - 06034 Foligno (PG)","Fondamentali di acustica  concetti base Mod 1",4,"05/11/2021","05/11/2021","E-Learning","Piazza XX settembre 19","PG","Foligno","06034","Pubblicazione DD 7563 del 29 luglio 2021 CSE  Con base mod 1(1).pdf"]
[null,"Umbria","Soggetto idoneo alla formazione","Centro Studi Edili","0742354243","info.cse@gmail.com","Palazzo Gerardi - Piazza XX Settembre 19 - 06034 - Foligno (PG)","Normativa nazionale e regionale e la regolamentazione comunale in tema di acustica ambientale",4,"12/11/2021","12/11/2021","E-Learning","Piazza XX settembre 19","PG","Foligno","06034","Pubblicazione D D 7562 del 29 luglio 2021 CSE Normativa.pdf"]
[null,"Umbria","Soggetto idoneo alla formazione","Centro Studi Edili","0742354243","info.cse@gmail.com","Palazzo Gerardi - Piazza XX Settembre 19 - 06034 Foligno (PG)","Fondamentali di acustica  concetti base Mod. 3",4,"19/11/2021","19/11/2021","E-Learning","Piazza XX settembre 19","PG","Foligno","06034","Pubblicazione DD 7565 del 29 luglio 2021 CSE Fondamenti acust Mod 3.pdf"]
[null,"Umbria","Soggetto idoneo alla formazione","Centro Studi Edili","0742354243","info.cse@gmail.com","Palazzo Gerardi - Piazza XX Settembre 19, 06034 Foligno (PG)","Fondamentali di acustica  concetti base Mod. 2",4,"26/11/2021","26/11/2021","E-Learning","Piazza XX settembre 19","PG","Foligno","06034","Pubblicazione DD 7564 del 29 luglio 2021 CSE Fon acustica Mod 2.pdf"]
[null,"Umbria","Soggetto idoneo alla formazione","Centro Studi Edili","0742354243","info.cse@gmail.com","Palazzo Gerardi, Piazza XX Settembre 19 - 06034 Foligno (PG)","Fondamentali di acustica  concetti base Mod 1",4,"03/12/2021","03/12/2021","E-Learning","Piazza XX settembre 19","PG","Foligno","06034","Pubblicazione DD 7563 del 29 luglio 2021 CSE  Con base mod 1(2).pdf"]
[null,"Umbria","Soggetto idoneo alla formazione","Centro Studi Edili","0742354243","info.cse@gmail.com","Palazzo Gerardi - Piazza XX Settembre 19 - 06034 Foligno (PG)","Normativa nazionale e regionale e la regolamentazione comunale in tema di acustica ambientale",4,"10/12/2021","10/12/2021","E-Learning","Piazza XX settembre 19","PG","Fossato di Vico","06034","Pubblicazione D D 7562 del 29 luglio 2021 CSE Normativa(1).pdf"]
[null,"Umbria","Soggetto idoneo alla formazione","Centro Studi Edili","0742354243","info.cse@gmail.com","Palazzo Gerardi - Piazza XX Settembre 19 - 06034 Foligno (PG)","Fondamentali di acustica  concetti base Mod. 3",4,"17/12/2021","17/12/2021","E-Learning","Piazza XX settembre 19","PG","Foligno","06034","Pubblicazione DD 7565 del 29 luglio 2021 CSE Fondamenti acust Mod 3(1).pdf"]
[null,"Umbria","Soggetto idoneo alla formazione","Centro Studi Edili","0742354243","info.cse@gmail.com","Palazzo Gerardi - Piazza XX Settembre 19 - 06034 Foligno (PG)","Fondamentali di acustica  concetti base Mod. 2",4,"30/12/2021","30/12/2021","E-Learning","Piazza XX settembre 19","PG","Foligno","06034","Pubblicazione DD 7564 del 29 luglio 2021 CSE Fon acustica Mod 2(1).pdf"]
[null,"Veneto","Ordine professionale","Ordine degli Architetti di Padova e Provincia","049662340","architetti@padova.archiworld.it","Ordine degli Architetti di Padova e Provincia","Acustica Edilizia: la qualità e il confort acustico",6,"22/09/2021","23/09/2021","E-Learning","Piazza Salvemini","PD","Padova",35100,"CORSO ARCHITETTI PADOVA PROT. N. 84111 SETTEMBRE 2021_fd.pdf"]
[null,"Veneto","Soggetto idoneo alla formazione","ISRE QAS","041991615","AMMINISTRAZIONE@QASC.IT","ISRE QAS CONSULTING SOC. COOP","La Documentazione di Impatto Acustico e di Clima Acustico ai sensi della Legge n. 447/1995. Applicazioni ed esempi di casi reali sviluppati secondo normativa.",6,"25/10/2021","25/10/2021","E-Learning","Viale Sanremo","VE","Spinea",30038,"CORSO QAS SPINEA PROT. N. 84186 SETTEMBRE 2021_fd.pdf"]
[null,"Lombardia","Ordine professionale","Ordine degli Architetti PPC della Provincia di Bergamo",null,null,null,"AGG151.Trasmissioni laterali del rumore in edilizia.",6,"20/10/2021","20/10/2021","Lezioni frontali, E-Learning","ANIT, Via Lanzone 31, 20123 Milano","MI","Milano",20123,"T1.2021.0084899.pdf"]
[null,"Lombardia","Ordine professionale","Ordine degli Architetti PPC della Provincia di Bergamo",null,null,null,"AGG152. Impatto acustico dei cantieri e la norma UNI 11728",6,"16/11/2021","16/11/2021","Lezioni frontali, E-Learning","ANIT, Via Lanzone 31, 20123 Milano","MI","Milano",20123,"T1.2021.0084905.pdf"]
[null,"Lombardia","Soggetto idoneo alla formazione","TECO MILANO SRL",null,null,null,"AGG153. VALUTAZIONE DEL RISCHIO E DEL DANNO DA RUMORE IN AMBIENTE DI LAVORO CON L\u0092AUSILIO DEL SOFTWARE RUMOURS",6,"28/10/2021","29/10/2021","Lezioni frontali, E-Learning","c/o Assoacustici Corso Italia 13 \u0096 Saronno (VA)","VA","Saronno",21047,"T1.2021.0084903.pdf"]
[null,"Lombardia","Ordine professionale","ORDINE DEGLI INGEGNERI DELLA PROVINCIA DI COMO",null,null,null,"AGG154. ROOM ACOUSTICS DESIGN IN PERFORMING ART SPACES: PROGETTAZIONE ACUSTICA DEGLI SPAZI PER LA CULTURA E LO SPETTACOLO",4,"26/11/2021","26/11/2021","Lezioni frontali, E-Learning","Via Volta 62","CO","Como",22100,"T1.2021.0089955-unito.pdf"]
[null,"Lombardia","Soggetto idoneo alla formazione","SINTEX S.r.l.",null,null,null,"AGG155. DALLA VALUTAZIONE DEL RUMORE AL PIANO DI RIDUZIONE DELL\u0092ESPOSIZIONE",4,"25/10/2021","25/10/2021","Lezioni frontali, E-Learning","Centro di formazione SINTEX S.r.l. - 25030 Torbole Casaglia (Bs), via Artigianato 9","BS","Torbole Casaglia",25030,"T1.2021.0089951.pdf"]
[null,"Veneto","Soggetto idoneo alla formazione","Son Training srls",3476767388,"sontraining@sontraining.it","Son Training srls","La valutazione di impatto acustico con le modalità proposte nella nuova norma UNI 12354-4 - sviluppo di casi pratici",6,"28/10/2021","28/10/2021","E-Learning","Via Tiratore 24, Atripalda (AV)","VE","Venezia",83042,"RICONOSCIMENTO SON TRAINING PROT. 86981 SETTEMBRE 2021_fd.pdf"]
[null,"Marche","Ordine professionale","Ordine degli Ingegneri della Provincia di Fermo","0734 228664","info@ordineingegneri.fermo.it","Ing. Ulissi Daniele","La valutazione del rumore negli ambienti di lavoro; l\u0092acustica nelle ristrutturazioni e la valutazione previsionale di impatto acustico",12,"20/10/2021","10/11/2021","E-Learning","Via Brunforte, 11","FM","Fermo",63900,"DD_VAA_agg_Acustica_Ingg  FM_ott_2021.docx.pdf"]
[null,"Emilia Romagna","Soggetto idoneo alla formazione","Associazione Assform","0541 1796402","seg-corsi@assform.it","Semprini Mario Paolo","Aggiornamento Tecnico Competente in Acustica. La classificazione acustica degli edifici. Rif. P.A. 2019-14362/RER/1 - Edizione 4",8,"18/10/2021","19/10/2021","Lezioni frontali","Corso Giovanni XXIII, 131 [sede regia vdc]","RN","Rimini",47921,"DD_10169_2020(9).pdf"]
[null,"Emilia Romagna","Soggetto idoneo alla formazione","Associazione Assform","0541 1796402","seg-corsi@assform.it","Semprini Mario Paolo","Aggiornamento Tecnico Competente in Acustica. La normale tollerabilità alla luce dei nuovi dispositivi di legge. Rif. P.A. 2019-14557/RER/1 - Edizione 3",8,"28/10/2021","29/10/2021","Lezioni frontali","Corso Giovanni XXIII, 131 [sede regia vdc]","RN","Rimini",47921,"DD_15009_2020(13).pdf"]
[null,"Emilia Romagna","Soggetto idoneo alla formazione","Associazione Assform","0541 1796402","seg-corsi@assform.it","Semprini Mario Paolo","Aggiornamento Tecnico Competente in Acustica. Gli errori nelle misure di rumore e di vibrazione. Rif. P.A. 2019-14559/RER/1 - Edizione 5",5,"12/11/2021","12/11/2021","Lezioni frontali","Corso Giovanni XXIII, 131 [sede regia vdc]","RN","Rimini",47921,"DD_15009_2020(14).pdf"]
[null,"Emilia Romagna","Soggetto idoneo alla formazione","Associazione Assform","0541 1796402","seg-corsi@assform.it","Semprini Mario Paolo","Aggiornamento Tecnico Competente in Acustica. Vedere il rumore: Teoria e pratica della tecnica beamforming. Rif. P.A. 2019-14560/RER/1 - Edizione 5",5,"19/11/2021","19/11/2021","Lezioni frontali","Corso Giovanni XXIII, 131 [sede regia vdc]","RN","Rimini",47921,"DD_15009_2020(15).pdf"]
[null,"Emilia Romagna","Soggetto idoneo alla formazione","Associazione Assform","0541 1796402","seg-corsi@assform.it","Semprini Mario Paolo","Aggiornamento Tecnico Competente in Acustica. L'acustica nei luoghi di intrattenimento, di pubblico spettacolo e nei pubblici esercizi. Rif. P.A. 2019-14233/RER/1 - Edizione 4",8,"25/11/2021","26/11/2021","Lezioni frontali","Corso Giovanni XXIII, 131 [sede regia vdc]","RN","Rimini",47921,"DD_10169_2020(10).pdf"]
[null,"Emilia Romagna","Soggetto idoneo alla formazione","Associazione Assform","0541 1796402","seg-corsi@assform.it","Semprini Mario Paolo","Aggiornamento Tecnico Competente in Acustica. Le norme per la posa in opera dei materiali per l'isolamento acustico. Rif. P.A. 2019-15518/RER/1 - Edizione 2",5,"06/12/2021","06/12/2021","Lezioni frontali","Corso Giovanni XXIII, 131 [sede regia vdc]","RN","Rimini",47921,"DD_5427_2021(2).pdf"]
[null,"Toscana","Collegio professionale","Collegio degli Ingegneri della Toscana","055/2823662","info@collegioingegneri.toscana.it",null,"ACUSTICA ARCHITETTONICA E CAM",8,"11/05/2021","13/05/2021","E-Learning","via Della Fortezza 6","FI","Firenze",50129,"Decreto_n.17251_del_06-10-2021+Allegato.pdf"]
[null,"Toscana","Collegio professionale","Collegio degli Ingegneri della Toscana","055/2823662","info@collegioingegneri.toscana.it",null,"RUMORE LUOGHI DI LAVORO \u0096 REDAZIONE P.A.R.E.",8,"28/06/2021","30/06/2021","E-Learning","via Della Fortezza 6","FI","Firenze",50129,"Decreto_n.17251_del_06-10-2021+Allegato(1).pdf"]
[null,"Toscana","Collegio professionale","Collegio degli Ingegneri della Toscana","055/2823662","info@collegioingegneri.toscana.it",null,"VALUTAZIONE IMPATTO ACUSTICO IMPIANTI INDUSTRIALI",4,"14/09/2021","14/09/2021","E-Learning","via Della Fortezza 6","FI","Firenze",50129,"Decreto_n.17251_del_06-10-2021+Allegato(2).pdf"]
[null,"Toscana","Ordine professionale","Ordine degli Ingegneri della Provincia di Massa Carrara","0585/70466","ordine@ordineingegnerimassacarrara.it",null,"ACUSTICA IN AMBIENTI CONFINATI E REQUISITI ACUSTICI PASSIVI",4,"08/05/2021","08/05/2021","E-Learning","piazza Matteotti 4","MS","Carrara",54033,"Decreto_n.17251_del_06-10-2021+Allegato(3).pdf"]
[null,"Toscana","Soggetto idoneo alla formazione","AGENZIA FORMATIVA DEL COMUNE DI FIRENZE","055/2625682","direzione.istruzione@comune.fi.it",null,"ASFALTI A BASSA EMISSIONE DI RUMORE",2,"14/05/2021","14/05/2021","E-Learning","Nicolodi 2","FI","Firenze",50131,"Decreto_n.17251_del_06-10-2021+Allegato(4).pdf"]
[null,"Toscana","Soggetto idoneo alla formazione","SCUOLA EDILE GROSSETANA","0564/454569","info@scuolaedilegrossetana.it",null,"VALUTAZIONE DI IMPATTO E CLIMA ACUSTICO  PRIMA EDIZIONE",8,"27/04/2021","28/04/2021","E-Learning","Monterosa 196","GR","Grosseto",58100,"Decreto_n.17251_del_06-10-2021+Allegato(5).pdf"]
[null,"Toscana","Soggetto idoneo alla formazione","SCUOLA EDILE GROSSETANA","0564/454569","info@scuolaedilegrossetana.it",null,"VALUTAZIONE DI IMPATTO E CLIMA ACUSTICO  SECONDA EDIZIONE",8,"31/05/2021","01/06/2021","E-Learning","Monterosa 196","GR","Grosseto",58100,"Decreto_n.17251_del_06-10-2021+Allegato(6).pdf"]
[null,"Toscana","Soggetto idoneo alla formazione","TEKNOFORM","0571/1962649","teknoform@teknoform.it",null,"PROGETTAZIONE DEI REQUISITI ACUSTICI DI SOLAI",4,"21/06/2021","21/06/2021","E-Learning","via Usciana 132","PI","Castelfranco di Sotto",56022,"Decreto_n.17251_del_06-10-2021+Allegato(7).pdf"]
[null,"Toscana","Soggetto idoneo alla formazione","LABORCHIMICA","0575/323900","info@laborchimica.it",null,"AGGIORNAMENTI NORMATIVA ACUSTICA  -  REQUISITI ACUSTICI DEGLI EDIFICI: PROGETTAZIONE VALUTAZIONI  -  MAPPATURA ACUSTICA TERRITORIO E SOFTWARE DI MODELLAZIONE  -  ACUSTICA FORENSE",30,"19/02/2021","29/09/2021","E-Learning","via Achille Grandi 85","AR","Arezzo",52100,"Decreto_n.17251_del_06-10-2021+Allegato(8).pdf"]
[null,"Toscana","Soggetto idoneo alla formazione","SOCIP","050/983935","formazione@socipsrl.it",null,"ACUSTICA EDILIZIA",5,"09/03/2021","16/03/2021","E-Learning","via Ravizza 12","PI","Pisa",56121,"Decreto_n.17251_del_06-10-2021+Allegato(9).pdf"]
[null,"Toscana","Soggetto idoneo alla formazione","DELTA FORMAZIONE","0571/34503","info@deltaformazione.com",null,"DEROGHE ACUSTICHE PER CANTIERI, PUBBLICI SPETTACOLI E ATTIVITÀ OCCASIONALI",5,"15/05/2021","15/05/2021","E-Learning","via Viviani 4","PI","Pisa",56029,"Decreto_n.17251_del_06-10-2021+Allegato(10).pdf"]
[null,"Toscana","Soggetto idoneo alla formazione","DIPARTIMENTO U.S.L. TOSCANA SUD EST","0577 536669","iole.pinto@uslsudest.toscana.it",null,"REQUISITI ACUSTICI DEGLI EDIFICI: INQUADRAMENTO  -  PROBLEMATICHE RELATIVE A EDIFICI SCOLASTICI  -  REQUISITI ACUSTICI PER STRUTTURE SANITARIE, UFFICI, PALESTRE E PISCINE",15,"09/04/2021","23/04/2021","E-Learning","Strada del Ruffolo 4","SI","Siena",53100,"Decreto_n.17251_del_06-10-2021+Allegato(11).pdf"]
[null,"Sicilia","Soggetto idoneo alla formazione","EGOLOGIC soc.coop a r.l.","0931419766","atrigilio@egologic.it",null,"D.R.S. n. 1452 del 15.10.2021/ 1.21-22 -  I EDIZIONE 'Il ruolo del TCA nello studio del rumore generato dalle attività produttive e commerciali: dall'indagine alla soluzione del problema'.",8,"23/11/2021","24/11/2021","Lezioni frontali, Blended - Learning","Corso Gelone, 63","SR","Siracusa",96100,"DRS_1452_15_10_2021_programma_1.21_22_8_ore.pdf"]
[null,"Sicilia","Soggetto idoneo alla formazione","EGOLOGIC soc.coop a r.l.","0931419766","atrigilio@egologic.it",null,"D.R.S. n. 1452 del 15.10.2021/1.21-22 - II EDIZIONE 'Il ruolo del TCA nello studio del rumore generato dalle attività produttive e commerciali: dall'indagine alla soluzione del problema'.",8,"19/01/2022","20/01/2022","Lezioni frontali, Blended - Learning","Corso Gelone, 63","SR","Siracusa",96100,"DRS_1452_15_10_2021_programma_1.21_22_8_ore(1).pdf"]
[null,"Sicilia","Soggetto idoneo alla formazione","EGOLOGIC soc.coop a r.l.","0931419766","atrigilio@egologic.it",null,"D.R.S. n. 1452 del 15.10.2021/1.21-22- III EDIZIONE 'Il ruolo del TCA nello studio del rumore generato dalle attività produttive e commerciali: dall'indagine alla soluzione del problema'.",8,"08/03/2022","09/03/2022","Lezioni frontali, Blended - Learning","Corso Gelone, 63","SR","Siracusa",96100,"DRS_1452_15_10_2021_programma_1.21_22_8_ore(2).pdf"]
[null,"Sicilia","Soggetto idoneo alla formazione","EGOLOGIC soc.coop a r.l.","0931419766","atrigilio@egologic.it",null,"D.R.S. n. 1452 del 15.10.2021/2.21-22 - I EDIZIONE 'Il ruolo del TCA nello studio del rumore: approfondimenti e presentazioni di casi studio di campagne di misura'.",4,"30/11/2021","30/11/2021","Lezioni frontali, Blended - Learning","Corso Gelone, 63","SR","Siracusa",96100,"DRS_1452_15_10_2021_programma_2.21_22_4_ore.pdf"]
[null,"Sicilia","Soggetto idoneo alla formazione","EGOLOGIC soc.coop a r.l.","0931419766","atrigilio@egologic.it",null,"D.R.S. n. 1452 del 15.10.2021/2.21-22 - II EDIZIONE 'Il ruolo del TCA nello studio del rumore: approfondimenti e presentazioni di casi studio di campagne di misura'.",4,"22/03/2022","22/03/2022","Lezioni frontali, Blended - Learning","Corso Gelone, 63","SR","Siracusa",96100,"DRS_1452_15_10_2021_programma_2.21_22_4_ore(1).pdf"]
[null,"Sicilia","Soggetto idoneo alla formazione","EGOLOGIC soc.coop a r.l.","0931419766","atrigilio@egologic.it",null,"D.R.S. n. 1452 del 15.10.2021/2.21-22 - III EDIZIONE 'Il ruolo del TCA nello studio del rumore: approfondimenti e presentazioni di casi studio di campagne di misura'.",4,"05/04/2022","05/04/2022","Lezioni frontali, Blended - Learning","Corso Gelone, 63","SR","Siracusa",96100,"DRS_1452_15_10_2021_programma_2.21_22_4_ore(2).pdf"]
[null,"Sicilia","Soggetto idoneo alla formazione","EGOLOGIC soc.coop a r.l.","0931419766","atrigilio@egologic.it",null,"D.R.S. n. 1452 del 15.10.2021/3.21-22 - I EDIZIONE 'Il ruolo del TCA nello studio del rumore: Approfondimenti e presentazione di casi studio di bonifiche acustiche'.",4,"01/12/2021","01/12/2021","Lezioni frontali, Blended - Learning","Corso Gelone, 63","SR","Siracusa",96100,"DRS_1452_15_10_2021_programma_3.21_22_4_ore.pdf"]
[null,"Sicilia","Soggetto idoneo alla formazione","EGOLOGIC soc.coop a r.l.","0931419766","atrigilio@egologic.it",null,"D.R.S. n. 1452 del 15.10.2021/3.21-22 - II EDIZIONE 'Il ruolo del TCA nello studio del rumore: Approfondimenti e presentazione di casi studio di bonifiche acustiche'.",4,"29/03/2022","29/03/2022","Lezioni frontali, Blended - Learning","Corso Gelone, 63","SR","Siracusa",96100,"DRS_1452_15_10_2021_programma_3.21_22_4_ore(1).pdf"]
[null,"Sicilia","Soggetto idoneo alla formazione","EGOLOGIC soc.coop a r.l.","0931419766","atrigilio@egologic.it",null,"D.R.S. n. 1452 del 15.10.2021/3.21-22 - III EDIZIONE 'Il ruolo del TCA nello studio del rumore: Approfondimenti e presentazione di casi studio di bonifiche acustiche'.",4,"12/04/2022","12/04/2022","Lezioni frontali, Blended - Learning","Corso Gelone, 63","SR","Siracusa",96100,"DRS_1452_15_10_2021_programma_3.21_22_4_ore(2).pdf"]
[null,"Sicilia","Soggetto idoneo alla formazione","EGOLOGIC soc.coop a r.l.","0931419766","atrigilio@egologic.it",null,"D.R.S. n. 1452 del 15.10.2021/4.21-22 - I EDIZIONE 'La sinergia tra TCA e avvocato nelle problematiche di disturbo da rumore'",4,"14/12/2021","14/12/2021","Lezioni frontali, Blended - Learning","Corso Gelone, 63","SR","Siracusa",96100,"DRS_1452_15_10_2021_programma_4.21_22_4_ore.pdf"]
[null,"Sicilia","Soggetto idoneo alla formazione","EGOLOGIC soc.coop a r.l.","0931419766","atrigilio@egologic.it",null,"D.R.S. n. 1452 del 15.10.2021/4.21-22 - II EDIZIONE 'La sinergia tra TCA e avvocato nelle problematiche di disturbo da rumore'",4,"12/01/2022","12/01/2022","Lezioni frontali, Blended - Learning","Corso Gelone, 63","SR","Siracusa",96100,"DRS_1452_15_10_2021_programma_4.21_22_4_ore(1).pdf"]
[null,"Sicilia","Soggetto idoneo alla formazione","EGOLOGIC soc.coop a r.l.","0931419766","atrigilio@egologic.it",null,"D.R.S. n. 1452 del 15.10.2021/4.21-22 - III EDIZIONE 'La sinergia tra TCA e avvocato nelle problematiche di disturbo da rumore'",4,"16/02/2022","16/02/2022","Lezioni frontali, Blended - Learning","Corso Gelone, 63","SR","Siracusa",96100,"DRS_1452_15_10_2021_programma_4.21_22_4_ore(2).pdf"]
[null,"Sicilia","Soggetto idoneo alla formazione","EGOLOGIC soc.coop a r.l.","0931419766","atrigilio@egologic.it",null,"D.R.S. n. 1452 del 15.10.2021/5.21-22 - I EDIZIONE 'Gli errori più comuni nelle misure acustiche'",4,"09/11/2021","09/11/2021","Lezioni frontali, Blended - Learning","Corso Gelone, 63","SR","Siracusa",96100,"DRS_1452_15_10_2021_programma_5.21_22_4_ore.pdf"]
[null,"Sicilia","Soggetto idoneo alla formazione","EGOLOGIC soc.coop a r.l.","0931419766","atrigilio@egologic.it",null,"D.R.S. n. 1452 del 15.10.2021/5.21-22 - II EDIZIONE 'Gli errori più comuni nelle misure acustiche'",4,"24/02/2022","24/02/2022","Lezioni frontali, Blended - Learning","Corso Gelone, 63","SR","Siracusa",96100,"DRS_1452_15_10_2021_programma_5.21_22_4_ore(1).pdf"]
[null,"Sicilia","Soggetto idoneo alla formazione","EGOLOGIC soc.coop a r.l.","0931419766","atrigilio@egologic.it",null,"D.R.S. n. 1452 del 15.10.2021/5.21-22 - III EDIZIONE 'Gli errori più comuni nelle misure acustiche'",4,"27/04/2022","27/04/2022","Lezioni frontali, Blended - Learning","Corso Gelone, 63","SR","Siracusa",96100,"DRS_1452_15_10_2021_programma_5.21_22_4_ore(2).pdf"]
[null,"Sicilia","Soggetto idoneo alla formazione","TECNASERVICE srl","0932663167","tecnaservicesrl@cnaragusa.it",null,"D.R.S. n. 1453 del 15.10.2021 - 5.1 - 'Acustica edilizia e territorio: i requisiti acustici passivi degli edifici. Dalla normativa al contenzioso'",6,"14/01/2022","14/01/2022","Lezioni frontali, Blended - Learning","Via Psaumida, 38","RG","Ragusa",97100,"DRS_1453_15_10_2021_programma.pdf"]
[null,"Sicilia","Soggetto idoneo alla formazione","TECNASERVICE srl","0932-663167","tecnaservicesrl@cnaragusa.it",null,"D.R.S. n. 1453 del 15.10.2021 - 5.2 - 'Acustica Forense'",6,"11/02/2022","11/02/2022","Lezioni frontali, Blended - Learning","Via Psaumida, 38","RG","Ragusa",97100,"DRS_1453_15_10_2021_programma(1).pdf"]
[null,"Sicilia","Soggetto idoneo alla formazione","TECNASERVICE srl","0932-663167","tecnaservicesrl@cnaragusa.it",null,"D.R.S. n. 1453 del 15.10.2021 - 5.3 - 'Impatto acustico dei cantieri e la norma UNI 11728'",6,"11/03/2022","11/03/2022","Lezioni frontali, Blended - Learning","Via Psaumida, 38","RG","Ragusa",97100,"DRS_1453_15_10_2021_programma(2).pdf"]
[null,"Sicilia","Soggetto idoneo alla formazione","TECNASERVICE srl","0932-663167","tecnaservicesrl@cnaragusa.it",null,"D.R.S. n. 1453 del 15.10.2021 - 5.4 - 'pareri preventivi sulle immissioni sonore delle sorgenti'",6,"08/04/2022","08/04/2022","Lezioni frontali, Blended - Learning","Via Psaumida, 38","RG","Ragusa",97100,"DRS_1453_15_10_2021_programma(3).pdf"]
[null,"Sicilia","Soggetto idoneo alla formazione","TECNASERVICE srl","0932-663167","tecnaservicesrl@cnaragusa.it",null,"D.R.S. n. 1453 del 15.10.2021 - 5.5 ' Misure e limiti per le sorgenti sonore fisse'",6,"13/05/2022","13/05/2022","Lezioni frontali, Blended - Learning","Via Psaumida, 38","RG","Ragusa",97100,"DRS_1453_15_10_2021_programma(4).pdf"]
[null,"Umbria","Soggetto idoneo alla formazione","Meccanotecnica Umbra Academy S.r.l.","0743 2791","info@mtuacademy.org","Meccanotecnica Umbra Academy s.r.l. - Via G. Agnelli 7/9 06042 Campello sul Clitunno (PG)","Approfondimento di modellazione acustica",4,"19/11/2021","19/11/2021","E-Learning","Via G. Agnelli 7/9","PG","Campello sul Clitunno","06042","DD 10185 del 18 ottobre 2021 autorizzazione corsi Meccanotecnica.pdf"]
[null,"Umbria","Soggetto idoneo alla formazione","Meccanotecnica Umbra Academy S.r.l.","0743 2791","info@mtuacademy.org","Meccanotecnica Umbra Academy s.r.l. - Via G. Agnelli 7/9, 06042 Campello sul Clitunno (PG)","Approfondimenti normativi ed applicativi sui requisiti acustici passivi",4,"09/12/2021","09/12/2021","E-Learning","Via G. Agnelli 7/9","PG","Campello sul Clitunno","06042","DD 10185 del 18 ottobre 2021 autorizzazione corsi Meccanotecnica(1).pdf"]
[null,"Lombardia","Soggetto idoneo alla formazione","AFOR SAS di Massimiliano Rabbachin e C.",null,null,null,"AGG156. Valutazione Rischio Rumore e Vibrazioni",16,"05/11/2021","20/11/2021","Lezioni frontali","Via Valtorta 35 - 20127 MILANO","MI","Milano",20127,"T1.2021.0099130.pdf"]
["D000090","Campania","Soggetto idoneo alla formazione","0001 - Son Training S.r.l.s.",null,"info@sontraining.it","Per informazioni commerciali contattare il  3938319684 - per assistenza tecnica contattare il  3476767388 - oppure inviare una mail a formazione@sontraining.it","D000090 - Misurazione di vibrazioni indotte da infrastrutture e attività di cantiere",5,"04/11/2021","04/11/2021","E-Learning","VIA PONTANO 6","NA","Nola",80035,"2021.10.20_DD_00575.pdf"]
[null,"Piemonte","Ordine professionale","ORDINE DEGLI ARCHITETTI PPC DI TORINO","011-546975","architettitorino@oato.it / a.feltrin@oato.it",null,"Comfort e Requisiti Acustici negli interventi di ristrutturazione di singole unità - cod. 2207-8",8,"01/12/2021","15/12/2021","Blended - Learning","Via Giovanni Giolitti 1","TO","Torino",10123,"dd 660 del 13 ottobre 2021(11).pdf"]
[null,"Piemonte","Ordine professionale","ORDINE DEGLI ARCHITETTI PPC DI TORINO","011-546975","architettitorino@oato.it / a.feltrin@oato.it",null,"L'Acustica nei luoghi di ristorazione - cod. 31231-2",4,"17/11/2021","17/11/2021","Blended - Learning","Via Giovanni Giolitti 1","TO","Torino",10123,"dd 660 del 13 ottobre 2021(12).pdf"]
[null,"Piemonte","Soggetto idoneo alla formazione","IEC S.r.l. Industrial Engineering Consultant","0112425353","iec@iectorino.com",null,"La misura delle emissioni acustiche ambientali delle macchine e delle attrezzature destinate all'aperto",8,"01/12/2021","01/12/2021","Blended - Learning","Via Botticelli 151","TO","Torino",10154,"dd 660 del 13 ottobre 2021(13).pdf"]
[null,"Piemonte","Soggetto idoneo alla formazione","IEC S.r.l. Industrial Engineering Consultant","0112425353","iec@iectorino.com",null,"La bonifica acustica degli ambienti di lavoro: normativa vigente, metodologie di studio ed esercitazione applicativa",8,"24/11/2021","24/11/2021","Blended - Learning","Via Botticelli 151","TO","Torino",10154,"dd 660 del 13 ottobre 2021(14).pdf"]
[null,"Piemonte","Ordine professionale","ORDINE DEGLI INGEGNERI DELLA PROVINCIA DI VERCELLI","0161213240","ordingvc@ordingvc.it",null,"Illustrazione del documento \"Indicazioni operative per la prevenzione del rischio da agenti fisici ai sensi del D.lgs n. 81/2008\"",8,"28/10/2021","11/11/2021","E-Learning","Via Botticelli 151","TO","Torino",10154,"dd 660 del 13 ottobre 2021(15).pdf"]
[null,"Piemonte","Soggetto idoneo alla formazione","SON TRAINING Srls","347-6767388","sontraining@sontrainig.it",null,"Monitoraggio acustico da cantiere - Calcolo del valore di missione - le norme UNI 10855 e la UNI 11728/2018 - le linee guida Ispra",5,"23/11/2021","23/11/2021","E-Learning","Via Tiratore 24, Atripalda (AV)","TO","Torino",83042,"dd 660 del 13 ottobre 2021(16).pdf"]
[null,"Piemonte","Soggetto idoneo alla formazione","ARPA PIEMONTE","01119680487","formazione@arpa.piemonte.it",null,"Il rumore degli impianti aeraulici. Meccanismi di generazione, motodiche di valutazione e tecniche di controllo",6,"24/11/2021","24/11/2021","E-Learning","Via Pio VII 9","TO","Torino",10135,"dd 660 del 13 ottobre 2021(17).pdf"]
[null,"Piemonte","Soggetto idoneo alla formazione","Associazione ASSO.FORMA","0141275914","info@assoforma.net",null,"Acustica Edilizia: Confronto tra le \"nuove\" norme tecniche di collaudo UNI EN ISO 16823 con le ritirate UNI EN ISO 140. Acustica ambientale: La progettazione delloe opere di mitigazione a servizio di impianti e macchinari",6,"10/12/2021","17/12/2021","E-Learning","Via Giovanni Borello 1/A","AT","Asti",14100,"dd 660 del 13 ottobre 2021(18).pdf"]
[null,"Piemonte","Collegio professionale","ORDINE DEI PERITI INDUSTRIALI DELLA PROVINCIA DI CUNEO","0171-697102","info@peritiindustrialicuneo.it",null,"Aspetti Legislativi e sentenze in materia di Acustica Ambientale (MOVIDA) ed edilizia - Interventi della pubblica amministrazione sui progetti di acustica - competenza risanamenti acustici",4,"19/11/2021","19/11/2021","E-Learning","Corso IV Novembre 8","CN","Cuneo",12100,"dd 660 del 13 ottobre 2021(19).pdf"]
[null,"Piemonte","Collegio professionale","ORDINE DEI PERITI INDUSTRIALI DELLA PROVINCIA DI CUNEO","0171697102","info@peritiindustrialicuneo.it",null,"Acustica Edilizia - La norma UNI EN ISO 16823 di recente pubblicazione - il confronto con la ritirata norma UNI EN ISO 140",4,"12/11/2021","12/11/2021","E-Learning","Corso IV Novembre 8","CN","Cuneo",12100,"dd 660 del 13 ottobre 2021(20).pdf"]
[null,"Piemonte","Collegio professionale","ORDINE DEI PERITI INDUSTRIALI DELLA PROVINCIA DI CUNEO","0171697102","info@peritiindustrialicuneo.it",null,"La consulenza Tecnica nei Procedimenti Giudiziari ex art. 844 cc",4,"05/11/2021","05/11/2021","E-Learning","Corso IV Novembre 8","CN","Cuneo",12100,"dd 660 del 13 ottobre 2021(21).pdf"]
[null,"Lombardia","Università","DIPARTIMENTO DI INGEGNERIA CIVILE E ARCHITETTURA dell\u0092Università di Pavia",null,null,null,"AGG157. Gli errori più comuni nelle misure acustiche",6,"26/11/2021","03/12/2021","E-Learning","Via Ferrata 3","PV","Pavia",27100,"T1.2021.0100651.pdf"]
[null,"Lombardia","Soggetto idoneo alla formazione","E-TRAIN SRL",null,null,null,"AGG158. Criteri Ambientali Minimi (CAM). Comfort acustico e classificazione acustica edifici",4,"04/11/2021","04/11/2021","Lezioni frontali, E-Learning","Bloom Group \u0096 Via Valtorta, 44 \u0096 MILANO","MI","Milano",20136,"T1.2021.0100654.pdf"]
[null,"Lombardia","Soggetto idoneo alla formazione","E-TRAIN SRL",null,null,null,"AGG160. Valutazione delle prestazioni acustiche di edifici a partire dalla prestazioni dei prodotti, Norma UNI 12354: parti IV, V, VI",8,"10/11/2021","17/11/2021","Lezioni frontali, E-Learning","Bloom Group \u0096 Via Valtorta, 44 \u0096 MILANO","MI","Milano",20136,"T1.2021.0100659.pdf"]
[null,"Lombardia","Soggetto idoneo alla formazione","E-TRAIN SRL",null,null,null,"AGG159. Valutazione previsionale di impatto acustico",12,"04/11/2021","15/11/2021","Lezioni frontali, E-Learning","Bloom Group \u0096 Via Valtorta, 44 \u0096 MILANO","MI","Milano",20136,"T1.2021.0102082.pdf"]
[null,"Lombardia","Ordine professionale","Ordine degli Architetti PPC della Provincia di Bergamo",null,null,null,"AGG161. Strumentazioni e tecniche per le misurazioni e l\u0092analisi acustica",4,"02/12/2021","02/12/2021","Lezioni frontali, E-Learning","ANIT, Via Lanzone 31, 20123 Milano","MI","Milano",20123,"T1.2021.0102081.pdf"]
[null,"Umbria","Soggetto idoneo alla formazione","E-TRAIN S.r.l.","071 4604348","info@e-train","Via Solari 27 Loreto (AN)","La valutazione di impatto acustico:casi studio (previsionale e post operam)",4,"08/11/2021","08/11/2021","E-Learning","Via dell'Arboreto","PG","Gubbio","06024","DD 10663 del 28 ottobre 2021 autorizzazione corso E TRAIN novembre.pdf"]
[null,"Lazio","Soggetto idoneo alla formazione","CRESCO Formazione e Consulenza Srl","07761815115","lisa.lombardozzi@crescosrl.net","Direttore Didattico:\nTCA Raffaele Mariconte","Autorizzazione svolgimento corso di aggiorn. prof. per TCA, programmato e gestito dalla CRESCO Formazione e Consulenza Srl \u0096 Quinta Edizione anno 2021, una sessione, 10 Novembre 2021 \u0096 5 ore formazione - modalità FAD.",5,"10/11/2021","10/10/2021","E-Learning","Via Tofaro, 42","FR","Frosinone","03039","Det_G13095_27_10_2021.pdf"]
["D000091","Campania","Soggetto idoneo alla formazione","0001 - Son Training S.r.l.s.",null,"info@sontraining.it","Per informazioni commerciali contattare il  3938319684 - per assistenza tecnica contattare il  3476767388 - oppure inviare una mail a formazione@sontraining.it","D000091 - Impianti Evac, misure di intellegibilità dello STI/STIPA e altri metodi e parametri.",5,"09/11/2021","09/11/2021","E-Learning","VIA PONTANO 6","NA","Nola",80035,"DD 603_2021.pdf"]
["D000092","Campania","Soggetto idoneo alla formazione","0001 - Son Training S.r.l.s.",null,"info@sontraining.it","Per informazioni commerciali contattare il  3938319684 - per assistenza tecnica contattare il  3476767388 - oppure inviare una mail a formazione@sontraining.it","D000092 - Raccomandazioni pratiche per la progettazione di ambienti di lavoro a basso livello di rumore contenenti macchine \u0096 la serie UNI 11690/2021.",5,"16/11/2021","16/11/2021","E-Learning","VIA PONTANO 6","NA","Nola",80035,"dd 604 AGG D000092.pdf"]
[null,"Provincia Autonoma di Bolzano","Ordine professionale","0001 - Ordine degli Ingegneri della Provincia Autonoma di Bolzano","0471 303063","info@ingbz.it","Dall'Aglio Sabrina","M000002 - Progettare la qualitá acustica interna degli edifici con software open source",4,"18/11/2021","18/11/2021","E-Learning","Formazione a distanza (FAD) - Go To Webinar","BZ","Bolzano",39100,"Autorizzazione_Corso aggiornamento_TCA_28102021_832991.pdf"]
[null,"Emilia Romagna","Soggetto idoneo alla formazione","THE ACS - SCUOLA ITALIANA DI ALTA FORMAZIONE SOCIETA' A R. L.","071 4604348","info@theacs.it","Antonio Chiarini","Corso di aggiornamento per tecnici competenti in acustica ambientale ai sensi D.Lgs 42/2017. La valutazione dei requisiti acustici passivi con le nuove norme UNI EN ISO 12354-2017. RAVENNA Rif. P.A. 2019-13399/RER/3 - Edizione 5",12,"29/10/2021","12/11/2021","Lezioni frontali","Via Solari, 27 Loreto (AN) [sede regia vdc]","RA","Ravenna",48100,"DD_4226_2020(13).pdf"]
[null,"Umbria","Ordine professionale","Ordine degli Ingegneri della Provincia di Perugia","075 5001200","segreteria@ordineingegneriperugia.it","Via Campo di Marte n.9 - 06124 Perugia","Il rumore degli impianti in ambito civile e industriale",6,"16/11/2021","16/11/2021","E-Learning","Via Campo di Marte 9","PG","Perugia","06124","DD 10646 del 28 maggio 2021 approvazione corso TC Ord ING PG.pdf"]
[null,"Lombardia","Ordine professionale","ORDINE DEGLI INGEGNERI DELLA PROVINCIA DI MILANO",null,null,null,"AGG162. RIQUALIFICAZIONE ACUSTICA DEGLI EDIFICI ESISTENTI",4,"17/11/2021","17/11/2021","Lezioni frontali, E-Learning","Sala corsi Fondazione Ordine Ingegneri Milano in Viale A. Doria, 9, 20124, Milano","MI","Milano",20124,"T1.2021.0104598.pdf"]
[null,"Emilia Romagna","Soggetto idoneo alla formazione","Associazione Assform","0541 1796402","seg-corsi@assform.it","Semprini Mario Paolo","Aggiornamento Tecnico Competente in Acustica: Le vibrazioni agli edifici. Rif. P.A. 2019-15517/RER/1 - Edizione 2",8,"01/12/2021","02/12/2021","Lezioni frontali","Corso Giovanni XXIII, 131 [sede regia vdc]","RN","Rimini",47921,"DD_5427_2021(3).pdf"]
[null,"Marche","Soggetto idoneo alla formazione","E-TRAIN SRL","0714604348","info@e-train.it","Dott. Antonio Chiarini","La valutazione e la misura del rumore in ambiente esterno. Codice Siform2: 1074891",12,"15/11/2021","29/11/2021","E-Learning","Via Solari, 27","AN","Loreto",60025,"DDPF 545_2021(1).pdf"]
[null,"Marche","Soggetto idoneo alla formazione","E-TRAIN SRL","0714604348","info@e-train.it","Dott. Antonio Chiarini","Incertezza di misura in acustica applicata. Codice Siform2: 1083289",8,"18/11/2021","25/11/2021","E-Learning","Via Solari, 27","AN","Loreto",60025,"ddpf_1010_2021.pdf"]
[null,"Marche","Soggetto idoneo alla formazione","E-TRAIN SRL","0714604348","info@e-train.it","Dott. Antonio Chiarini","Caratteristiche acustiche interne di ambienti confinati. Codice Siform2: 1061211",8,"19/11/2021","25/11/2021","E-Learning","Via Solari, 27","AN","Loreto",60025,"DDPF 262_21(3).pdf"]
["D000093","Campania","Soggetto idoneo alla formazione","0008 - Centro Italiano per l'Ambiente e la Cultura APS & Noesi Evolution S.r.l.",3474700261,"info@tca2020.org",null,"D000093 - Strumentazione, software e prodotti innovativi per la misura e l\u0092elaborazione sonora",6,"23/11/2022","23/11/2022","Lezioni frontali","Viale Augusto 9","NA","Napoli",80125,"dd 615 2021.pdf"]
["D000094","Campania","Soggetto idoneo alla formazione","0008 - Centro Italiano per l'Ambiente e la Cultura APS & Noesi Evolution S.r.l.",3474700261,"info@tca2020.org",null,"D000094 - Strumentazione, software e prodotti innovativi per la misura e l\u0092elaborazione sonora",6,"07/12/2022","07/12/2022","Lezioni frontali","Viale Augusto 9","NA","Napoli",80125,"dd 615 2021(1).pdf"]
[null,"Marche","Ordine professionale","Ordine degli Ingegneri della Provincia di Ascoli Piceno","0736258143","segreteria@ordineingap.it","segreteria Ordine Ingegneri Ascoli Piceno","Aggiornamento per Tecnici competenti in acustica",12,"30/11/2021","14/12/2021","E-Learning","Via Firenze, 4","AP","Ascoli Piceno",63100,"DD_VAA_agg_Acustica_Ingg  AP_Nov_2021_TL.docx.pdf"]
[null,"Marche","Ordine professionale","Ordine degli Ingegneri della Provincia di Fermo","0734228664","info@ordineingegneri.fermo.it","Ing. Massimo Conti","Aggiornamento per Tecnici competenti in acustica",20,"03/12/2021","17/12/2021","E-Learning","Via Brunforte, 11","FM","Fermo",63900,"DD_VAA_agg_Acustica_Ingg  FM_Dic_2021_Rev.docx.pdf"]
[null,"Friuli Venezia Giulia","Soggetto idoneo alla formazione","E-TRAIN S.r.l.","071 4604348","info@e-train.it",null,"AGG019. Il contenzioso in acustica: casi studio",4,"15/11/2021","15/11/2021","Lezioni frontali","modalità FAD","TS","Trieste",34100,"INACCRS22.PDF"]
[null,"Friuli Venezia Giulia","Soggetto idoneo alla formazione","E-TRAIN S.r.l.","071 4604348","info@e-train.it",null,"AGG020. Il miglioramento dei requisiti acustici nella ristrutturazione edilizia",6,"19/11/2021","19/11/2021","Lezioni frontali","modalità FAD","TS","Trieste",34100,"INACCRS23.PDF"]
[null,"Umbria","Soggetto idoneo alla formazione","E-TRAIN S.r.l.","071 4604348","info@e-train","E-TRAIN srl Via Solari 27, 60025 Loreto (AN)","Valutazione e misura del rumore degli impianti tecnici: civili ed industriali",12,"06/12/2021","21/12/2021","E-Learning","Via dell'Arboreto","PG","Gubbio","06034","DD n 12064 del 25 nov 2021 E_TRAIN spostamento date corso.pdf"]
[null,"Umbria","Soggetto idoneo alla formazione","E-TRAIN S.r.l.","071 4604348","info@e-train","Via Solari 27,60025 Loreto (AN)","La valutazione e la misura del rumore in ambiente esterno",12,"02/12/2021","09/12/2021","E-Learning","Via dell'Arboreto","PG","Gubbio","06034","DD n 11169 del 10 novembre 2021 ETRAIN corso dicembre.pdf"]
[null,"Emilia Romagna","Soggetto idoneo alla formazione","ISCOM FORMAZIONE PER LE IMPRESE SCARL","0547 639887","sicurezza@iscomcesena.it","Grisogani Gessica","AGGIORNAMENTO PER TCA. MODULO 1 Aggiornamento normativo. Gestione delle segnalazioni d\u0092inquinamento acustico. Esempi di diminuzione del riverbero in ambienti chiusi. Nuovi strumenti per la rilevazione fonometrica. Rif. P.A. 2019-16066/RER/1 \u0096 Edizione 1",10,"01/12/2021","16/12/2021","Lezioni frontali","Via G. Bruno, 118 [sede regia vdc]","FC","Cesena",47521,"DD_12415_2021(1).pdf"]
[null,"Emilia Romagna","Soggetto idoneo alla formazione","Associazione Assform","0541 1796402","seg-corsi@assform.it","Semprini Mario Paolo","Aggiornamento Tecnico Competente in Acustica. La normale tollerabilità alla luce dei nuovi dispositivi di legge. Rif. P.A. 2019-14557/RER/1 - Edizione 4",8,"29/11/2021","30/11/2021","Lezioni frontali","Corso Giovanni XXIII, 131 [sede regia vdc]","RN","Rimini",47921,"DD_15009_2020(16).pdf"]
[null,"Umbria","Soggetto idoneo alla formazione","Centro Studi Edili","0742354243","info.cse@gmail.com","Centro Studi Edili\nPiazza XX Settenbre 19 - 06034 Foligno (PG)","Guida all'acustica degli edifici mod. 1",4,"29/11/2021","29/11/2021","E-Learning","Piazza XX settembre 19","PG","Foligno","06034","DD 11406 del 15 novembre 2021 Centro Sudi Edili .pdf"]
[null,"Umbria","Soggetto idoneo alla formazione","Centro Studi Edili","0742354243","info.cse@gmail.com","Centro Studi Edili - Piazza XX Settembre - 06034 Foligno (PG)","Guida all'acustica degli edifici mod. 1",4,"10/01/2022","10/01/2022","E-Learning","Piazza XX settembre 19","PG","Foligno","06034","DD 11406 del 15 novembre 2021 Centro Sudi Edili (1).pdf"]
[null,"Veneto","Soggetto idoneo alla formazione","Centro di Formazione STS Srl","049-8809842","info@centrodiformazionests.it","Centro di Formazione STS Srl","La progettazione delle prestazioni acustiche degli elementi edilizi",6,"17/12/2021","17/12/2021","Lezioni frontali, Blended - Learning, E-Learning","Via Romana Aponense 116","PD","Padova",35142,"RICONOSCIMENTO STS RICHIESTA PROT N. 64748 GIUGNO 2019(3).pdf"]
["D000095","Campania","Soggetto idoneo alla formazione","0001 - Son Training S.r.l.s.",null,"info@sontraining.it","Per informazioni commerciali contattare il  3938319684 - per assistenza tecnica contattare il  3476767388 - oppure inviare una mail a formazione@sontraining.it","D000095 - Progettazione degli interventi diretti al ricevitore. Verifiche dei parametri acustici e non acustici per il confort interno alle abitazioni.",16,"01/12/2021","17/12/2021","E-Learning","VIA PONTANO 6","NA","Nola",80035,"DD 672 SonTraining 16 ore.pdf"]
["D000096","Campania","Soggetto idoneo alla formazione","0007 - Join Academy & Consulting Soc. Coop. a r.l.","08119319567","joinacademy@gmail.com",null,"D000096 - Calcolo dell\u0092incertezza nelle misure fonometriche e taratura dei modelli acustici.",5,"11/02/2022","11/02/2022","Lezioni frontali","via Variante Nazionale delle Puglie 112","NA","Casalnuovo di Napoli",80013,"DD 676 Join.pdf"]
[null,"Lombardia","Soggetto idoneo alla formazione","E-TRAIN SRL",null,null,null,"AGG163. Il rumore in ambiente di lavoro: valutazione del rischio e piano aziendale di riduzione dell\u0092esposizione al rumore. Il rumore nei cantieri",12,"26/11/2021","09/12/2021","Lezioni frontali, E-Learning","Bloom Group \u0096 Via Valtorta, 44 \u0096 MILANO","MI","Milano",20136,"T1.2021.0110198.pdf"]
[null,"Lombardia","Soggetto idoneo alla formazione","E-TRAIN SRL",null,null,null,"AGG164. Valutazione delle prestazioni acustiche di edifici a partire dalle prestazioni dei prodotti, Norma UNI 12354: parti IV, V, VI",8,"02/12/2021","09/12/2021","Lezioni frontali, E-Learning","Bloom Group \u0096 Via Valtorta, 44 \u0096 MILANO","MI","Milano",20136,"T1.2021.0110205.pdf"]
[null,"Veneto","Soggetto idoneo alla formazione","Esse Ti Esse Sicurezza Srl","0498809842","info@centrodiformazionests.it","Esse Ti Esse Sicurezza Srl","La valutazione del rischio vibrazioni nei luoghi di lavoro",6,"18/03/2022","18/03/2022","Lezioni frontali, E-Learning","Via Romana Aponense 116","PD","Padova",35142,"RICONOSCIMENTO STS PROT. 98354 29.10.2021_fd.pdf"]
[null,"Veneto","Ordine professionale","Ordine degli Ingegneri di Padova e Provincia",3938926845,"fip@fondazioneingegneripadova.org","Ordine degli Ingegneri di Padova e Provincia","\"Regole per l'acustica edilizia nelle ristrutturazioni\" Buone prassi per migliorare le prestazioni di isolamento acustico negli edifici esistenti",6,"21/12/2021","21/12/2021","Lezioni frontali, E-Learning","Piazza Salvemini 2","PD","Padova",35100,"RICONOSCIMENTO ING PD PROT.101781 10.11.2021_fd.pdf"]
[null,"Veneto","Ordine professionale","Ordine degli Ingegneri di Vicenza e Provincia","0444322947","segreteria@ordine.ingegneri.vi.it","Ordine degli Ingegneri di Vicenza e Provincia","La qualità acustica degli ambienti interni, la progettazione e il controllo della riverberazione",6,"03/12/2021","03/12/2021","Lezioni frontali, E-Learning","Via Luigi Massignan 4/b","VI","Vicenza",36100,"RICONOSCIMENTO ING VI PROT. 97317 27.10.2021_fd.pdf"]
[null,"Lazio","Soggetto idoneo alla formazione","CRESCO Formazione e Consulenza Srl","07761815115","lisa.lombardozzi@crescosrl.net","Direttore Didattico: TCA Mariconte Raffaele","Autorizzazione per lo svolgimento del corso di aggiorn. Prof. per TCA, programmato e gestito dalla CRESCO Formazione e Consulenza Srl \u0096 Sesta Edizione anno 2021, una sessione, 1 Dicembre 2021 \u0096 5 ore formazione - modalità FAD.",5,"01/12/2021","01/12/2021","E-Learning","Via Tofaro, 42","FR","Sora","03039","Det_G14108_2021.pdf"]
[null,"Lazio","Soggetto idoneo alla formazione","INFORMA Srl","0633245261","m.mugnari@istitutoinforma.it","Direttore Didattico: Sig. Massera Stefano","Autorizzazione per lo svolgimento del corso di aggiornamento professionale per TCA, programmato e gestito dalla INFORMA Srl, Seconda Edizione, anno 2021, una sessione, 10 Dicembre 2021 - 8 ore di formazione - modalità FAD.",8,"10/12/2021","10/12/2021","E-Learning","Via Clauzetto, 12","RM","Roma","00188","Det_G14109_2021.pdf"]
[null,"Lazio","Ordine professionale","Ordine Interregionale dei Chimici e dei Fisici del Lazio, Umbria, Abruzzo e Molise","0648906708","segreteria@chimiciroma.it","Direttore Didattico: Dott. Martinelli Fabrizio","Autorizzazione svolgimento corso aggiorn. prof. per TCA, progr. e gestito dall\u0092Ordine Interregionale dei Chimici e dei Fisici del Lazio, Umbria, Abruzzo e Molise, Prima Edizione, 2021, una sessione, 13 Dicembre 2021 - 7 ore di formaz. - modalità FAD.",7,"13/12/2021","13/12/2021","E-Learning","presso Hotel Diana - Via Principe Amedeo, 4","RM","Roma","00184","Det_14226_2021.pdf"]
[null,"Emilia Romagna","Soggetto idoneo alla formazione","THE ACS - SCUOLA ITALIANA DI ALTA FORMAZIONE SOCIETA' A R. L.","071 4604348","info@theacs.it","Antonio Chiarini","Corso di aggiornamento per tecnici competenti in acustica ambientale ai sensi D.Lgs 42/2017. Valutazione previsionale di impatto acustico. BOLOGNA Rif. P.A. 2019-13399/RER/4 - Edizione 6",12,"30/11/2021","09/12/2021","Lezioni frontali","Via Solari, 27 Loreto (AN) [sede regia vdc]","BO","Bologna",40100,"DD_4226_2020(14).pdf"]
[null,"Umbria","Soggetto idoneo alla formazione","Centro Studi Edili","0742354243","infocse@gmail.com","Centro Studi Edili - Palazzo Gerardi - P.zza XX Settembre 19 - 06034 Foligno (PG)","Guida all'acustica degli edifici mod. 2",4,"06/12/2021","06/12/2021","E-Learning","Piazza XX settembre 19","PG","Foligno","06034","DD 11832 del 22 novembre 2021 autizzazione CSE mod2.pdf"]
[null,"Umbria","Soggetto idoneo alla formazione","Centro Studi Edili","0742354243","infocse@gmail.com","Centro Studi Edili - Piazza XX Settembre 19 - 06034 Foligno (PG)","Guida all'acustica degli edifici mod. 2",4,"17/01/2022","17/01/2022","E-Learning","Piazza XX settembre 19","PG","Foligno","06034","DD 11832 del 22 novembre 2021 autizzazione CSE mod2(1).pdf"]
[null,"Umbria","Soggetto idoneo alla formazione","Centro Studi Edili","0742354243","infocse@gmail.com","Centro Studi Edili - Piazza XX Settembre 19 - 06034 Foligno (PG)","Guida all'acustica degli edifici mod. 3",4,"13/12/2021","13/12/2021","E-Learning","Piazza XX settembre 19","PG","Foligno","06034","DD 11833 delm 22 nov 2021 autorizzazione corso CSE mod3.pdf"]
[null,"Umbria","Soggetto idoneo alla formazione","Centro Studi Edili","0742354243","infocse@gmail.com","Centro Studi Edili - Piazza XX Settembre 19 - 06034 Foligno (PG)","Guida all'acustica degli edifici mod. 3",4,"24/01/2022","24/01/2022","E-Learning","Piazza XX settembre 19","PG","Fratta Todina","06034","DD 11833 delm 22 nov 2021 autorizzazione corso CSE mod3(1).pdf"]
["D000097","Campania","Soggetto idoneo alla formazione","0007 - Join Academy & Consulting Soc. Coop. a r.l.","08119319567","joinacademy@gmail.com",null,"D000097 - Rumore e vibrazioni.",5,"22/04/2022","22/04/2022","Lezioni frontali","via Variante Nazionale delle Puglie 112","NA","Casalnuovo di Napoli",80013,"DD_709_23_11_2021_D000097.pdf"]
["D000098","Campania","Soggetto idoneo alla formazione","0007 - Join Academy & Consulting Soc. Coop. a r.l.","08119319567","joinacademy@gmail.com",null,"D000098 - Intensimetria acustica.",5,"17/06/2022","17/06/2022","Lezioni frontali","via Variante Nazionale delle Puglie 112","NA","Casalnuovo di Napoli",80013,"D000098_DD_716_24_11_2021.pdf"]
["D000099","Campania","Ordine professionale","0005 - Ordine degli Ingegneri della Provincia di Avellino","0825 36437",null,null,"D000099 - Valutazione dell\u0092inquinamento e delle immissioni sonore. - La Normale Tollerabilità e l\u0092Ammissibilità applicati a particolari casi di studio.",4,"30/11/2021","30/11/2021","Lezioni frontali","Via Ammaturo 100 ex C.da Valle Mecca 36","AV","Avellino",83100,"D000099_DD_724_24_11_2021.pdf"]
["D000100","Campania","Ordine professionale","0009 - Ordine dei Periti Industrali e dei Periti Industriali Laureati di Napoli","081 204 512","segreteria@perindnapoli.it",null,"D000100 - La semplificazione dei procedimenti in acustica (AUA; DPR 277/2011).",4,"01/12/2021","01/12/2021","Lezioni frontali","Via M. Cervantes 64","NA","Napoli",80133,"D000100_DD_725_24_11_2021.pdf"]
["D000101","Campania","Soggetto idoneo alla formazione","0001 - Son Training S.r.l.s.",null,"info@sontraining.it","Per informazioni commerciali contattare il  3938319684 - per assistenza tecnica contattare il  3476767388 - oppure inviare una mail a formazione@sontraining.it","D000101 - Approfondimenti sulle metodologie di valutazione del criterio della normale tollerabilità e accettabilità \u0096 Acustica forense - Edizione 1.",3,"02/12/2021","02/12/2021","Lezioni frontali","VIA PONTANO 6","NA","Nola",80035,"D000101_DD_726_24_11_2021.pdf"]
[null,"Liguria","Ordine professionale","Ordine degli Architetti P.P.C. della provincia di Genova","010 2473272","info@archigenova.it",3386493170,"Corso di aggiornamento per tca ambientale - Acustica navale e marittima",5,"01/12/2021","28/02/2022","Lezioni frontali","P.zza San Matteo, 18","GE","Genova",16123,"REG_AM_7240_2021_SIGNED.pdf"]
[null,"Liguria","Ordine professionale","Ordine degli Architetti P.P.C. della provincia di Genova","010 2473272","info@archigenova.it",3386493170,"Corso di aggiornamento per tca ambientale - Calcolo ed attenuazione del rumore negli impianti di ventilazione",5,"01/01/2022","28/02/2022","Lezioni frontali","P.zza San Matteo, 18","GE","Genova",16123,"REG_AM_7239_2021_SIGNED.pdf"]
["D000102","Campania","Soggetto idoneo alla formazione","0001 - Son Training S.r.l.s.",null,"info@sontraining.it","Per informazioni commerciali contattare il  3938319684 - per assistenza tecnica contattare il  3476767388 - oppure inviare una mail a formazione@sontraining.it","D000102 - Approfondimenti sulle metodologie di valutazione del criterio della normale tollerabilità e accettabilità \u0096 Acustica forense - Edizione 2.",3,"02/12/2021","02/12/2021","Lezioni frontali","VIA PONTANO 6","NA","Nola",80035,"DD_728_24-11-2021_D000102.pdf"]
["D000103","Campania","Ordine professionale","0003 - Ordine degli Ingegneri della Provincia di Napoli","0815522126","segreteria@ordineingegnerinapoli.net",null,"D000103 - Le problematiche di acustica per i nuovi programmi di edilizia \u0096 Edizione 1.",5,"03/12/2021","03/12/2021","Lezioni frontali","Ordine degli Ingegneri di Napoli - Piazza dei Martiri 58","NA","Napoli",80121,"DD_733_25-11-2021_D000103_106.pdf"]
["D000104","Campania","Ordine professionale","0003 - Ordine degli Ingegneri della Provincia di Napoli","0815522126","segreteria@ordineingegnerinapoli.net",null,"D000104 - Le problematiche di acustica per i nuovi programmi di edilizia \u0096 Edizione 2.",5,"03/12/2021","03/12/2021","Lezioni frontali","Ordine degli Ingegneri di Napoli - Piazza dei Martiri 58","NA","Napoli",80121,"DD_733_25-11-2021_D000103_106(1).pdf"]
["D000105","Campania","Ordine professionale","0003 - Ordine degli Ingegneri della Provincia di Napoli","0815522126","segreteria@ordineingegnerinapoli.net",null,"D000105 - Valutazione dell\u0092inquinamento e delle emissioni sonore. La Normale Tollerabilità e l\u0092Ammissibilità applicati a particolari casi di studio \u0096 Edizione 1.",4,"07/12/2021","07/12/2021","Lezioni frontali","Ordine degli Ingegneri di Napoli - Piazza dei Martiri 58","NA","Napoli",80121,"DD_733_25-11-2021_D000103_106(2).pdf"]
["D000106","Campania","Ordine professionale","0003 - Ordine degli Ingegneri della Provincia di Napoli","0815522126","segreteria@ordineingegnerinapoli.net",null,"D000106 - Valutazione dell\u0092inquinamento e delle emissioni sonore. La Normale Tollerabilità e l\u0092Ammissibilità applicati a particolari casi di studio \u0096 Edizione 2.",4,"07/12/2021","07/12/2021","Lezioni frontali","Ordine degli Ingegneri di Napoli - Piazza dei Martiri 58","NA","Napoli",80121,"DD_733_25-11-2021_D000103_106(3).pdf"]
[null,"Marche","Ordine professionale","Ordine degli Ingegneri della Provincia di Macerata","0733 233111","segreteria@ordineingegnerimacerata.it",null,"Adempimenti ENTECA - GIS: applicazione in ambito acustico - presentazione funzionalita'",2,"06/12/2021","06/12/2021","E-Learning","Via Famiglia Palmieri n. 26 c/o Ordine degli Ingegneri della Provincia di Macerata","MC","Macerata",62100,"DD_VAA_agg_Acustica_Ingg  MC_06.12.2021.docx.pdf"]
[null,"Puglia","Ordine professionale","0008 - Ordine degli Ingegneri della Provincia di Lecce",null,null,null,"X000054 - Acustica Forense",8,"07/12/2021","09/12/2021","E-Learning","Viale M.Depietro n.23","LE","Lecce",73100,"DD. n.486 del 25.11.2021_signed.pdf"]
[null,"Lombardia","Ordine professionale","Ordine degli Architetti PPC della Provincia di Lecco",null,null,null,"AGG165. RIQUALIFICAZIONE ACUSTICA DEGLI EDIFICI ESISTENTI E BUONE PRASSI COSTRUTTIVE",4,"03/12/2021","03/12/2021","Lezioni frontali","Sala corsi dell\u0092Ordine degli Architetti PPC di Lecco - Via A. Grandi 9 -23900 Lecco","LC","Lecco",23900,"T1.2021.0113325.pdf"]
[null,"Marche","Ordine professionale","Ordine dei Periti Industriali di Pesaro e Urbino","0721 403962","info@perind.ps.it",null,"Aggiornamento tecnici competenti in acustica ambientale \u0096 argomenti vari",12,"16/12/2021","20/12/2021","E-Learning","Via degli Olmi 16/4","PU","Pesaro",61122,"DD_VAA_agg_Acustica_Per. Ind. PU_Dic.2021.docx.pdf"]
[null,"Umbria","Ordine professionale","Ordine degli Ingegneri della Provincia di Perugia","075 5010256","fondazione@ordineingegneriperugia.it","Ordine degli Ingegneri della Provincia di Perugia - Via Campo di Marte n. 9 06124 Perugia","Aggiornamenti tecnici e normativi in materia di rumore e vibrazione negli ambienti di lavoro",6,"09/12/2021","09/12/2021","E-Learning","Via Campo di Marte 9","PG","Perugia","06124","DD 12063 del 25 nov 2021 Corso Dic Ordine ing PG.pdf"]
[null,"Lazio","Università","Università Roma Tre - Facoltà di Architettura",3356253030,"marco.frascarolo@uniroma3.it","Direttore Didattico:\nProf. Giovanni Mario Mattia","Autorizzazione svolgimento corso di aggiorn. prof.  per TCA, programmato e gestito dall\u0092Università degli Studi Roma Tre Dipartimento di Architettura, Prima Edizione, anno 2021, due sessioni, 20-21 Dicembre 2021 - 10 ore di formaz. - modalità FAD.",10,"20/12/2021","21/12/2021","E-Learning","Viale Cesare Pavese, 356","RM","Roma","00144","Det_G14574_2021.pdf"]
[null,"Emilia Romagna","Soggetto idoneo alla formazione","E-TRAIN SRL","071 4604348","info@e-train.it","Antonio Chiarini","Corso di aggiornamento di 4 ore per tecnici competenti in acustica ai sensi D.Lgs. 42/2017. Il contenzioso in acustica: casi studio. Rif. P.A. 2019-16675/RER/1 - Edizione 1",4,"01/12/2021","01/12/2021","Lezioni frontali","Via Solari, 27 Loreto (AN) [sede regia vdc]","BO","Bologna",40100,"DD_22736_2021.pdf"]
[null,"Emilia Romagna","Soggetto idoneo alla formazione","E-TRAIN SRL","071 4604348","info@e-train.it","Antonio Chiarini","Corso di aggiornamento di 4 ore per tecnici competenti in acustica ai sensi D.Lgs. 42/2017. Criteri Ambientali Minimi, comfort acustico e classificazione acustica edifici. Rif. P.A. 2019-16675/RER/2 - Edizione 1",4,"02/12/2021","02/12/2021","Lezioni frontali","Via Solari, 27 Loreto (AN) [sede regia vdc]","BO","Bologna",40100,"DD_22736_2021(1).pdf"]
[null,"Emilia Romagna","Soggetto idoneo alla formazione","E-TRAIN SRL","071 4604348","info@e-train.it","Antonio Chiarini","Corso di aggiornamento di 4 ore per tecnici competenti in acustica ai sensi D.Lgs. 42/2017. La valutazione di impatto acustico: casi studio (previsionale e post operam). Rif. P.A. 2019-16675/RER/3 - Edizione 1",4,"03/12/2021","03/12/2021","Lezioni frontali","Via Solari, 27 Loreto (AN) [sede regia vdc]","BO","Bologna",40100,"DD_22736_2021(2).pdf"]
[null,"Emilia Romagna","Soggetto idoneo alla formazione","E-TRAIN SRL","071 4604348","info@e-train.it","Antonio Chiarini","Corso di aggiornamento di 6 ore per tecnici competenti in acustica ai sensi D.Lgs. 42/2017. Il miglioramento dei requisiti acustici nella ristrutturazione edilizia. Rif. P.A. 2019-16675/RER/4 - Edizione 1",6,"07/12/2021","07/11/2021","Lezioni frontali","Via Solari, 27 Loreto (AN) [sede regia vdc]","BO","Bologna",40100,"DD_22736_2021(3).pdf"]
[null,"Veneto","Ordine professionale","Ordine degli Ingegneri di Verona e Provincia","0458035959","ordine@ingegneri.vr.it","Ordine degli Ingegneri di Verona e Provincia","Acustica Forense: ruolo e prerogative del Consulente d'ufficio e di Parte",6,"22/10/2021","29/10/2021","Lezioni frontali, E-Learning","Via Santa Teresa, 12","VR","Verona",37135,"RICONOSCIMENTO ING VR PROT. 66814 LUGLIO 2021_fd.pdf"]

{"sheet":"FoglioFirme","index":2,"n_rows":66,"n_cols":13,"rows_kept":66,"cut":false,"hidden":false,"merged":[[0,0,3,1],[63,0,64,12],[65,0,65,7],[57,9,57,10],[61,8,61,9],[61,10,61,12],[62,8,62,9],[62,10,62,12],[57,11,57,12],[51,9,51,10],[55,8,55,9],[55,10,55,12],[56,8,56,9],[56,10,56,12],[51,11,51,12],[45,9,45,10],[49,8,49,9],[49,10,49,12],[50,8,50,9],[50,10,50,12],[45,11,45,12],[47,8,47,12],[48,8,48,12],[46,9,46,12],[37,8,37,12],[43,8,43,9],[43,10,43,12],[44,8,44,9],[44,10,44,12],[38,9,38,10],[38,11,38,12],[39,9,39,12],[40,8,40,12],[41,8,41,12],[42,8,42,12],[33,0,36,1],[33,2,33,9],[34,6,36,9],[32,0,32,7],[30,0,31,12],[34,2,34,5],[35,2,36,5],[34,11,34,12],[0,2,0,9],[10,8,10,9],[10,10,10,12],[11,8,11,9],[5,11,5,12],[11,10,11,12],[4,8,4,12],[1,6,3,9],[5,9,5,10],[1,11,1,12],[1,2,1,5],[2,2,3,5],[6,9,6,12],[7,8,7,12],[8,8,8,12],[9,8,9,12],[16,10,16,12],[18,9,18,10],[12,9,12,10],[17,8,17,9],[17,10,17,12],[13,9,13,12],[14,8,14,12],[15,8,15,12],[12,11,12,12],[18,11,18,12],[16,8,16,9],[29,8,29,9],[29,10,29,12],[23,8,23,9],[28,10,28,12],[26,8,26,12],[27,8,27,12],[23,10,23,12],[24,9,24,10],[24,11,24,12],[19,9,19,12],[20,8,20,12],[21,8,21,12],[25,9,25,12],[28,8,28,9],[22,8,22,9],[22,10,22,12],[59,8,59,12],[60,8,60,12],[52,9,52,12],[53,8,53,12],[54,8,54,12],[58,9,58,12]]}
["Allegato 3\nLogo Ente",null,{"$f":"\"Corso di n. \" &  ElencoAllievi!$B$7 & \" ore di aggiornamento professionale per T.C.A. (Decreto Lgs. 17 febbraio 2017, n. 42)\"","v":"Corso di n.  ore di aggiornamento professionale per T.C.A. (Decreto Lgs. 17 febbraio 2017, n. 42)"},null,null,null,null,null,null,null,"foglio num.",null,"1 di 2"]
[null,null,{"$f":"ElencoAllievi!$B$8","v":""},null,null,null,{"$f":"ElencoAllievi!$B$4","v":""},null,null,null,"data"]
[null,null,{"$f":" ElencoAllievi!$B$10","v":""},null,null,null,null,null,null,null,"totale ore"]
[null,null,null,null,null,null,null,null,null,null,"totale presenti"]
["N.","Cognome e Nome",null,"N. ENTECA","ora","Firma ENTRATA","ora","Firma USCITA","docente/co-docente/professionista (D/C/P)"]
[1,null,null,null,null,null,null,null,"orario:"]
[2,null,null,null,null,null,null,null,"argomento:"]
[3]
[4]
[5]
[6]
[7,null,null,null,null,null,null,null,"firma _ _ _ _ _ _ _ _ ",null,"firma _ _ _ _ _ _ _ _ "]
[8,null,null,null,null,null,null,null,"orario:"]
[9,null,null,null,null,null,null,null,"argomento:"]
[10]
[11]
[12]
[13,null,null,null,null,null,null,null,"firma _ _ _ _ _ _ _ _ ",null,"firma _ _ _ _ _ _ _ _ "]
[14,null,null,null,null,null,null,null,"orario:"]
[15,null,null,null,null,null,null,null,"argomento:"]
[16]
[17]
[18]
[19,null,null,null,null,null,null,null,"firma _ _ _ _ _ _ _ _ ",null,"firma _ _ _ _ _ _ _ _ "]
[20,null,null,null,null,null,null,null,"orario:"]
[21,null,null,null,null,null,null,null,"argomento:"]
[22]
[23]
[24]
[25,null,null,null,null,null,null,null,"firma _ _ _ _ _ _ _ _ ",null,"firma _ _ _ _ _ _ _ _ "]
["Il sottoscritto _ _ _ _ _ _ _ _ _ _ _ _ _ _ _ _ _ _ _ _ _ _ _ _ _  consapevole delle sanzioni penali richiamate dall’art. 76 del D.P.R. 445 del 28/12/2000 per i casi di dichiarazioni non veritiere, di formazione o uso di atti falsi, dichiara che le firme dei docenti, co-docenti e allievi sono autografe e sono state apposte nelle ore e nel giorno indicati. "]
[]
[{"$f":"\"Data  ___ ___ ___ ___ \" & $C$2 & \" - firma del Legale rappresentante (o suo delegato)\"","v":"Data  ___ ___ ___ ___  - firma del Legale rappresentante (o suo delegato)"}]
["Logo Ente",null,{"$f":"\"Corso di n. \" &  ElencoAllievi!$B$7 & \" ore di aggiornamento professionale per T.C.A. (Decreto Lgs. 17 febbraio 2017, n. 42)\"","v":"Corso di n.  ore di aggiornamento professionale per T.C.A. (Decreto Lgs. 17 febbraio 2017, n. 42)"},null,null,null,null,null,null,null,"foglio num.",null,"2 di 2"]
[null,null,{"$f":"ElencoAllievi!$B$8","v":""},null,null,null,{"$f":"ElencoAllievi!$B$4","v":""},null,null,null,"data"]
[null,null,{"$f":" ElencoAllievi!$B$10","v":""},null,null,null,null,null,null,null,"totale ore"]
[null,null,null,null,null,null,null,null,null,null,"totale presenti"]
["N.","Cognome e None",null,"N. ENTECA","ora","Firma ENTRATA","ora","Firma USCITA","docente/co-docente/professionista (D/C/P)"]
[26,null,null,null,null,null,null,null,"orario:"]
[27,null,null,null,null,null,null,null,"argomento:"]
[28]
[29]
[30]
[31]
[32,null,null,null,null,null,null,null,"firma _ _ _ _ _ _ _ _ ",null,"firma _ _ _ _ _ _ _ _ "]
[33,null,null,null,null,null,null,null,"orario:"]
[34,null,null,null,null,null,null,null,"argomento:"]
[35]
[36]
[37]
[38,null,null,null,null,null,null,null,"firma _ _ _ _ _ _ _ _ ",null,"firma _ _ _ _ _ _ _ _ "]
[39,null,null,null,null,null,null,null,"orario:"]
[40,null,null,null,null,null,null,null,"argomento:"]
[41]
[42]
[43]
[44,null,null,null,null,null,null,null,"firma _ _ _ _ _ _ _ _ ",null,"firma _ _ _ _ _ _ _ _ "]
[45,null,null,null,null,null,null,null,"orario:"]
[46,null,null,null,null,null,null,null,"argomento:"]
[47]
[48]
[49]
[50,null,null,null,null,null,null,null,"firma _ _ _ _ _ _ _ _ ",null,"firma _ _ _ _ _ _ _ _ "]
["Il sottoscritto _ _ _ _ _ _ _ _ _ _ _ _ _ _ _ _ _ _ _ _ _ _ _ _ _  consapevole delle sanzioni penali richiamate dall’art. 76 del D.P.R. 445 del 28/12/2000 per i casi di dichiarazioni non veritiere, di formazione o uso di atti falsi, dichiara che le firme dei docenti, co-docenti e allievi sono autografe e sono state apposte nelle ore e nel giorno indicati. "]
[]
[{"$f":"\"Data  ___ ___ ___ ___ \" & $C$2 & \" - firma del Legale rappresentante (o suo delegato)\"","v":"Data  ___ ___ ___ ___  - firma del Legale rappresentante (o suo delegato)"}]